{"text_format":"1","workbook":"xlsx","n_sheets":3,"sheets":["FORMULACIÓN SIGI ","Plan de Acción GPS","LISTAS"],"not_rendered":{"charts":0,"images":1,"macros":1,"external_links":2,"defined_names":63,"comments":0,"pivot_tables":0},"unopened":[],"bounds":{"document_bytes":16777216,"sheet_cells":100000,"rows_first":2000,"rows_last":500,"rows_between":2000,"halvings":0,"cell_chars":16384,"cell_head_chars":4096},"cells_cut":0,"cells_raw":0,"read":"whole","date_system":"1900"}

{"sheet":"FORMULACIÓN SIGI ","index":0,"n_rows":295,"n_cols":19,"rows_kept":295,"cut":false,"hidden":false,"merged":[[17,0,17,17],[5,0,5,1],[9,2,9,6],[1,3,3,15],[1,0,3,2],[11,0,12,1],[11,3,12,6],[11,8,11,11],[12,16,12,17],[12,13,12,15],[13,13,13,16],[14,13,14,16],[15,13,15,16],[7,0,7,1],[7,2,7,6],[9,0,9,1],[5,2,5,6],[7,8,7,9],[7,10,7,14],[9,8,9,14],[13,0,15,0],[13,1,15,1],[13,3,15,3],[13,4,15,6],[13,8,15,8],[11,13,11,17],[13,9,15,9],[13,10,15,10],[13,11,15,11]]}
[]
[null,null,null,"FORMULACIÓN PLAN DE ACCIÓN ",null,null,null,null,null,null,null,null,null,null,null,null,"Código:              ","DE01-F03"]
[null,null,null,null,null,null,null,null,null,null,null,null,null,null,null,null,"Versión:               ",16]
[null,null,null,null,null,null,null,null,null,null,null,null,null,null,null,null,"Fecha:             "," 2023-12-28"]
[]
["VIGENCIA:",null,2024]
[]
["ÁREA:",null,null,null,null,null,null,{"$f":"HLOOKUP(C8,LISTAS!A1:L10,10,0)","v":{"$error":"#N/A"}},"ÁREA Y/O DEPENDENCIA RESPONSABLE:",null,null,null,null,null,null,null,"FICHA:",{"$f":"IF(K8=0,\"\",VLOOKUP(K8,LISTAS!A15:B52,2,0))","v":""}]
[]
["∑ PART. % PRODUCTOS ",null,{"$f":"SUMIF(A20:A396,\"Producto\",K20:K396)","v":0},null,null,null,null,null,{"$f":"IF(C10=0%,\"\",IF(C10=100%,\"Ponderación completa\",IF(C10<100%,CONCATENATE(\"Aun falta por asignar \",TEXT(G11,\"#%\")),\"La sumatoria de ponderadores de productos no puede superar el 100%\")))","v":""}]
[null,null,null,null,null,null,{"$f":"100%-C10","v":1}]
["Vo.Bo. REVISIÓN OAP",null,null,"JEFE OFICINA DE PLANEACIÓN RESPONSABLE DE LA APROBACIÓN ",null,null,null,null,"FIRMAS ÁREAS/DEPENDENCIAS  RESPONSABLES DE LA FICHA, RELACIÓN DE LAS ÁREAS/DEPENDENCIAS  RESPONSABLES DE LA FICHA",null,null,null,null,"OTRAS  DEPENDENCIAS RESPONSABLES DE LA EJECUCIÓN DE  ACTIVIDADES QUE AUTORIZACION LA FORMULACIÓN"]
[null,null,null,null,null,null,null,null,null," 1° Nivel","2° Nivel","3° Nivel",null,"DEPENDENCIA",null,null,"NOMBRE JEFE "]
["Nombre:",null,null,"Nombre:",null,null,null,null,"Nombre:"]
[]
[]
[]
["IMPORTANTE: Este formato se debe descargar, guardar con macros habilitados, cerrarlo y volverlo abrir desde la ubicación donde fue guardado. Para ser diligenciado corrctamente se sugiere consultar las instrucciones que se habilitan al ubicar el cursor en cada una de las celdas de color Azul.  \nPara su diligenciamiento se sugiere consultar también el procedimiento DE01-P01 \"FORMULACIÓN DE LA PLANEACIÓN INSTITUCIONAL\"."]
["Ident. Fila","Categoría","Objetivo estratégico","Indicador estratégico","Estrategia","Insumo de planeación del que se extrajo el producto","Fuente de Financiación","Política(s) MIPG","Asociación a planes ","Descripción del producto o actividad","Part. %\n","Meta","Unidad de medida (Meta)","Númerador para formula","Denominador para formula","Fecha Inicio","Fecha Final","Áreas/\nDependencias responsables de la ejecución de actividades"]
[null,null,null,null,null,null,null,null,null,null,null,null,null,null,null,null,null,null,{"$f":"HLOOKUP(C20,LISTAS!$F$67:$L$70,3,0)","v":{"$error":"#N/A"}}]
[null,null,null,null,null,null,null,null,null,null,null,null,null,null,null,null,null,null,{"$f":"HLOOKUP(C21,LISTAS!$F$67:$L$70,3,0)","v":{"$error":"#N/A"}}]
[null,null,null,null,null,null,null,null,null,null,null,null,null,null,null,null,null,null,{"$f":"HLOOKUP(C22,LISTAS!$F$67:$L$70,3,0)","v":{"$error":"#N/A"}}]
[null,null,null,null,null,null,null,null,null,null,null,null,null,null,null,null,null,null,{"$f":"HLOOKUP(C23,LISTAS!$F$67:$L$70,3,0)","v":{"$error":"#N/A"}}]
[null,null,null,null,null,null,null,null,null,null,null,null,null,null,null,null,null,null,{"$f":"HLOOKUP(C24,LISTAS!$F$67:$L$70,3,0)","v":{"$error":"#N/A"}}]
[null,null,null,null,null,null,null,null,null,null,null,null,null,null,null,null,null,null,{"$f":"HLOOKUP(C25,LISTAS!$F$67:$L$70,3,0)","v":{"$error":"#N/A"}}]
[null,null,null,null,null,null,null,null,null,null,null,null,null,null,null,null,null,null,{"$f":"HLOOKUP(C26,LISTAS!$F$67:$L$70,3,0)","v":{"$error":"#N/A"}}]
[null,null,null,null,null,null,null,null,null,null,null,null,null,null,null,null,null,null,{"$f":"HLOOKUP(C27,LISTAS!$F$67:$L$70,3,0)","v":{"$error":"#N/A"}}]
[null,null,null,null,null,null,null,null,null,null,null,null,null,null,null,null,null,null,{"$f":"HLOOKUP(C28,LISTAS!$F$67:$L$70,3,0)","v":{"$error":"#N/A"}}]
[null,null,null,null,null,null,null,null,null,null,null,null,null,null,null,null,null,null,{"$f":"HLOOKUP(C29,LISTAS!$F$67:$L$70,3,0)","v":{"$error":"#N/A"}}]
[null,null,null,null,null,null,null,null,null,null,null,null,null,null,null,null,null,null,{"$f":"HLOOKUP(C30,LISTAS!$F$67:$L$70,3,0)","v":{"$error":"#N/A"}}]
[null,null,null,null,null,null,null,null,null,null,null,null,null,null,null,null,null,null,{"$f":"HLOOKUP(C31,LISTAS!$F$67:$L$70,3,0)","v":{"$error":"#N/A"}}]
[null,null,null,null,null,null,null,null,null,null,null,null,null,null,null,null,null,null,{"$f":"HLOOKUP(C32,LISTAS!$F$67:$L$70,3,0)","v":{"$error":"#N/A"}}]
[null,null,null,null,null,null,null,null,null,null,null,null,null,null,null,null,null,null,{"$f":"HLOOKUP(C33,LISTAS!$F$67:$L$70,3,0)","v":{"$error":"#N/A"}}]
[null,null,null,null,null,null,null,null,null,null,null,null,null,null,null,null,null,null,{"$f":"HLOOKUP(C34,LISTAS!$F$67:$L$70,3,0)","v":{"$error":"#N/A"}}]
[null,null,null,null,null,null,null,null,null,null,null,null,null,null,null,null,null,null,{"$f":"HLOOKUP(C35,LISTAS!$F$67:$L$70,3,0)","v":{"$error":"#N/A"}}]
[null,null,null,null,null,null,null,null,null,null,null,null,null,null,null,null,null,null,{"$f":"HLOOKUP(C36,LISTAS!$F$67:$L$70,3,0)","v":{"$error":"#N/A"}}]
[null,null,null,null,null,null,null,null,null,null,null,null,null,null,null,null,null,null,{"$f":"HLOOKUP(C37,LISTAS!$F$67:$L$70,3,0)","v":{"$error":"#N/A"}}]
[null,null,null,null,null,null,null,null,null,null,null,null,null,null,null,null,null,null,{"$f":"HLOOKUP(C38,LISTAS!$F$67:$L$70,3,0)","v":{"$error":"#N/A"}}]
[null,null,null,null,null,null,null,null,null,null,null,null,null,null,null,null,null,null,{"$f":"HLOOKUP(C39,LISTAS!$F$67:$L$70,3,0)","v":{"$error":"#N/A"}}]
[null,null,null,null,null,null,null,null,null,null,null,null,null,null,null,null,null,null,{"$f":"HLOOKUP(C40,LISTAS!$F$67:$L$70,3,0)","v":{"$error":"#N/A"}}]
[null,null,null,null,null,null,null,null,null,null,null,null,null,null,null,null,null,null,{"$f":"HLOOKUP(C41,LISTAS!$F$67:$L$70,3,0)","v":{"$error":"#N/A"}}]
[null,null,null,null,null,null,null,null,null,null,null,null,null,null,null,null,null,null,{"$f":"HLOOKUP(C42,LISTAS!$F$67:$L$70,3,0)","v":{"$error":"#N/A"}}]
[null,null,null,null,null,null,null,null,null,null,null,null,null,null,null,null,null,null,{"$f":"HLOOKUP(C43,LISTAS!$F$67:$L$70,3,0)","v":{"$error":"#N/A"}}]
[null,null,null,null,null,null,null,null,null,null,null,null,null,null,null,null,null,null,{"$f":"HLOOKUP(C44,LISTAS!$F$67:$L$70,3,0)","v":{"$error":"#N/A"}}]
[null,null,null,null,null,null,null,null,null,null,null,null,null,null,null,null,null,null,{"$f":"HLOOKUP(C45,LISTAS!$F$67:$L$70,3,0)","v":{"$error":"#N/A"}}]
[null,null,null,null,null,null,null,null,null,null,null,null,null,null,null,null,null,null,{"$f":"HLOOKUP(C46,LISTAS!$F$67:$L$70,3,0)","v":{"$error":"#N/A"}}]
[null,null,null,null,null,null,null,null,null,null,null,null,null,null,null,null,null,null,{"$f":"HLOOKUP(C47,LISTAS!$F$67:$L$70,3,0)","v":{"$error":"#N/A"}}]
[null,null,null,null,null,null,null,null,null,null,null,null,null,null,null,null,null,null,{"$f":"HLOOKUP(C48,LISTAS!$F$67:$L$70,3,0)","v":{"$error":"#N/A"}}]
[null,null,null,null,null,null,null,null,null,null,null,null,null,null,null,null,null,null,{"$f":"HLOOKUP(C49,LISTAS!$F$67:$L$70,3,0)","v":{"$error":"#N/A"}}]
[null,null,null,null,null,null,null,null,null,null,null,null,null,null,null,null,null,null,{"$f":"HLOOKUP(C50,LISTAS!$F$67:$L$70,3,0)","v":{"$error":"#N/A"}}]
[null,null,null,null,null,null,null,null,null,null,null,null,null,null,null,null,null,null,{"$f":"HLOOKUP(C51,LISTAS!$F$67:$L$70,3,0)","v":{"$error":"#N/A"}}]
[null,null,null,null,null,null,null,null,null,null,null,null,null,null,null,null,null,null,{"$f":"HLOOKUP(C52,LISTAS!$F$67:$L$70,3,0)","v":{"$error":"#N/A"}}]
[null,null,null,null,null,null,null,null,null,null,null,null,null,null,null,null,null,null,{"$f":"HLOOKUP(C53,LISTAS!$F$67:$L$70,3,0)","v":{"$error":"#N/A"}}]
[null,null,null,null,null,null,null,null,null,null,null,null,null,null,null,null,null,null,{"$f":"HLOOKUP(C54,LISTAS!$F$67:$L$70,3,0)","v":{"$error":"#N/A"}}]
[null,null,null,null,null,null,null,null,null,null,null,null,null,null,null,null,null,null,{"$f":"HLOOKUP(C55,LISTAS!$F$67:$L$70,3,0)","v":{"$error":"#N/A"}}]
[null,null,null,null,null,null,null,null,null,null,null,null,null,null,null,null,null,null,{"$f":"HLOOKUP(C56,LISTAS!$F$67:$L$70,3,0)","v":{"$error":"#N/A"}}]
[null,null,null,null,null,null,null,null,null,null,null,null,null,null,null,null,null,null,{"$f":"HLOOKUP(C57,LISTAS!$F$67:$L$70,3,0)","v":{"$error":"#N/A"}}]
[null,null,null,null,null,null,null,null,null,null,null,null,null,null,null,null,null,null,{"$f":"HLOOKUP(C58,LISTAS!$F$67:$L$70,3,0)","v":{"$error":"#N/A"}}]
[null,null,null,null,null,null,null,null,null,null,null,null,null,null,null,null,null,null,{"$f":"HLOOKUP(C59,LISTAS!$F$67:$L$70,3,0)","v":{"$error":"#N/A"}}]
[null,null,null,null,null,null,null,null,null,null,null,null,null,null,null,null,null,null,{"$f":"HLOOKUP(C60,LISTAS!$F$67:$L$70,3,0)","v":{"$error":"#N/A"}}]
[null,null,null,null,null,null,null,null,null,null,null,null,null,null,null,null,null,null,{"$f":"HLOOKUP(C61,LISTAS!$F$67:$L$70,3,0)","v":{"$error":"#N/A"}}]
[null,null,null,null,null,null,null,null,null,null,null,null,null,null,null,null,null,null,{"$f":"HLOOKUP(C62,LISTAS!$F$67:$L$70,3,0)","v":{"$error":"#N/A"}}]
[null,null,null,null,null,null,null,null,null,null,null,null,null,null,null,null,null,null,{"$f":"HLOOKUP(C63,LISTAS!$F$67:$L$70,3,0)","v":{"$error":"#N/A"}}]
[null,null,null,null,null,null,null,null,null,null,null,null,null,null,null,null,null,null,{"$f":"HLOOKUP(C64,LISTAS!$F$67:$L$70,3,0)","v":{"$error":"#N/A"}}]
[null,null,null,null,null,null,null,null,null,null,null,null,null,null,null,null,null,null,{"$f":"HLOOKUP(C65,LISTAS!$F$67:$L$70,3,0)","v":{"$error":"#N/A"}}]
[null,null,null,null,null,null,null,null,null,null,null,null,null,null,null,null,null,null,{"$f":"HLOOKUP(C66,LISTAS!$F$67:$L$70,3,0)","v":{"$error":"#N/A"}}]
[null,null,null,null,null,null,null,null,null,null,null,null,null,null,null,null,null,null,{"$f":"HLOOKUP(C67,LISTAS!$F$67:$L$70,3,0)","v":{"$error":"#N/A"}}]
[null,null,null,null,null,null,null,null,null,null,null,null,null,null,null,null,null,null,{"$f":"HLOOKUP(C68,LISTAS!$F$67:$L$70,3,0)","v":{"$error":"#N/A"}}]
[null,null,null,null,null,null,null,null,null,null,null,null,null,null,null,null,null,null,{"$f":"HLOOKUP(C69,LISTAS!$F$67:$L$70,3,0)","v":{"$error":"#N/A"}}]
[null,null,null,null,null,null,null,null,null,null,null,null,null,null,null,null,null,null,{"$f":"HLOOKUP(C70,LISTAS!$F$67:$L$70,3,0)","v":{"$error":"#N/A"}}]
[null,null,null,null,null,null,null,null,null,null,null,null,null,null,null,null,null,null,{"$f":"HLOOKUP(C71,LISTAS!$F$67:$L$70,3,0)","v":{"$error":"#N/A"}}]
[null,null,null,null,null,null,null,null,null,null,null,null,null,null,null,null,null,null,{"$f":"HLOOKUP(C72,LISTAS!$F$67:$L$70,3,0)","v":{"$error":"#N/A"}}]
[null,null,null,null,null,null,null,null,null,null,null,null,null,null,null,null,null,null,{"$f":"HLOOKUP(C73,LISTAS!$F$67:$L$70,3,0)","v":{"$error":"#N/A"}}]
[null,null,null,null,null,null,null,null,null,null,null,null,null,null,null,null,null,null,{"$f":"HLOOKUP(C74,LISTAS!$F$67:$L$70,3,0)","v":{"$error":"#N/A"}}]
[null,null,null,null,null,null,null,null,null,null,null,null,null,null,null,null,null,null,{"$f":"HLOOKUP(C75,LISTAS!$F$67:$L$70,3,0)","v":{"$error":"#N/A"}}]
[null,null,null,null,null,null,null,null,null,null,null,null,null,null,null,null,null,null,{"$f":"HLOOKUP(C76,LISTAS!$F$67:$L$70,3,0)","v":{"$error":"#N/A"}}]
[null,null,null,null,null,null,null,null,null,null,null,null,null,null,null,null,null,null,{"$f":"HLOOKUP(C77,LISTAS!$F$67:$L$70,3,0)","v":{"$error":"#N/A"}}]
[null,null,null,null,null,null,null,null,null,null,null,null,null,null,null,null,null,null,{"$f":"HLOOKUP(C78,LISTAS!$F$67:$L$70,3,0)","v":{"$error":"#N/A"}}]
[null,null,null,null,null,null,null,null,null,null,null,null,null,null,null,null,null,null,{"$f":"HLOOKUP(C79,LISTAS!$F$67:$L$70,3,0)","v":{"$error":"#N/A"}}]
[null,null,null,null,null,null,null,null,null,null,null,null,null,null,null,null,null,null,{"$f":"HLOOKUP(C80,LISTAS!$F$67:$L$70,3,0)","v":{"$error":"#N/A"}}]
[null,null,null,null,null,null,null,null,null,null,null,null,null,null,null,null,null,null,{"$f":"HLOOKUP(C81,LISTAS!$F$67:$L$70,3,0)","v":{"$error":"#N/A"}}]
[null,null,null,null,null,null,null,null,null,null,null,null,null,null,null,null,null,null,{"$f":"HLOOKUP(C82,LISTAS!$F$67:$L$70,3,0)","v":{"$error":"#N/A"}}]
[null,null,null,null,null,null,null,null,null,null,null,null,null,null,null,null,null,null,{"$f":"HLOOKUP(C83,LISTAS!$F$67:$L$70,3,0)","v":{"$error":"#N/A"}}]
[null,null,null,null,null,null,null,null,null,null,null,null,null,null,null,null,null,null,{"$f":"HLOOKUP(C84,LISTAS!$F$67:$L$70,3,0)","v":{"$error":"#N/A"}}]
[null,null,null,null,null,null,null,null,null,null,null,null,null,null,null,null,null,null,{"$f":"HLOOKUP(C85,LISTAS!$F$67:$L$70,3,0)","v":{"$error":"#N/A"}}]
[null,null,null,null,null,null,null,null,null,null,null,null,null,null,null,null,null,null,{"$f":"HLOOKUP(C86,LISTAS!$F$67:$L$70,3,0)","v":{"$error":"#N/A"}}]
[null,null,null,null,null,null,null,null,null,null,null,null,null,null,null,null,null,null,{"$f":"HLOOKUP(C87,LISTAS!$F$67:$L$70,3,0)","v":{"$error":"#N/A"}}]
[null,null,null,null,null,null,null,null,null,null,null,null,null,null,null,null,null,null,{"$f":"HLOOKUP(C88,LISTAS!$F$67:$L$70,3,0)","v":{"$error":"#N/A"}}]
[null,null,null,null,null,null,null,null,null,null,null,null,null,null,null,null,null,null,{"$f":"HLOOKUP(C89,LISTAS!$F$67:$L$70,3,0)","v":{"$error":"#N/A"}}]
[null,null,null,null,null,null,null,null,null,null,null,null,null,null,null,null,null,null,{"$f":"HLOOKUP(C90,LISTAS!$F$67:$L$70,3,0)","v":{"$error":"#N/A"}}]
[null,null,null,null,null,null,null,null,null,null,null,null,null,null,null,null,null,null,{"$f":"HLOOKUP(C91,LISTAS!$F$67:$L$70,3,0)","v":{"$error":"#N/A"}}]
[null,null,null,null,null,null,null,null,null,null,null,null,null,null,null,null,null,null,{"$f":"HLOOKUP(C92,LISTAS!$F$67:$L$70,3,0)","v":{"$error":"#N/A"}}]
[null,null,null,null,null,null,null,null,null,null,null,null,null,null,null,null,null,null,{"$f":"HLOOKUP(C93,LISTAS!$F$67:$L$70,3,0)","v":{"$error":"#N/A"}}]
[null,null,null,null,null,null,null,null,null,null,null,null,null,null,null,null,null,null,{"$f":"HLOOKUP(C94,LISTAS!$F$67:$L$70,3,0)","v":{"$error":"#N/A"}}]
[null,null,null,null,null,null,null,null,null,null,null,null,null,null,null,null,null,null,{"$f":"HLOOKUP(C95,LISTAS!$F$67:$L$70,3,0)","v":{"$error":"#N/A"}}]
[null,null,null,null,null,null,null,null,null,null,null,null,null,null,null,null,null,null,{"$f":"HLOOKUP(C96,LISTAS!$F$67:$L$70,3,0)","v":{"$error":"#N/A"}}]
[null,null,null,null,null,null,null,null,null,null,null,null,null,null,null,null,null,null,{"$f":"HLOOKUP(C97,LISTAS!$F$67:$L$70,3,0)","v":{"$error":"#N/A"}}]
[null,null,null,null,null,null,null,null,null,null,null,null,null,null,null,null,null,null,{"$f":"HLOOKUP(C98,LISTAS!$F$67:$L$70,3,0)","v":{"$error":"#N/A"}}]
[null,null,null,null,null,null,null,null,null,null,null,null,null,null,null,null,null,null,{"$f":"HLOOKUP(C99,LISTAS!$F$67:$L$70,3,0)","v":{"$error":"#N/A"}}]
[null,null,null,null,null,null,null,null,null,null,null,null,null,null,null,null,null,null,{"$f":"HLOOKUP(C100,LISTAS!$F$67:$L$70,3,0)","v":{"$error":"#N/A"}}]
[null,null,null,null,null,null,null,null,null,null,null,null,null,null,null,null,null,null,{"$f":"HLOOKUP(C101,LISTAS!$F$67:$L$70,3,0)","v":{"$error":"#N/A"}}]
[null,null,null,null,null,null,null,null,null,null,null,null,null,null,null,null,null,null,{"$f":"HLOOKUP(C102,LISTAS!$F$67:$L$70,3,0)","v":{"$error":"#N/A"}}]
[null,null,null,null,null,null,null,null,null,null,null,null,null,null,null,null,null,null,{"$f":"HLOOKUP(C103,LISTAS!$F$67:$L$70,3,0)","v":{"$error":"#N/A"}}]
[null,null,null,null,null,null,null,null,null,null,null,null,null,null,null,null,null,null,{"$f":"HLOOKUP(C104,LISTAS!$F$67:$L$70,3,0)","v":{"$error":"#N/A"}}]
[null,null,null,null,null,null,null,null,null,null,null,null,null,null,null,null,null,null,{"$f":"HLOOKUP(C105,LISTAS!$F$67:$L$70,3,0)","v":{"$error":"#N/A"}}]
[null,null,null,null,null,null,null,null,null,null,null,null,null,null,null,null,null,null,{"$f":"HLOOKUP(C106,LISTAS!$F$67:$L$70,3,0)","v":{"$error":"#N/A"}}]
[null,null,null,null,null,null,null,null,null,null,null,null,null,null,null,null,null,null,{"$f":"HLOOKUP(C107,LISTAS!$F$67:$L$70,3,0)","v":{"$error":"#N/A"}}]
[null,null,null,null,null,null,null,null,null,null,null,null,null,null,null,null,null,null,{"$f":"HLOOKUP(C108,LISTAS!$F$67:$L$70,3,0)","v":{"$error":"#N/A"}}]
[null,null,null,null,null,null,null,null,null,null,null,null,null,null,null,null,null,null,{"$f":"HLOOKUP(C109,LISTAS!$F$67:$L$70,3,0)","v":{"$error":"#N/A"}}]
[null,null,null,null,null,null,null,null,null,null,null,null,null,null,null,null,null,null,{"$f":"HLOOKUP(C110,LISTAS!$F$67:$L$70,3,0)","v":{"$error":"#N/A"}}]
[null,null,null,null,null,null,null,null,null,null,null,null,null,null,null,null,null,null,{"$f":"HLOOKUP(C111,LISTAS!$F$67:$L$70,3,0)","v":{"$error":"#N/A"}}]
[null,null,null,null,null,null,null,null,null,null,null,null,null,null,null,null,null,null,{"$f":"HLOOKUP(C112,LISTAS!$F$67:$L$70,3,0)","v":{"$error":"#N/A"}}]
[null,null,null,null,null,null,null,null,null,null,null,null,null,null,null,null,null,null,{"$f":"HLOOKUP(C113,LISTAS!$F$67:$L$70,3,0)","v":{"$error":"#N/A"}}]
[null,null,null,null,null,null,null,null,null,null,null,null,null,null,null,null,null,null,{"$f":"HLOOKUP(C114,LISTAS!$F$67:$L$70,3,0)","v":{"$error":"#N/A"}}]
[null,null,null,null,null,null,null,null,null,null,null,null,null,null,null,null,null,null,{"$f":"HLOOKUP(C115,LISTAS!$F$67:$L$70,3,0)","v":{"$error":"#N/A"}}]
[null,null,null,null,null,null,null,null,null,null,null,null,null,null,null,null,null,null,{"$f":"HLOOKUP(C116,LISTAS!$F$67:$L$70,3,0)","v":{"$error":"#N/A"}}]
[null,null,null,null,null,null,null,null,null,null,null,null,null,null,null,null,null,null,{"$f":"HLOOKUP(C117,LISTAS!$F$67:$L$70,3,0)","v":{"$error":"#N/A"}}]
[null,null,null,null,null,null,null,null,null,null,null,null,null,null,null,null,null,null,{"$f":"HLOOKUP(C118,LISTAS!$F$67:$L$70,3,0)","v":{"$error":"#N/A"}}]
[null,null,null,null,null,null,null,null,null,null,null,null,null,null,null,null,null,null,{"$f":"HLOOKUP(C119,LISTAS!$F$67:$L$70,3,0)","v":{"$error":"#N/A"}}]
[null,null,null,null,null,null,null,null,null,null,null,null,null,null,null,null,null,null,{"$f":"HLOOKUP(C120,LISTAS!$F$67:$L$70,3,0)","v":{"$error":"#N/A"}}]
[null,null,null,null,null,null,null,null,null,null,null,null,null,null,null,null,null,null,{"$f":"HLOOKUP(C121,LISTAS!$F$67:$L$70,3,0)","v":{"$error":"#N/A"}}]
[null,null,null,null,null,null,null,null,null,null,null,null,null,null,null,null,null,null,{"$f":"HLOOKUP(C122,LISTAS!$F$67:$L$70,3,0)","v":{"$error":"#N/A"}}]
[null,null,null,null,null,null,null,null,null,null,null,null,null,null,null,null,null,null,{"$f":"HLOOKUP(C123,LISTAS!$F$67:$L$70,3,0)","v":{"$error":"#N/A"}}]
[null,null,null,null,null,null,null,null,null,null,null,null,null,null,null,null,null,null,{"$f":"HLOOKUP(C124,LISTAS!$F$67:$L$70,3,0)","v":{"$error":"#N/A"}}]
[null,null,null,null,null,null,null,null,null,null,null,null,null,null,null,null,null,null,{"$f":"HLOOKUP(C125,LISTAS!$F$67:$L$70,3,0)","v":{"$error":"#N/A"}}]
[null,null,null,null,null,null,null,null,null,null,null,null,null,null,null,null,null,null,{"$f":"HLOOKUP(C126,LISTAS!$F$67:$L$70,3,0)","v":{"$error":"#N/A"}}]
[null,null,null,null,null,null,null,null,null,null,null,null,null,null,null,null,null,null,{"$f":"HLOOKUP(C127,LISTAS!$F$67:$L$70,3,0)","v":{"$error":"#N/A"}}]
[null,null,null,null,null,null,null,null,null,null,null,null,null,null,null,null,null,null,{"$f":"HLOOKUP(C128,LISTAS!$F$67:$L$70,3,0)","v":{"$error":"#N/A"}}]
[null,null,null,null,null,null,null,null,null,null,null,null,null,null,null,null,null,null,{"$f":"HLOOKUP(C129,LISTAS!$F$67:$L$70,3,0)","v":{"$error":"#N/A"}}]
[null,null,null,null,null,null,null,null,null,null,null,null,null,null,null,null,null,null,{"$f":"HLOOKUP(C130,LISTAS!$F$67:$L$70,3,0)","v":{"$error":"#N/A"}}]
[null,null,null,null,null,null,null,null,null,null,null,null,null,null,null,null,null,null,{"$f":"HLOOKUP(C131,LISTAS!$F$67:$L$70,3,0)","v":{"$error":"#N/A"}}]
[null,null,null,null,null,null,null,null,null,null,null,null,null,null,null,null,null,null,{"$f":"HLOOKUP(C132,LISTAS!$F$67:$L$70,3,0)","v":{"$error":"#N/A"}}]
[null,null,null,null,null,null,null,null,null,null,null,null,null,null,null,null,null,null,{"$f":"HLOOKUP(C133,LISTAS!$F$67:$L$70,3,0)","v":{"$error":"#N/A"}}]
[null,null,null,null,null,null,null,null,null,null,null,null,null,null,null,null,null,null,{"$f":"HLOOKUP(C134,LISTAS!$F$67:$L$70,3,0)","v":{"$error":"#N/A"}}]
[null,null,null,null,null,null,null,null,null,null,null,null,null,null,null,null,null,null,{"$f":"HLOOKUP(C135,LISTAS!$F$67:$L$70,3,0)","v":{"$error":"#N/A"}}]
[null,null,null,null,null,null,null,null,null,null,null,null,null,null,null,null,null,null,{"$f":"HLOOKUP(C136,LISTAS!$F$67:$L$70,3,0)","v":{"$error":"#N/A"}}]
[null,null,null,null,null,null,null,null,null,null,null,null,null,null,null,null,null,null,{"$f":"HLOOKUP(C137,LISTAS!$F$67:$L$70,3,0)","v":{"$error":"#N/A"}}]
[null,null,null,null,null,null,null,null,null,null,null,null,null,null,null,null,null,null,{"$f":"HLOOKUP(C138,LISTAS!$F$67:$L$70,3,0)","v":{"$error":"#N/A"}}]
[null,null,null,null,null,null,null,null,null,null,null,null,null,null,null,null,null,null,{"$f":"HLOOKUP(C139,LISTAS!$F$67:$L$70,3,0)","v":{"$error":"#N/A"}}]
[null,null,null,null,null,null,null,null,null,null,null,null,null,null,null,null,null,null,{"$f":"HLOOKUP(C140,LISTAS!$F$67:$L$70,3,0)","v":{"$error":"#N/A"}}]
[null,null,null,null,null,null,null,null,null,null,null,null,null,null,null,null,null,null,{"$f":"HLOOKUP(C141,LISTAS!$F$67:$L$70,3,0)","v":{"$error":"#N/A"}}]
[null,null,null,null,null,null,null,null,null,null,null,null,null,null,null,null,null,null,{"$f":"HLOOKUP(C142,LISTAS!$F$67:$L$70,3,0)","v":{"$error":"#N/A"}}]
[null,null,null,null,null,null,null,null,null,null,null,null,null,null,null,null,null,null,{"$f":"HLOOKUP(C143,LISTAS!$F$67:$L$70,3,0)","v":{"$error":"#N/A"}}]
[null,null,null,null,null,null,null,null,null,null,null,null,null,null,null,null,null,null,{"$f":"HLOOKUP(C144,LISTAS!$F$67:$L$70,3,0)","v":{"$error":"#N/A"}}]
[null,null,null,null,null,null,null,null,null,null,null,null,null,null,null,null,null,null,{"$f":"HLOOKUP(C145,LISTAS!$F$67:$L$70,3,0)","v":{"$error":"#N/A"}}]
[null,null,null,null,null,null,null,null,null,null,null,null,null,null,null,null,null,null,{"$f":"HLOOKUP(C146,LISTAS!$F$67:$L$70,3,0)","v":{"$error":"#N/A"}}]
[null,null,null,null,null,null,null,null,null,null,null,null,null,null,null,null,null,null,{"$f":"HLOOKUP(C147,LISTAS!$F$67:$L$70,3,0)","v":{"$error":"#N/A"}}]
[null,null,null,null,null,null,null,null,null,null,null,null,null,null,null,null,null,null,{"$f":"HLOOKUP(C148,LISTAS!$F$67:$L$70,3,0)","v":{"$error":"#N/A"}}]
[null,null,null,null,null,null,null,null,null,null,null,null,null,null,null,null,null,null,{"$f":"HLOOKUP(C149,LISTAS!$F$67:$L$70,3,0)","v":{"$error":"#N/A"}}]
[null,null,null,null,null,null,null,null,null,null,null,null,null,null,null,null,null,null,{"$f":"HLOOKUP(C150,LISTAS!$F$67:$L$70,3,0)","v":{"$error":"#N/A"}}]
[null,null,null,null,null,null,null,null,null,null,null,null,null,null,null,null,null,null,{"$f":"HLOOKUP(C151,LISTAS!$F$67:$L$70,3,0)","v":{"$error":"#N/A"}}]
[null,null,null,null,null,null,null,null,null,null,null,null,null,null,null,null,null,null,{"$f":"HLOOKUP(C152,LISTAS!$F$67:$L$70,3,0)","v":{"$error":"#N/A"}}]
[null,null,null,null,null,null,null,null,null,null,null,null,null,null,null,null,null,null,{"$f":"HLOOKUP(C153,LISTAS!$F$67:$L$70,3,0)","v":{"$error":"#N/A"}}]
[null,null,null,null,null,null,null,null,null,null,null,null,null,null,null,null,null,null,{"$f":"HLOOKUP(C154,LISTAS!$F$67:$L$70,3,0)","v":{"$error":"#N/A"}}]
[null,null,null,null,null,null,null,null,null,null,null,null,null,null,null,null,null,null,{"$f":"HLOOKUP(C155,LISTAS!$F$67:$L$70,3,0)","v":{"$error":"#N/A"}}]
[null,null,null,null,null,null,null,null,null,null,null,null,null,null,null,null,null,null,{"$f":"HLOOKUP(C156,LISTAS!$F$67:$L$70,3,0)","v":{"$error":"#N/A"}}]
[null,null,null,null,null,null,null,null,null,null,null,null,null,null,null,null,null,null,{"$f":"HLOOKUP(C157,LISTAS!$F$67:$L$70,3,0)","v":{"$error":"#N/A"}}]
[null,null,null,null,null,null,null,null,null,null,null,null,null,null,null,null,null,null,{"$f":"HLOOKUP(C158,LISTAS!$F$67:$L$70,3,0)","v":{"$error":"#N/A"}}]
[null,null,null,null,null,null,null,null,null,null,null,null,null,null,null,null,null,null,{"$f":"HLOOKUP(C159,LISTAS!$F$67:$L$70,3,0)","v":{"$error":"#N/A"}}]
[null,null,null,null,null,null,null,null,null,null,null,null,null,null,null,null,null,null,{"$f":"HLOOKUP(C160,LISTAS!$F$67:$L$70,3,0)","v":{"$error":"#N/A"}}]
[null,null,null,null,null,null,null,null,null,null,null,null,null,null,null,null,null,null,{"$f":"HLOOKUP(C161,LISTAS!$F$67:$L$70,3,0)","v":{"$error":"#N/A"}}]
[null,null,null,null,null,null,null,null,null,null,null,null,null,null,null,null,null,null,{"$f":"HLOOKUP(C162,LISTAS!$F$67:$L$70,3,0)","v":{"$error":"#N/A"}}]
[null,null,null,null,null,null,null,null,null,null,null,null,null,null,null,null,null,null,{"$f":"HLOOKUP(C163,LISTAS!$F$67:$L$70,3,0)","v":{"$error":"#N/A"}}]
[null,null,null,null,null,null,null,null,null,null,null,null,null,null,null,null,null,null,{"$f":"HLOOKUP(C164,LISTAS!$F$67:$L$70,3,0)","v":{"$error":"#N/A"}}]
[null,null,null,null,null,null,null,null,null,null,null,null,null,null,null,null,null,null,{"$f":"HLOOKUP(C165,LISTAS!$F$67:$L$70,3,0)","v":{"$error":"#N/A"}}]
[null,null,null,null,null,null,null,null,null,null,null,null,null,null,null,null,null,null,{"$f":"HLOOKUP(C166,LISTAS!$F$67:$L$70,3,0)","v":{"$error":"#N/A"}}]
[null,null,null,null,null,null,null,null,null,null,null,null,null,null,null,null,null,null,{"$f":"HLOOKUP(C167,LISTAS!$F$67:$L$70,3,0)","v":{"$error":"#N/A"}}]
[null,null,null,null,null,null,null,null,null,null,null,null,null,null,null,null,null,null,{"$f":"HLOOKUP(C168,LISTAS!$F$67:$L$70,3,0)","v":{"$error":"#N/A"}}]
[null,null,null,null,null,null,null,null,null,null,null,null,null,null,null,null,null,null,{"$f":"HLOOKUP(C169,LISTAS!$F$67:$L$70,3,0)","v":{"$error":"#N/A"}}]
[null,null,null,null,null,null,null,null,null,null,null,null,null,null,null,null,null,null,{"$f":"HLOOKUP(C170,LISTAS!$F$67:$L$70,3,0)","v":{"$error":"#N/A"}}]
[null,null,null,null,null,null,null,null,null,null,null,null,null,null,null,null,null,null,{"$f":"HLOOKUP(C171,LISTAS!$F$67:$L$70,3,0)","v":{"$error":"#N/A"}}]
[null,null,null,null,null,null,null,null,null,null,null,null,null,null,null,null,null,null,{"$f":"HLOOKUP(C172,LISTAS!$F$67:$L$70,3,0)","v":{"$error":"#N/A"}}]
[null,null,null,null,null,null,null,null,null,null,null,null,null,null,null,null,null,null,{"$f":"HLOOKUP(C173,LISTAS!$F$67:$L$70,3,0)","v":{"$error":"#N/A"}}]
[null,null,null,null,null,null,null,null,null,null,null,null,null,null,null,null,null,null,{"$f":"HLOOKUP(C174,LISTAS!$F$67:$L$70,3,0)","v":{"$error":"#N/A"}}]
[null,null,null,null,null,null,null,null,null,null,null,null,null,null,null,null,null,null,{"$f":"HLOOKUP(C175,LISTAS!$F$67:$L$70,3,0)","v":{"$error":"#N/A"}}]
[null,null,null,null,null,null,null,null,null,null,null,null,null,null,null,null,null,null,{"$f":"HLOOKUP(C176,LISTAS!$F$67:$L$70,3,0)","v":{"$error":"#N/A"}}]
[null,null,null,null,null,null,null,null,null,null,null,null,null,null,null,null,null,null,{"$f":"HLOOKUP(C177,LISTAS!$F$67:$L$70,3,0)","v":{"$error":"#N/A"}}]
[null,null,null,null,null,null,null,null,null,null,null,null,null,null,null,null,null,null,{"$f":"HLOOKUP(C178,LISTAS!$F$67:$L$70,3,0)","v":{"$error":"#N/A"}}]
[null,null,null,null,null,null,null,null,null,null,null,null,null,null,null,null,null,null,{"$f":"HLOOKUP(C179,LISTAS!$F$67:$L$70,3,0)","v":{"$error":"#N/A"}}]
[null,null,null,null,null,null,null,null,null,null,null,null,null,null,null,null,null,null,{"$f":"HLOOKUP(C180,LISTAS!$F$67:$L$70,3,0)","v":{"$error":"#N/A"}}]
[null,null,null,null,null,null,null,null,null,null,null,null,null,null,null,null,null,null,{"$f":"HLOOKUP(C181,LISTAS!$F$67:$L$70,3,0)","v":{"$error":"#N/A"}}]
[null,null,null,null,null,null,null,null,null,null,null,null,null,null,null,null,null,null,{"$f":"HLOOKUP(C182,LISTAS!$F$67:$L$70,3,0)","v":{"$error":"#N/A"}}]
[null,null,null,null,null,null,null,null,null,null,null,null,null,null,null,null,null,null,{"$f":"HLOOKUP(C183,LISTAS!$F$67:$L$70,3,0)","v":{"$error":"#N/A"}}]
[null,null,null,null,null,null,null,null,null,null,null,null,null,null,null,null,null,null,{"$f":"HLOOKUP(C184,LISTAS!$F$67:$L$70,3,0)","v":{"$error":"#N/A"}}]
[null,null,null,null,null,null,null,null,null,null,null,null,null,null,null,null,null,null,{"$f":"HLOOKUP(C185,LISTAS!$F$67:$L$70,3,0)","v":{"$error":"#N/A"}}]
[null,null,null,null,null,null,null,null,null,null,null,null,null,null,null,null,null,null,{"$f":"HLOOKUP(C186,LISTAS!$F$67:$L$70,3,0)","v":{"$error":"#N/A"}}]
[null,null,null,null,null,null,null,null,null,null,null,null,null,null,null,null,null,null,{"$f":"HLOOKUP(C187,LISTAS!$F$67:$L$70,3,0)","v":{"$error":"#N/A"}}]
[null,null,null,null,null,null,null,null,null,null,null,null,null,null,null,null,null,null,{"$f":"HLOOKUP(C188,LISTAS!$F$67:$L$70,3,0)","v":{"$error":"#N/A"}}]
[null,null,null,null,null,null,null,null,null,null,null,null,null,null,null,null,null,null,{"$f":"HLOOKUP(C189,LISTAS!$F$67:$L$70,3,0)","v":{"$error":"#N/A"}}]
[null,null,null,null,null,null,null,null,null,null,null,null,null,null,null,null,null,null,{"$f":"HLOOKUP(C190,LISTAS!$F$67:$L$70,3,0)","v":{"$error":"#N/A"}}]
[null,null,null,null,null,null,null,null,null,null,null,null,null,null,null,null,null,null,{"$f":"HLOOKUP(C191,LISTAS!$F$67:$L$70,3,0)","v":{"$error":"#N/A"}}]
[null,null,null,null,null,null,null,null,null,null,null,null,null,null,null,null,null,null,{"$f":"HLOOKUP(C192,LISTAS!$F$67:$L$70,3,0)","v":{"$error":"#N/A"}}]
[null,null,null,null,null,null,null,null,null,null,null,null,null,null,null,null,null,null,{"$f":"HLOOKUP(C193,LISTAS!$F$67:$L$70,3,0)","v":{"$error":"#N/A"}}]
[null,null,null,null,null,null,null,null,null,null,null,null,null,null,null,null,null,null,{"$f":"HLOOKUP(C194,LISTAS!$F$67:$L$70,3,0)","v":{"$error":"#N/A"}}]
[null,null,null,null,null,null,null,null,null,null,null,null,null,null,null,null,null,null,{"$f":"HLOOKUP(C195,LISTAS!$F$67:$L$70,3,0)","v":{"$error":"#N/A"}}]
[null,null,null,null,null,null,null,null,null,null,null,null,null,null,null,null,null,null,{"$f":"HLOOKUP(C196,LISTAS!$F$67:$L$70,3,0)","v":{"$error":"#N/A"}}]
[null,null,null,null,null,null,null,null,null,null,null,null,null,null,null,null,null,null,{"$f":"HLOOKUP(C197,LISTAS!$F$67:$L$70,3,0)","v":{"$error":"#N/A"}}]
[null,null,null,null,null,null,null,null,null,null,null,null,null,null,null,null,null,null,{"$f":"HLOOKUP(C198,LISTAS!$F$67:$L$70,3,0)","v":{"$error":"#N/A"}}]
[null,null,null,null,null,null,null,null,null,null,null,null,null,null,null,null,null,null,{"$f":"HLOOKUP(C199,LISTAS!$F$67:$L$70,3,0)","v":{"$error":"#N/A"}}]
[null,null,null,null,null,null,null,null,null,null,null,null,null,null,null,null,null,null,{"$f":"HLOOKUP(C200,LISTAS!$F$67:$L$70,3,0)","v":{"$error":"#N/A"}}]
[null,null,null,null,null,null,null,null,null,null,null,null,null,null,null,null,null,null,{"$f":"HLOOKUP(C201,LISTAS!$F$67:$L$70,3,0)","v":{"$error":"#N/A"}}]
[null,null,null,null,null,null,null,null,null,null,null,null,null,null,null,null,null,null,{"$f":"HLOOKUP(C202,LISTAS!$F$67:$L$70,3,0)","v":{"$error":"#N/A"}}]
[null,null,null,null,null,null,null,null,null,null,null,null,null,null,null,null,null,null,{"$f":"HLOOKUP(C203,LISTAS!$F$67:$L$70,3,0)","v":{"$error":"#N/A"}}]
[null,null,null,null,null,null,null,null,null,null,null,null,null,null,null,null,null,null,{"$f":"HLOOKUP(C204,LISTAS!$F$67:$L$70,3,0)","v":{"$error":"#N/A"}}]
[null,null,null,null,null,null,null,null,null,null,null,null,null,null,null,null,null,null,{"$f":"HLOOKUP(C205,LISTAS!$F$67:$L$70,3,0)","v":{"$error":"#N/A"}}]
[null,null,null,null,null,null,null,null,null,null,null,null,null,null,null,null,null,null,{"$f":"HLOOKUP(C206,LISTAS!$F$67:$L$70,3,0)","v":{"$error":"#N/A"}}]
[null,null,null,null,null,null,null,null,null,null,null,null,null,null,null,null,null,null,{"$f":"HLOOKUP(C207,LISTAS!$F$67:$L$70,3,0)","v":{"$error":"#N/A"}}]
[null,null,null,null,null,null,null,null,null,null,null,null,null,null,null,null,null,null,{"$f":"HLOOKUP(C208,LISTAS!$F$67:$L$70,3,0)","v":{"$error":"#N/A"}}]
[null,null,null,null,null,null,null,null,null,null,null,null,null,null,null,null,null,null,{"$f":"HLOOKUP(C209,LISTAS!$F$67:$L$70,3,0)","v":{"$error":"#N/A"}}]
[null,null,null,null,null,null,null,null,null,null,null,null,null,null,null,null,null,null,{"$f":"HLOOKUP(C210,LISTAS!$F$67:$L$70,3,0)","v":{"$error":"#N/A"}}]
[null,null,null,null,null,null,null,null,null,null,null,null,null,null,null,null,null,null,{"$f":"HLOOKUP(C211,LISTAS!$F$67:$L$70,3,0)","v":{"$error":"#N/A"}}]
[null,null,null,null,null,null,null,null,null,null,null,null,null,null,null,null,null,null,{"$f":"HLOOKUP(C212,LISTAS!$F$67:$L$70,3,0)","v":{"$error":"#N/A"}}]
[null,null,null,null,null,null,null,null,null,null,null,null,null,null,null,null,null,null,{"$f":"HLOOKUP(C213,LISTAS!$F$67:$L$70,3,0)","v":{"$error":"#N/A"}}]
[null,null,null,null,null,null,null,null,null,null,null,null,null,null,null,null,null,null,{"$f":"HLOOKUP(C214,LISTAS!$F$67:$L$70,3,0)","v":{"$error":"#N/A"}}]
[null,null,null,null,null,null,null,null,null,null,null,null,null,null,null,null,null,null,{"$f":"HLOOKUP(C215,LISTAS!$F$67:$L$70,3,0)","v":{"$error":"#N/A"}}]
[null,null,null,null,null,null,null,null,null,null,null,null,null,null,null,null,null,null,{"$f":"HLOOKUP(C216,LISTAS!$F$67:$L$70,3,0)","v":{"$error":"#N/A"}}]
[null,null,null,null,null,null,null,null,null,null,null,null,null,null,null,null,null,null,{"$f":"HLOOKUP(C217,LISTAS!$F$67:$L$70,3,0)","v":{"$error":"#N/A"}}]
[null,null,null,null,null,null,null,null,null,null,null,null,null,null,null,null,null,null,{"$f":"HLOOKUP(C218,LISTAS!$F$67:$L$70,3,0)","v":{"$error":"#N/A"}}]
[null,null,null,null,null,null,null,null,null,null,null,null,null,null,null,null,null,null,{"$f":"HLOOKUP(C219,LISTAS!$F$67:$L$70,3,0)","v":{"$error":"#N/A"}}]
[null,null,null,null,null,null,null,null,null,null,null,null,null,null,null,null,null,null,{"$f":"HLOOKUP(C220,LISTAS!$F$67:$L$70,3,0)","v":{"$error":"#N/A"}}]
[null,null,null,null,null,null,null,null,null,null,null,null,null,null,null,null,null,null,{"$f":"HLOOKUP(C221,LISTAS!$F$67:$L$70,3,0)","v":{"$error":"#N/A"}}]
[null,null,null,null,null,null,null,null,null,null,null,null,null,null,null,null,null,null,{"$f":"HLOOKUP(C222,LISTAS!$F$67:$L$70,3,0)","v":{"$error":"#N/A"}}]
[null,null,null,null,null,null,null,null,null,null,null,null,null,null,null,null,null,null,{"$f":"HLOOKUP(C223,LISTAS!$F$67:$L$70,3,0)","v":{"$error":"#N/A"}}]
[null,null,null,null,null,null,null,null,null,null,null,null,null,null,null,null,null,null,{"$f":"HLOOKUP(C224,LISTAS!$F$67:$L$70,3,0)","v":{"$error":"#N/A"}}]
[null,null,null,null,null,null,null,null,null,null,null,null,null,null,null,null,null,null,{"$f":"HLOOKUP(C225,LISTAS!$F$67:$L$70,3,0)","v":{"$error":"#N/A"}}]
[null,null,null,null,null,null,null,null,null,null,null,null,null,null,null,null,null,null,{"$f":"HLOOKUP(C226,LISTAS!$F$67:$L$70,3,0)","v":{"$error":"#N/A"}}]
[null,null,null,null,null,null,null,null,null,null,null,null,null,null,null,null,null,null,{"$f":"HLOOKUP(C227,LISTAS!$F$67:$L$70,3,0)","v":{"$error":"#N/A"}}]
[null,null,null,null,null,null,null,null,null,null,null,null,null,null,null,null,null,null,{"$f":"HLOOKUP(C228,LISTAS!$F$67:$L$70,3,0)","v":{"$error":"#N/A"}}]
[null,null,null,null,null,null,null,null,null,null,null,null,null,null,null,null,null,null,{"$f":"HLOOKUP(C229,LISTAS!$F$67:$L$70,3,0)","v":{"$error":"#N/A"}}]
[null,null,null,null,null,null,null,null,null,null,null,null,null,null,null,null,null,null,{"$f":"HLOOKUP(C230,LISTAS!$F$67:$L$70,3,0)","v":{"$error":"#N/A"}}]
[null,null,null,null,null,null,null,null,null,null,null,null,null,null,null,null,null,null,{"$f":"HLOOKUP(C231,LISTAS!$F$67:$L$70,3,0)","v":{"$error":"#N/A"}}]
[null,null,null,null,null,null,null,null,null,null,null,null,null,null,null,null,null,null,{"$f":"HLOOKUP(C232,LISTAS!$F$67:$L$70,3,0)","v":{"$error":"#N/A"}}]
[null,null,null,null,null,null,null,null,null,null,null,null,null,null,null,null,null,null,{"$f":"HLOOKUP(C233,LISTAS!$F$67:$L$70,3,0)","v":{"$error":"#N/A"}}]
[null,null,null,null,null,null,null,null,null,null,null,null,null,null,null,null,null,null,{"$f":"HLOOKUP(C234,LISTAS!$F$67:$L$70,3,0)","v":{"$error":"#N/A"}}]
[null,null,null,null,null,null,null,null,null,null,null,null,null,null,null,null,null,null,{"$f":"HLOOKUP(C235,LISTAS!$F$67:$L$70,3,0)","v":{"$error":"#N/A"}}]
[null,null,null,null,null,null,null,null,null,null,null,null,null,null,null,null,null,null,{"$f":"HLOOKUP(C236,LISTAS!$F$67:$L$70,3,0)","v":{"$error":"#N/A"}}]
[null,null,null,null,null,null,null,null,null,null,null,null,null,null,null,null,null,null,{"$f":"HLOOKUP(C237,LISTAS!$F$67:$L$70,3,0)","v":{"$error":"#N/A"}}]
[null,null,null,null,null,null,null,null,null,null,null,null,null,null,null,null,null,null,{"$f":"HLOOKUP(C238,LISTAS!$F$67:$L$70,3,0)","v":{"$error":"#N/A"}}]
[null,null,null,null,null,null,null,null,null,null,null,null,null,null,null,null,null,null,{"$f":"HLOOKUP(C239,LISTAS!$F$67:$L$70,3,0)","v":{"$error":"#N/A"}}]
[null,null,null,null,null,null,null,null,null,null,null,null,null,null,null,null,null,null,{"$f":"HLOOKUP(C240,LISTAS!$F$67:$L$70,3,0)","v":{"$error":"#N/A"}}]
[null,null,null,null,null,null,null,null,null,null,null,null,null,null,null,null,null,null,{"$f":"HLOOKUP(C241,LISTAS!$F$67:$L$70,3,0)","v":{"$error":"#N/A"}}]
[null,null,null,null,null,null,null,null,null,null,null,null,null,null,null,null,null,null,{"$f":"HLOOKUP(C242,LISTAS!$F$67:$L$70,3,0)","v":{"$error":"#N/A"}}]
[null,null,null,null,null,null,null,null,null,null,null,null,null,null,null,null,null,null,{"$f":"HLOOKUP(C243,LISTAS!$F$67:$L$70,3,0)","v":{"$error":"#N/A"}}]
[null,null,null,null,null,null,null,null,null,null,null,null,null,null,null,null,null,null,{"$f":"HLOOKUP(C244,LISTAS!$F$67:$L$70,3,0)","v":{"$error":"#N/A"}}]
[null,null,null,null,null,null,null,null,null,null,null,null,null,null,null,null,null,null,{"$f":"HLOOKUP(C245,LISTAS!$F$67:$L$70,3,0)","v":{"$error":"#N/A"}}]
[null,null,null,null,null,null,null,null,null,null,null,null,null,null,null,null,null,null,{"$f":"HLOOKUP(C246,LISTAS!$F$67:$L$70,3,0)","v":{"$error":"#N/A"}}]
[null,null,null,null,null,null,null,null,null,null,null,null,null,null,null,null,null,null,{"$f":"HLOOKUP(C247,LISTAS!$F$67:$L$70,3,0)","v":{"$error":"#N/A"}}]
[null,null,null,null,null,null,null,null,null,null,null,null,null,null,null,null,null,null,{"$f":"HLOOKUP(C248,LISTAS!$F$67:$L$70,3,0)","v":{"$error":"#N/A"}}]
[null,null,null,null,null,null,null,null,null,null,null,null,null,null,null,null,null,null,{"$f":"HLOOKUP(C249,LISTAS!$F$67:$L$70,3,0)","v":{"$error":"#N/A"}}]
[null,null,null,null,null,null,null,null,null,null,null,null,null,null,null,null,null,null,{"$f":"HLOOKUP(C250,LISTAS!$F$67:$L$70,3,0)","v":{"$error":"#N/A"}}]
[null,null,null,null,null,null,null,null,null,null,null,null,null,null,null,null,null,null,{"$f":"HLOOKUP(C251,LISTAS!$F$67:$L$70,3,0)","v":{"$error":"#N/A"}}]
[null,null,null,null,null,null,null,null,null,null,null,null,null,null,null,null,null,null,{"$f":"HLOOKUP(C252,LISTAS!$F$67:$L$70,3,0)","v":{"$error":"#N/A"}}]
[null,null,null,null,null,null,null,null,null,null,null,null,null,null,null,null,null,null,{"$f":"HLOOKUP(C253,LISTAS!$F$67:$L$70,3,0)","v":{"$error":"#N/A"}}]
[null,null,null,null,null,null,null,null,null,null,null,null,null,null,null,null,null,null,{"$f":"HLOOKUP(C254,LISTAS!$F$67:$L$70,3,0)","v":{"$error":"#N/A"}}]
[null,null,null,null,null,null,null,null,null,null,null,null,null,null,null,null,null,null,{"$f":"HLOOKUP(C255,LISTAS!$F$67:$L$70,3,0)","v":{"$error":"#N/A"}}]
[null,null,null,null,null,null,null,null,null,null,null,null,null,null,null,null,null,null,{"$f":"HLOOKUP(C256,LISTAS!$F$67:$L$70,3,0)","v":{"$error":"#N/A"}}]
[null,null,null,null,null,null,null,null,null,null,null,null,null,null,null,null,null,null,{"$f":"HLOOKUP(C257,LISTAS!$F$67:$L$70,3,0)","v":{"$error":"#N/A"}}]
[null,null,null,null,null,null,null,null,null,null,null,null,null,null,null,null,null,null,{"$f":"HLOOKUP(C258,LISTAS!$F$67:$L$70,3,0)","v":{"$error":"#N/A"}}]
[null,null,null,null,null,null,null,null,null,null,null,null,null,null,null,null,null,null,{"$f":"HLOOKUP(C259,LISTAS!$F$67:$L$70,3,0)","v":{"$error":"#N/A"}}]
[null,null,null,null,null,null,null,null,null,null,null,null,null,null,null,null,null,null,{"$f":"HLOOKUP(C260,LISTAS!$F$67:$L$70,3,0)","v":{"$error":"#N/A"}}]
[null,null,null,null,null,null,null,null,null,null,null,null,null,null,null,null,null,null,{"$f":"HLOOKUP(C261,LISTAS!$F$67:$L$70,3,0)","v":{"$error":"#N/A"}}]
[null,null,null,null,null,null,null,null,null,null,null,null,null,null,null,null,null,null,{"$f":"HLOOKUP(C262,LISTAS!$F$67:$L$70,3,0)","v":{"$error":"#N/A"}}]
[null,null,null,null,null,null,null,null,null,null,null,null,null,null,null,null,null,null,{"$f":"HLOOKUP(C263,LISTAS!$F$67:$L$70,3,0)","v":{"$error":"#N/A"}}]
[null,null,null,null,null,null,null,null,null,null,null,null,null,null,null,null,null,null,{"$f":"HLOOKUP(C264,LISTAS!$F$67:$L$70,3,0)","v":{"$error":"#N/A"}}]
[null,null,null,null,null,null,null,null,null,null,null,null,null,null,null,null,null,null,{"$f":"HLOOKUP(C265,LISTAS!$F$67:$L$70,3,0)","v":{"$error":"#N/A"}}]
[null,null,null,null,null,null,null,null,null,null,null,null,null,null,null,null,null,null,{"$f":"HLOOKUP(C266,LISTAS!$F$67:$L$70,3,0)","v":{"$error":"#N/A"}}]
[null,null,null,null,null,null,null,null,null,null,null,null,null,null,null,null,null,null,{"$f":"HLOOKUP(C267,LISTAS!$F$67:$L$70,3,0)","v":{"$error":"#N/A"}}]
[null,null,null,null,null,null,null,null,null,null,null,null,null,null,null,null,null,null,{"$f":"HLOOKUP(C268,LISTAS!$F$67:$L$70,3,0)","v":{"$error":"#N/A"}}]
[null,null,null,null,null,null,null,null,null,null,null,null,null,null,null,null,null,null,{"$f":"HLOOKUP(C269,LISTAS!$F$67:$L$70,3,0)","v":{"$error":"#N/A"}}]
[null,null,null,null,null,null,null,null,null,null,null,null,null,null,null,null,null,null,{"$f":"HLOOKUP(C270,LISTAS!$F$67:$L$70,3,0)","v":{"$error":"#N/A"}}]
[null,null,null,null,null,null,null,null,null,null,null,null,null,null,null,null,null,null,{"$f":"HLOOKUP(C271,LISTAS!$F$67:$L$70,3,0)","v":{"$error":"#N/A"}}]
[null,null,null,null,null,null,null,null,null,null,null,null,null,null,null,null,null,null,{"$f":"HLOOKUP(C272,LISTAS!$F$67:$L$70,3,0)","v":{"$error":"#N/A"}}]
[null,null,null,null,null,null,null,null,null,null,null,null,null,null,null,null,null,null,{"$f":"HLOOKUP(C273,LISTAS!$F$67:$L$70,3,0)","v":{"$error":"#N/A"}}]
[null,null,null,null,null,null,null,null,null,null,null,null,null,null,null,null,null,null,{"$f":"HLOOKUP(C274,LISTAS!$F$67:$L$70,3,0)","v":{"$error":"#N/A"}}]
[null,null,null,null,null,null,null,null,null,null,null,null,null,null,null,null,null,null,{"$f":"HLOOKUP(C275,LISTAS!$F$67:$L$70,3,0)","v":{"$error":"#N/A"}}]
[null,null,null,null,null,null,null,null,null,null,null,null,null,null,null,null,null,null,{"$f":"HLOOKUP(C276,LISTAS!$F$67:$L$70,3,0)","v":{"$error":"#N/A"}}]
[null,null,null,null,null,null,null,null,null,null,null,null,null,null,null,null,null,null,{"$f":"HLOOKUP(C277,LISTAS!$F$67:$L$70,3,0)","v":{"$error":"#N/A"}}]
[null,null,null,null,null,null,null,null,null,null,null,null,null,null,null,null,null,null,{"$f":"HLOOKUP(C278,LISTAS!$F$67:$L$70,3,0)","v":{"$error":"#N/A"}}]
[null,null,null,null,null,null,null,null,null,null,null,null,null,null,null,null,null,null,{"$f":"HLOOKUP(C279,LISTAS!$F$67:$L$70,3,0)","v":{"$error":"#N/A"}}]
[null,null,null,null,null,null,null,null,null,null,null,null,null,null,null,null,null,null,{"$f":"HLOOKUP(C280,LISTAS!$F$67:$L$70,3,0)","v":{"$error":"#N/A"}}]
[null,null,null,null,null,null,null,null,null,null,null,null,null,null,null,null,null,null,{"$f":"HLOOKUP(C281,LISTAS!$F$67:$L$70,3,0)","v":{"$error":"#N/A"}}]
[null,null,null,null,null,null,null,null,null,null,null,null,null,null,null,null,null,null,{"$f":"HLOOKUP(C282,LISTAS!$F$67:$L$70,3,0)","v":{"$error":"#N/A"}}]
[null,null,null,null,null,null,null,null,null,null,null,null,null,null,null,null,null,null,{"$f":"HLOOKUP(C283,LISTAS!$F$67:$L$70,3,0)","v":{"$error":"#N/A"}}]
[null,null,null,null,null,null,null,null,null,null,null,null,null,null,null,null,null,null,{"$f":"HLOOKUP(C284,LISTAS!$F$67:$L$70,3,0)","v":{"$error":"#N/A"}}]
[null,null,null,null,null,null,null,null,null,null,null,null,null,null,null,null,null,null,{"$f":"HLOOKUP(C285,LISTAS!$F$67:$L$70,3,0)","v":{"$error":"#N/A"}}]
[null,null,null,null,null,null,null,null,null,null,null,null,null,null,null,null,null,null,{"$f":"HLOOKUP(C286,LISTAS!$F$67:$L$70,3,0)","v":{"$error":"#N/A"}}]
[null,null,null,null,null,null,null,null,null,null,null,null,null,null,null,null,null,null,{"$f":"HLOOKUP(C287,LISTAS!$F$67:$L$70,3,0)","v":{"$error":"#N/A"}}]
[null,null,null,null,null,null,null,null,null,null,null,null,null,null,null,null,null,null,{"$f":"HLOOKUP(C288,LISTAS!$F$67:$L$70,3,0)","v":{"$error":"#N/A"}}]
[null,null,null,null,null,null,null,null,null,null,null,null,null,null,null,null,null,null,{"$f":"HLOOKUP(C289,LISTAS!$F$67:$L$70,3,0)","v":{"$error":"#N/A"}}]
[null,null,null,null,null,null,null,null,null,null,null,null,null,null,null,null,null,null,{"$f":"HLOOKUP(C290,LISTAS!$F$67:$L$70,3,0)","v":{"$error":"#N/A"}}]
[null,null,null,null,null,null,null,null,null,null,null,null,null,null,null,null,null,null,{"$f":"HLOOKUP(C291,LISTAS!$F$67:$L$70,3,0)","v":{"$error":"#N/A"}}]
[null,null,null,null,null,null,null,null,null,null,null,null,null,null,null,null,null,null,{"$f":"HLOOKUP(C292,LISTAS!$F$67:$L$70,3,0)","v":{"$error":"#N/A"}}]
[null,null,null,null,null,null,null,null,null,null,null,null,null,null,null,null,null,null,{"$f":"HLOOKUP(C293,LISTAS!$F$67:$L$70,3,0)","v":{"$error":"#N/A"}}]
[null,null,null,null,null,null,null,null,null,null,null,null,null,null,null,null,null,null,{"$f":"HLOOKUP(C294,LISTAS!$F$67:$L$70,3,0)","v":{"$error":"#N/A"}}]
[null,null,null,null,null,null,null,null,null,null,null,null,null,null,null,null,null,null,{"$f":"HLOOKUP(C295,LISTAS!$F$67:$L$70,3,0)","v":{"$error":"#N/A"}}]

{"sheet":"Plan de Acción GPS","index":1,"n_rows":202,"n_cols":18,"rows_kept":202,"cut":false,"hidden":true,"merged":[[0,0,0,17]]}
["Dependencia formuladora 25-GRUPO TRABAJO SISTEMAS DE INFORMACION"]
["Ident. Fila","Categoría","Objetivo estratégico","Indicador estratégico","Estrategia","Insumo de planeación del que se extrajo el producto","Fuente de financiación","Política(s) MIPG","Asociación a planes","Descripción del producto o actividad","Participación %","Meta","Unidad de medida","Componente 1 para formula","Componente 2 para formula","Fecha inicio","Fecha fin","Dependencias responsables de la ejecución de actividades"]
[{"$f":"VLOOKUP('FORMULACIÓN SIGI '!A20,LISTAS!$A$58:$B$59,2,0)","v":{"$error":"#N/A"}},{"$f":"VLOOKUP('FORMULACIÓN SIGI '!B20,LISTAS!$A$61:$B$65,2,0)","v":{"$error":"#N/A"}},{"$f":"VLOOKUP('FORMULACIÓN SIGI '!C20,LISTAS!$A$67:$B$74,2,0)","v":{"$error":"#N/A"}},{"$f":"VLOOKUP('FORMULACIÓN SIGI '!D20,LISTAS!$A$76:$B$82,2,0)","v":{"$error":"#N/A"}},{"$f":"VLOOKUP('FORMULACIÓN SIGI '!E20,LISTAS!$A$84:$B$91,2,0)","v":{"$error":"#N/A"}},{"$f":"VLOOKUP('FORMULACIÓN SIGI '!F20,LISTAS!$A$93:$B$145,2,0)","v":{"$error":"#N/A"}},{"$f":"VLOOKUP('FORMULACIÓN SIGI '!G20,LISTAS!$A$113:B124,2,0)","v":{"$error":"#N/A"}},{"$f":"VLOOKUP('FORMULACIÓN SIGI '!H20,LISTAS!$A$126:$B$145,2,0)","v":{"$error":"#N/A"}},{"$f":"VLOOKUP('FORMULACIÓN SIGI '!I20,LISTAS!$A$147:$B$171,2,0)","v":{"$error":"#N/A"}},{"$f":"+'FORMULACIÓN SIGI '!J20","v":0},{"$f":"+'FORMULACIÓN SIGI '!K20","v":0},{"$f":"+'FORMULACIÓN SIGI '!L20","v":0},{"$f":"VLOOKUP('FORMULACIÓN SIGI '!M20,LISTAS!$A$173:$B$174,2,0)","v":{"$error":"#N/A"}},{"$f":"+'FORMULACIÓN SIGI '!N20","v":0},{"$f":"+'FORMULACIÓN SIGI '!O20","v":0},{"$f":"+'FORMULACIÓN SIGI '!P20","v":"00:00:00"},{"$f":"+'FORMULACIÓN SIGI '!Q20","v":"00:00:00"},{"$f":"+'FORMULACIÓN SIGI '!R20","v":0}]
[{"$f":"VLOOKUP('FORMULACIÓN SIGI '!A21,LISTAS!$A$58:$B$59,2,0)","v":{"$error":"#N/A"}},{"$f":"VLOOKUP('FORMULACIÓN SIGI '!B21,LISTAS!$A$61:$B$65,2,0)","v":{"$error":"#N/A"}},{"$f":"VLOOKUP('FORMULACIÓN SIGI '!C21,LISTAS!$A$67:$B$74,2,0)","v":{"$error":"#N/A"}},{"$f":"VLOOKUP('FORMULACIÓN SIGI '!D21,LISTAS!$A$76:$B$82,2,0)","v":{"$error":"#N/A"}},{"$f":"VLOOKUP('FORMULACIÓN SIGI '!E21,LISTAS!$A$84:$B$91,2,0)","v":{"$error":"#N/A"}},{"$f":"VLOOKUP('FORMULACIÓN SIGI '!F21,LISTAS!$A$93:$B$145,2,0)","v":{"$error":"#N/A"}},{"$f":"VLOOKUP('FORMULACIÓN SIGI '!G21,LISTAS!$A$113:B125,2,0)","v":{"$error":"#N/A"}},{"$f":"VLOOKUP('FORMULACIÓN SIGI '!H21,LISTAS!$A$126:$B$145,2,0)","v":{"$error":"#N/A"}},{"$f":"VLOOKUP('FORMULACIÓN SIGI '!I21,LISTAS!$A$147:$B$171,2,0)","v":{"$error":"#N/A"}},{"$f":"+'FORMULACIÓN SIGI '!J21","v":0},{"$f":"+'FORMULACIÓN SIGI '!K21","v":0},{"$f":"+'FORMULACIÓN SIGI '!L21","v":0},{"$f":"VLOOKUP('FORMULACIÓN SIGI '!M21,LISTAS!$A$173:$B$174,2,0)","v":{"$error":"#N/A"}},{"$f":"+'FORMULACIÓN SIGI '!N21","v":0},{"$f":"+'FORMULACIÓN SIGI '!O21","v":0},{"$f":"+'FORMULACIÓN SIGI '!P21","v":"00:00:00"},{"$f":"+'FORMULACIÓN SIGI '!Q21","v":"00:00:00"},{"$f":"+'FORMULACIÓN SIGI '!R21","v":0}]
[{"$f":"VLOOKUP('FORMULACIÓN SIGI '!A22,LISTAS!$A$58:$B$59,2,0)","v":{"$error":"#N/A"}},{"$f":"VLOOKUP('FORMULACIÓN SIGI '!B22,LISTAS!$A$61:$B$65,2,0)","v":{"$error":"#N/A"}},{"$f":"VLOOKUP('FORMULACIÓN SIGI '!C22,LISTAS!$A$67:$B$74,2,0)","v":{"$error":"#N/A"}},{"$f":"VLOOKUP('FORMULACIÓN SIGI '!D22,LISTAS!$A$76:$B$82,2,0)","v":{"$error":"#N/A"}},{"$f":"VLOOKUP('FORMULACIÓN SIGI '!E22,LISTAS!$A$84:$B$91,2,0)","v":{"$error":"#N/A"}},{"$f":"VLOOKUP('FORMULACIÓN SIGI '!F22,LISTAS!$A$93:$B$145,2,0)","v":{"$error":"#N/A"}},{"$f":"VLOOKUP('FORMULACIÓN SIGI '!G22,LISTAS!$A$113:B126,2,0)","v":{"$error":"#N/A"}},{"$f":"VLOOKUP('FORMULACIÓN SIGI '!H22,LISTAS!$A$126:$B$145,2,0)","v":{"$error":"#N/A"}},{"$f":"VLOOKUP('FORMULACIÓN SIGI '!I22,LISTAS!$A$147:$B$171,2,0)","v":{"$error":"#N/A"}},{"$f":"+'FORMULACIÓN SIGI '!J22","v":0},{"$f":"+'FORMULACIÓN SIGI '!K22","v":0},{"$f":"+'FORMULACIÓN SIGI '!L22","v":0},{"$f":"VLOOKUP('FORMULACIÓN SIGI '!M22,LISTAS!$A$173:$B$174,2,0)","v":{"$error":"#N/A"}},{"$f":"+'FORMULACIÓN SIGI '!N22","v":0},{"$f":"+'FORMULACIÓN SIGI '!O22","v":0},{"$f":"+'FORMULACIÓN SIGI '!P22","v":"00:00:00"},{"$f":"+'FORMULACIÓN SIGI '!Q22","v":"00:00:00"},{"$f":"+'FORMULACIÓN SIGI '!R22","v":0}]
[{"$f":"VLOOKUP('FORMULACIÓN SIGI '!A23,LISTAS!$A$58:$B$59,2,0)","v":{"$error":"#N/A"}},{"$f":"VLOOKUP('FORMULACIÓN SIGI '!B23,LISTAS!$A$61:$B$65,2,0)","v":{"$error":"#N/A"}},{"$f":"VLOOKUP('FORMULACIÓN SIGI '!C23,LISTAS!$A$67:$B$74,2,0)","v":{"$error":"#N/A"}},{"$f":"VLOOKUP('FORMULACIÓN SIGI '!D23,LISTAS!$A$76:$B$82,2,0)","v":{"$error":"#N/A"}},{"$f":"VLOOKUP('FORMULACIÓN SIGI '!E23,LISTAS!$A$84:$B$91,2,0)","v":{"$error":"#N/A"}},{"$f":"VLOOKUP('FORMULACIÓN SIGI '!F23,LISTAS!$A$93:$B$145,2,0)","v":{"$error":"#N/A"}},{"$f":"VLOOKUP('FORMULACIÓN SIGI '!G23,LISTAS!$A$113:B127,2,0)","v":{"$error":"#N/A"}},{"$f":"VLOOKUP('FORMULACIÓN SIGI '!H23,LISTAS!$A$126:$B$145,2,0)","v":{"$error":"#N/A"}},{"$f":"VLOOKUP('FORMULACIÓN SIGI '!I23,LISTAS!$A$147:$B$171,2,0)","v":{"$error":"#N/A"}},{"$f":"+'FORMULACIÓN SIGI '!J23","v":0},{"$f":"+'FORMULACIÓN SIGI '!K23","v":0},{"$f":"+'FORMULACIÓN SIGI '!L23","v":0},{"$f":"VLOOKUP('FORMULACIÓN SIGI '!M23,LISTAS!$A$173:$B$174,2,0)","v":{"$error":"#N/A"}},{"$f":"+'FORMULACIÓN SIGI '!N23","v":0},{"$f":"+'FORMULACIÓN SIGI '!O23","v":0},{"$f":"+'FORMULACIÓN SIGI '!P23","v":"00:00:00"},{"$f":"+'FORMULACIÓN SIGI '!Q23","v":"00:00:00"},{"$f":"+'FORMULACIÓN SIGI '!R23","v":0}]
[{"$f":"VLOOKUP('FORMULACIÓN SIGI '!A24,LISTAS!$A$58:$B$59,2,0)","v":{"$error":"#N/A"}},{"$f":"VLOOKUP('FORMULACIÓN SIGI '!B24,LISTAS!$A$61:$B$65,2,0)","v":{"$error":"#N/A"}},{"$f":"VLOOKUP('FORMULACIÓN SIGI '!C24,LISTAS!$A$67:$B$74,2,0)","v":{"$error":"#N/A"}},{"$f":"VLOOKUP('FORMULACIÓN SIGI '!D24,LISTAS!$A$76:$B$82,2,0)","v":{"$error":"#N/A"}},{"$f":"VLOOKUP('FORMULACIÓN SIGI '!E24,LISTAS!$A$84:$B$91,2,0)","v":{"$error":"#N/A"}},{"$f":"VLOOKUP('FORMULACIÓN SIGI '!F24,LISTAS!$A$93:$B$145,2,0)","v":{"$error":"#N/A"}},{"$f":"VLOOKUP('FORMULACIÓN SIGI '!G24,LISTAS!$A$113:B128,2,0)","v":{"$error":"#N/A"}},{"$f":"VLOOKUP('FORMULACIÓN SIGI '!H24,LISTAS!$A$126:$B$145,2,0)","v":{"$error":"#N/A"}},{"$f":"VLOOKUP('FORMULACIÓN SIGI '!I24,LISTAS!$A$147:$B$171,2,0)","v":{"$error":"#N/A"}},{"$f":"+'FORMULACIÓN SIGI '!J24","v":0},{"$f":"+'FORMULACIÓN SIGI '!K24","v":0},{"$f":"+'FORMULACIÓN SIGI '!L24","v":0},{"$f":"VLOOKUP('FORMULACIÓN SIGI '!M24,LISTAS!$A$173:$B$174,2,0)","v":{"$error":"#N/A"}},{"$f":"+'FORMULACIÓN SIGI '!N24","v":0},{"$f":"+'FORMULACIÓN SIGI '!O24","v":0},{"$f":"+'FORMULACIÓN SIGI '!P24","v":"00:00:00"},{"$f":"+'FORMULACIÓN SIGI '!Q24","v":"00:00:00"},{"$f":"+'FORMULACIÓN SIGI '!R24","v":0}]
[{"$f":"VLOOKUP('FORMULACIÓN SIGI '!A25,LISTAS!$A$58:$B$59,2,0)","v":{"$error":"#N/A"}},{"$f":"VLOOKUP('FORMULACIÓN SIGI '!B25,LISTAS!$A$61:$B$65,2,0)","v":{"$error":"#N/A"}},{"$f":"VLOOKUP('FORMULACIÓN SIGI '!C25,LISTAS!$A$67:$B$74,2,0)","v":{"$error":"#N/A"}},{"$f":"VLOOKUP('FORMULACIÓN SIGI '!D25,LISTAS!$A$76:$B$82,2,0)","v":{"$error":"#N/A"}},{"$f":"VLOOKUP('FORMULACIÓN SIGI '!E25,LISTAS!$A$84:$B$91,2,0)","v":{"$error":"#N/A"}},{"$f":"VLOOKUP('FORMULACIÓN SIGI '!F25,LISTAS!$A$93:$B$145,2,0)","v":{"$error":"#N/A"}},{"$f":"VLOOKUP('FORMULACIÓN SIGI '!G25,LISTAS!$A$113:B129,2,0)","v":{"$error":"#N/A"}},{"$f":"VLOOKUP('FORMULACIÓN SIGI '!H25,LISTAS!$A$126:$B$145,2,0)","v":{"$error":"#N/A"}},{"$f":"VLOOKUP('FORMULACIÓN SIGI '!I25,LISTAS!$A$147:$B$171,2,0)","v":{"$error":"#N/A"}},{"$f":"+'FORMULACIÓN SIGI '!J25","v":0},{"$f":"+'FORMULACIÓN SIGI '!K25","v":0},{"$f":"+'FORMULACIÓN SIGI '!L25","v":0},{"$f":"VLOOKUP('FORMULACIÓN SIGI '!M25,LISTAS!$A$173:$B$174,2,0)","v":{"$error":"#N/A"}},{"$f":"+'FORMULACIÓN SIGI '!N25","v":0},{"$f":"+'FORMULACIÓN SIGI '!O25","v":0},{"$f":"+'FORMULACIÓN SIGI '!P25","v":"00:00:00"},{"$f":"+'FORMULACIÓN SIGI '!Q25","v":"00:00:00"},{"$f":"+'FORMULACIÓN SIGI '!R25","v":0}]
[{"$f":"VLOOKUP('FORMULACIÓN SIGI '!A26,LISTAS!$A$58:$B$59,2,0)","v":{"$error":"#N/A"}},{"$f":"VLOOKUP('FORMULACIÓN SIGI '!B26,LISTAS!$A$61:$B$65,2,0)","v":{"$error":"#N/A"}},{"$f":"VLOOKUP('FORMULACIÓN SIGI '!C26,LISTAS!$A$67:$B$74,2,0)","v":{"$error":"#N/A"}},{"$f":"VLOOKUP('FORMULACIÓN SIGI '!D26,LISTAS!$A$76:$B$82,2,0)","v":{"$error":"#N/A"}},{"$f":"VLOOKUP('FORMULACIÓN SIGI '!E26,LISTAS!$A$84:$B$91,2,0)","v":{"$error":"#N/A"}},{"$f":"VLOOKUP('FORMULACIÓN SIGI '!F26,LISTAS!$A$93:$B$145,2,0)","v":{"$error":"#N/A"}},{"$f":"VLOOKUP('FORMULACIÓN SIGI '!G26,LISTAS!$A$113:B130,2,0)","v":{"$error":"#N/A"}},{"$f":"VLOOKUP('FORMULACIÓN SIGI '!H26,LISTAS!$A$126:$B$145,2,0)","v":{"$error":"#N/A"}},{"$f":"VLOOKUP('FORMULACIÓN SIGI '!I26,LISTAS!$A$147:$B$171,2,0)","v":{"$error":"#N/A"}},{"$f":"+'FORMULACIÓN SIGI '!J26","v":0},{"$f":"+'FORMULACIÓN SIGI '!K26","v":0},{"$f":"+'FORMULACIÓN SIGI '!L26","v":0},{"$f":"VLOOKUP('FORMULACIÓN SIGI '!M26,LISTAS!$A$173:$B$174,2,0)","v":{"$error":"#N/A"}},{"$f":"+'FORMULACIÓN SIGI '!N26","v":0},{"$f":"+'FORMULACIÓN SIGI '!O26","v":0},{"$f":"+'FORMULACIÓN SIGI '!P26","v":"00:00:00"},{"$f":"+'FORMULACIÓN SIGI '!Q26","v":"00:00:00"},{"$f":"+'FORMULACIÓN SIGI '!R26","v":0}]
[{"$f":"VLOOKUP('FORMULACIÓN SIGI '!A27,LISTAS!$A$58:$B$59,2,0)","v":{"$error":"#N/A"}},{"$f":"VLOOKUP('FORMULACIÓN SIGI '!B27,LISTAS!$A$61:$B$65,2,0)","v":{"$error":"#N/A"}},{"$f":"VLOOKUP('FORMULACIÓN SIGI '!C27,LISTAS!$A$67:$B$74,2,0)","v":{"$error":"#N/A"}},{"$f":"VLOOKUP('FORMULACIÓN SIGI '!D27,LISTAS!$A$76:$B$82,2,0)","v":{"$error":"#N/A"}},{"$f":"VLOOKUP('FORMULACIÓN SIGI '!E27,LISTAS!$A$84:$B$91,2,0)","v":{"$error":"#N/A"}},{"$f":"VLOOKUP('FORMULACIÓN SIGI '!F27,LISTAS!$A$93:$B$145,2,0)","v":{"$error":"#N/A"}},{"$f":"VLOOKUP('FORMULACIÓN SIGI '!G27,LISTAS!$A$113:B131,2,0)","v":{"$error":"#N/A"}},{"$f":"VLOOKUP('FORMULACIÓN SIGI '!H27,LISTAS!$A$126:$B$145,2,0)","v":{"$error":"#N/A"}},{"$f":"VLOOKUP('FORMULACIÓN SIGI '!I27,LISTAS!$A$147:$B$171,2,0)","v":{"$error":"#N/A"}},{"$f":"+'FORMULACIÓN SIGI '!J27","v":0},{"$f":"+'FORMULACIÓN SIGI '!K27","v":0},{"$f":"+'FORMULACIÓN SIGI '!L27","v":0},{"$f":"VLOOKUP('FORMULACIÓN SIGI '!M27,LISTAS!$A$173:$B$174,2,0)","v":{"$error":"#N/A"}},{"$f":"+'FORMULACIÓN SIGI '!N27","v":0},{"$f":"+'FORMULACIÓN SIGI '!O27","v":0},{"$f":"+'FORMULACIÓN SIGI '!P27","v":"00:00:00"},{"$f":"+'FORMULACIÓN SIGI '!Q27","v":"00:00:00"},{"$f":"+'FORMULACIÓN SIGI '!R27","v":0}]
[{"$f":"VLOOKUP('FORMULACIÓN SIGI '!A28,LISTAS!$A$58:$B$59,2,0)","v":{"$error":"#N/A"}},{"$f":"VLOOKUP('FORMULACIÓN SIGI '!B28,LISTAS!$A$61:$B$65,2,0)","v":{"$error":"#N/A"}},{"$f":"VLOOKUP('FORMULACIÓN SIGI '!C28,LISTAS!$A$67:$B$74,2,0)","v":{"$error":"#N/A"}},{"$f":"VLOOKUP('FORMULACIÓN SIGI '!D28,LISTAS!$A$76:$B$82,2,0)","v":{"$error":"#N/A"}},{"$f":"VLOOKUP('FORMULACIÓN SIGI '!E28,LISTAS!$A$84:$B$91,2,0)","v":{"$error":"#N/A"}},{"$f":"VLOOKUP('FORMULACIÓN SIGI '!F28,LISTAS!$A$93:$B$145,2,0)","v":{"$error":"#N/A"}},{"$f":"VLOOKUP('FORMULACIÓN SIGI '!G28,LISTAS!$A$113:B132,2,0)","v":{"$error":"#N/A"}},{"$f":"VLOOKUP('FORMULACIÓN SIGI '!H28,LISTAS!$A$126:$B$145,2,0)","v":{"$error":"#N/A"}},{"$f":"VLOOKUP('FORMULACIÓN SIGI '!I28,LISTAS!$A$147:$B$171,2,0)","v":{"$error":"#N/A"}},{"$f":"+'FORMULACIÓN SIGI '!J28","v":0},{"$f":"+'FORMULACIÓN SIGI '!K28","v":0},{"$f":"+'FORMULACIÓN SIGI '!L28","v":0},{"$f":"VLOOKUP('FORMULACIÓN SIGI '!M28,LISTAS!$A$173:$B$174,2,0)","v":{"$error":"#N/A"}},{"$f":"+'FORMULACIÓN SIGI '!N28","v":0},{"$f":"+'FORMULACIÓN SIGI '!O28","v":0},{"$f":"+'FORMULACIÓN SIGI '!P28","v":"00:00:00"},{"$f":"+'FORMULACIÓN SIGI '!Q28","v":"00:00:00"},{"$f":"+'FORMULACIÓN SIGI '!R28","v":0}]
[{"$f":"VLOOKUP('FORMULACIÓN SIGI '!A29,LISTAS!$A$58:$B$59,2,0)","v":{"$error":"#N/A"}},{"$f":"VLOOKUP('FORMULACIÓN SIGI '!B29,LISTAS!$A$61:$B$65,2,0)","v":{"$error":"#N/A"}},{"$f":"VLOOKUP('FORMULACIÓN SIGI '!C29,LISTAS!$A$67:$B$74,2,0)","v":{"$error":"#N/A"}},{"$f":"VLOOKUP('FORMULACIÓN SIGI '!D29,LISTAS!$A$76:$B$82,2,0)","v":{"$error":"#N/A"}},{"$f":"VLOOKUP('FORMULACIÓN SIGI '!E29,LISTAS!$A$84:$B$91,2,0)","v":{"$error":"#N/A"}},{"$f":"VLOOKUP('FORMULACIÓN SIGI '!F29,LISTAS!$A$93:$B$145,2,0)","v":{"$error":"#N/A"}},{"$f":"VLOOKUP('FORMULACIÓN SIGI '!G29,LISTAS!$A$113:B133,2,0)","v":{"$error":"#N/A"}},{"$f":"VLOOKUP('FORMULACIÓN SIGI '!H29,LISTAS!$A$126:$B$145,2,0)","v":{"$error":"#N/A"}},{"$f":"VLOOKUP('FORMULACIÓN SIGI '!I29,LISTAS!$A$147:$B$171,2,0)","v":{"$error":"#N/A"}},{"$f":"+'FORMULACIÓN SIGI '!J29","v":0},{"$f":"+'FORMULACIÓN SIGI '!K29","v":0},{"$f":"+'FORMULACIÓN SIGI '!L29","v":0},{"$f":"VLOOKUP('FORMULACIÓN SIGI '!M29,LISTAS!$A$173:$B$174,2,0)","v":{"$error":"#N/A"}},{"$f":"+'FORMULACIÓN SIGI '!N29","v":0},{"$f":"+'FORMULACIÓN SIGI '!O29","v":0},{"$f":"+'FORMULACIÓN SIGI '!P29","v":"00:00:00"},{"$f":"+'FORMULACIÓN SIGI '!Q29","v":"00:00:00"},{"$f":"+'FORMULACIÓN SIGI '!R29","v":0}]
[{"$f":"VLOOKUP('FORMULACIÓN SIGI '!A30,LISTAS!$A$58:$B$59,2,0)","v":{"$error":"#N/A"}},{"$f":"VLOOKUP('FORMULACIÓN SIGI '!B30,LISTAS!$A$61:$B$65,2,0)","v":{"$error":"#N/A"}},{"$f":"VLOOKUP('FORMULACIÓN SIGI '!C30,LISTAS!$A$67:$B$74,2,0)","v":{"$error":"#N/A"}},{"$f":"VLOOKUP('FORMULACIÓN SIGI '!D30,LISTAS!$A$76:$B$82,2,0)","v":{"$error":"#N/A"}},{"$f":"VLOOKUP('FORMULACIÓN SIGI '!E30,LISTAS!$A$84:$B$91,2,0)","v":{"$error":"#N/A"}},{"$f":"VLOOKUP('FORMULACIÓN SIGI '!F30,LISTAS!$A$93:$B$145,2,0)","v":{"$error":"#N/A"}},{"$f":"VLOOKUP('FORMULACIÓN SIGI '!G30,LISTAS!$A$113:B134,2,0)","v":{"$error":"#N/A"}},{"$f":"VLOOKUP('FORMULACIÓN SIGI '!H30,LISTAS!$A$126:$B$145,2,0)","v":{"$error":"#N/A"}},{"$f":"VLOOKUP('FORMULACIÓN SIGI '!I30,LISTAS!$A$147:$B$171,2,0)","v":{"$error":"#N/A"}},{"$f":"+'FORMULACIÓN SIGI '!J30","v":0},{"$f":"+'FORMULACIÓN SIGI '!K30","v":0},{"$f":"+'FORMULACIÓN SIGI '!L30","v":0},{"$f":"VLOOKUP('FORMULACIÓN SIGI '!M30,LISTAS!$A$173:$B$174,2,0)","v":{"$error":"#N/A"}},{"$f":"+'FORMULACIÓN SIGI '!N30","v":0},{"$f":"+'FORMULACIÓN SIGI '!O30","v":0},{"$f":"+'FORMULACIÓN SIGI '!P30","v":"00:00:00"},{"$f":"+'FORMULACIÓN SIGI '!Q30","v":"00:00:00"},{"$f":"+'FORMULACIÓN SIGI '!R30","v":0}]
[{"$f":"VLOOKUP('FORMULACIÓN SIGI '!A31,LISTAS!$A$58:$B$59,2,0)","v":{"$error":"#N/A"}},{"$f":"VLOOKUP('FORMULACIÓN SIGI '!B31,LISTAS!$A$61:$B$65,2,0)","v":{"$error":"#N/A"}},{"$f":"VLOOKUP('FORMULACIÓN SIGI '!C31,LISTAS!$A$67:$B$74,2,0)","v":{"$error":"#N/A"}},{"$f":"VLOOKUP('FORMULACIÓN SIGI '!D31,LISTAS!$A$76:$B$82,2,0)","v":{"$error":"#N/A"}},{"$f":"VLOOKUP('FORMULACIÓN SIGI '!E31,LISTAS!$A$84:$B$91,2,0)","v":{"$error":"#N/A"}},{"$f":"VLOOKUP('FORMULACIÓN SIGI '!F31,LISTAS!$A$93:$B$145,2,0)","v":{"$error":"#N/A"}},{"$f":"VLOOKUP('FORMULACIÓN SIGI '!G31,LISTAS!$A$113:B135,2,0)","v":{"$error":"#N/A"}},{"$f":"VLOOKUP('FORMULACIÓN SIGI '!H31,LISTAS!$A$126:$B$145,2,0)","v":{"$error":"#N/A"}},{"$f":"VLOOKUP('FORMULACIÓN SIGI '!I31,LISTAS!$A$147:$B$171,2,0)","v":{"$error":"#N/A"}},{"$f":"+'FORMULACIÓN SIGI '!J31","v":0},{"$f":"+'FORMULACIÓN SIGI '!K31","v":0},{"$f":"+'FORMULACIÓN SIGI '!L31","v":0},{"$f":"VLOOKUP('FORMULACIÓN SIGI '!M31,LISTAS!$A$173:$B$174,2,0)","v":{"$error":"#N/A"}},{"$f":"+'FORMULACIÓN SIGI '!N31","v":0},{"$f":"+'FORMULACIÓN SIGI '!O31","v":0},{"$f":"+'FORMULACIÓN SIGI '!P31","v":"00:00:00"},{"$f":"+'FORMULACIÓN SIGI '!Q31","v":"00:00:00"},{"$f":"+'FORMULACIÓN SIGI '!R31","v":0}]
[{"$f":"VLOOKUP('FORMULACIÓN SIGI '!A32,LISTAS!$A$58:$B$59,2,0)","v":{"$error":"#N/A"}},{"$f":"VLOOKUP('FORMULACIÓN SIGI '!B32,LISTAS!$A$61:$B$65,2,0)","v":{"$error":"#N/A"}},{"$f":"VLOOKUP('FORMULACIÓN SIGI '!C32,LISTAS!$A$67:$B$74,2,0)","v":{"$error":"#N/A"}},{"$f":"VLOOKUP('FORMULACIÓN SIGI '!D32,LISTAS!$A$76:$B$82,2,0)","v":{"$error":"#N/A"}},{"$f":"VLOOKUP('FORMULACIÓN SIGI '!E32,LISTAS!$A$84:$B$91,2,0)","v":{"$error":"#N/A"}},{"$f":"VLOOKUP('FORMULACIÓN SIGI '!F32,LISTAS!$A$93:$B$145,2,0)","v":{"$error":"#N/A"}},{"$f":"VLOOKUP('FORMULACIÓN SIGI '!G32,LISTAS!$A$113:B136,2,0)","v":{"$error":"#N/A"}},{"$f":"VLOOKUP('FORMULACIÓN SIGI '!H32,LISTAS!$A$126:$B$145,2,0)","v":{"$error":"#N/A"}},{"$f":"VLOOKUP('FORMULACIÓN SIGI '!I32,LISTAS!$A$147:$B$171,2,0)","v":{"$error":"#N/A"}},{"$f":"+'FORMULACIÓN SIGI '!J32","v":0},{"$f":"+'FORMULACIÓN SIGI '!K32","v":0},{"$f":"+'FORMULACIÓN SIGI '!L32","v":0},{"$f":"VLOOKUP('FORMULACIÓN SIGI '!M32,LISTAS!$A$173:$B$174,2,0)","v":{"$error":"#N/A"}},{"$f":"+'FORMULACIÓN SIGI '!N32","v":0},{"$f":"+'FORMULACIÓN SIGI '!O32","v":0},{"$f":"+'FORMULACIÓN SIGI '!P32","v":"00:00:00"},{"$f":"+'FORMULACIÓN SIGI '!Q32","v":"00:00:00"},{"$f":"+'FORMULACIÓN SIGI '!R32","v":0}]
[{"$f":"VLOOKUP('FORMULACIÓN SIGI '!A33,LISTAS!$A$58:$B$59,2,0)","v":{"$error":"#N/A"}},{"$f":"VLOOKUP('FORMULACIÓN SIGI '!B33,LISTAS!$A$61:$B$65,2,0)","v":{"$error":"#N/A"}},{"$f":"VLOOKUP('FORMULACIÓN SIGI '!C33,LISTAS!$A$67:$B$74,2,0)","v":{"$error":"#N/A"}},{"$f":"VLOOKUP('FORMULACIÓN SIGI '!D33,LISTAS!$A$76:$B$82,2,0)","v":{"$error":"#N/A"}},{"$f":"VLOOKUP('FORMULACIÓN SIGI '!E33,LISTAS!$A$84:$B$91,2,0)","v":{"$error":"#N/A"}},{"$f":"VLOOKUP('FORMULACIÓN SIGI '!F33,LISTAS!$A$93:$B$145,2,0)","v":{"$error":"#N/A"}},{"$f":"VLOOKUP('FORMULACIÓN SIGI '!G33,LISTAS!$A$113:B137,2,0)","v":{"$error":"#N/A"}},{"$f":"VLOOKUP('FORMULACIÓN SIGI '!H33,LISTAS!$A$126:$B$145,2,0)","v":{"$error":"#N/A"}},{"$f":"VLOOKUP('FORMULACIÓN SIGI '!I33,LISTAS!$A$147:$B$171,2,0)","v":{"$error":"#N/A"}},{"$f":"+'FORMULACIÓN SIGI '!J33","v":0},{"$f":"+'FORMULACIÓN SIGI '!K33","v":0},{"$f":"+'FORMULACIÓN SIGI '!L33","v":0},{"$f":"VLOOKUP('FORMULACIÓN SIGI '!M33,LISTAS!$A$173:$B$174,2,0)","v":{"$error":"#N/A"}},{"$f":"+'FORMULACIÓN SIGI '!N33","v":0},{"$f":"+'FORMULACIÓN SIGI '!O33","v":0},{"$f":"+'FORMULACIÓN SIGI '!P33","v":"00:00:00"},{"$f":"+'FORMULACIÓN SIGI '!Q33","v":"00:00:00"},{"$f":"+'FORMULACIÓN SIGI '!R33","v":0}]
[{"$f":"VLOOKUP('FORMULACIÓN SIGI '!A34,LISTAS!$A$58:$B$59,2,0)","v":{"$error":"#N/A"}},{"$f":"VLOOKUP('FORMULACIÓN SIGI '!B34,LISTAS!$A$61:$B$65,2,0)","v":{"$error":"#N/A"}},{"$f":"VLOOKUP('FORMULACIÓN SIGI '!C34,LISTAS!$A$67:$B$74,2,0)","v":{"$error":"#N/A"}},{"$f":"VLOOKUP('FORMULACIÓN SIGI '!D34,LISTAS!$A$76:$B$82,2,0)","v":{"$error":"#N/A"}},{"$f":"VLOOKUP('FORMULACIÓN SIGI '!E34,LISTAS!$A$84:$B$91,2,0)","v":{"$error":"#N/A"}},{"$f":"VLOOKUP('FORMULACIÓN SIGI '!F34,LISTAS!$A$93:$B$145,2,0)","v":{"$error":"#N/A"}},{"$f":"VLOOKUP('FORMULACIÓN SIGI '!G34,LISTAS!$A$113:B138,2,0)","v":{"$error":"#N/A"}},{"$f":"VLOOKUP('FORMULACIÓN SIGI '!H34,LISTAS!$A$126:$B$145,2,0)","v":{"$error":"#N/A"}},{"$f":"VLOOKUP('FORMULACIÓN SIGI '!I34,LISTAS!$A$147:$B$171,2,0)","v":{"$error":"#N/A"}},{"$f":"+'FORMULACIÓN SIGI '!J34","v":0},{"$f":"+'FORMULACIÓN SIGI '!K34","v":0},{"$f":"+'FORMULACIÓN SIGI '!L34","v":0},{"$f":"VLOOKUP('FORMULACIÓN SIGI '!M34,LISTAS!$A$173:$B$174,2,0)","v":{"$error":"#N/A"}},{"$f":"+'FORMULACIÓN SIGI '!N34","v":0},{"$f":"+'FORMULACIÓN SIGI '!O34","v":0},{"$f":"+'FORMULACIÓN SIGI '!P34","v":"00:00:00"},{"$f":"+'FORMULACIÓN SIGI '!Q34","v":"00:00:00"},{"$f":"+'FORMULACIÓN SIGI '!R34","v":0}]
[{"$f":"VLOOKUP('FORMULACIÓN SIGI '!A35,LISTAS!$A$58:$B$59,2,0)","v":{"$error":"#N/A"}},{"$f":"VLOOKUP('FORMULACIÓN SIGI '!B35,LISTAS!$A$61:$B$65,2,0)","v":{"$error":"#N/A"}},{"$f":"VLOOKUP('FORMULACIÓN SIGI '!C35,LISTAS!$A$67:$B$74,2,0)","v":{"$error":"#N/A"}},{"$f":"VLOOKUP('FORMULACIÓN SIGI '!D35,LISTAS!$A$76:$B$82,2,0)","v":{"$error":"#N/A"}},{"$f":"VLOOKUP('FORMULACIÓN SIGI '!E35,LISTAS!$A$84:$B$91,2,0)","v":{"$error":"#N/A"}},{"$f":"VLOOKUP('FORMULACIÓN SIGI '!F35,LISTAS!$A$93:$B$145,2,0)","v":{"$error":"#N/A"}},{"$f":"VLOOKUP('FORMULACIÓN SIGI '!G35,LISTAS!$A$113:B139,2,0)","v":{"$error":"#N/A"}},{"$f":"VLOOKUP('FORMULACIÓN SIGI '!H35,LISTAS!$A$126:$B$145,2,0)","v":{"$error":"#N/A"}},{"$f":"VLOOKUP('FORMULACIÓN SIGI '!I35,LISTAS!$A$147:$B$171,2,0)","v":{"$error":"#N/A"}},{"$f":"+'FORMULACIÓN SIGI '!J35","v":0},{"$f":"+'FORMULACIÓN SIGI '!K35","v":0},{"$f":"+'FORMULACIÓN SIGI '!L35","v":0},{"$f":"VLOOKUP('FORMULACIÓN SIGI '!M35,LISTAS!$A$173:$B$174,2,0)","v":{"$error":"#N/A"}},{"$f":"+'FORMULACIÓN SIGI '!N35","v":0},{"$f":"+'FORMULACIÓN SIGI '!O35","v":0},{"$f":"+'FORMULACIÓN SIGI '!P35","v":"00:00:00"},{"$f":"+'FORMULACIÓN SIGI '!Q35","v":"00:00:00"},{"$f":"+'FORMULACIÓN SIGI '!R35","v":0}]
[{"$f":"VLOOKUP('FORMULACIÓN SIGI '!A36,LISTAS!$A$58:$B$59,2,0)","v":{"$error":"#N/A"}},{"$f":"VLOOKUP('FORMULACIÓN SIGI '!B36,LISTAS!$A$61:$B$65,2,0)","v":{"$error":"#N/A"}},{"$f":"VLOOKUP('FORMULACIÓN SIGI '!C36,LISTAS!$A$67:$B$74,2,0)","v":{"$error":"#N/A"}},{"$f":"VLOOKUP('FORMULACIÓN SIGI '!D36,LISTAS!$A$76:$B$82,2,0)","v":{"$error":"#N/A"}},{"$f":"VLOOKUP('FORMULACIÓN SIGI '!E36,LISTAS!$A$84:$B$91,2,0)","v":{"$error":"#N/A"}},{"$f":"VLOOKUP('FORMULACIÓN SIGI '!F36,LISTAS!$A$93:$B$145,2,0)","v":{"$error":"#N/A"}},{"$f":"VLOOKUP('FORMULACIÓN SIGI '!G36,LISTAS!$A$113:B140,2,0)","v":{"$error":"#N/A"}},{"$f":"VLOOKUP('FORMULACIÓN SIGI '!H36,LISTAS!$A$126:$B$145,2,0)","v":{"$error":"#N/A"}},{"$f":"VLOOKUP('FORMULACIÓN SIGI '!I36,LISTAS!$A$147:$B$171,2,0)","v":{"$error":"#N/A"}},{"$f":"+'FORMULACIÓN SIGI '!J36","v":0},{"$f":"+'FORMULACIÓN SIGI '!K36","v":0},{"$f":"+'FORMULACIÓN SIGI '!L36","v":0},{"$f":"VLOOKUP('FORMULACIÓN SIGI '!M36,LISTAS!$A$173:$B$174,2,0)","v":{"$error":"#N/A"}},{"$f":"+'FORMULACIÓN SIGI '!N36","v":0},{"$f":"+'FORMULACIÓN SIGI '!O36","v":0},{"$f":"+'FORMULACIÓN SIGI '!P36","v":"00:00:00"},{"$f":"+'FORMULACIÓN SIGI '!Q36","v":"00:00:00"},{"$f":"+'FORMULACIÓN SIGI '!R36","v":0}]
[{"$f":"VLOOKUP('FORMULACIÓN SIGI '!A37,LISTAS!$A$58:$B$59,2,0)","v":{"$error":"#N/A"}},{"$f":"VLOOKUP('FORMULACIÓN SIGI '!B37,LISTAS!$A$61:$B$65,2,0)","v":{"$error":"#N/A"}},{"$f":"VLOOKUP('FORMULACIÓN SIGI '!C37,LISTAS!$A$67:$B$74,2,0)","v":{"$error":"#N/A"}},{"$f":"VLOOKUP('FORMULACIÓN SIGI '!D37,LISTAS!$A$76:$B$82,2,0)","v":{"$error":"#N/A"}},{"$f":"VLOOKUP('FORMULACIÓN SIGI '!E37,LISTAS!$A$84:$B$91,2,0)","v":{"$error":"#N/A"}},{"$f":"VLOOKUP('FORMULACIÓN SIGI '!F37,LISTAS!$A$93:$B$145,2,0)","v":{"$error":"#N/A"}},{"$f":"VLOOKUP('FORMULACIÓN SIGI '!G37,LISTAS!$A$113:B141,2,0)","v":{"$error":"#N/A"}},{"$f":"VLOOKUP('FORMULACIÓN SIGI '!H37,LISTAS!$A$126:$B$145,2,0)","v":{"$error":"#N/A"}},{"$f":"VLOOKUP('FORMULACIÓN SIGI '!I37,LISTAS!$A$147:$B$171,2,0)","v":{"$error":"#N/A"}},{"$f":"+'FORMULACIÓN SIGI '!J37","v":0},{"$f":"+'FORMULACIÓN SIGI '!K37","v":0},{"$f":"+'FORMULACIÓN SIGI '!L37","v":0},{"$f":"VLOOKUP('FORMULACIÓN SIGI '!M37,LISTAS!$A$173:$B$174,2,0)","v":{"$error":"#N/A"}},{"$f":"+'FORMULACIÓN SIGI '!N37","v":0},{"$f":"+'FORMULACIÓN SIGI '!O37","v":0},{"$f":"+'FORMULACIÓN SIGI '!P37","v":"00:00:00"},{"$f":"+'FORMULACIÓN SIGI '!Q37","v":"00:00:00"},{"$f":"+'FORMULACIÓN SIGI '!R37","v":0}]
[{"$f":"VLOOKUP('FORMULACIÓN SIGI '!A38,LISTAS!$A$58:$B$59,2,0)","v":{"$error":"#N/A"}},{"$f":"VLOOKUP('FORMULACIÓN SIGI '!B38,LISTAS!$A$61:$B$65,2,0)","v":{"$error":"#N/A"}},{"$f":"VLOOKUP('FORMULACIÓN SIGI '!C38,LISTAS!$A$67:$B$74,2,0)","v":{"$error":"#N/A"}},{"$f":"VLOOKUP('FORMULACIÓN SIGI '!D38,LISTAS!$A$76:$B$82,2,0)","v":{"$error":"#N/A"}},{"$f":"VLOOKUP('FORMULACIÓN SIGI '!E38,LISTAS!$A$84:$B$91,2,0)","v":{"$error":"#N/A"}},{"$f":"VLOOKUP('FORMULACIÓN SIGI '!F38,LISTAS!$A$93:$B$145,2,0)","v":{"$error":"#N/A"}},{"$f":"VLOOKUP('FORMULACIÓN SIGI '!G38,LISTAS!$A$113:B142,2,0)","v":{"$error":"#N/A"}},{"$f":"VLOOKUP('FORMULACIÓN SIGI '!H38,LISTAS!$A$126:$B$145,2,0)","v":{"$error":"#N/A"}},{"$f":"VLOOKUP('FORMULACIÓN SIGI '!I38,LISTAS!$A$147:$B$171,2,0)","v":{"$error":"#N/A"}},{"$f":"+'FORMULACIÓN SIGI '!J38","v":0},{"$f":"+'FORMULACIÓN SIGI '!K38","v":0},{"$f":"+'FORMULACIÓN SIGI '!L38","v":0},{"$f":"VLOOKUP('FORMULACIÓN SIGI '!M38,LISTAS!$A$173:$B$174,2,0)","v":{"$error":"#N/A"}},{"$f":"+'FORMULACIÓN SIGI '!N38","v":0},{"$f":"+'FORMULACIÓN SIGI '!O38","v":0},{"$f":"+'FORMULACIÓN SIGI '!P38","v":"00:00:00"},{"$f":"+'FORMULACIÓN SIGI '!Q38","v":"00:00:00"},{"$f":"+'FORMULACIÓN SIGI '!R38","v":0}]
[{"$f":"VLOOKUP('FORMULACIÓN SIGI '!A39,LISTAS!$A$58:$B$59,2,0)","v":{"$error":"#N/A"}},{"$f":"VLOOKUP('FORMULACIÓN SIGI '!B39,LISTAS!$A$61:$B$65,2,0)","v":{"$error":"#N/A"}},{"$f":"VLOOKUP('FORMULACIÓN SIGI '!C39,LISTAS!$A$67:$B$74,2,0)","v":{"$error":"#N/A"}},{"$f":"VLOOKUP('FORMULACIÓN SIGI '!D39,LISTAS!$A$76:$B$82,2,0)","v":{"$error":"#N/A"}},{"$f":"VLOOKUP('FORMULACIÓN SIGI '!E39,LISTAS!$A$84:$B$91,2,0)","v":{"$error":"#N/A"}},{"$f":"VLOOKUP('FORMULACIÓN SIGI '!F39,LISTAS!$A$93:$B$145,2,0)","v":{"$error":"#N/A"}},{"$f":"VLOOKUP('FORMULACIÓN SIGI '!G39,LISTAS!$A$113:B143,2,0)","v":{"$error":"#N/A"}},{"$f":"VLOOKUP('FORMULACIÓN SIGI '!H39,LISTAS!$A$126:$B$145,2,0)","v":{"$error":"#N/A"}},{"$f":"VLOOKUP('FORMULACIÓN SIGI '!I39,LISTAS!$A$147:$B$171,2,0)","v":{"$error":"#N/A"}},{"$f":"+'FORMULACIÓN SIGI '!J39","v":0},{"$f":"+'FORMULACIÓN SIGI '!K39","v":0},{"$f":"+'FORMULACIÓN SIGI '!L39","v":0},{"$f":"VLOOKUP('FORMULACIÓN SIGI '!M39,LISTAS!$A$173:$B$174,2,0)","v":{"$error":"#N/A"}},{"$f":"+'FORMULACIÓN SIGI '!N39","v":0},{"$f":"+'FORMULACIÓN SIGI '!O39","v":0},{"$f":"+'FORMULACIÓN SIGI '!P39","v":"00:00:00"},{"$f":"+'FORMULACIÓN SIGI '!Q39","v":"00:00:00"},{"$f":"+'FORMULACIÓN SIGI '!R39","v":0}]
[{"$f":"VLOOKUP('FORMULACIÓN SIGI '!A40,LISTAS!$A$58:$B$59,2,0)","v":{"$error":"#N/A"}},{"$f":"VLOOKUP('FORMULACIÓN SIGI '!B40,LISTAS!$A$61:$B$65,2,0)","v":{"$error":"#N/A"}},{"$f":"VLOOKUP('FORMULACIÓN SIGI '!C40,LISTAS!$A$67:$B$74,2,0)","v":{"$error":"#N/A"}},{"$f":"VLOOKUP('FORMULACIÓN SIGI '!D40,LISTAS!$A$76:$B$82,2,0)","v":{"$error":"#N/A"}},{"$f":"VLOOKUP('FORMULACIÓN SIGI '!E40,LISTAS!$A$84:$B$91,2,0)","v":{"$error":"#N/A"}},{"$f":"VLOOKUP('FORMULACIÓN SIGI '!F40,LISTAS!$A$93:$B$145,2,0)","v":{"$error":"#N/A"}},{"$f":"VLOOKUP('FORMULACIÓN SIGI '!G40,LISTAS!$A$113:B144,2,0)","v":{"$error":"#N/A"}},{"$f":"VLOOKUP('FORMULACIÓN SIGI '!H40,LISTAS!$A$126:$B$145,2,0)","v":{"$error":"#N/A"}},{"$f":"VLOOKUP('FORMULACIÓN SIGI '!I40,LISTAS!$A$147:$B$171,2,0)","v":{"$error":"#N/A"}},{"$f":"+'FORMULACIÓN SIGI '!J40","v":0},{"$f":"+'FORMULACIÓN SIGI '!K40","v":0},{"$f":"+'FORMULACIÓN SIGI '!L40","v":0},{"$f":"VLOOKUP('FORMULACIÓN SIGI '!M40,LISTAS!$A$173:$B$174,2,0)","v":{"$error":"#N/A"}},{"$f":"+'FORMULACIÓN SIGI '!N40","v":0},{"$f":"+'FORMULACIÓN SIGI '!O40","v":0},{"$f":"+'FORMULACIÓN SIGI '!P40","v":"00:00:00"},{"$f":"+'FORMULACIÓN SIGI '!Q40","v":"00:00:00"},{"$f":"+'FORMULACIÓN SIGI '!R40","v":0}]
[{"$f":"VLOOKUP('FORMULACIÓN SIGI '!A41,LISTAS!$A$58:$B$59,2,0)","v":{"$error":"#N/A"}},{"$f":"VLOOKUP('FORMULACIÓN SIGI '!B41,LISTAS!$A$61:$B$65,2,0)","v":{"$error":"#N/A"}},{"$f":"VLOOKUP('FORMULACIÓN SIGI '!C41,LISTAS!$A$67:$B$74,2,0)","v":{"$error":"#N/A"}},{"$f":"VLOOKUP('FORMULACIÓN SIGI '!D41,LISTAS!$A$76:$B$82,2,0)","v":{"$error":"#N/A"}},{"$f":"VLOOKUP('FORMULACIÓN SIGI '!E41,LISTAS!$A$84:$B$91,2,0)","v":{"$error":"#N/A"}},{"$f":"VLOOKUP('FORMULACIÓN SIGI '!F41,LISTAS!$A$93:$B$145,2,0)","v":{"$error":"#N/A"}},{"$f":"VLOOKUP('FORMULACIÓN SIGI '!G41,LISTAS!$A$113:B145,2,0)","v":{"$error":"#N/A"}},{"$f":"VLOOKUP('FORMULACIÓN SIGI '!H41,LISTAS!$A$126:$B$145,2,0)","v":{"$error":"#N/A"}},{"$f":"VLOOKUP('FORMULACIÓN SIGI '!I41,LISTAS!$A$147:$B$171,2,0)","v":{"$error":"#N/A"}},{"$f":"+'FORMULACIÓN SIGI '!J41","v":0},{"$f":"+'FORMULACIÓN SIGI '!K41","v":0},{"$f":"+'FORMULACIÓN SIGI '!L41","v":0},{"$f":"VLOOKUP('FORMULACIÓN SIGI '!M41,LISTAS!$A$173:$B$174,2,0)","v":{"$error":"#N/A"}},{"$f":"+'FORMULACIÓN SIGI '!N41","v":0},{"$f":"+'FORMULACIÓN SIGI '!O41","v":0},{"$f":"+'FORMULACIÓN SIGI '!P41","v":"00:00:00"},{"$f":"+'FORMULACIÓN SIGI '!Q41","v":"00:00:00"},{"$f":"+'FORMULACIÓN SIGI '!R41","v":0}]
[{"$f":"VLOOKUP('FORMULACIÓN SIGI '!A42,LISTAS!$A$58:$B$59,2,0)","v":{"$error":"#N/A"}},{"$f":"VLOOKUP('FORMULACIÓN SIGI '!B42,LISTAS!$A$61:$B$65,2,0)","v":{"$error":"#N/A"}},{"$f":"VLOOKUP('FORMULACIÓN SIGI '!C42,LISTAS!$A$67:$B$74,2,0)","v":{"$error":"#N/A"}},{"$f":"VLOOKUP('FORMULACIÓN SIGI '!D42,LISTAS!$A$76:$B$82,2,0)","v":{"$error":"#N/A"}},{"$f":"VLOOKUP('FORMULACIÓN SIGI '!E42,LISTAS!$A$84:$B$91,2,0)","v":{"$error":"#N/A"}},{"$f":"VLOOKUP('FORMULACIÓN SIGI '!F42,LISTAS!$A$93:$B$145,2,0)","v":{"$error":"#N/A"}},{"$f":"VLOOKUP('FORMULACIÓN SIGI '!G42,LISTAS!$A$113:B146,2,0)","v":{"$error":"#N/A"}},{"$f":"VLOOKUP('FORMULACIÓN SIGI '!H42,LISTAS!$A$126:$B$145,2,0)","v":{"$error":"#N/A"}},{"$f":"VLOOKUP('FORMULACIÓN SIGI '!I42,LISTAS!$A$147:$B$171,2,0)","v":{"$error":"#N/A"}},{"$f":"+'FORMULACIÓN SIGI '!J42","v":0},{"$f":"+'FORMULACIÓN SIGI '!K42","v":0},{"$f":"+'FORMULACIÓN SIGI '!L42","v":0},{"$f":"VLOOKUP('FORMULACIÓN SIGI '!M42,LISTAS!$A$173:$B$174,2,0)","v":{"$error":"#N/A"}},{"$f":"+'FORMULACIÓN SIGI '!N42","v":0},{"$f":"+'FORMULACIÓN SIGI '!O42","v":0},{"$f":"+'FORMULACIÓN SIGI '!P42","v":"00:00:00"},{"$f":"+'FORMULACIÓN SIGI '!Q42","v":"00:00:00"},{"$f":"+'FORMULACIÓN SIGI '!R42","v":0}]
[{"$f":"VLOOKUP('FORMULACIÓN SIGI '!A43,LISTAS!$A$58:$B$59,2,0)","v":{"$error":"#N/A"}},{"$f":"VLOOKUP('FORMULACIÓN SIGI '!B43,LISTAS!$A$61:$B$65,2,0)","v":{"$error":"#N/A"}},{"$f":"VLOOKUP('FORMULACIÓN SIGI '!C43,LISTAS!$A$67:$B$74,2,0)","v":{"$error":"#N/A"}},{"$f":"VLOOKUP('FORMULACIÓN SIGI '!D43,LISTAS!$A$76:$B$82,2,0)","v":{"$error":"#N/A"}},{"$f":"VLOOKUP('FORMULACIÓN SIGI '!E43,LISTAS!$A$84:$B$91,2,0)","v":{"$error":"#N/A"}},{"$f":"VLOOKUP('FORMULACIÓN SIGI '!F43,LISTAS!$A$93:$B$145,2,0)","v":{"$error":"#N/A"}},{"$f":"VLOOKUP('FORMULACIÓN SIGI '!G43,LISTAS!$A$113:B147,2,0)","v":{"$error":"#N/A"}},{"$f":"VLOOKUP('FORMULACIÓN SIGI '!H43,LISTAS!$A$126:$B$145,2,0)","v":{"$error":"#N/A"}},{"$f":"VLOOKUP('FORMULACIÓN SIGI '!I43,LISTAS!$A$147:$B$171,2,0)","v":{"$error":"#N/A"}},{"$f":"+'FORMULACIÓN SIGI '!J43","v":0},{"$f":"+'FORMULACIÓN SIGI '!K43","v":0},{"$f":"+'FORMULACIÓN SIGI '!L43","v":0},{"$f":"VLOOKUP('FORMULACIÓN SIGI '!M43,LISTAS!$A$173:$B$174,2,0)","v":{"$error":"#N/A"}},{"$f":"+'FORMULACIÓN SIGI '!N43","v":0},{"$f":"+'FORMULACIÓN SIGI '!O43","v":0},{"$f":"+'FORMULACIÓN SIGI '!P43","v":"00:00:00"},{"$f":"+'FORMULACIÓN SIGI '!Q43","v":"00:00:00"},{"$f":"+'FORMULACIÓN SIGI '!R43","v":0}]
[{"$f":"VLOOKUP('FORMULACIÓN SIGI '!A44,LISTAS!$A$58:$B$59,2,0)","v":{"$error":"#N/A"}},{"$f":"VLOOKUP('FORMULACIÓN SIGI '!B44,LISTAS!$A$61:$B$65,2,0)","v":{"$error":"#N/A"}},{"$f":"VLOOKUP('FORMULACIÓN SIGI '!C44,LISTAS!$A$67:$B$74,2,0)","v":{"$error":"#N/A"}},{"$f":"VLOOKUP('FORMULACIÓN SIGI '!D44,LISTAS!$A$76:$B$82,2,0)","v":{"$error":"#N/A"}},{"$f":"VLOOKUP('FORMULACIÓN SIGI '!E44,LISTAS!$A$84:$B$91,2,0)","v":{"$error":"#N/A"}},{"$f":"VLOOKUP('FORMULACIÓN SIGI '!F44,LISTAS!$A$93:$B$145,2,0)","v":{"$error":"#N/A"}},{"$f":"VLOOKUP('FORMULACIÓN SIGI '!G44,LISTAS!$A$113:B148,2,0)","v":{"$error":"#N/A"}},{"$f":"VLOOKUP('FORMULACIÓN SIGI '!H44,LISTAS!$A$126:$B$145,2,0)","v":{"$error":"#N/A"}},{"$f":"VLOOKUP('FORMULACIÓN SIGI '!I44,LISTAS!$A$147:$B$171,2,0)","v":{"$error":"#N/A"}},{"$f":"+'FORMULACIÓN SIGI '!J44","v":0},{"$f":"+'FORMULACIÓN SIGI '!K44","v":0},{"$f":"+'FORMULACIÓN SIGI '!L44","v":0},{"$f":"VLOOKUP('FORMULACIÓN SIGI '!M44,LISTAS!$A$173:$B$174,2,0)","v":{"$error":"#N/A"}},{"$f":"+'FORMULACIÓN SIGI '!N44","v":0},{"$f":"+'FORMULACIÓN SIGI '!O44","v":0},{"$f":"+'FORMULACIÓN SIGI '!P44","v":"00:00:00"},{"$f":"+'FORMULACIÓN SIGI '!Q44","v":"00:00:00"},{"$f":"+'FORMULACIÓN SIGI '!R44","v":0}]
[{"$f":"VLOOKUP('FORMULACIÓN SIGI '!A45,LISTAS!$A$58:$B$59,2,0)","v":{"$error":"#N/A"}},{"$f":"VLOOKUP('FORMULACIÓN SIGI '!B45,LISTAS!$A$61:$B$65,2,0)","v":{"$error":"#N/A"}},{"$f":"VLOOKUP('FORMULACIÓN SIGI '!C45,LISTAS!$A$67:$B$74,2,0)","v":{"$error":"#N/A"}},{"$f":"VLOOKUP('FORMULACIÓN SIGI '!D45,LISTAS!$A$76:$B$82,2,0)","v":{"$error":"#N/A"}},{"$f":"VLOOKUP('FORMULACIÓN SIGI '!E45,LISTAS!$A$84:$B$91,2,0)","v":{"$error":"#N/A"}},{"$f":"VLOOKUP('FORMULACIÓN SIGI '!F45,LISTAS!$A$93:$B$145,2,0)","v":{"$error":"#N/A"}},{"$f":"VLOOKUP('FORMULACIÓN SIGI '!G45,LISTAS!$A$113:B149,2,0)","v":{"$error":"#N/A"}},{"$f":"VLOOKUP('FORMULACIÓN SIGI '!H45,LISTAS!$A$126:$B$145,2,0)","v":{"$error":"#N/A"}},{"$f":"VLOOKUP('FORMULACIÓN SIGI '!I45,LISTAS!$A$147:$B$171,2,0)","v":{"$error":"#N/A"}},{"$f":"+'FORMULACIÓN SIGI '!J45","v":0},{"$f":"+'FORMULACIÓN SIGI '!K45","v":0},{"$f":"+'FORMULACIÓN SIGI '!L45","v":0},{"$f":"VLOOKUP('FORMULACIÓN SIGI '!M45,LISTAS!$A$173:$B$174,2,0)","v":{"$error":"#N/A"}},{"$f":"+'FORMULACIÓN SIGI '!N45","v":0},{"$f":"+'FORMULACIÓN SIGI '!O45","v":0},{"$f":"+'FORMULACIÓN SIGI '!P45","v":"00:00:00"},{"$f":"+'FORMULACIÓN SIGI '!Q45","v":"00:00:00"},{"$f":"+'FORMULACIÓN SIGI '!R45","v":0}]
[{"$f":"VLOOKUP('FORMULACIÓN SIGI '!A46,LISTAS!$A$58:$B$59,2,0)","v":{"$error":"#N/A"}},{"$f":"VLOOKUP('FORMULACIÓN SIGI '!B46,LISTAS!$A$61:$B$65,2,0)","v":{"$error":"#N/A"}},{"$f":"VLOOKUP('FORMULACIÓN SIGI '!C46,LISTAS!$A$67:$B$74,2,0)","v":{"$error":"#N/A"}},{"$f":"VLOOKUP('FORMULACIÓN SIGI '!D46,LISTAS!$A$76:$B$82,2,0)","v":{"$error":"#N/A"}},{"$f":"VLOOKUP('FORMULACIÓN SIGI '!E46,LISTAS!$A$84:$B$91,2,0)","v":{"$error":"#N/A"}},{"$f":"VLOOKUP('FORMULACIÓN SIGI '!F46,LISTAS!$A$93:$B$145,2,0)","v":{"$error":"#N/A"}},{"$f":"VLOOKUP('FORMULACIÓN SIGI '!G46,LISTAS!$A$113:B150,2,0)","v":{"$error":"#N/A"}},{"$f":"VLOOKUP('FORMULACIÓN SIGI '!H46,LISTAS!$A$126:$B$145,2,0)","v":{"$error":"#N/A"}},{"$f":"VLOOKUP('FORMULACIÓN SIGI '!I46,LISTAS!$A$147:$B$171,2,0)","v":{"$error":"#N/A"}},{"$f":"+'FORMULACIÓN SIGI '!J46","v":0},{"$f":"+'FORMULACIÓN SIGI '!K46","v":0},{"$f":"+'FORMULACIÓN SIGI '!L46","v":0},{"$f":"VLOOKUP('FORMULACIÓN SIGI '!M46,LISTAS!$A$173:$B$174,2,0)","v":{"$error":"#N/A"}},{"$f":"+'FORMULACIÓN SIGI '!N46","v":0},{"$f":"+'FORMULACIÓN SIGI '!O46","v":0},{"$f":"+'FORMULACIÓN SIGI '!P46","v":"00:00:00"},{"$f":"+'FORMULACIÓN SIGI '!Q46","v":"00:00:00"},{"$f":"+'FORMULACIÓN SIGI '!R46","v":0}]
[{"$f":"VLOOKUP('FORMULACIÓN SIGI '!A47,LISTAS!$A$58:$B$59,2,0)","v":{"$error":"#N/A"}},{"$f":"VLOOKUP('FORMULACIÓN SIGI '!B47,LISTAS!$A$61:$B$65,2,0)","v":{"$error":"#N/A"}},{"$f":"VLOOKUP('FORMULACIÓN SIGI '!C47,LISTAS!$A$67:$B$74,2,0)","v":{"$error":"#N/A"}},{"$f":"VLOOKUP('FORMULACIÓN SIGI '!D47,LISTAS!$A$76:$B$82,2,0)","v":{"$error":"#N/A"}},{"$f":"VLOOKUP('FORMULACIÓN SIGI '!E47,LISTAS!$A$84:$B$91,2,0)","v":{"$error":"#N/A"}},{"$f":"VLOOKUP('FORMULACIÓN SIGI '!F47,LISTAS!$A$93:$B$145,2,0)","v":{"$error":"#N/A"}},{"$f":"VLOOKUP('FORMULACIÓN SIGI '!G47,LISTAS!$A$113:B151,2,0)","v":{"$error":"#N/A"}},{"$f":"VLOOKUP('FORMULACIÓN SIGI '!H47,LISTAS!$A$126:$B$145,2,0)","v":{"$error":"#N/A"}},{"$f":"VLOOKUP('FORMULACIÓN SIGI '!I47,LISTAS!$A$147:$B$171,2,0)","v":{"$error":"#N/A"}},{"$f":"+'FORMULACIÓN SIGI '!J47","v":0},{"$f":"+'FORMULACIÓN SIGI '!K47","v":0},{"$f":"+'FORMULACIÓN SIGI '!L47","v":0},{"$f":"VLOOKUP('FORMULACIÓN SIGI '!M47,LISTAS!$A$173:$B$174,2,0)","v":{"$error":"#N/A"}},{"$f":"+'FORMULACIÓN SIGI '!N47","v":0},{"$f":"+'FORMULACIÓN SIGI '!O47","v":0},{"$f":"+'FORMULACIÓN SIGI '!P47","v":"00:00:00"},{"$f":"+'FORMULACIÓN SIGI '!Q47","v":"00:00:00"},{"$f":"+'FORMULACIÓN SIGI '!R47","v":0}]
[{"$f":"VLOOKUP('FORMULACIÓN SIGI '!A48,LISTAS!$A$58:$B$59,2,0)","v":{"$error":"#N/A"}},{"$f":"VLOOKUP('FORMULACIÓN SIGI '!B48,LISTAS!$A$61:$B$65,2,0)","v":{"$error":"#N/A"}},{"$f":"VLOOKUP('FORMULACIÓN SIGI '!C48,LISTAS!$A$67:$B$74,2,0)","v":{"$error":"#N/A"}},{"$f":"VLOOKUP('FORMULACIÓN SIGI '!D48,LISTAS!$A$76:$B$82,2,0)","v":{"$error":"#N/A"}},{"$f":"VLOOKUP('FORMULACIÓN SIGI '!E48,LISTAS!$A$84:$B$91,2,0)","v":{"$error":"#N/A"}},{"$f":"VLOOKUP('FORMULACIÓN SIGI '!F48,LISTAS!$A$93:$B$145,2,0)","v":{"$error":"#N/A"}},{"$f":"VLOOKUP('FORMULACIÓN SIGI '!G48,LISTAS!$A$113:B152,2,0)","v":{"$error":"#N/A"}},{"$f":"VLOOKUP('FORMULACIÓN SIGI '!H48,LISTAS!$A$126:$B$145,2,0)","v":{"$error":"#N/A"}},{"$f":"VLOOKUP('FORMULACIÓN SIGI '!I48,LISTAS!$A$147:$B$171,2,0)","v":{"$error":"#N/A"}},{"$f":"+'FORMULACIÓN SIGI '!J48","v":0},{"$f":"+'FORMULACIÓN SIGI '!K48","v":0},{"$f":"+'FORMULACIÓN SIGI '!L48","v":0},{"$f":"VLOOKUP('FORMULACIÓN SIGI '!M48,LISTAS!$A$173:$B$174,2,0)","v":{"$error":"#N/A"}},{"$f":"+'FORMULACIÓN SIGI '!N48","v":0},{"$f":"+'FORMULACIÓN SIGI '!O48","v":0},{"$f":"+'FORMULACIÓN SIGI '!P48","v":"00:00:00"},{"$f":"+'FORMULACIÓN SIGI '!Q48","v":"00:00:00"},{"$f":"+'FORMULACIÓN SIGI '!R48","v":0}]
[{"$f":"VLOOKUP('FORMULACIÓN SIGI '!A49,LISTAS!$A$58:$B$59,2,0)","v":{"$error":"#N/A"}},{"$f":"VLOOKUP('FORMULACIÓN SIGI '!B49,LISTAS!$A$61:$B$65,2,0)","v":{"$error":"#N/A"}},{"$f":"VLOOKUP('FORMULACIÓN SIGI '!C49,LISTAS!$A$67:$B$74,2,0)","v":{"$error":"#N/A"}},{"$f":"VLOOKUP('FORMULACIÓN SIGI '!D49,LISTAS!$A$76:$B$82,2,0)","v":{"$error":"#N/A"}},{"$f":"VLOOKUP('FORMULACIÓN SIGI '!E49,LISTAS!$A$84:$B$91,2,0)","v":{"$error":"#N/A"}},{"$f":"VLOOKUP('FORMULACIÓN SIGI '!F49,LISTAS!$A$93:$B$145,2,0)","v":{"$error":"#N/A"}},{"$f":"VLOOKUP('FORMULACIÓN SIGI '!G49,LISTAS!$A$113:B153,2,0)","v":{"$error":"#N/A"}},{"$f":"VLOOKUP('FORMULACIÓN SIGI '!H49,LISTAS!$A$126:$B$145,2,0)","v":{"$error":"#N/A"}},{"$f":"VLOOKUP('FORMULACIÓN SIGI '!I49,LISTAS!$A$147:$B$171,2,0)","v":{"$error":"#N/A"}},{"$f":"+'FORMULACIÓN SIGI '!J49","v":0},{"$f":"+'FORMULACIÓN SIGI '!K49","v":0},{"$f":"+'FORMULACIÓN SIGI '!L49","v":0},{"$f":"VLOOKUP('FORMULACIÓN SIGI '!M49,LISTAS!$A$173:$B$174,2,0)","v":{"$error":"#N/A"}},{"$f":"+'FORMULACIÓN SIGI '!N49","v":0},{"$f":"+'FORMULACIÓN SIGI '!O49","v":0},{"$f":"+'FORMULACIÓN SIGI '!P49","v":"00:00:00"},{"$f":"+'FORMULACIÓN SIGI '!Q49","v":"00:00:00"},{"$f":"+'FORMULACIÓN SIGI '!R49","v":0}]
[{"$f":"VLOOKUP('FORMULACIÓN SIGI '!A50,LISTAS!$A$58:$B$59,2,0)","v":{"$error":"#N/A"}},{"$f":"VLOOKUP('FORMULACIÓN SIGI '!B50,LISTAS!$A$61:$B$65,2,0)","v":{"$error":"#N/A"}},{"$f":"VLOOKUP('FORMULACIÓN SIGI '!C50,LISTAS!$A$67:$B$74,2,0)","v":{"$error":"#N/A"}},{"$f":"VLOOKUP('FORMULACIÓN SIGI '!D50,LISTAS!$A$76:$B$82,2,0)","v":{"$error":"#N/A"}},{"$f":"VLOOKUP('FORMULACIÓN SIGI '!E50,LISTAS!$A$84:$B$91,2,0)","v":{"$error":"#N/A"}},{"$f":"VLOOKUP('FORMULACIÓN SIGI '!F50,LISTAS!$A$93:$B$145,2,0)","v":{"$error":"#N/A"}},{"$f":"VLOOKUP('FORMULACIÓN SIGI '!G50,LISTAS!$A$113:B154,2,0)","v":{"$error":"#N/A"}},{"$f":"VLOOKUP('FORMULACIÓN SIGI '!H50,LISTAS!$A$126:$B$145,2,0)","v":{"$error":"#N/A"}},{"$f":"VLOOKUP('FORMULACIÓN SIGI '!I50,LISTAS!$A$147:$B$171,2,0)","v":{"$error":"#N/A"}},{"$f":"+'FORMULACIÓN SIGI '!J50","v":0},{"$f":"+'FORMULACIÓN SIGI '!K50","v":0},{"$f":"+'FORMULACIÓN SIGI '!L50","v":0},{"$f":"VLOOKUP('FORMULACIÓN SIGI '!M50,LISTAS!$A$173:$B$174,2,0)","v":{"$error":"#N/A"}},{"$f":"+'FORMULACIÓN SIGI '!N50","v":0},{"$f":"+'FORMULACIÓN SIGI '!O50","v":0},{"$f":"+'FORMULACIÓN SIGI '!P50","v":"00:00:00"},{"$f":"+'FORMULACIÓN SIGI '!Q50","v":"00:00:00"},{"$f":"+'FORMULACIÓN SIGI '!R50","v":0}]
[{"$f":"VLOOKUP('FORMULACIÓN SIGI '!A51,LISTAS!$A$58:$B$59,2,0)","v":{"$error":"#N/A"}},{"$f":"VLOOKUP('FORMULACIÓN SIGI '!B51,LISTAS!$A$61:$B$65,2,0)","v":{"$error":"#N/A"}},{"$f":"VLOOKUP('FORMULACIÓN SIGI '!C51,LISTAS!$A$67:$B$74,2,0)","v":{"$error":"#N/A"}},{"$f":"VLOOKUP('FORMULACIÓN SIGI '!D51,LISTAS!$A$76:$B$82,2,0)","v":{"$error":"#N/A"}},{"$f":"VLOOKUP('FORMULACIÓN SIGI '!E51,LISTAS!$A$84:$B$91,2,0)","v":{"$error":"#N/A"}},{"$f":"VLOOKUP('FORMULACIÓN SIGI '!F51,LISTAS!$A$93:$B$145,2,0)","v":{"$error":"#N/A"}},{"$f":"VLOOKUP('FORMULACIÓN SIGI '!G51,LISTAS!$A$113:B155,2,0)","v":{"$error":"#N/A"}},{"$f":"VLOOKUP('FORMULACIÓN SIGI '!H51,LISTAS!$A$126:$B$145,2,0)","v":{"$error":"#N/A"}},{"$f":"VLOOKUP('FORMULACIÓN SIGI '!I51,LISTAS!$A$147:$B$171,2,0)","v":{"$error":"#N/A"}},{"$f":"+'FORMULACIÓN SIGI '!J51","v":0},{"$f":"+'FORMULACIÓN SIGI '!K51","v":0},{"$f":"+'FORMULACIÓN SIGI '!L51","v":0},{"$f":"VLOOKUP('FORMULACIÓN SIGI '!M51,LISTAS!$A$173:$B$174,2,0)","v":{"$error":"#N/A"}},{"$f":"+'FORMULACIÓN SIGI '!N51","v":0},{"$f":"+'FORMULACIÓN SIGI '!O51","v":0},{"$f":"+'FORMULACIÓN SIGI '!P51","v":"00:00:00"},{"$f":"+'FORMULACIÓN SIGI '!Q51","v":"00:00:00"},{"$f":"+'FORMULACIÓN SIGI '!R51","v":0}]
[{"$f":"VLOOKUP('FORMULACIÓN SIGI '!A52,LISTAS!$A$58:$B$59,2,0)","v":{"$error":"#N/A"}},{"$f":"VLOOKUP('FORMULACIÓN SIGI '!B52,LISTAS!$A$61:$B$65,2,0)","v":{"$error":"#N/A"}},{"$f":"VLOOKUP('FORMULACIÓN SIGI '!C52,LISTAS!$A$67:$B$74,2,0)","v":{"$error":"#N/A"}},{"$f":"VLOOKUP('FORMULACIÓN SIGI '!D52,LISTAS!$A$76:$B$82,2,0)","v":{"$error":"#N/A"}},{"$f":"VLOOKUP('FORMULACIÓN SIGI '!E52,LISTAS!$A$84:$B$91,2,0)","v":{"$error":"#N/A"}},{"$f":"VLOOKUP('FORMULACIÓN SIGI '!F52,LISTAS!$A$93:$B$145,2,0)","v":{"$error":"#N/A"}},{"$f":"VLOOKUP('FORMULACIÓN SIGI '!G52,LISTAS!$A$113:B156,2,0)","v":{"$error":"#N/A"}},{"$f":"VLOOKUP('FORMULACIÓN SIGI '!H52,LISTAS!$A$126:$B$145,2,0)","v":{"$error":"#N/A"}},{"$f":"VLOOKUP('FORMULACIÓN SIGI '!I52,LISTAS!$A$147:$B$171,2,0)","v":{"$error":"#N/A"}},{"$f":"+'FORMULACIÓN SIGI '!J52","v":0},{"$f":"+'FORMULACIÓN SIGI '!K52","v":0},{"$f":"+'FORMULACIÓN SIGI '!L52","v":0},{"$f":"VLOOKUP('FORMULACIÓN SIGI '!M52,LISTAS!$A$173:$B$174,2,0)","v":{"$error":"#N/A"}},{"$f":"+'FORMULACIÓN SIGI '!N52","v":0},{"$f":"+'FORMULACIÓN SIGI '!O52","v":0},{"$f":"+'FORMULACIÓN SIGI '!P52","v":"00:00:00"},{"$f":"+'FORMULACIÓN SIGI '!Q52","v":"00:00:00"},{"$f":"+'FORMULACIÓN SIGI '!R52","v":0}]
[{"$f":"VLOOKUP('FORMULACIÓN SIGI '!A53,LISTAS!$A$58:$B$59,2,0)","v":{"$error":"#N/A"}},{"$f":"VLOOKUP('FORMULACIÓN SIGI '!B53,LISTAS!$A$61:$B$65,2,0)","v":{"$error":"#N/A"}},{"$f":"VLOOKUP('FORMULACIÓN SIGI '!C53,LISTAS!$A$67:$B$74,2,0)","v":{"$error":"#N/A"}},{"$f":"VLOOKUP('FORMULACIÓN SIGI '!D53,LISTAS!$A$76:$B$82,2,0)","v":{"$error":"#N/A"}},{"$f":"VLOOKUP('FORMULACIÓN SIGI '!E53,LISTAS!$A$84:$B$91,2,0)","v":{"$error":"#N/A"}},{"$f":"VLOOKUP('FORMULACIÓN SIGI '!F53,LISTAS!$A$93:$B$145,2,0)","v":{"$error":"#N/A"}},{"$f":"VLOOKUP('FORMULACIÓN SIGI '!G53,LISTAS!$A$113:B157,2,0)","v":{"$error":"#N/A"}},{"$f":"VLOOKUP('FORMULACIÓN SIGI '!H53,LISTAS!$A$126:$B$145,2,0)","v":{"$error":"#N/A"}},{"$f":"VLOOKUP('FORMULACIÓN SIGI '!I53,LISTAS!$A$147:$B$171,2,0)","v":{"$error":"#N/A"}},{"$f":"+'FORMULACIÓN SIGI '!J53","v":0},{"$f":"+'FORMULACIÓN SIGI '!K53","v":0},{"$f":"+'FORMULACIÓN SIGI '!L53","v":0},{"$f":"VLOOKUP('FORMULACIÓN SIGI '!M53,LISTAS!$A$173:$B$174,2,0)","v":{"$error":"#N/A"}},{"$f":"+'FORMULACIÓN SIGI '!N53","v":0},{"$f":"+'FORMULACIÓN SIGI '!O53","v":0},{"$f":"+'FORMULACIÓN SIGI '!P53","v":"00:00:00"},{"$f":"+'FORMULACIÓN SIGI '!Q53","v":"00:00:00"},{"$f":"+'FORMULACIÓN SIGI '!R53","v":0}]
[{"$f":"VLOOKUP('FORMULACIÓN SIGI '!A54,LISTAS!$A$58:$B$59,2,0)","v":{"$error":"#N/A"}},{"$f":"VLOOKUP('FORMULACIÓN SIGI '!B54,LISTAS!$A$61:$B$65,2,0)","v":{"$error":"#N/A"}},{"$f":"VLOOKUP('FORMULACIÓN SIGI '!C54,LISTAS!$A$67:$B$74,2,0)","v":{"$error":"#N/A"}},{"$f":"VLOOKUP('FORMULACIÓN SIGI '!D54,LISTAS!$A$76:$B$82,2,0)","v":{"$error":"#N/A"}},{"$f":"VLOOKUP('FORMULACIÓN SIGI '!E54,LISTAS!$A$84:$B$91,2,0)","v":{"$error":"#N/A"}},{"$f":"VLOOKUP('FORMULACIÓN SIGI '!F54,LISTAS!$A$93:$B$145,2,0)","v":{"$error":"#N/A"}},{"$f":"VLOOKUP('FORMULACIÓN SIGI '!G54,LISTAS!$A$113:B158,2,0)","v":{"$error":"#N/A"}},{"$f":"VLOOKUP('FORMULACIÓN SIGI '!H54,LISTAS!$A$126:$B$145,2,0)","v":{"$error":"#N/A"}},{"$f":"VLOOKUP('FORMULACIÓN SIGI '!I54,LISTAS!$A$147:$B$171,2,0)","v":{"$error":"#N/A"}},{"$f":"+'FORMULACIÓN SIGI '!J54","v":0},{"$f":"+'FORMULACIÓN SIGI '!K54","v":0},{"$f":"+'FORMULACIÓN SIGI '!L54","v":0},{"$f":"VLOOKUP('FORMULACIÓN SIGI '!M54,LISTAS!$A$173:$B$174,2,0)","v":{"$error":"#N/A"}},{"$f":"+'FORMULACIÓN SIGI '!N54","v":0},{"$f":"+'FORMULACIÓN SIGI '!O54","v":0},{"$f":"+'FORMULACIÓN SIGI '!P54","v":"00:00:00"},{"$f":"+'FORMULACIÓN SIGI '!Q54","v":"00:00:00"},{"$f":"+'FORMULACIÓN SIGI '!R54","v":0}]
[{"$f":"VLOOKUP('FORMULACIÓN SIGI '!A55,LISTAS!$A$58:$B$59,2,0)","v":{"$error":"#N/A"}},{"$f":"VLOOKUP('FORMULACIÓN SIGI '!B55,LISTAS!$A$61:$B$65,2,0)","v":{"$error":"#N/A"}},{"$f":"VLOOKUP('FORMULACIÓN SIGI '!C55,LISTAS!$A$67:$B$74,2,0)","v":{"$error":"#N/A"}},{"$f":"VLOOKUP('FORMULACIÓN SIGI '!D55,LISTAS!$A$76:$B$82,2,0)","v":{"$error":"#N/A"}},{"$f":"VLOOKUP('FORMULACIÓN SIGI '!E55,LISTAS!$A$84:$B$91,2,0)","v":{"$error":"#N/A"}},{"$f":"VLOOKUP('FORMULACIÓN SIGI '!F55,LISTAS!$A$93:$B$145,2,0)","v":{"$error":"#N/A"}},{"$f":"VLOOKUP('FORMULACIÓN SIGI '!G55,LISTAS!$A$113:B159,2,0)","v":{"$error":"#N/A"}},{"$f":"VLOOKUP('FORMULACIÓN SIGI '!H55,LISTAS!$A$126:$B$145,2,0)","v":{"$error":"#N/A"}},{"$f":"VLOOKUP('FORMULACIÓN SIGI '!I55,LISTAS!$A$147:$B$171,2,0)","v":{"$error":"#N/A"}},{"$f":"+'FORMULACIÓN SIGI '!J55","v":0},{"$f":"+'FORMULACIÓN SIGI '!K55","v":0},{"$f":"+'FORMULACIÓN SIGI '!L55","v":0},{"$f":"VLOOKUP('FORMULACIÓN SIGI '!M55,LISTAS!$A$173:$B$174,2,0)","v":{"$error":"#N/A"}},{"$f":"+'FORMULACIÓN SIGI '!N55","v":0},{"$f":"+'FORMULACIÓN SIGI '!O55","v":0},{"$f":"+'FORMULACIÓN SIGI '!P55","v":"00:00:00"},{"$f":"+'FORMULACIÓN SIGI '!Q55","v":"00:00:00"},{"$f":"+'FORMULACIÓN SIGI '!R55","v":0}]
[{"$f":"VLOOKUP('FORMULACIÓN SIGI '!A56,LISTAS!$A$58:$B$59,2,0)","v":{"$error":"#N/A"}},{"$f":"VLOOKUP('FORMULACIÓN SIGI '!B56,LISTAS!$A$61:$B$65,2,0)","v":{"$error":"#N/A"}},{"$f":"VLOOKUP('FORMULACIÓN SIGI '!C56,LISTAS!$A$67:$B$74,2,0)","v":{"$error":"#N/A"}},{"$f":"VLOOKUP('FORMULACIÓN SIGI '!D56,LISTAS!$A$76:$B$82,2,0)","v":{"$error":"#N/A"}},{"$f":"VLOOKUP('FORMULACIÓN SIGI '!E56,LISTAS!$A$84:$B$91,2,0)","v":{"$error":"#N/A"}},{"$f":"VLOOKUP('FORMULACIÓN SIGI '!F56,LISTAS!$A$93:$B$145,2,0)","v":{"$error":"#N/A"}},{"$f":"VLOOKUP('FORMULACIÓN SIGI '!G56,LISTAS!$A$113:B160,2,0)","v":{"$error":"#N/A"}},{"$f":"VLOOKUP('FORMULACIÓN SIGI '!H56,LISTAS!$A$126:$B$145,2,0)","v":{"$error":"#N/A"}},{"$f":"VLOOKUP('FORMULACIÓN SIGI '!I56,LISTAS!$A$147:$B$171,2,0)","v":{"$error":"#N/A"}},{"$f":"+'FORMULACIÓN SIGI '!J56","v":0},{"$f":"+'FORMULACIÓN SIGI '!K56","v":0},{"$f":"+'FORMULACIÓN SIGI '!L56","v":0},{"$f":"VLOOKUP('FORMULACIÓN SIGI '!M56,LISTAS!$A$173:$B$174,2,0)","v":{"$error":"#N/A"}},{"$f":"+'FORMULACIÓN SIGI '!N56","v":0},{"$f":"+'FORMULACIÓN SIGI '!O56","v":0},{"$f":"+'FORMULACIÓN SIGI '!P56","v":"00:00:00"},{"$f":"+'FORMULACIÓN SIGI '!Q56","v":"00:00:00"},{"$f":"+'FORMULACIÓN SIGI '!R56","v":0}]
[{"$f":"VLOOKUP('FORMULACIÓN SIGI '!A57,LISTAS!$A$58:$B$59,2,0)","v":{"$error":"#N/A"}},{"$f":"VLOOKUP('FORMULACIÓN SIGI '!B57,LISTAS!$A$61:$B$65,2,0)","v":{"$error":"#N/A"}},{"$f":"VLOOKUP('FORMULACIÓN SIGI '!C57,LISTAS!$A$67:$B$74,2,0)","v":{"$error":"#N/A"}},{"$f":"VLOOKUP('FORMULACIÓN SIGI '!D57,LISTAS!$A$76:$B$82,2,0)","v":{"$error":"#N/A"}},{"$f":"VLOOKUP('FORMULACIÓN SIGI '!E57,LISTAS!$A$84:$B$91,2,0)","v":{"$error":"#N/A"}},{"$f":"VLOOKUP('FORMULACIÓN SIGI '!F57,LISTAS!$A$93:$B$145,2,0)","v":{"$error":"#N/A"}},{"$f":"VLOOKUP('FORMULACIÓN SIGI '!G57,LISTAS!$A$113:B161,2,0)","v":{"$error":"#N/A"}},{"$f":"VLOOKUP('FORMULACIÓN SIGI '!H57,LISTAS!$A$126:$B$145,2,0)","v":{"$error":"#N/A"}},{"$f":"VLOOKUP('FORMULACIÓN SIGI '!I57,LISTAS!$A$147:$B$171,2,0)","v":{"$error":"#N/A"}},{"$f":"+'FORMULACIÓN SIGI '!J57","v":0},{"$f":"+'FORMULACIÓN SIGI '!K57","v":0},{"$f":"+'FORMULACIÓN SIGI '!L57","v":0},{"$f":"VLOOKUP('FORMULACIÓN SIGI '!M57,LISTAS!$A$173:$B$174,2,0)","v":{"$error":"#N/A"}},{"$f":"+'FORMULACIÓN SIGI '!N57","v":0},{"$f":"+'FORMULACIÓN SIGI '!O57","v":0},{"$f":"+'FORMULACIÓN SIGI '!P57","v":"00:00:00"},{"$f":"+'FORMULACIÓN SIGI '!Q57","v":"00:00:00"},{"$f":"+'FORMULACIÓN SIGI '!R57","v":0}]
[{"$f":"VLOOKUP('FORMULACIÓN SIGI '!A58,LISTAS!$A$58:$B$59,2,0)","v":{"$error":"#N/A"}},{"$f":"VLOOKUP('FORMULACIÓN SIGI '!B58,LISTAS!$A$61:$B$65,2,0)","v":{"$error":"#N/A"}},{"$f":"VLOOKUP('FORMULACIÓN SIGI '!C58,LISTAS!$A$67:$B$74,2,0)","v":{"$error":"#N/A"}},{"$f":"VLOOKUP('FORMULACIÓN SIGI '!D58,LISTAS!$A$76:$B$82,2,0)","v":{"$error":"#N/A"}},{"$f":"VLOOKUP('FORMULACIÓN SIGI '!E58,LISTAS!$A$84:$B$91,2,0)","v":{"$error":"#N/A"}},{"$f":"VLOOKUP('FORMULACIÓN SIGI '!F58,LISTAS!$A$93:$B$145,2,0)","v":{"$error":"#N/A"}},{"$f":"VLOOKUP('FORMULACIÓN SIGI '!G58,LISTAS!$A$113:B162,2,0)","v":{"$error":"#N/A"}},{"$f":"VLOOKUP('FORMULACIÓN SIGI '!H58,LISTAS!$A$126:$B$145,2,0)","v":{"$error":"#N/A"}},{"$f":"VLOOKUP('FORMULACIÓN SIGI '!I58,LISTAS!$A$147:$B$171,2,0)","v":{"$error":"#N/A"}},{"$f":"+'FORMULACIÓN SIGI '!J58","v":0},{"$f":"+'FORMULACIÓN SIGI '!K58","v":0},{"$f":"+'FORMULACIÓN SIGI '!L58","v":0},{"$f":"VLOOKUP('FORMULACIÓN SIGI '!M58,LISTAS!$A$173:$B$174,2,0)","v":{"$error":"#N/A"}},{"$f":"+'FORMULACIÓN SIGI '!N58","v":0},{"$f":"+'FORMULACIÓN SIGI '!O58","v":0},{"$f":"+'FORMULACIÓN SIGI '!P58","v":"00:00:00"},{"$f":"+'FORMULACIÓN SIGI '!Q58","v":"00:00:00"},{"$f":"+'FORMULACIÓN SIGI '!R58","v":0}]
[{"$f":"VLOOKUP('FORMULACIÓN SIGI '!A59,LISTAS!$A$58:$B$59,2,0)","v":{"$error":"#N/A"}},{"$f":"VLOOKUP('FORMULACIÓN SIGI '!B59,LISTAS!$A$61:$B$65,2,0)","v":{"$error":"#N/A"}},{"$f":"VLOOKUP('FORMULACIÓN SIGI '!C59,LISTAS!$A$67:$B$74,2,0)","v":{"$error":"#N/A"}},{"$f":"VLOOKUP('FORMULACIÓN SIGI '!D59,LISTAS!$A$76:$B$82,2,0)","v":{"$error":"#N/A"}},{"$f":"VLOOKUP('FORMULACIÓN SIGI '!E59,LISTAS!$A$84:$B$91,2,0)","v":{"$error":"#N/A"}},{"$f":"VLOOKUP('FORMULACIÓN SIGI '!F59,LISTAS!$A$93:$B$145,2,0)","v":{"$error":"#N/A"}},{"$f":"VLOOKUP('FORMULACIÓN SIGI '!G59,LISTAS!$A$113:B163,2,0)","v":{"$error":"#N/A"}},{"$f":"VLOOKUP('FORMULACIÓN SIGI '!H59,LISTAS!$A$126:$B$145,2,0)","v":{"$error":"#N/A"}},{"$f":"VLOOKUP('FORMULACIÓN SIGI '!I59,LISTAS!$A$147:$B$171,2,0)","v":{"$error":"#N/A"}},{"$f":"+'FORMULACIÓN SIGI '!J59","v":0},{"$f":"+'FORMULACIÓN SIGI '!K59","v":0},{"$f":"+'FORMULACIÓN SIGI '!L59","v":0},{"$f":"VLOOKUP('FORMULACIÓN SIGI '!M59,LISTAS!$A$173:$B$174,2,0)","v":{"$error":"#N/A"}},{"$f":"+'FORMULACIÓN SIGI '!N59","v":0},{"$f":"+'FORMULACIÓN SIGI '!O59","v":0},{"$f":"+'FORMULACIÓN SIGI '!P59","v":"00:00:00"},{"$f":"+'FORMULACIÓN SIGI '!Q59","v":"00:00:00"},{"$f":"+'FORMULACIÓN SIGI '!R59","v":0}]
[{"$f":"VLOOKUP('FORMULACIÓN SIGI '!A60,LISTAS!$A$58:$B$59,2,0)","v":{"$error":"#N/A"}},{"$f":"VLOOKUP('FORMULACIÓN SIGI '!B60,LISTAS!$A$61:$B$65,2,0)","v":{"$error":"#N/A"}},{"$f":"VLOOKUP('FORMULACIÓN SIGI '!C60,LISTAS!$A$67:$B$74,2,0)","v":{"$error":"#N/A"}},{"$f":"VLOOKUP('FORMULACIÓN SIGI '!D60,LISTAS!$A$76:$B$82,2,0)","v":{"$error":"#N/A"}},{"$f":"VLOOKUP('FORMULACIÓN SIGI '!E60,LISTAS!$A$84:$B$91,2,0)","v":{"$error":"#N/A"}},{"$f":"VLOOKUP('FORMULACIÓN SIGI '!F60,LISTAS!$A$93:$B$145,2,0)","v":{"$error":"#N/A"}},{"$f":"VLOOKUP('FORMULACIÓN SIGI '!G60,LISTAS!$A$113:B164,2,0)","v":{"$error":"#N/A"}},{"$f":"VLOOKUP('FORMULACIÓN SIGI '!H60,LISTAS!$A$126:$B$145,2,0)","v":{"$error":"#N/A"}},{"$f":"VLOOKUP('FORMULACIÓN SIGI '!I60,LISTAS!$A$147:$B$171,2,0)","v":{"$error":"#N/A"}},{"$f":"+'FORMULACIÓN SIGI '!J60","v":0},{"$f":"+'FORMULACIÓN SIGI '!K60","v":0},{"$f":"+'FORMULACIÓN SIGI '!L60","v":0},{"$f":"VLOOKUP('FORMULACIÓN SIGI '!M60,LISTAS!$A$173:$B$174,2,0)","v":{"$error":"#N/A"}},{"$f":"+'FORMULACIÓN SIGI '!N60","v":0},{"$f":"+'FORMULACIÓN SIGI '!O60","v":0},{"$f":"+'FORMULACIÓN SIGI '!P60","v":"00:00:00"},{"$f":"+'FORMULACIÓN SIGI '!Q60","v":"00:00:00"},{"$f":"+'FORMULACIÓN SIGI '!R60","v":0}]
[{"$f":"VLOOKUP('FORMULACIÓN SIGI '!A61,LISTAS!$A$58:$B$59,2,0)","v":{"$error":"#N/A"}},{"$f":"VLOOKUP('FORMULACIÓN SIGI '!B61,LISTAS!$A$61:$B$65,2,0)","v":{"$error":"#N/A"}},{"$f":"VLOOKUP('FORMULACIÓN SIGI '!C61,LISTAS!$A$67:$B$74,2,0)","v":{"$error":"#N/A"}},{"$f":"VLOOKUP('FORMULACIÓN SIGI '!D61,LISTAS!$A$76:$B$82,2,0)","v":{"$error":"#N/A"}},{"$f":"VLOOKUP('FORMULACIÓN SIGI '!E61,LISTAS!$A$84:$B$91,2,0)","v":{"$error":"#N/A"}},{"$f":"VLOOKUP('FORMULACIÓN SIGI '!F61,LISTAS!$A$93:$B$145,2,0)","v":{"$error":"#N/A"}},{"$f":"VLOOKUP('FORMULACIÓN SIGI '!G61,LISTAS!$A$113:B165,2,0)","v":{"$error":"#N/A"}},{"$f":"VLOOKUP('FORMULACIÓN SIGI '!H61,LISTAS!$A$126:$B$145,2,0)","v":{"$error":"#N/A"}},{"$f":"VLOOKUP('FORMULACIÓN SIGI '!I61,LISTAS!$A$147:$B$171,2,0)","v":{"$error":"#N/A"}},{"$f":"+'FORMULACIÓN SIGI '!J61","v":0},{"$f":"+'FORMULACIÓN SIGI '!K61","v":0},{"$f":"+'FORMULACIÓN SIGI '!L61","v":0},{"$f":"VLOOKUP('FORMULACIÓN SIGI '!M61,LISTAS!$A$173:$B$174,2,0)","v":{"$error":"#N/A"}},{"$f":"+'FORMULACIÓN SIGI '!N61","v":0},{"$f":"+'FORMULACIÓN SIGI '!O61","v":0},{"$f":"+'FORMULACIÓN SIGI '!P61","v":"00:00:00"},{"$f":"+'FORMULACIÓN SIGI '!Q61","v":"00:00:00"},{"$f":"+'FORMULACIÓN SIGI '!R61","v":0}]
[{"$f":"VLOOKUP('FORMULACIÓN SIGI '!A62,LISTAS!$A$58:$B$59,2,0)","v":{"$error":"#N/A"}},{"$f":"VLOOKUP('FORMULACIÓN SIGI '!B62,LISTAS!$A$61:$B$65,2,0)","v":{"$error":"#N/A"}},{"$f":"VLOOKUP('FORMULACIÓN SIGI '!C62,LISTAS!$A$67:$B$74,2,0)","v":{"$error":"#N/A"}},{"$f":"VLOOKUP('FORMULACIÓN SIGI '!D62,LISTAS!$A$76:$B$82,2,0)","v":{"$error":"#N/A"}},{"$f":"VLOOKUP('FORMULACIÓN SIGI '!E62,LISTAS!$A$84:$B$91,2,0)","v":{"$error":"#N/A"}},{"$f":"VLOOKUP('FORMULACIÓN SIGI '!F62,LISTAS!$A$93:$B$145,2,0)","v":{"$error":"#N/A"}},{"$f":"VLOOKUP('FORMULACIÓN SIGI '!G62,LISTAS!$A$113:B166,2,0)","v":{"$error":"#N/A"}},{"$f":"VLOOKUP('FORMULACIÓN SIGI '!H62,LISTAS!$A$126:$B$145,2,0)","v":{"$error":"#N/A"}},{"$f":"VLOOKUP('FORMULACIÓN SIGI '!I62,LISTAS!$A$147:$B$171,2,0)","v":{"$error":"#N/A"}},{"$f":"+'FORMULACIÓN SIGI '!J62","v":0},{"$f":"+'FORMULACIÓN SIGI '!K62","v":0},{"$f":"+'FORMULACIÓN SIGI '!L62","v":0},{"$f":"VLOOKUP('FORMULACIÓN SIGI '!M62,LISTAS!$A$173:$B$174,2,0)","v":{"$error":"#N/A"}},{"$f":"+'FORMULACIÓN SIGI '!N62","v":0},{"$f":"+'FORMULACIÓN SIGI '!O62","v":0},{"$f":"+'FORMULACIÓN SIGI '!P62","v":"00:00:00"},{"$f":"+'FORMULACIÓN SIGI '!Q62","v":"00:00:00"},{"$f":"+'FORMULACIÓN SIGI '!R62","v":0}]
[{"$f":"VLOOKUP('FORMULACIÓN SIGI '!A63,LISTAS!$A$58:$B$59,2,0)","v":{"$error":"#N/A"}},{"$f":"VLOOKUP('FORMULACIÓN SIGI '!B63,LISTAS!$A$61:$B$65,2,0)","v":{"$error":"#N/A"}},{"$f":"VLOOKUP('FORMULACIÓN SIGI '!C63,LISTAS!$A$67:$B$74,2,0)","v":{"$error":"#N/A"}},{"$f":"VLOOKUP('FORMULACIÓN SIGI '!D63,LISTAS!$A$76:$B$82,2,0)","v":{"$error":"#N/A"}},{"$f":"VLOOKUP('FORMULACIÓN SIGI '!E63,LISTAS!$A$84:$B$91,2,0)","v":{"$error":"#N/A"}},{"$f":"VLOOKUP('FORMULACIÓN SIGI '!F63,LISTAS!$A$93:$B$145,2,0)","v":{"$error":"#N/A"}},{"$f":"VLOOKUP('FORMULACIÓN SIGI '!G63,LISTAS!$A$113:B167,2,0)","v":{"$error":"#N/A"}},{"$f":"VLOOKUP('FORMULACIÓN SIGI '!H63,LISTAS!$A$126:$B$145,2,0)","v":{"$error":"#N/A"}},{"$f":"VLOOKUP('FORMULACIÓN SIGI '!I63,LISTAS!$A$147:$B$171,2,0)","v":{"$error":"#N/A"}},{"$f":"+'FORMULACIÓN SIGI '!J63","v":0},{"$f":"+'FORMULACIÓN SIGI '!K63","v":0},{"$f":"+'FORMULACIÓN SIGI '!L63","v":0},{"$f":"VLOOKUP('FORMULACIÓN SIGI '!M63,LISTAS!$A$173:$B$174,2,0)","v":{"$error":"#N/A"}},{"$f":"+'FORMULACIÓN SIGI '!N63","v":0},{"$f":"+'FORMULACIÓN SIGI '!O63","v":0},{"$f":"+'FORMULACIÓN SIGI '!P63","v":"00:00:00"},{"$f":"+'FORMULACIÓN SIGI '!Q63","v":"00:00:00"},{"$f":"+'FORMULACIÓN SIGI '!R63","v":0}]
[{"$f":"VLOOKUP('FORMULACIÓN SIGI '!A64,LISTAS!$A$58:$B$59,2,0)","v":{"$error":"#N/A"}},{"$f":"VLOOKUP('FORMULACIÓN SIGI '!B64,LISTAS!$A$61:$B$65,2,0)","v":{"$error":"#N/A"}},{"$f":"VLOOKUP('FORMULACIÓN SIGI '!C64,LISTAS!$A$67:$B$74,2,0)","v":{"$error":"#N/A"}},{"$f":"VLOOKUP('FORMULACIÓN SIGI '!D64,LISTAS!$A$76:$B$82,2,0)","v":{"$error":"#N/A"}},{"$f":"VLOOKUP('FORMULACIÓN SIGI '!E64,LISTAS!$A$84:$B$91,2,0)","v":{"$error":"#N/A"}},{"$f":"VLOOKUP('FORMULACIÓN SIGI '!F64,LISTAS!$A$93:$B$145,2,0)","v":{"$error":"#N/A"}},{"$f":"VLOOKUP('FORMULACIÓN SIGI '!G64,LISTAS!$A$113:B168,2,0)","v":{"$error":"#N/A"}},{"$f":"VLOOKUP('FORMULACIÓN SIGI '!H64,LISTAS!$A$126:$B$145,2,0)","v":{"$error":"#N/A"}},{"$f":"VLOOKUP('FORMULACIÓN SIGI '!I64,LISTAS!$A$147:$B$171,2,0)","v":{"$error":"#N/A"}},{"$f":"+'FORMULACIÓN SIGI '!J64","v":0},{"$f":"+'FORMULACIÓN SIGI '!K64","v":0},{"$f":"+'FORMULACIÓN SIGI '!L64","v":0},{"$f":"VLOOKUP('FORMULACIÓN SIGI '!M64,LISTAS!$A$173:$B$174,2,0)","v":{"$error":"#N/A"}},{"$f":"+'FORMULACIÓN SIGI '!N64","v":0},{"$f":"+'FORMULACIÓN SIGI '!O64","v":0},{"$f":"+'FORMULACIÓN SIGI '!P64","v":"00:00:00"},{"$f":"+'FORMULACIÓN SIGI '!Q64","v":"00:00:00"},{"$f":"+'FORMULACIÓN SIGI '!R64","v":0}]
[{"$f":"VLOOKUP('FORMULACIÓN SIGI '!A65,LISTAS!$A$58:$B$59,2,0)","v":{"$error":"#N/A"}},{"$f":"VLOOKUP('FORMULACIÓN SIGI '!B65,LISTAS!$A$61:$B$65,2,0)","v":{"$error":"#N/A"}},{"$f":"VLOOKUP('FORMULACIÓN SIGI '!C65,LISTAS!$A$67:$B$74,2,0)","v":{"$error":"#N/A"}},{"$f":"VLOOKUP('FORMULACIÓN SIGI '!D65,LISTAS!$A$76:$B$82,2,0)","v":{"$error":"#N/A"}},{"$f":"VLOOKUP('FORMULACIÓN SIGI '!E65,LISTAS!$A$84:$B$91,2,0)","v":{"$error":"#N/A"}},{"$f":"VLOOKUP('FORMULACIÓN SIGI '!F65,LISTAS!$A$93:$B$145,2,0)","v":{"$error":"#N/A"}},{"$f":"VLOOKUP('FORMULACIÓN SIGI '!G65,LISTAS!$A$113:B169,2,0)","v":{"$error":"#N/A"}},{"$f":"VLOOKUP('FORMULACIÓN SIGI '!H65,LISTAS!$A$126:$B$145,2,0)","v":{"$error":"#N/A"}},{"$f":"VLOOKUP('FORMULACIÓN SIGI '!I65,LISTAS!$A$147:$B$171,2,0)","v":{"$error":"#N/A"}},{"$f":"+'FORMULACIÓN SIGI '!J65","v":0},{"$f":"+'FORMULACIÓN SIGI '!K65","v":0},{"$f":"+'FORMULACIÓN SIGI '!L65","v":0},{"$f":"VLOOKUP('FORMULACIÓN SIGI '!M65,LISTAS!$A$173:$B$174,2,0)","v":{"$error":"#N/A"}},{"$f":"+'FORMULACIÓN SIGI '!N65","v":0},{"$f":"+'FORMULACIÓN SIGI '!O65","v":0},{"$f":"+'FORMULACIÓN SIGI '!P65","v":"00:00:00"},{"$f":"+'FORMULACIÓN SIGI '!Q65","v":"00:00:00"},{"$f":"+'FORMULACIÓN SIGI '!R65","v":0}]
[{"$f":"VLOOKUP('FORMULACIÓN SIGI '!A66,LISTAS!$A$58:$B$59,2,0)","v":{"$error":"#N/A"}},{"$f":"VLOOKUP('FORMULACIÓN SIGI '!B66,LISTAS!$A$61:$B$65,2,0)","v":{"$error":"#N/A"}},{"$f":"VLOOKUP('FORMULACIÓN SIGI '!C66,LISTAS!$A$67:$B$74,2,0)","v":{"$error":"#N/A"}},{"$f":"VLOOKUP('FORMULACIÓN SIGI '!D66,LISTAS!$A$76:$B$82,2,0)","v":{"$error":"#N/A"}},{"$f":"VLOOKUP('FORMULACIÓN SIGI '!E66,LISTAS!$A$84:$B$91,2,0)","v":{"$error":"#N/A"}},{"$f":"VLOOKUP('FORMULACIÓN SIGI '!F66,LISTAS!$A$93:$B$145,2,0)","v":{"$error":"#N/A"}},{"$f":"VLOOKUP('FORMULACIÓN SIGI '!G66,LISTAS!$A$113:B170,2,0)","v":{"$error":"#N/A"}},{"$f":"VLOOKUP('FORMULACIÓN SIGI '!H66,LISTAS!$A$126:$B$145,2,0)","v":{"$error":"#N/A"}},{"$f":"VLOOKUP('FORMULACIÓN SIGI '!I66,LISTAS!$A$147:$B$171,2,0)","v":{"$error":"#N/A"}},{"$f":"+'FORMULACIÓN SIGI '!J66","v":0},{"$f":"+'FORMULACIÓN SIGI '!K66","v":0},{"$f":"+'FORMULACIÓN SIGI '!L66","v":0},{"$f":"VLOOKUP('FORMULACIÓN SIGI '!M66,LISTAS!$A$173:$B$174,2,0)","v":{"$error":"#N/A"}},{"$f":"+'FORMULACIÓN SIGI '!N66","v":0},{"$f":"+'FORMULACIÓN SIGI '!O66","v":0},{"$f":"+'FORMULACIÓN SIGI '!P66","v":"00:00:00"},{"$f":"+'FORMULACIÓN SIGI '!Q66","v":"00:00:00"},{"$f":"+'FORMULACIÓN SIGI '!R66","v":0}]
[{"$f":"VLOOKUP('FORMULACIÓN SIGI '!A67,LISTAS!$A$58:$B$59,2,0)","v":{"$error":"#N/A"}},{"$f":"VLOOKUP('FORMULACIÓN SIGI '!B67,LISTAS!$A$61:$B$65,2,0)","v":{"$error":"#N/A"}},{"$f":"VLOOKUP('FORMULACIÓN SIGI '!C67,LISTAS!$A$67:$B$74,2,0)","v":{"$error":"#N/A"}},{"$f":"VLOOKUP('FORMULACIÓN SIGI '!D67,LISTAS!$A$76:$B$82,2,0)","v":{"$error":"#N/A"}},{"$f":"VLOOKUP('FORMULACIÓN SIGI '!E67,LISTAS!$A$84:$B$91,2,0)","v":{"$error":"#N/A"}},{"$f":"VLOOKUP('FORMULACIÓN SIGI '!F67,LISTAS!$A$93:$B$145,2,0)","v":{"$error":"#N/A"}},{"$f":"VLOOKUP('FORMULACIÓN SIGI '!G67,LISTAS!$A$113:B171,2,0)","v":{"$error":"#N/A"}},{"$f":"VLOOKUP('FORMULACIÓN SIGI '!H67,LISTAS!$A$126:$B$145,2,0)","v":{"$error":"#N/A"}},{"$f":"VLOOKUP('FORMULACIÓN SIGI '!I67,LISTAS!$A$147:$B$171,2,0)","v":{"$error":"#N/A"}},{"$f":"+'FORMULACIÓN SIGI '!J67","v":0},{"$f":"+'FORMULACIÓN SIGI '!K67","v":0},{"$f":"+'FORMULACIÓN SIGI '!L67","v":0},{"$f":"VLOOKUP('FORMULACIÓN SIGI '!M67,LISTAS!$A$173:$B$174,2,0)","v":{"$error":"#N/A"}},{"$f":"+'FORMULACIÓN SIGI '!N67","v":0},{"$f":"+'FORMULACIÓN SIGI '!O67","v":0},{"$f":"+'FORMULACIÓN SIGI '!P67","v":"00:00:00"},{"$f":"+'FORMULACIÓN SIGI '!Q67","v":"00:00:00"},{"$f":"+'FORMULACIÓN SIGI '!R67","v":0}]
[{"$f":"VLOOKUP('FORMULACIÓN SIGI '!A68,LISTAS!$A$58:$B$59,2,0)","v":{"$error":"#N/A"}},{"$f":"VLOOKUP('FORMULACIÓN SIGI '!B68,LISTAS!$A$61:$B$65,2,0)","v":{"$error":"#N/A"}},{"$f":"VLOOKUP('FORMULACIÓN SIGI '!C68,LISTAS!$A$67:$B$74,2,0)","v":{"$error":"#N/A"}},{"$f":"VLOOKUP('FORMULACIÓN SIGI '!D68,LISTAS!$A$76:$B$82,2,0)","v":{"$error":"#N/A"}},{"$f":"VLOOKUP('FORMULACIÓN SIGI '!E68,LISTAS!$A$84:$B$91,2,0)","v":{"$error":"#N/A"}},{"$f":"VLOOKUP('FORMULACIÓN SIGI '!F68,LISTAS!$A$93:$B$145,2,0)","v":{"$error":"#N/A"}},{"$f":"VLOOKUP('FORMULACIÓN SIGI '!G68,LISTAS!$A$113:B172,2,0)","v":{"$error":"#N/A"}},{"$f":"VLOOKUP('FORMULACIÓN SIGI '!H68,LISTAS!$A$126:$B$145,2,0)","v":{"$error":"#N/A"}},{"$f":"VLOOKUP('FORMULACIÓN SIGI '!I68,LISTAS!$A$147:$B$171,2,0)","v":{"$error":"#N/A"}},{"$f":"+'FORMULACIÓN SIGI '!J68","v":0},{"$f":"+'FORMULACIÓN SIGI '!K68","v":0},{"$f":"+'FORMULACIÓN SIGI '!L68","v":0},{"$f":"VLOOKUP('FORMULACIÓN SIGI '!M68,LISTAS!$A$173:$B$174,2,0)","v":{"$error":"#N/A"}},{"$f":"+'FORMULACIÓN SIGI '!N68","v":0},{"$f":"+'FORMULACIÓN SIGI '!O68","v":0},{"$f":"+'FORMULACIÓN SIGI '!P68","v":"00:00:00"},{"$f":"+'FORMULACIÓN SIGI '!Q68","v":"00:00:00"},{"$f":"+'FORMULACIÓN SIGI '!R68","v":0}]
[{"$f":"VLOOKUP('FORMULACIÓN SIGI '!A69,LISTAS!$A$58:$B$59,2,0)","v":{"$error":"#N/A"}},{"$f":"VLOOKUP('FORMULACIÓN SIGI '!B69,LISTAS!$A$61:$B$65,2,0)","v":{"$error":"#N/A"}},{"$f":"VLOOKUP('FORMULACIÓN SIGI '!C69,LISTAS!$A$67:$B$74,2,0)","v":{"$error":"#N/A"}},{"$f":"VLOOKUP('FORMULACIÓN SIGI '!D69,LISTAS!$A$76:$B$82,2,0)","v":{"$error":"#N/A"}},{"$f":"VLOOKUP('FORMULACIÓN SIGI '!E69,LISTAS!$A$84:$B$91,2,0)","v":{"$error":"#N/A"}},{"$f":"VLOOKUP('FORMULACIÓN SIGI '!F69,LISTAS!$A$93:$B$145,2,0)","v":{"$error":"#N/A"}},{"$f":"VLOOKUP('FORMULACIÓN SIGI '!G69,LISTAS!$A$113:B173,2,0)","v":{"$error":"#N/A"}},{"$f":"VLOOKUP('FORMULACIÓN SIGI '!H69,LISTAS!$A$126:$B$145,2,0)","v":{"$error":"#N/A"}},{"$f":"VLOOKUP('FORMULACIÓN SIGI '!I69,LISTAS!$A$147:$B$171,2,0)","v":{"$error":"#N/A"}},{"$f":"+'FORMULACIÓN SIGI '!J69","v":0},{"$f":"+'FORMULACIÓN SIGI '!K69","v":0},{"$f":"+'FORMULACIÓN SIGI '!L69","v":0},{"$f":"VLOOKUP('FORMULACIÓN SIGI '!M69,LISTAS!$A$173:$B$174,2,0)","v":{"$error":"#N/A"}},{"$f":"+'FORMULACIÓN SIGI '!N69","v":0},{"$f":"+'FORMULACIÓN SIGI '!O69","v":0},{"$f":"+'FORMULACIÓN SIGI '!P69","v":"00:00:00"},{"$f":"+'FORMULACIÓN SIGI '!Q69","v":"00:00:00"},{"$f":"+'FORMULACIÓN SIGI '!R69","v":0}]
[{"$f":"VLOOKUP('FORMULACIÓN SIGI '!A70,LISTAS!$A$58:$B$59,2,0)","v":{"$error":"#N/A"}},{"$f":"VLOOKUP('FORMULACIÓN SIGI '!B70,LISTAS!$A$61:$B$65,2,0)","v":{"$error":"#N/A"}},{"$f":"VLOOKUP('FORMULACIÓN SIGI '!C70,LISTAS!$A$67:$B$74,2,0)","v":{"$error":"#N/A"}},{"$f":"VLOOKUP('FORMULACIÓN SIGI '!D70,LISTAS!$A$76:$B$82,2,0)","v":{"$error":"#N/A"}},{"$f":"VLOOKUP('FORMULACIÓN SIGI '!E70,LISTAS!$A$84:$B$91,2,0)","v":{"$error":"#N/A"}},{"$f":"VLOOKUP('FORMULACIÓN SIGI '!F70,LISTAS!$A$93:$B$145,2,0)","v":{"$error":"#N/A"}},{"$f":"VLOOKUP('FORMULACIÓN SIGI '!G70,LISTAS!$A$113:B174,2,0)","v":{"$error":"#N/A"}},{"$f":"VLOOKUP('FORMULACIÓN SIGI '!H70,LISTAS!$A$126:$B$145,2,0)","v":{"$error":"#N/A"}},{"$f":"VLOOKUP('FORMULACIÓN SIGI '!I70,LISTAS!$A$147:$B$171,2,0)","v":{"$error":"#N/A"}},{"$f":"+'FORMULACIÓN SIGI '!J70","v":0},{"$f":"+'FORMULACIÓN SIGI '!K70","v":0},{"$f":"+'FORMULACIÓN SIGI '!L70","v":0},{"$f":"VLOOKUP('FORMULACIÓN SIGI '!M70,LISTAS!$A$173:$B$174,2,0)","v":{"$error":"#N/A"}},{"$f":"+'FORMULACIÓN SIGI '!N70","v":0},{"$f":"+'FORMULACIÓN SIGI '!O70","v":0},{"$f":"+'FORMULACIÓN SIGI '!P70","v":"00:00:00"},{"$f":"+'FORMULACIÓN SIGI '!Q70","v":"00:00:00"},{"$f":"+'FORMULACIÓN SIGI '!R70","v":0}]
[{"$f":"VLOOKUP('FORMULACIÓN SIGI '!A71,LISTAS!$A$58:$B$59,2,0)","v":{"$error":"#N/A"}},{"$f":"VLOOKUP('FORMULACIÓN SIGI '!B71,LISTAS!$A$61:$B$65,2,0)","v":{"$error":"#N/A"}},{"$f":"VLOOKUP('FORMULACIÓN SIGI '!C71,LISTAS!$A$67:$B$74,2,0)","v":{"$error":"#N/A"}},{"$f":"VLOOKUP('FORMULACIÓN SIGI '!D71,LISTAS!$A$76:$B$82,2,0)","v":{"$error":"#N/A"}},{"$f":"VLOOKUP('FORMULACIÓN SIGI '!E71,LISTAS!$A$84:$B$91,2,0)","v":{"$error":"#N/A"}},{"$f":"VLOOKUP('FORMULACIÓN SIGI '!F71,LISTAS!$A$93:$B$145,2,0)","v":{"$error":"#N/A"}},{"$f":"VLOOKUP('FORMULACIÓN SIGI '!G71,LISTAS!$A$113:B175,2,0)","v":{"$error":"#N/A"}},{"$f":"VLOOKUP('FORMULACIÓN SIGI '!H71,LISTAS!$A$126:$B$145,2,0)","v":{"$error":"#N/A"}},{"$f":"VLOOKUP('FORMULACIÓN SIGI '!I71,LISTAS!$A$147:$B$171,2,0)","v":{"$error":"#N/A"}},{"$f":"+'FORMULACIÓN SIGI '!J71","v":0},{"$f":"+'FORMULACIÓN SIGI '!K71","v":0},{"$f":"+'FORMULACIÓN SIGI '!L71","v":0},{"$f":"VLOOKUP('FORMULACIÓN SIGI '!M71,LISTAS!$A$173:$B$174,2,0)","v":{"$error":"#N/A"}},{"$f":"+'FORMULACIÓN SIGI '!N71","v":0},{"$f":"+'FORMULACIÓN SIGI '!O71","v":0},{"$f":"+'FORMULACIÓN SIGI '!P71","v":"00:00:00"},{"$f":"+'FORMULACIÓN SIGI '!Q71","v":"00:00:00"},{"$f":"+'FORMULACIÓN SIGI '!R71","v":0}]
[{"$f":"VLOOKUP('FORMULACIÓN SIGI '!A72,LISTAS!$A$58:$B$59,2,0)","v":{"$error":"#N/A"}},{"$f":"VLOOKUP('FORMULACIÓN SIGI '!B72,LISTAS!$A$61:$B$65,2,0)","v":{"$error":"#N/A"}},{"$f":"VLOOKUP('FORMULACIÓN SIGI '!C72,LISTAS!$A$67:$B$74,2,0)","v":{"$error":"#N/A"}},{"$f":"VLOOKUP('FORMULACIÓN SIGI '!D72,LISTAS!$A$76:$B$82,2,0)","v":{"$error":"#N/A"}},{"$f":"VLOOKUP('FORMULACIÓN SIGI '!E72,LISTAS!$A$84:$B$91,2,0)","v":{"$error":"#N/A"}},{"$f":"VLOOKUP('FORMULACIÓN SIGI '!F72,LISTAS!$A$93:$B$145,2,0)","v":{"$error":"#N/A"}},{"$f":"VLOOKUP('FORMULACIÓN SIGI '!G72,LISTAS!$A$113:B176,2,0)","v":{"$error":"#N/A"}},{"$f":"VLOOKUP('FORMULACIÓN SIGI '!H72,LISTAS!$A$126:$B$145,2,0)","v":{"$error":"#N/A"}},{"$f":"VLOOKUP('FORMULACIÓN SIGI '!I72,LISTAS!$A$147:$B$171,2,0)","v":{"$error":"#N/A"}},{"$f":"+'FORMULACIÓN SIGI '!J72","v":0},{"$f":"+'FORMULACIÓN SIGI '!K72","v":0},{"$f":"+'FORMULACIÓN SIGI '!L72","v":0},{"$f":"VLOOKUP('FORMULACIÓN SIGI '!M72,LISTAS!$A$173:$B$174,2,0)","v":{"$error":"#N/A"}},{"$f":"+'FORMULACIÓN SIGI '!N72","v":0},{"$f":"+'FORMULACIÓN SIGI '!O72","v":0},{"$f":"+'FORMULACIÓN SIGI '!P72","v":"00:00:00"},{"$f":"+'FORMULACIÓN SIGI '!Q72","v":"00:00:00"},{"$f":"+'FORMULACIÓN SIGI '!R72","v":0}]
[{"$f":"VLOOKUP('FORMULACIÓN SIGI '!A73,LISTAS!$A$58:$B$59,2,0)","v":{"$error":"#N/A"}},{"$f":"VLOOKUP('FORMULACIÓN SIGI '!B73,LISTAS!$A$61:$B$65,2,0)","v":{"$error":"#N/A"}},{"$f":"VLOOKUP('FORMULACIÓN SIGI '!C73,LISTAS!$A$67:$B$74,2,0)","v":{"$error":"#N/A"}},{"$f":"VLOOKUP('FORMULACIÓN SIGI '!D73,LISTAS!$A$76:$B$82,2,0)","v":{"$error":"#N/A"}},{"$f":"VLOOKUP('FORMULACIÓN SIGI '!E73,LISTAS!$A$84:$B$91,2,0)","v":{"$error":"#N/A"}},{"$f":"VLOOKUP('FORMULACIÓN SIGI '!F73,LISTAS!$A$93:$B$145,2,0)","v":{"$error":"#N/A"}},{"$f":"VLOOKUP('FORMULACIÓN SIGI '!G73,LISTAS!$A$113:B177,2,0)","v":{"$error":"#N/A"}},{"$f":"VLOOKUP('FORMULACIÓN SIGI '!H73,LISTAS!$A$126:$B$145,2,0)","v":{"$error":"#N/A"}},{"$f":"VLOOKUP('FORMULACIÓN SIGI '!I73,LISTAS!$A$147:$B$171,2,0)","v":{"$error":"#N/A"}},{"$f":"+'FORMULACIÓN SIGI '!J73","v":0},{"$f":"+'FORMULACIÓN SIGI '!K73","v":0},{"$f":"+'FORMULACIÓN SIGI '!L73","v":0},{"$f":"VLOOKUP('FORMULACIÓN SIGI '!M73,LISTAS!$A$173:$B$174,2,0)","v":{"$error":"#N/A"}},{"$f":"+'FORMULACIÓN SIGI '!N73","v":0},{"$f":"+'FORMULACIÓN SIGI '!O73","v":0},{"$f":"+'FORMULACIÓN SIGI '!P73","v":"00:00:00"},{"$f":"+'FORMULACIÓN SIGI '!Q73","v":"00:00:00"},{"$f":"+'FORMULACIÓN SIGI '!R73","v":0}]
[{"$f":"VLOOKUP('FORMULACIÓN SIGI '!A74,LISTAS!$A$58:$B$59,2,0)","v":{"$error":"#N/A"}},{"$f":"VLOOKUP('FORMULACIÓN SIGI '!B74,LISTAS!$A$61:$B$65,2,0)","v":{"$error":"#N/A"}},{"$f":"VLOOKUP('FORMULACIÓN SIGI '!C74,LISTAS!$A$67:$B$74,2,0)","v":{"$error":"#N/A"}},{"$f":"VLOOKUP('FORMULACIÓN SIGI '!D74,LISTAS!$A$76:$B$82,2,0)","v":{"$error":"#N/A"}},{"$f":"VLOOKUP('FORMULACIÓN SIGI '!E74,LISTAS!$A$84:$B$91,2,0)","v":{"$error":"#N/A"}},{"$f":"VLOOKUP('FORMULACIÓN SIGI '!F74,LISTAS!$A$93:$B$145,2,0)","v":{"$error":"#N/A"}},{"$f":"VLOOKUP('FORMULACIÓN SIGI '!G74,LISTAS!$A$113:B178,2,0)","v":{"$error":"#N/A"}},{"$f":"VLOOKUP('FORMULACIÓN SIGI '!H74,LISTAS!$A$126:$B$145,2,0)","v":{"$error":"#N/A"}},{"$f":"VLOOKUP('FORMULACIÓN SIGI '!I74,LISTAS!$A$147:$B$171,2,0)","v":{"$error":"#N/A"}},{"$f":"+'FORMULACIÓN SIGI '!J74","v":0},{"$f":"+'FORMULACIÓN SIGI '!K74","v":0},{"$f":"+'FORMULACIÓN SIGI '!L74","v":0},{"$f":"VLOOKUP('FORMULACIÓN SIGI '!M74,LISTAS!$A$173:$B$174,2,0)","v":{"$error":"#N/A"}},{"$f":"+'FORMULACIÓN SIGI '!N74","v":0},{"$f":"+'FORMULACIÓN SIGI '!O74","v":0},{"$f":"+'FORMULACIÓN SIGI '!P74","v":"00:00:00"},{"$f":"+'FORMULACIÓN SIGI '!Q74","v":"00:00:00"},{"$f":"+'FORMULACIÓN SIGI '!R74","v":0}]
[{"$f":"VLOOKUP('FORMULACIÓN SIGI '!A75,LISTAS!$A$58:$B$59,2,0)","v":{"$error":"#N/A"}},{"$f":"VLOOKUP('FORMULACIÓN SIGI '!B75,LISTAS!$A$61:$B$65,2,0)","v":{"$error":"#N/A"}},{"$f":"VLOOKUP('FORMULACIÓN SIGI '!C75,LISTAS!$A$67:$B$74,2,0)","v":{"$error":"#N/A"}},{"$f":"VLOOKUP('FORMULACIÓN SIGI '!D75,LISTAS!$A$76:$B$82,2,0)","v":{"$error":"#N/A"}},{"$f":"VLOOKUP('FORMULACIÓN SIGI '!E75,LISTAS!$A$84:$B$91,2,0)","v":{"$error":"#N/A"}},{"$f":"VLOOKUP('FORMULACIÓN SIGI '!F75,LISTAS!$A$93:$B$145,2,0)","v":{"$error":"#N/A"}},{"$f":"VLOOKUP('FORMULACIÓN SIGI '!G75,LISTAS!$A$113:B179,2,0)","v":{"$error":"#N/A"}},{"$f":"VLOOKUP('FORMULACIÓN SIGI '!H75,LISTAS!$A$126:$B$145,2,0)","v":{"$error":"#N/A"}},{"$f":"VLOOKUP('FORMULACIÓN SIGI '!I75,LISTAS!$A$147:$B$171,2,0)","v":{"$error":"#N/A"}},{"$f":"+'FORMULACIÓN SIGI '!J75","v":0},{"$f":"+'FORMULACIÓN SIGI '!K75","v":0},{"$f":"+'FORMULACIÓN SIGI '!L75","v":0},{"$f":"VLOOKUP('FORMULACIÓN SIGI '!M75,LISTAS!$A$173:$B$174,2,0)","v":{"$error":"#N/A"}},{"$f":"+'FORMULACIÓN SIGI '!N75","v":0},{"$f":"+'FORMULACIÓN SIGI '!O75","v":0},{"$f":"+'FORMULACIÓN SIGI '!P75","v":"00:00:00"},{"$f":"+'FORMULACIÓN SIGI '!Q75","v":"00:00:00"},{"$f":"+'FORMULACIÓN SIGI '!R75","v":0}]
[{"$f":"VLOOKUP('FORMULACIÓN SIGI '!A76,LISTAS!$A$58:$B$59,2,0)","v":{"$error":"#N/A"}},{"$f":"VLOOKUP('FORMULACIÓN SIGI '!B76,LISTAS!$A$61:$B$65,2,0)","v":{"$error":"#N/A"}},{"$f":"VLOOKUP('FORMULACIÓN SIGI '!C76,LISTAS!$A$67:$B$74,2,0)","v":{"$error":"#N/A"}},{"$f":"VLOOKUP('FORMULACIÓN SIGI '!D76,LISTAS!$A$76:$B$82,2,0)","v":{"$error":"#N/A"}},{"$f":"VLOOKUP('FORMULACIÓN SIGI '!E76,LISTAS!$A$84:$B$91,2,0)","v":{"$error":"#N/A"}},{"$f":"VLOOKUP('FORMULACIÓN SIGI '!F76,LISTAS!$A$93:$B$145,2,0)","v":{"$error":"#N/A"}},{"$f":"VLOOKUP('FORMULACIÓN SIGI '!G76,LISTAS!$A$113:B180,2,0)","v":{"$error":"#N/A"}},{"$f":"VLOOKUP('FORMULACIÓN SIGI '!H76,LISTAS!$A$126:$B$145,2,0)","v":{"$error":"#N/A"}},{"$f":"VLOOKUP('FORMULACIÓN SIGI '!I76,LISTAS!$A$147:$B$171,2,0)","v":{"$error":"#N/A"}},{"$f":"+'FORMULACIÓN SIGI '!J76","v":0},{"$f":"+'FORMULACIÓN SIGI '!K76","v":0},{"$f":"+'FORMULACIÓN SIGI '!L76","v":0},{"$f":"VLOOKUP('FORMULACIÓN SIGI '!M76,LISTAS!$A$173:$B$174,2,0)","v":{"$error":"#N/A"}},{"$f":"+'FORMULACIÓN SIGI '!N76","v":0},{"$f":"+'FORMULACIÓN SIGI '!O76","v":0},{"$f":"+'FORMULACIÓN SIGI '!P76","v":"00:00:00"},{"$f":"+'FORMULACIÓN SIGI '!Q76","v":"00:00:00"},{"$f":"+'FORMULACIÓN SIGI '!R76","v":0}]
[{"$f":"VLOOKUP('FORMULACIÓN SIGI '!A77,LISTAS!$A$58:$B$59,2,0)","v":{"$error":"#N/A"}},{"$f":"VLOOKUP('FORMULACIÓN SIGI '!B77,LISTAS!$A$61:$B$65,2,0)","v":{"$error":"#N/A"}},{"$f":"VLOOKUP('FORMULACIÓN SIGI '!C77,LISTAS!$A$67:$B$74,2,0)","v":{"$error":"#N/A"}},{"$f":"VLOOKUP('FORMULACIÓN SIGI '!D77,LISTAS!$A$76:$B$82,2,0)","v":{"$error":"#N/A"}},{"$f":"VLOOKUP('FORMULACIÓN SIGI '!E77,LISTAS!$A$84:$B$91,2,0)","v":{"$error":"#N/A"}},{"$f":"VLOOKUP('FORMULACIÓN SIGI '!F77,LISTAS!$A$93:$B$145,2,0)","v":{"$error":"#N/A"}},{"$f":"VLOOKUP('FORMULACIÓN SIGI '!G77,LISTAS!$A$113:B181,2,0)","v":{"$error":"#N/A"}},{"$f":"VLOOKUP('FORMULACIÓN SIGI '!H77,LISTAS!$A$126:$B$145,2,0)","v":{"$error":"#N/A"}},{"$f":"VLOOKUP('FORMULACIÓN SIGI '!I77,LISTAS!$A$147:$B$171,2,0)","v":{"$error":"#N/A"}},{"$f":"+'FORMULACIÓN SIGI '!J77","v":0},{"$f":"+'FORMULACIÓN SIGI '!K77","v":0},{"$f":"+'FORMULACIÓN SIGI '!L77","v":0},{"$f":"VLOOKUP('FORMULACIÓN SIGI '!M77,LISTAS!$A$173:$B$174,2,0)","v":{"$error":"#N/A"}},{"$f":"+'FORMULACIÓN SIGI '!N77","v":0},{"$f":"+'FORMULACIÓN SIGI '!O77","v":0},{"$f":"+'FORMULACIÓN SIGI '!P77","v":"00:00:00"},{"$f":"+'FORMULACIÓN SIGI '!Q77","v":"00:00:00"},{"$f":"+'FORMULACIÓN SIGI '!R77","v":0}]
[{"$f":"VLOOKUP('FORMULACIÓN SIGI '!A78,LISTAS!$A$58:$B$59,2,0)","v":{"$error":"#N/A"}},{"$f":"VLOOKUP('FORMULACIÓN SIGI '!B78,LISTAS!$A$61:$B$65,2,0)","v":{"$error":"#N/A"}},{"$f":"VLOOKUP('FORMULACIÓN SIGI '!C78,LISTAS!$A$67:$B$74,2,0)","v":{"$error":"#N/A"}},{"$f":"VLOOKUP('FORMULACIÓN SIGI '!D78,LISTAS!$A$76:$B$82,2,0)","v":{"$error":"#N/A"}},{"$f":"VLOOKUP('FORMULACIÓN SIGI '!E78,LISTAS!$A$84:$B$91,2,0)","v":{"$error":"#N/A"}},{"$f":"VLOOKUP('FORMULACIÓN SIGI '!F78,LISTAS!$A$93:$B$145,2,0)","v":{"$error":"#N/A"}},{"$f":"VLOOKUP('FORMULACIÓN SIGI '!G78,LISTAS!$A$113:B182,2,0)","v":{"$error":"#N/A"}},{"$f":"VLOOKUP('FORMULACIÓN SIGI '!H78,LISTAS!$A$126:$B$145,2,0)","v":{"$error":"#N/A"}},{"$f":"VLOOKUP('FORMULACIÓN SIGI '!I78,LISTAS!$A$147:$B$171,2,0)","v":{"$error":"#N/A"}},{"$f":"+'FORMULACIÓN SIGI '!J78","v":0},{"$f":"+'FORMULACIÓN SIGI '!K78","v":0},{"$f":"+'FORMULACIÓN SIGI '!L78","v":0},{"$f":"VLOOKUP('FORMULACIÓN SIGI '!M78,LISTAS!$A$173:$B$174,2,0)","v":{"$error":"#N/A"}},{"$f":"+'FORMULACIÓN SIGI '!N78","v":0},{"$f":"+'FORMULACIÓN SIGI '!O78","v":0},{"$f":"+'FORMULACIÓN SIGI '!P78","v":"00:00:00"},{"$f":"+'FORMULACIÓN SIGI '!Q78","v":"00:00:00"},{"$f":"+'FORMULACIÓN SIGI '!R78","v":0}]
[{"$f":"VLOOKUP('FORMULACIÓN SIGI '!A79,LISTAS!$A$58:$B$59,2,0)","v":{"$error":"#N/A"}},{"$f":"VLOOKUP('FORMULACIÓN SIGI '!B79,LISTAS!$A$61:$B$65,2,0)","v":{"$error":"#N/A"}},{"$f":"VLOOKUP('FORMULACIÓN SIGI '!C79,LISTAS!$A$67:$B$74,2,0)","v":{"$error":"#N/A"}},{"$f":"VLOOKUP('FORMULACIÓN SIGI '!D79,LISTAS!$A$76:$B$82,2,0)","v":{"$error":"#N/A"}},{"$f":"VLOOKUP('FORMULACIÓN SIGI '!E79,LISTAS!$A$84:$B$91,2,0)","v":{"$error":"#N/A"}},{"$f":"VLOOKUP('FORMULACIÓN SIGI '!F79,LISTAS!$A$93:$B$145,2,0)","v":{"$error":"#N/A"}},{"$f":"VLOOKUP('FORMULACIÓN SIGI '!G79,LISTAS!$A$113:B183,2,0)","v":{"$error":"#N/A"}},{"$f":"VLOOKUP('FORMULACIÓN SIGI '!H79,LISTAS!$A$126:$B$145,2,0)","v":{"$error":"#N/A"}},{"$f":"VLOOKUP('FORMULACIÓN SIGI '!I79,LISTAS!$A$147:$B$171,2,0)","v":{"$error":"#N/A"}},{"$f":"+'FORMULACIÓN SIGI '!J79","v":0},{"$f":"+'FORMULACIÓN SIGI '!K79","v":0},{"$f":"+'FORMULACIÓN SIGI '!L79","v":0},{"$f":"VLOOKUP('FORMULACIÓN SIGI '!M79,LISTAS!$A$173:$B$174,2,0)","v":{"$error":"#N/A"}},{"$f":"+'FORMULACIÓN SIGI '!N79","v":0},{"$f":"+'FORMULACIÓN SIGI '!O79","v":0},{"$f":"+'FORMULACIÓN SIGI '!P79","v":"00:00:00"},{"$f":"+'FORMULACIÓN SIGI '!Q79","v":"00:00:00"},{"$f":"+'FORMULACIÓN SIGI '!R79","v":0}]
[{"$f":"VLOOKUP('FORMULACIÓN SIGI '!A80,LISTAS!$A$58:$B$59,2,0)","v":{"$error":"#N/A"}},{"$f":"VLOOKUP('FORMULACIÓN SIGI '!B80,LISTAS!$A$61:$B$65,2,0)","v":{"$error":"#N/A"}},{"$f":"VLOOKUP('FORMULACIÓN SIGI '!C80,LISTAS!$A$67:$B$74,2,0)","v":{"$error":"#N/A"}},{"$f":"VLOOKUP('FORMULACIÓN SIGI '!D80,LISTAS!$A$76:$B$82,2,0)","v":{"$error":"#N/A"}},{"$f":"VLOOKUP('FORMULACIÓN SIGI '!E80,LISTAS!$A$84:$B$91,2,0)","v":{"$error":"#N/A"}},{"$f":"VLOOKUP('FORMULACIÓN SIGI '!F80,LISTAS!$A$93:$B$145,2,0)","v":{"$error":"#N/A"}},{"$f":"VLOOKUP('FORMULACIÓN SIGI '!G80,LISTAS!$A$113:B184,2,0)","v":{"$error":"#N/A"}},{"$f":"VLOOKUP('FORMULACIÓN SIGI '!H80,LISTAS!$A$126:$B$145,2,0)","v":{"$error":"#N/A"}},{"$f":"VLOOKUP('FORMULACIÓN SIGI '!I80,LISTAS!$A$147:$B$171,2,0)","v":{"$error":"#N/A"}},{"$f":"+'FORMULACIÓN SIGI '!J80","v":0},{"$f":"+'FORMULACIÓN SIGI '!K80","v":0},{"$f":"+'FORMULACIÓN SIGI '!L80","v":0},{"$f":"VLOOKUP('FORMULACIÓN SIGI '!M80,LISTAS!$A$173:$B$174,2,0)","v":{"$error":"#N/A"}},{"$f":"+'FORMULACIÓN SIGI '!N80","v":0},{"$f":"+'FORMULACIÓN SIGI '!O80","v":0},{"$f":"+'FORMULACIÓN SIGI '!P80","v":"00:00:00"},{"$f":"+'FORMULACIÓN SIGI '!Q80","v":"00:00:00"},{"$f":"+'FORMULACIÓN SIGI '!R80","v":0}]
[{"$f":"VLOOKUP('FORMULACIÓN SIGI '!A81,LISTAS!$A$58:$B$59,2,0)","v":{"$error":"#N/A"}},{"$f":"VLOOKUP('FORMULACIÓN SIGI '!B81,LISTAS!$A$61:$B$65,2,0)","v":{"$error":"#N/A"}},{"$f":"VLOOKUP('FORMULACIÓN SIGI '!C81,LISTAS!$A$67:$B$74,2,0)","v":{"$error":"#N/A"}},{"$f":"VLOOKUP('FORMULACIÓN SIGI '!D81,LISTAS!$A$76:$B$82,2,0)","v":{"$error":"#N/A"}},{"$f":"VLOOKUP('FORMULACIÓN SIGI '!E81,LISTAS!$A$84:$B$91,2,0)","v":{"$error":"#N/A"}},{"$f":"VLOOKUP('FORMULACIÓN SIGI '!F81,LISTAS!$A$93:$B$145,2,0)","v":{"$error":"#N/A"}},{"$f":"VLOOKUP('FORMULACIÓN SIGI '!G81,LISTAS!$A$113:B185,2,0)","v":{"$error":"#N/A"}},{"$f":"VLOOKUP('FORMULACIÓN SIGI '!H81,LISTAS!$A$126:$B$145,2,0)","v":{"$error":"#N/A"}},{"$f":"VLOOKUP('FORMULACIÓN SIGI '!I81,LISTAS!$A$147:$B$171,2,0)","v":{"$error":"#N/A"}},{"$f":"+'FORMULACIÓN SIGI '!J81","v":0},{"$f":"+'FORMULACIÓN SIGI '!K81","v":0},{"$f":"+'FORMULACIÓN SIGI '!L81","v":0},{"$f":"VLOOKUP('FORMULACIÓN SIGI '!M81,LISTAS!$A$173:$B$174,2,0)","v":{"$error":"#N/A"}},{"$f":"+'FORMULACIÓN SIGI '!N81","v":0},{"$f":"+'FORMULACIÓN SIGI '!O81","v":0},{"$f":"+'FORMULACIÓN SIGI '!P81","v":"00:00:00"},{"$f":"+'FORMULACIÓN SIGI '!Q81","v":"00:00:00"},{"$f":"+'FORMULACIÓN SIGI '!R81","v":0}]
[{"$f":"VLOOKUP('FORMULACIÓN SIGI '!A82,LISTAS!$A$58:$B$59,2,0)","v":{"$error":"#N/A"}},{"$f":"VLOOKUP('FORMULACIÓN SIGI '!B82,LISTAS!$A$61:$B$65,2,0)","v":{"$error":"#N/A"}},{"$f":"VLOOKUP('FORMULACIÓN SIGI '!C82,LISTAS!$A$67:$B$74,2,0)","v":{"$error":"#N/A"}},{"$f":"VLOOKUP('FORMULACIÓN SIGI '!D82,LISTAS!$A$76:$B$82,2,0)","v":{"$error":"#N/A"}},{"$f":"VLOOKUP('FORMULACIÓN SIGI '!E82,LISTAS!$A$84:$B$91,2,0)","v":{"$error":"#N/A"}},{"$f":"VLOOKUP('FORMULACIÓN SIGI '!F82,LISTAS!$A$93:$B$145,2,0)","v":{"$error":"#N/A"}},{"$f":"VLOOKUP('FORMULACIÓN SIGI '!G82,LISTAS!$A$113:B186,2,0)","v":{"$error":"#N/A"}},{"$f":"VLOOKUP('FORMULACIÓN SIGI '!H82,LISTAS!$A$126:$B$145,2,0)","v":{"$error":"#N/A"}},{"$f":"VLOOKUP('FORMULACIÓN SIGI '!I82,LISTAS!$A$147:$B$171,2,0)","v":{"$error":"#N/A"}},{"$f":"+'FORMULACIÓN SIGI '!J82","v":0},{"$f":"+'FORMULACIÓN SIGI '!K82","v":0},{"$f":"+'FORMULACIÓN SIGI '!L82","v":0},{"$f":"VLOOKUP('FORMULACIÓN SIGI '!M82,LISTAS!$A$173:$B$174,2,0)","v":{"$error":"#N/A"}},{"$f":"+'FORMULACIÓN SIGI '!N82","v":0},{"$f":"+'FORMULACIÓN SIGI '!O82","v":0},{"$f":"+'FORMULACIÓN SIGI '!P82","v":"00:00:00"},{"$f":"+'FORMULACIÓN SIGI '!Q82","v":"00:00:00"},{"$f":"+'FORMULACIÓN SIGI '!R82","v":0}]
[{"$f":"VLOOKUP('FORMULACIÓN SIGI '!A83,LISTAS!$A$58:$B$59,2,0)","v":{"$error":"#N/A"}},{"$f":"VLOOKUP('FORMULACIÓN SIGI '!B83,LISTAS!$A$61:$B$65,2,0)","v":{"$error":"#N/A"}},{"$f":"VLOOKUP('FORMULACIÓN SIGI '!C83,LISTAS!$A$67:$B$74,2,0)","v":{"$error":"#N/A"}},{"$f":"VLOOKUP('FORMULACIÓN SIGI '!D83,LISTAS!$A$76:$B$82,2,0)","v":{"$error":"#N/A"}},{"$f":"VLOOKUP('FORMULACIÓN SIGI '!E83,LISTAS!$A$84:$B$91,2,0)","v":{"$error":"#N/A"}},{"$f":"VLOOKUP('FORMULACIÓN SIGI '!F83,LISTAS!$A$93:$B$145,2,0)","v":{"$error":"#N/A"}},{"$f":"VLOOKUP('FORMULACIÓN SIGI '!G83,LISTAS!$A$113:B187,2,0)","v":{"$error":"#N/A"}},{"$f":"VLOOKUP('FORMULACIÓN SIGI '!H83,LISTAS!$A$126:$B$145,2,0)","v":{"$error":"#N/A"}},{"$f":"VLOOKUP('FORMULACIÓN SIGI '!I83,LISTAS!$A$147:$B$171,2,0)","v":{"$error":"#N/A"}},{"$f":"+'FORMULACIÓN SIGI '!J83","v":0},{"$f":"+'FORMULACIÓN SIGI '!K83","v":0},{"$f":"+'FORMULACIÓN SIGI '!L83","v":0},{"$f":"VLOOKUP('FORMULACIÓN SIGI '!M83,LISTAS!$A$173:$B$174,2,0)","v":{"$error":"#N/A"}},{"$f":"+'FORMULACIÓN SIGI '!N83","v":0},{"$f":"+'FORMULACIÓN SIGI '!O83","v":0},{"$f":"+'FORMULACIÓN SIGI '!P83","v":"00:00:00"},{"$f":"+'FORMULACIÓN SIGI '!Q83","v":"00:00:00"},{"$f":"+'FORMULACIÓN SIGI '!R83","v":0}]
[{"$f":"VLOOKUP('FORMULACIÓN SIGI '!A84,LISTAS!$A$58:$B$59,2,0)","v":{"$error":"#N/A"}},{"$f":"VLOOKUP('FORMULACIÓN SIGI '!B84,LISTAS!$A$61:$B$65,2,0)","v":{"$error":"#N/A"}},{"$f":"VLOOKUP('FORMULACIÓN SIGI '!C84,LISTAS!$A$67:$B$74,2,0)","v":{"$error":"#N/A"}},{"$f":"VLOOKUP('FORMULACIÓN SIGI '!D84,LISTAS!$A$76:$B$82,2,0)","v":{"$error":"#N/A"}},{"$f":"VLOOKUP('FORMULACIÓN SIGI '!E84,LISTAS!$A$84:$B$91,2,0)","v":{"$error":"#N/A"}},{"$f":"VLOOKUP('FORMULACIÓN SIGI '!F84,LISTAS!$A$93:$B$145,2,0)","v":{"$error":"#N/A"}},{"$f":"VLOOKUP('FORMULACIÓN SIGI '!G84,LISTAS!$A$113:B188,2,0)","v":{"$error":"#N/A"}},{"$f":"VLOOKUP('FORMULACIÓN SIGI '!H84,LISTAS!$A$126:$B$145,2,0)","v":{"$error":"#N/A"}},{"$f":"VLOOKUP('FORMULACIÓN SIGI '!I84,LISTAS!$A$147:$B$171,2,0)","v":{"$error":"#N/A"}},{"$f":"+'FORMULACIÓN SIGI '!J84","v":0},{"$f":"+'FORMULACIÓN SIGI '!K84","v":0},{"$f":"+'FORMULACIÓN SIGI '!L84","v":0},{"$f":"VLOOKUP('FORMULACIÓN SIGI '!M84,LISTAS!$A$173:$B$174,2,0)","v":{"$error":"#N/A"}},{"$f":"+'FORMULACIÓN SIGI '!N84","v":0},{"$f":"+'FORMULACIÓN SIGI '!O84","v":0},{"$f":"+'FORMULACIÓN SIGI '!P84","v":"00:00:00"},{"$f":"+'FORMULACIÓN SIGI '!Q84","v":"00:00:00"},{"$f":"+'FORMULACIÓN SIGI '!R84","v":0}]
[{"$f":"VLOOKUP('FORMULACIÓN SIGI '!A85,LISTAS!$A$58:$B$59,2,0)","v":{"$error":"#N/A"}},{"$f":"VLOOKUP('FORMULACIÓN SIGI '!B85,LISTAS!$A$61:$B$65,2,0)","v":{"$error":"#N/A"}},{"$f":"VLOOKUP('FORMULACIÓN SIGI '!C85,LISTAS!$A$67:$B$74,2,0)","v":{"$error":"#N/A"}},{"$f":"VLOOKUP('FORMULACIÓN SIGI '!D85,LISTAS!$A$76:$B$82,2,0)","v":{"$error":"#N/A"}},{"$f":"VLOOKUP('FORMULACIÓN SIGI '!E85,LISTAS!$A$84:$B$91,2,0)","v":{"$error":"#N/A"}},{"$f":"VLOOKUP('FORMULACIÓN SIGI '!F85,LISTAS!$A$93:$B$145,2,0)","v":{"$error":"#N/A"}},{"$f":"VLOOKUP('FORMULACIÓN SIGI '!G85,LISTAS!$A$113:B189,2,0)","v":{"$error":"#N/A"}},{"$f":"VLOOKUP('FORMULACIÓN SIGI '!H85,LISTAS!$A$126:$B$145,2,0)","v":{"$error":"#N/A"}},{"$f":"VLOOKUP('FORMULACIÓN SIGI '!I85,LISTAS!$A$147:$B$171,2,0)","v":{"$error":"#N/A"}},{"$f":"+'FORMULACIÓN SIGI '!J85","v":0},{"$f":"+'FORMULACIÓN SIGI '!K85","v":0},{"$f":"+'FORMULACIÓN SIGI '!L85","v":0},{"$f":"VLOOKUP('FORMULACIÓN SIGI '!M85,LISTAS!$A$173:$B$174,2,0)","v":{"$error":"#N/A"}},{"$f":"+'FORMULACIÓN SIGI '!N85","v":0},{"$f":"+'FORMULACIÓN SIGI '!O85","v":0},{"$f":"+'FORMULACIÓN SIGI '!P85","v":"00:00:00"},{"$f":"+'FORMULACIÓN SIGI '!Q85","v":"00:00:00"},{"$f":"+'FORMULACIÓN SIGI '!R85","v":0}]
[{"$f":"VLOOKUP('FORMULACIÓN SIGI '!A86,LISTAS!$A$58:$B$59,2,0)","v":{"$error":"#N/A"}},{"$f":"VLOOKUP('FORMULACIÓN SIGI '!B86,LISTAS!$A$61:$B$65,2,0)","v":{"$error":"#N/A"}},{"$f":"VLOOKUP('FORMULACIÓN SIGI '!C86,LISTAS!$A$67:$B$74,2,0)","v":{"$error":"#N/A"}},{"$f":"VLOOKUP('FORMULACIÓN SIGI '!D86,LISTAS!$A$76:$B$82,2,0)","v":{"$error":"#N/A"}},{"$f":"VLOOKUP('FORMULACIÓN SIGI '!E86,LISTAS!$A$84:$B$91,2,0)","v":{"$error":"#N/A"}},{"$f":"VLOOKUP('FORMULACIÓN SIGI '!F86,LISTAS!$A$93:$B$145,2,0)","v":{"$error":"#N/A"}},{"$f":"VLOOKUP('FORMULACIÓN SIGI '!G86,LISTAS!$A$113:B190,2,0)","v":{"$error":"#N/A"}},{"$f":"VLOOKUP('FORMULACIÓN SIGI '!H86,LISTAS!$A$126:$B$145,2,0)","v":{"$error":"#N/A"}},{"$f":"VLOOKUP('FORMULACIÓN SIGI '!I86,LISTAS!$A$147:$B$171,2,0)","v":{"$error":"#N/A"}},{"$f":"+'FORMULACIÓN SIGI '!J86","v":0},{"$f":"+'FORMULACIÓN SIGI '!K86","v":0},{"$f":"+'FORMULACIÓN SIGI '!L86","v":0},{"$f":"VLOOKUP('FORMULACIÓN SIGI '!M86,LISTAS!$A$173:$B$174,2,0)","v":{"$error":"#N/A"}},{"$f":"+'FORMULACIÓN SIGI '!N86","v":0},{"$f":"+'FORMULACIÓN SIGI '!O86","v":0},{"$f":"+'FORMULACIÓN SIGI '!P86","v":"00:00:00"},{"$f":"+'FORMULACIÓN SIGI '!Q86","v":"00:00:00"},{"$f":"+'FORMULACIÓN SIGI '!R86","v":0}]
[{"$f":"VLOOKUP('FORMULACIÓN SIGI '!A87,LISTAS!$A$58:$B$59,2,0)","v":{"$error":"#N/A"}},{"$f":"VLOOKUP('FORMULACIÓN SIGI '!B87,LISTAS!$A$61:$B$65,2,0)","v":{"$error":"#N/A"}},{"$f":"VLOOKUP('FORMULACIÓN SIGI '!C87,LISTAS!$A$67:$B$74,2,0)","v":{"$error":"#N/A"}},{"$f":"VLOOKUP('FORMULACIÓN SIGI '!D87,LISTAS!$A$76:$B$82,2,0)","v":{"$error":"#N/A"}},{"$f":"VLOOKUP('FORMULACIÓN SIGI '!E87,LISTAS!$A$84:$B$91,2,0)","v":{"$error":"#N/A"}},{"$f":"VLOOKUP('FORMULACIÓN SIGI '!F87,LISTAS!$A$93:$B$145,2,0)","v":{"$error":"#N/A"}},{"$f":"VLOOKUP('FORMULACIÓN SIGI '!G87,LISTAS!$A$113:B191,2,0)","v":{"$error":"#N/A"}},{"$f":"VLOOKUP('FORMULACIÓN SIGI '!H87,LISTAS!$A$126:$B$145,2,0)","v":{"$error":"#N/A"}},{"$f":"VLOOKUP('FORMULACIÓN SIGI '!I87,LISTAS!$A$147:$B$171,2,0)","v":{"$error":"#N/A"}},{"$f":"+'FORMULACIÓN SIGI '!J87","v":0},{"$f":"+'FORMULACIÓN SIGI '!K87","v":0},{"$f":"+'FORMULACIÓN SIGI '!L87","v":0},{"$f":"VLOOKUP('FORMULACIÓN SIGI '!M87,LISTAS!$A$173:$B$174,2,0)","v":{"$error":"#N/A"}},{"$f":"+'FORMULACIÓN SIGI '!N87","v":0},{"$f":"+'FORMULACIÓN SIGI '!O87","v":0},{"$f":"+'FORMULACIÓN SIGI '!P87","v":"00:00:00"},{"$f":"+'FORMULACIÓN SIGI '!Q87","v":"00:00:00"},{"$f":"+'FORMULACIÓN SIGI '!R87","v":0}]
[{"$f":"VLOOKUP('FORMULACIÓN SIGI '!A88,LISTAS!$A$58:$B$59,2,0)","v":{"$error":"#N/A"}},{"$f":"VLOOKUP('FORMULACIÓN SIGI '!B88,LISTAS!$A$61:$B$65,2,0)","v":{"$error":"#N/A"}},{"$f":"VLOOKUP('FORMULACIÓN SIGI '!C88,LISTAS!$A$67:$B$74,2,0)","v":{"$error":"#N/A"}},{"$f":"VLOOKUP('FORMULACIÓN SIGI '!D88,LISTAS!$A$76:$B$82,2,0)","v":{"$error":"#N/A"}},{"$f":"VLOOKUP('FORMULACIÓN SIGI '!E88,LISTAS!$A$84:$B$91,2,0)","v":{"$error":"#N/A"}},{"$f":"VLOOKUP('FORMULACIÓN SIGI '!F88,LISTAS!$A$93:$B$145,2,0)","v":{"$error":"#N/A"}},{"$f":"VLOOKUP('FORMULACIÓN SIGI '!G88,LISTAS!$A$113:B192,2,0)","v":{"$error":"#N/A"}},{"$f":"VLOOKUP('FORMULACIÓN SIGI '!H88,LISTAS!$A$126:$B$145,2,0)","v":{"$error":"#N/A"}},{"$f":"VLOOKUP('FORMULACIÓN SIGI '!I88,LISTAS!$A$147:$B$171,2,0)","v":{"$error":"#N/A"}},{"$f":"+'FORMULACIÓN SIGI '!J88","v":0},{"$f":"+'FORMULACIÓN SIGI '!K88","v":0},{"$f":"+'FORMULACIÓN SIGI '!L88","v":0},{"$f":"VLOOKUP('FORMULACIÓN SIGI '!M88,LISTAS!$A$173:$B$174,2,0)","v":{"$error":"#N/A"}},{"$f":"+'FORMULACIÓN SIGI '!N88","v":0},{"$f":"+'FORMULACIÓN SIGI '!O88","v":0},{"$f":"+'FORMULACIÓN SIGI '!P88","v":"00:00:00"},{"$f":"+'FORMULACIÓN SIGI '!Q88","v":"00:00:00"},{"$f":"+'FORMULACIÓN SIGI '!R88","v":0}]
[{"$f":"VLOOKUP('FORMULACIÓN SIGI '!A89,LISTAS!$A$58:$B$59,2,0)","v":{"$error":"#N/A"}},{"$f":"VLOOKUP('FORMULACIÓN SIGI '!B89,LISTAS!$A$61:$B$65,2,0)","v":{"$error":"#N/A"}},{"$f":"VLOOKUP('FORMULACIÓN SIGI '!C89,LISTAS!$A$67:$B$74,2,0)","v":{"$error":"#N/A"}},{"$f":"VLOOKUP('FORMULACIÓN SIGI '!D89,LISTAS!$A$76:$B$82,2,0)","v":{"$error":"#N/A"}},{"$f":"VLOOKUP('FORMULACIÓN SIGI '!E89,LISTAS!$A$84:$B$91,2,0)","v":{"$error":"#N/A"}},{"$f":"VLOOKUP('FORMULACIÓN SIGI '!F89,LISTAS!$A$93:$B$145,2,0)","v":{"$error":"#N/A"}},{"$f":"VLOOKUP('FORMULACIÓN SIGI '!G89,LISTAS!$A$113:B193,2,0)","v":{"$error":"#N/A"}},{"$f":"VLOOKUP('FORMULACIÓN SIGI '!H89,LISTAS!$A$126:$B$145,2,0)","v":{"$error":"#N/A"}},{"$f":"VLOOKUP('FORMULACIÓN SIGI '!I89,LISTAS!$A$147:$B$171,2,0)","v":{"$error":"#N/A"}},{"$f":"+'FORMULACIÓN SIGI '!J89","v":0},{"$f":"+'FORMULACIÓN SIGI '!K89","v":0},{"$f":"+'FORMULACIÓN SIGI '!L89","v":0},{"$f":"VLOOKUP('FORMULACIÓN SIGI '!M89,LISTAS!$A$173:$B$174,2,0)","v":{"$error":"#N/A"}},{"$f":"+'FORMULACIÓN SIGI '!N89","v":0},{"$f":"+'FORMULACIÓN SIGI '!O89","v":0},{"$f":"+'FORMULACIÓN SIGI '!P89","v":"00:00:00"},{"$f":"+'FORMULACIÓN SIGI '!Q89","v":"00:00:00"},{"$f":"+'FORMULACIÓN SIGI '!R89","v":0}]
[{"$f":"VLOOKUP('FORMULACIÓN SIGI '!A90,LISTAS!$A$58:$B$59,2,0)","v":{"$error":"#N/A"}},{"$f":"VLOOKUP('FORMULACIÓN SIGI '!B90,LISTAS!$A$61:$B$65,2,0)","v":{"$error":"#N/A"}},{"$f":"VLOOKUP('FORMULACIÓN SIGI '!C90,LISTAS!$A$67:$B$74,2,0)","v":{"$error":"#N/A"}},{"$f":"VLOOKUP('FORMULACIÓN SIGI '!D90,LISTAS!$A$76:$B$82,2,0)","v":{"$error":"#N/A"}},{"$f":"VLOOKUP('FORMULACIÓN SIGI '!E90,LISTAS!$A$84:$B$91,2,0)","v":{"$error":"#N/A"}},{"$f":"VLOOKUP('FORMULACIÓN SIGI '!F90,LISTAS!$A$93:$B$145,2,0)","v":{"$error":"#N/A"}},{"$f":"VLOOKUP('FORMULACIÓN SIGI '!G90,LISTAS!$A$113:B194,2,0)","v":{"$error":"#N/A"}},{"$f":"VLOOKUP('FORMULACIÓN SIGI '!H90,LISTAS!$A$126:$B$145,2,0)","v":{"$error":"#N/A"}},{"$f":"VLOOKUP('FORMULACIÓN SIGI '!I90,LISTAS!$A$147:$B$171,2,0)","v":{"$error":"#N/A"}},{"$f":"+'FORMULACIÓN SIGI '!J90","v":0},{"$f":"+'FORMULACIÓN SIGI '!K90","v":0},{"$f":"+'FORMULACIÓN SIGI '!L90","v":0},{"$f":"VLOOKUP('FORMULACIÓN SIGI '!M90,LISTAS!$A$173:$B$174,2,0)","v":{"$error":"#N/A"}},{"$f":"+'FORMULACIÓN SIGI '!N90","v":0},{"$f":"+'FORMULACIÓN SIGI '!O90","v":0},{"$f":"+'FORMULACIÓN SIGI '!P90","v":"00:00:00"},{"$f":"+'FORMULACIÓN SIGI '!Q90","v":"00:00:00"},{"$f":"+'FORMULACIÓN SIGI '!R90","v":0}]
[{"$f":"VLOOKUP('FORMULACIÓN SIGI '!A91,LISTAS!$A$58:$B$59,2,0)","v":{"$error":"#N/A"}},{"$f":"VLOOKUP('FORMULACIÓN SIGI '!B91,LISTAS!$A$61:$B$65,2,0)","v":{"$error":"#N/A"}},{"$f":"VLOOKUP('FORMULACIÓN SIGI '!C91,LISTAS!$A$67:$B$74,2,0)","v":{"$error":"#N/A"}},{"$f":"VLOOKUP('FORMULACIÓN SIGI '!D91,LISTAS!$A$76:$B$82,2,0)","v":{"$error":"#N/A"}},{"$f":"VLOOKUP('FORMULACIÓN SIGI '!E91,LISTAS!$A$84:$B$91,2,0)","v":{"$error":"#N/A"}},{"$f":"VLOOKUP('FORMULACIÓN SIGI '!F91,LISTAS!$A$93:$B$145,2,0)","v":{"$error":"#N/A"}},{"$f":"VLOOKUP('FORMULACIÓN SIGI '!G91,LISTAS!$A$113:B195,2,0)","v":{"$error":"#N/A"}},{"$f":"VLOOKUP('FORMULACIÓN SIGI '!H91,LISTAS!$A$126:$B$145,2,0)","v":{"$error":"#N/A"}},{"$f":"VLOOKUP('FORMULACIÓN SIGI '!I91,LISTAS!$A$147:$B$171,2,0)","v":{"$error":"#N/A"}},{"$f":"+'FORMULACIÓN SIGI '!J91","v":0},{"$f":"+'FORMULACIÓN SIGI '!K91","v":0},{"$f":"+'FORMULACIÓN SIGI '!L91","v":0},{"$f":"VLOOKUP('FORMULACIÓN SIGI '!M91,LISTAS!$A$173:$B$174,2,0)","v":{"$error":"#N/A"}},{"$f":"+'FORMULACIÓN SIGI '!N91","v":0},{"$f":"+'FORMULACIÓN SIGI '!O91","v":0},{"$f":"+'FORMULACIÓN SIGI '!P91","v":"00:00:00"},{"$f":"+'FORMULACIÓN SIGI '!Q91","v":"00:00:00"},{"$f":"+'FORMULACIÓN SIGI '!R91","v":0}]
[{"$f":"VLOOKUP('FORMULACIÓN SIGI '!A92,LISTAS!$A$58:$B$59,2,0)","v":{"$error":"#N/A"}},{"$f":"VLOOKUP('FORMULACIÓN SIGI '!B92,LISTAS!$A$61:$B$65,2,0)","v":{"$error":"#N/A"}},{"$f":"VLOOKUP('FORMULACIÓN SIGI '!C92,LISTAS!$A$67:$B$74,2,0)","v":{"$error":"#N/A"}},{"$f":"VLOOKUP('FORMULACIÓN SIGI '!D92,LISTAS!$A$76:$B$82,2,0)","v":{"$error":"#N/A"}},{"$f":"VLOOKUP('FORMULACIÓN SIGI '!E92,LISTAS!$A$84:$B$91,2,0)","v":{"$error":"#N/A"}},{"$f":"VLOOKUP('FORMULACIÓN SIGI '!F92,LISTAS!$A$93:$B$145,2,0)","v":{"$error":"#N/A"}},{"$f":"VLOOKUP('FORMULACIÓN SIGI '!G92,LISTAS!$A$113:B196,2,0)","v":{"$error":"#N/A"}},{"$f":"VLOOKUP('FORMULACIÓN SIGI '!H92,LISTAS!$A$126:$B$145,2,0)","v":{"$error":"#N/A"}},{"$f":"VLOOKUP('FORMULACIÓN SIGI '!I92,LISTAS!$A$147:$B$171,2,0)","v":{"$error":"#N/A"}},{"$f":"+'FORMULACIÓN SIGI '!J92","v":0},{"$f":"+'FORMULACIÓN SIGI '!K92","v":0},{"$f":"+'FORMULACIÓN SIGI '!L92","v":0},{"$f":"VLOOKUP('FORMULACIÓN SIGI '!M92,LISTAS!$A$173:$B$174,2,0)","v":{"$error":"#N/A"}},{"$f":"+'FORMULACIÓN SIGI '!N92","v":0},{"$f":"+'FORMULACIÓN SIGI '!O92","v":0},{"$f":"+'FORMULACIÓN SIGI '!P92","v":"00:00:00"},{"$f":"+'FORMULACIÓN SIGI '!Q92","v":"00:00:00"},{"$f":"+'FORMULACIÓN SIGI '!R92","v":0}]
[{"$f":"VLOOKUP('FORMULACIÓN SIGI '!A93,LISTAS!$A$58:$B$59,2,0)","v":{"$error":"#N/A"}},{"$f":"VLOOKUP('FORMULACIÓN SIGI '!B93,LISTAS!$A$61:$B$65,2,0)","v":{"$error":"#N/A"}},{"$f":"VLOOKUP('FORMULACIÓN SIGI '!C93,LISTAS!$A$67:$B$74,2,0)","v":{"$error":"#N/A"}},{"$f":"VLOOKUP('FORMULACIÓN SIGI '!D93,LISTAS!$A$76:$B$82,2,0)","v":{"$error":"#N/A"}},{"$f":"VLOOKUP('FORMULACIÓN SIGI '!E93,LISTAS!$A$84:$B$91,2,0)","v":{"$error":"#N/A"}},{"$f":"VLOOKUP('FORMULACIÓN SIGI '!F93,LISTAS!$A$93:$B$145,2,0)","v":{"$error":"#N/A"}},{"$f":"VLOOKUP('FORMULACIÓN SIGI '!G93,LISTAS!$A$113:B197,2,0)","v":{"$error":"#N/A"}},{"$f":"VLOOKUP('FORMULACIÓN SIGI '!H93,LISTAS!$A$126:$B$145,2,0)","v":{"$error":"#N/A"}},{"$f":"VLOOKUP('FORMULACIÓN SIGI '!I93,LISTAS!$A$147:$B$171,2,0)","v":{"$error":"#N/A"}},{"$f":"+'FORMULACIÓN SIGI '!J93","v":0},{"$f":"+'FORMULACIÓN SIGI '!K93","v":0},{"$f":"+'FORMULACIÓN SIGI '!L93","v":0},{"$f":"VLOOKUP('FORMULACIÓN SIGI '!M93,LISTAS!$A$173:$B$174,2,0)","v":{"$error":"#N/A"}},{"$f":"+'FORMULACIÓN SIGI '!N93","v":0},{"$f":"+'FORMULACIÓN SIGI '!O93","v":0},{"$f":"+'FORMULACIÓN SIGI '!P93","v":"00:00:00"},{"$f":"+'FORMULACIÓN SIGI '!Q93","v":"00:00:00"},{"$f":"+'FORMULACIÓN SIGI '!R93","v":0}]
[{"$f":"VLOOKUP('FORMULACIÓN SIGI '!A94,LISTAS!$A$58:$B$59,2,0)","v":{"$error":"#N/A"}},{"$f":"VLOOKUP('FORMULACIÓN SIGI '!B94,LISTAS!$A$61:$B$65,2,0)","v":{"$error":"#N/A"}},{"$f":"VLOOKUP('FORMULACIÓN SIGI '!C94,LISTAS!$A$67:$B$74,2,0)","v":{"$error":"#N/A"}},{"$f":"VLOOKUP('FORMULACIÓN SIGI '!D94,LISTAS!$A$76:$B$82,2,0)","v":{"$error":"#N/A"}},{"$f":"VLOOKUP('FORMULACIÓN SIGI '!E94,LISTAS!$A$84:$B$91,2,0)","v":{"$error":"#N/A"}},{"$f":"VLOOKUP('FORMULACIÓN SIGI '!F94,LISTAS!$A$93:$B$145,2,0)","v":{"$error":"#N/A"}},{"$f":"VLOOKUP('FORMULACIÓN SIGI '!G94,LISTAS!$A$113:B198,2,0)","v":{"$error":"#N/A"}},{"$f":"VLOOKUP('FORMULACIÓN SIGI '!H94,LISTAS!$A$126:$B$145,2,0)","v":{"$error":"#N/A"}},{"$f":"VLOOKUP('FORMULACIÓN SIGI '!I94,LISTAS!$A$147:$B$171,2,0)","v":{"$error":"#N/A"}},{"$f":"+'FORMULACIÓN SIGI '!J94","v":0},{"$f":"+'FORMULACIÓN SIGI '!K94","v":0},{"$f":"+'FORMULACIÓN SIGI '!L94","v":0},{"$f":"VLOOKUP('FORMULACIÓN SIGI '!M94,LISTAS!$A$173:$B$174,2,0)","v":{"$error":"#N/A"}},{"$f":"+'FORMULACIÓN SIGI '!N94","v":0},{"$f":"+'FORMULACIÓN SIGI '!O94","v":0},{"$f":"+'FORMULACIÓN SIGI '!P94","v":"00:00:00"},{"$f":"+'FORMULACIÓN SIGI '!Q94","v":"00:00:00"},{"$f":"+'FORMULACIÓN SIGI '!R94","v":0}]
[{"$f":"VLOOKUP('FORMULACIÓN SIGI '!A95,LISTAS!$A$58:$B$59,2,0)","v":{"$error":"#N/A"}},{"$f":"VLOOKUP('FORMULACIÓN SIGI '!B95,LISTAS!$A$61:$B$65,2,0)","v":{"$error":"#N/A"}},{"$f":"VLOOKUP('FORMULACIÓN SIGI '!C95,LISTAS!$A$67:$B$74,2,0)","v":{"$error":"#N/A"}},{"$f":"VLOOKUP('FORMULACIÓN SIGI '!D95,LISTAS!$A$76:$B$82,2,0)","v":{"$error":"#N/A"}},{"$f":"VLOOKUP('FORMULACIÓN SIGI '!E95,LISTAS!$A$84:$B$91,2,0)","v":{"$error":"#N/A"}},{"$f":"VLOOKUP('FORMULACIÓN SIGI '!F95,LISTAS!$A$93:$B$145,2,0)","v":{"$error":"#N/A"}},{"$f":"VLOOKUP('FORMULACIÓN SIGI '!G95,LISTAS!$A$113:B199,2,0)","v":{"$error":"#N/A"}},{"$f":"VLOOKUP('FORMULACIÓN SIGI '!H95,LISTAS!$A$126:$B$145,2,0)","v":{"$error":"#N/A"}},{"$f":"VLOOKUP('FORMULACIÓN SIGI '!I95,LISTAS!$A$147:$B$171,2,0)","v":{"$error":"#N/A"}},{"$f":"+'FORMULACIÓN SIGI '!J95","v":0},{"$f":"+'FORMULACIÓN SIGI '!K95","v":0},{"$f":"+'FORMULACIÓN SIGI '!L95","v":0},{"$f":"VLOOKUP('FORMULACIÓN SIGI '!M95,LISTAS!$A$173:$B$174,2,0)","v":{"$error":"#N/A"}},{"$f":"+'FORMULACIÓN SIGI '!N95","v":0},{"$f":"+'FORMULACIÓN SIGI '!O95","v":0},{"$f":"+'FORMULACIÓN SIGI '!P95","v":"00:00:00"},{"$f":"+'FORMULACIÓN SIGI '!Q95","v":"00:00:00"},{"$f":"+'FORMULACIÓN SIGI '!R95","v":0}]
[{"$f":"VLOOKUP('FORMULACIÓN SIGI '!A96,LISTAS!$A$58:$B$59,2,0)","v":{"$error":"#N/A"}},{"$f":"VLOOKUP('FORMULACIÓN SIGI '!B96,LISTAS!$A$61:$B$65,2,0)","v":{"$error":"#N/A"}},{"$f":"VLOOKUP('FORMULACIÓN SIGI '!C96,LISTAS!$A$67:$B$74,2,0)","v":{"$error":"#N/A"}},{"$f":"VLOOKUP('FORMULACIÓN SIGI '!D96,LISTAS!$A$76:$B$82,2,0)","v":{"$error":"#N/A"}},{"$f":"VLOOKUP('FORMULACIÓN SIGI '!E96,LISTAS!$A$84:$B$91,2,0)","v":{"$error":"#N/A"}},{"$f":"VLOOKUP('FORMULACIÓN SIGI '!F96,LISTAS!$A$93:$B$145,2,0)","v":{"$error":"#N/A"}},{"$f":"VLOOKUP('FORMULACIÓN SIGI '!G96,LISTAS!$A$113:B200,2,0)","v":{"$error":"#N/A"}},{"$f":"VLOOKUP('FORMULACIÓN SIGI '!H96,LISTAS!$A$126:$B$145,2,0)","v":{"$error":"#N/A"}},{"$f":"VLOOKUP('FORMULACIÓN SIGI '!I96,LISTAS!$A$147:$B$171,2,0)","v":{"$error":"#N/A"}},{"$f":"+'FORMULACIÓN SIGI '!J96","v":0},{"$f":"+'FORMULACIÓN SIGI '!K96","v":0},{"$f":"+'FORMULACIÓN SIGI '!L96","v":0},{"$f":"VLOOKUP('FORMULACIÓN SIGI '!M96,LISTAS!$A$173:$B$174,2,0)","v":{"$error":"#N/A"}},{"$f":"+'FORMULACIÓN SIGI '!N96","v":0},{"$f":"+'FORMULACIÓN SIGI '!O96","v":0},{"$f":"+'FORMULACIÓN SIGI '!P96","v":"00:00:00"},{"$f":"+'FORMULACIÓN SIGI '!Q96","v":"00:00:00"},{"$f":"+'FORMULACIÓN SIGI '!R96","v":0}]
[{"$f":"VLOOKUP('FORMULACIÓN SIGI '!A97,LISTAS!$A$58:$B$59,2,0)","v":{"$error":"#N/A"}},{"$f":"VLOOKUP('FORMULACIÓN SIGI '!B97,LISTAS!$A$61:$B$65,2,0)","v":{"$error":"#N/A"}},{"$f":"VLOOKUP('FORMULACIÓN SIGI '!C97,LISTAS!$A$67:$B$74,2,0)","v":{"$error":"#N/A"}},{"$f":"VLOOKUP('FORMULACIÓN SIGI '!D97,LISTAS!$A$76:$B$82,2,0)","v":{"$error":"#N/A"}},{"$f":"VLOOKUP('FORMULACIÓN SIGI '!E97,LISTAS!$A$84:$B$91,2,0)","v":{"$error":"#N/A"}},{"$f":"VLOOKUP('FORMULACIÓN SIGI '!F97,LISTAS!$A$93:$B$145,2,0)","v":{"$error":"#N/A"}},{"$f":"VLOOKUP('FORMULACIÓN SIGI '!G97,LISTAS!$A$113:B201,2,0)","v":{"$error":"#N/A"}},{"$f":"VLOOKUP('FORMULACIÓN SIGI '!H97,LISTAS!$A$126:$B$145,2,0)","v":{"$error":"#N/A"}},{"$f":"VLOOKUP('FORMULACIÓN SIGI '!I97,LISTAS!$A$147:$B$171,2,0)","v":{"$error":"#N/A"}},{"$f":"+'FORMULACIÓN SIGI '!J97","v":0},{"$f":"+'FORMULACIÓN SIGI '!K97","v":0},{"$f":"+'FORMULACIÓN SIGI '!L97","v":0},{"$f":"VLOOKUP('FORMULACIÓN SIGI '!M97,LISTAS!$A$173:$B$174,2,0)","v":{"$error":"#N/A"}},{"$f":"+'FORMULACIÓN SIGI '!N97","v":0},{"$f":"+'FORMULACIÓN SIGI '!O97","v":0},{"$f":"+'FORMULACIÓN SIGI '!P97","v":"00:00:00"},{"$f":"+'FORMULACIÓN SIGI '!Q97","v":"00:00:00"},{"$f":"+'FORMULACIÓN SIGI '!R97","v":0}]
[{"$f":"VLOOKUP('FORMULACIÓN SIGI '!A98,LISTAS!$A$58:$B$59,2,0)","v":{"$error":"#N/A"}},{"$f":"VLOOKUP('FORMULACIÓN SIGI '!B98,LISTAS!$A$61:$B$65,2,0)","v":{"$error":"#N/A"}},{"$f":"VLOOKUP('FORMULACIÓN SIGI '!C98,LISTAS!$A$67:$B$74,2,0)","v":{"$error":"#N/A"}},{"$f":"VLOOKUP('FORMULACIÓN SIGI '!D98,LISTAS!$A$76:$B$82,2,0)","v":{"$error":"#N/A"}},{"$f":"VLOOKUP('FORMULACIÓN SIGI '!E98,LISTAS!$A$84:$B$91,2,0)","v":{"$error":"#N/A"}},{"$f":"VLOOKUP('FORMULACIÓN SIGI '!F98,LISTAS!$A$93:$B$145,2,0)","v":{"$error":"#N/A"}},{"$f":"VLOOKUP('FORMULACIÓN SIGI '!G98,LISTAS!$A$113:B202,2,0)","v":{"$error":"#N/A"}},{"$f":"VLOOKUP('FORMULACIÓN SIGI '!H98,LISTAS!$A$126:$B$145,2,0)","v":{"$error":"#N/A"}},{"$f":"VLOOKUP('FORMULACIÓN SIGI '!I98,LISTAS!$A$147:$B$171,2,0)","v":{"$error":"#N/A"}},{"$f":"+'FORMULACIÓN SIGI '!J98","v":0},{"$f":"+'FORMULACIÓN SIGI '!K98","v":0},{"$f":"+'FORMULACIÓN SIGI '!L98","v":0},{"$f":"VLOOKUP('FORMULACIÓN SIGI '!M98,LISTAS!$A$173:$B$174,2,0)","v":{"$error":"#N/A"}},{"$f":"+'FORMULACIÓN SIGI '!N98","v":0},{"$f":"+'FORMULACIÓN SIGI '!O98","v":0},{"$f":"+'FORMULACIÓN SIGI '!P98","v":"00:00:00"},{"$f":"+'FORMULACIÓN SIGI '!Q98","v":"00:00:00"},{"$f":"+'FORMULACIÓN SIGI '!R98","v":0}]
[{"$f":"VLOOKUP('FORMULACIÓN SIGI '!A99,LISTAS!$A$58:$B$59,2,0)","v":{"$error":"#N/A"}},{"$f":"VLOOKUP('FORMULACIÓN SIGI '!B99,LISTAS!$A$61:$B$65,2,0)","v":{"$error":"#N/A"}},{"$f":"VLOOKUP('FORMULACIÓN SIGI '!C99,LISTAS!$A$67:$B$74,2,0)","v":{"$error":"#N/A"}},{"$f":"VLOOKUP('FORMULACIÓN SIGI '!D99,LISTAS!$A$76:$B$82,2,0)","v":{"$error":"#N/A"}},{"$f":"VLOOKUP('FORMULACIÓN SIGI '!E99,LISTAS!$A$84:$B$91,2,0)","v":{"$error":"#N/A"}},{"$f":"VLOOKUP('FORMULACIÓN SIGI '!F99,LISTAS!$A$93:$B$145,2,0)","v":{"$error":"#N/A"}},{"$f":"VLOOKUP('FORMULACIÓN SIGI '!G99,LISTAS!$A$113:B203,2,0)","v":{"$error":"#N/A"}},{"$f":"VLOOKUP('FORMULACIÓN SIGI '!H99,LISTAS!$A$126:$B$145,2,0)","v":{"$error":"#N/A"}},{"$f":"VLOOKUP('FORMULACIÓN SIGI '!I99,LISTAS!$A$147:$B$171,2,0)","v":{"$error":"#N/A"}},{"$f":"+'FORMULACIÓN SIGI '!J99","v":0},{"$f":"+'FORMULACIÓN SIGI '!K99","v":0},{"$f":"+'FORMULACIÓN SIGI '!L99","v":0},{"$f":"VLOOKUP('FORMULACIÓN SIGI '!M99,LISTAS!$A$173:$B$174,2,0)","v":{"$error":"#N/A"}},{"$f":"+'FORMULACIÓN SIGI '!N99","v":0},{"$f":"+'FORMULACIÓN SIGI '!O99","v":0},{"$f":"+'FORMULACIÓN SIGI '!P99","v":"00:00:00"},{"$f":"+'FORMULACIÓN SIGI '!Q99","v":"00:00:00"},{"$f":"+'FORMULACIÓN SIGI '!R99","v":0}]
[{"$f":"VLOOKUP('FORMULACIÓN SIGI '!A100,LISTAS!$A$58:$B$59,2,0)","v":{"$error":"#N/A"}},{"$f":"VLOOKUP('FORMULACIÓN SIGI '!B100,LISTAS!$A$61:$B$65,2,0)","v":{"$error":"#N/A"}},{"$f":"VLOOKUP('FORMULACIÓN SIGI '!C100,LISTAS!$A$67:$B$74,2,0)","v":{"$error":"#N/A"}},{"$f":"VLOOKUP('FORMULACIÓN SIGI '!D100,LISTAS!$A$76:$B$82,2,0)","v":{"$error":"#N/A"}},{"$f":"VLOOKUP('FORMULACIÓN SIGI '!E100,LISTAS!$A$84:$B$91,2,0)","v":{"$error":"#N/A"}},{"$f":"VLOOKUP('FORMULACIÓN SIGI '!F100,LISTAS!$A$93:$B$145,2,0)","v":{"$error":"#N/A"}},{"$f":"VLOOKUP('FORMULACIÓN SIGI '!G100,LISTAS!$A$113:B204,2,0)","v":{"$error":"#N/A"}},{"$f":"VLOOKUP('FORMULACIÓN SIGI '!H100,LISTAS!$A$126:$B$145,2,0)","v":{"$error":"#N/A"}},{"$f":"VLOOKUP('FORMULACIÓN SIGI '!I100,LISTAS!$A$147:$B$171,2,0)","v":{"$error":"#N/A"}},{"$f":"+'FORMULACIÓN SIGI '!J100","v":0},{"$f":"+'FORMULACIÓN SIGI '!K100","v":0},{"$f":"+'FORMULACIÓN SIGI '!L100","v":0},{"$f":"VLOOKUP('FORMULACIÓN SIGI '!M100,LISTAS!$A$173:$B$174,2,0)","v":{"$error":"#N/A"}},{"$f":"+'FORMULACIÓN SIGI '!N100","v":0},{"$f":"+'FORMULACIÓN SIGI '!O100","v":0},{"$f":"+'FORMULACIÓN SIGI '!P100","v":"00:00:00"},{"$f":"+'FORMULACIÓN SIGI '!Q100","v":"00:00:00"},{"$f":"+'FORMULACIÓN SIGI '!R100","v":0}]
[{"$f":"VLOOKUP('FORMULACIÓN SIGI '!A101,LISTAS!$A$58:$B$59,2,0)","v":{"$error":"#N/A"}},{"$f":"VLOOKUP('FORMULACIÓN SIGI '!B101,LISTAS!$A$61:$B$65,2,0)","v":{"$error":"#N/A"}},{"$f":"VLOOKUP('FORMULACIÓN SIGI '!C101,LISTAS!$A$67:$B$74,2,0)","v":{"$error":"#N/A"}},{"$f":"VLOOKUP('FORMULACIÓN SIGI '!D101,LISTAS!$A$76:$B$82,2,0)","v":{"$error":"#N/A"}},{"$f":"VLOOKUP('FORMULACIÓN SIGI '!E101,LISTAS!$A$84:$B$91,2,0)","v":{"$error":"#N/A"}},{"$f":"VLOOKUP('FORMULACIÓN SIGI '!F101,LISTAS!$A$93:$B$145,2,0)","v":{"$error":"#N/A"}},{"$f":"VLOOKUP('FORMULACIÓN SIGI '!G101,LISTAS!$A$113:B205,2,0)","v":{"$error":"#N/A"}},{"$f":"VLOOKUP('FORMULACIÓN SIGI '!H101,LISTAS!$A$126:$B$145,2,0)","v":{"$error":"#N/A"}},{"$f":"VLOOKUP('FORMULACIÓN SIGI '!I101,LISTAS!$A$147:$B$171,2,0)","v":{"$error":"#N/A"}},{"$f":"+'FORMULACIÓN SIGI '!J101","v":0},{"$f":"+'FORMULACIÓN SIGI '!K101","v":0},{"$f":"+'FORMULACIÓN SIGI '!L101","v":0},{"$f":"VLOOKUP('FORMULACIÓN SIGI '!M101,LISTAS!$A$173:$B$174,2,0)","v":{"$error":"#N/A"}},{"$f":"+'FORMULACIÓN SIGI '!N101","v":0},{"$f":"+'FORMULACIÓN SIGI '!O101","v":0},{"$f":"+'FORMULACIÓN SIGI '!P101","v":"00:00:00"},{"$f":"+'FORMULACIÓN SIGI '!Q101","v":"00:00:00"},{"$f":"+'FORMULACIÓN SIGI '!R101","v":0}]
[{"$f":"VLOOKUP('FORMULACIÓN SIGI '!A102,LISTAS!$A$58:$B$59,2,0)","v":{"$error":"#N/A"}},{"$f":"VLOOKUP('FORMULACIÓN SIGI '!B102,LISTAS!$A$61:$B$65,2,0)","v":{"$error":"#N/A"}},{"$f":"VLOOKUP('FORMULACIÓN SIGI '!C102,LISTAS!$A$67:$B$74,2,0)","v":{"$error":"#N/A"}},{"$f":"VLOOKUP('FORMULACIÓN SIGI '!D102,LISTAS!$A$76:$B$82,2,0)","v":{"$error":"#N/A"}},{"$f":"VLOOKUP('FORMULACIÓN SIGI '!E102,LISTAS!$A$84:$B$91,2,0)","v":{"$error":"#N/A"}},{"$f":"VLOOKUP('FORMULACIÓN SIGI '!F102,LISTAS!$A$93:$B$145,2,0)","v":{"$error":"#N/A"}},{"$f":"VLOOKUP('FORMULACIÓN SIGI '!G102,LISTAS!$A$113:B206,2,0)","v":{"$error":"#N/A"}},{"$f":"VLOOKUP('FORMULACIÓN SIGI '!H102,LISTAS!$A$126:$B$145,2,0)","v":{"$error":"#N/A"}},{"$f":"VLOOKUP('FORMULACIÓN SIGI '!I102,LISTAS!$A$147:$B$171,2,0)","v":{"$error":"#N/A"}},{"$f":"+'FORMULACIÓN SIGI '!J102","v":0},{"$f":"+'FORMULACIÓN SIGI '!K102","v":0},{"$f":"+'FORMULACIÓN SIGI '!L102","v":0},{"$f":"VLOOKUP('FORMULACIÓN SIGI '!M102,LISTAS!$A$173:$B$174,2,0)","v":{"$error":"#N/A"}},{"$f":"+'FORMULACIÓN SIGI '!N102","v":0},{"$f":"+'FORMULACIÓN SIGI '!O102","v":0},{"$f":"+'FORMULACIÓN SIGI '!P102","v":"00:00:00"},{"$f":"+'FORMULACIÓN SIGI '!Q102","v":"00:00:00"},{"$f":"+'FORMULACIÓN SIGI '!R102","v":0}]
[{"$f":"VLOOKUP('FORMULACIÓN SIGI '!A103,LISTAS!$A$58:$B$59,2,0)","v":{"$error":"#N/A"}},{"$f":"VLOOKUP('FORMULACIÓN SIGI '!B103,LISTAS!$A$61:$B$65,2,0)","v":{"$error":"#N/A"}},{"$f":"VLOOKUP('FORMULACIÓN SIGI '!C103,LISTAS!$A$67:$B$74,2,0)","v":{"$error":"#N/A"}},{"$f":"VLOOKUP('FORMULACIÓN SIGI '!D103,LISTAS!$A$76:$B$82,2,0)","v":{"$error":"#N/A"}},{"$f":"VLOOKUP('FORMULACIÓN SIGI '!E103,LISTAS!$A$84:$B$91,2,0)","v":{"$error":"#N/A"}},{"$f":"VLOOKUP('FORMULACIÓN SIGI '!F103,LISTAS!$A$93:$B$145,2,0)","v":{"$error":"#N/A"}},{"$f":"VLOOKUP('FORMULACIÓN SIGI '!G103,LISTAS!$A$113:B207,2,0)","v":{"$error":"#N/A"}},{"$f":"VLOOKUP('FORMULACIÓN SIGI '!H103,LISTAS!$A$126:$B$145,2,0)","v":{"$error":"#N/A"}},{"$f":"VLOOKUP('FORMULACIÓN SIGI '!I103,LISTAS!$A$147:$B$171,2,0)","v":{"$error":"#N/A"}},{"$f":"+'FORMULACIÓN SIGI '!J103","v":0},{"$f":"+'FORMULACIÓN SIGI '!K103","v":0},{"$f":"+'FORMULACIÓN SIGI '!L103","v":0},{"$f":"VLOOKUP('FORMULACIÓN SIGI '!M103,LISTAS!$A$173:$B$174,2,0)","v":{"$error":"#N/A"}},{"$f":"+'FORMULACIÓN SIGI '!N103","v":0},{"$f":"+'FORMULACIÓN SIGI '!O103","v":0},{"$f":"+'FORMULACIÓN SIGI '!P103","v":"00:00:00"},{"$f":"+'FORMULACIÓN SIGI '!Q103","v":"00:00:00"},{"$f":"+'FORMULACIÓN SIGI '!R103","v":0}]
[{"$f":"VLOOKUP('FORMULACIÓN SIGI '!A104,LISTAS!$A$58:$B$59,2,0)","v":{"$error":"#N/A"}},{"$f":"VLOOKUP('FORMULACIÓN SIGI '!B104,LISTAS!$A$61:$B$65,2,0)","v":{"$error":"#N/A"}},{"$f":"VLOOKUP('FORMULACIÓN SIGI '!C104,LISTAS!$A$67:$B$74,2,0)","v":{"$error":"#N/A"}},{"$f":"VLOOKUP('FORMULACIÓN SIGI '!D104,LISTAS!$A$76:$B$82,2,0)","v":{"$error":"#N/A"}},{"$f":"VLOOKUP('FORMULACIÓN SIGI '!E104,LISTAS!$A$84:$B$91,2,0)","v":{"$error":"#N/A"}},{"$f":"VLOOKUP('FORMULACIÓN SIGI '!F104,LISTAS!$A$93:$B$145,2,0)","v":{"$error":"#N/A"}},{"$f":"VLOOKUP('FORMULACIÓN SIGI '!G104,LISTAS!$A$113:B208,2,0)","v":{"$error":"#N/A"}},{"$f":"VLOOKUP('FORMULACIÓN SIGI '!H104,LISTAS!$A$126:$B$145,2,0)","v":{"$error":"#N/A"}},{"$f":"VLOOKUP('FORMULACIÓN SIGI '!I104,LISTAS!$A$147:$B$171,2,0)","v":{"$error":"#N/A"}},{"$f":"+'FORMULACIÓN SIGI '!J104","v":0},{"$f":"+'FORMULACIÓN SIGI '!K104","v":0},{"$f":"+'FORMULACIÓN SIGI '!L104","v":0},{"$f":"VLOOKUP('FORMULACIÓN SIGI '!M104,LISTAS!$A$173:$B$174,2,0)","v":{"$error":"#N/A"}},{"$f":"+'FORMULACIÓN SIGI '!N104","v":0},{"$f":"+'FORMULACIÓN SIGI '!O104","v":0},{"$f":"+'FORMULACIÓN SIGI '!P104","v":"00:00:00"},{"$f":"+'FORMULACIÓN SIGI '!Q104","v":"00:00:00"},{"$f":"+'FORMULACIÓN SIGI '!R104","v":0}]
[{"$f":"VLOOKUP('FORMULACIÓN SIGI '!A105,LISTAS!$A$58:$B$59,2,0)","v":{"$error":"#N/A"}},{"$f":"VLOOKUP('FORMULACIÓN SIGI '!B105,LISTAS!$A$61:$B$65,2,0)","v":{"$error":"#N/A"}},{"$f":"VLOOKUP('FORMULACIÓN SIGI '!C105,LISTAS!$A$67:$B$74,2,0)","v":{"$error":"#N/A"}},{"$f":"VLOOKUP('FORMULACIÓN SIGI '!D105,LISTAS!$A$76:$B$82,2,0)","v":{"$error":"#N/A"}},{"$f":"VLOOKUP('FORMULACIÓN SIGI '!E105,LISTAS!$A$84:$B$91,2,0)","v":{"$error":"#N/A"}},{"$f":"VLOOKUP('FORMULACIÓN SIGI '!F105,LISTAS!$A$93:$B$145,2,0)","v":{"$error":"#N/A"}},{"$f":"VLOOKUP('FORMULACIÓN SIGI '!G105,LISTAS!$A$113:B209,2,0)","v":{"$error":"#N/A"}},{"$f":"VLOOKUP('FORMULACIÓN SIGI '!H105,LISTAS!$A$126:$B$145,2,0)","v":{"$error":"#N/A"}},{"$f":"VLOOKUP('FORMULACIÓN SIGI '!I105,LISTAS!$A$147:$B$171,2,0)","v":{"$error":"#N/A"}},{"$f":"+'FORMULACIÓN SIGI '!J105","v":0},{"$f":"+'FORMULACIÓN SIGI '!K105","v":0},{"$f":"+'FORMULACIÓN SIGI '!L105","v":0},{"$f":"VLOOKUP('FORMULACIÓN SIGI '!M105,LISTAS!$A$173:$B$174,2,0)","v":{"$error":"#N/A"}},{"$f":"+'FORMULACIÓN SIGI '!N105","v":0},{"$f":"+'FORMULACIÓN SIGI '!O105","v":0},{"$f":"+'FORMULACIÓN SIGI '!P105","v":"00:00:00"},{"$f":"+'FORMULACIÓN SIGI '!Q105","v":"00:00:00"},{"$f":"+'FORMULACIÓN SIGI '!R105","v":0}]
[{"$f":"VLOOKUP('FORMULACIÓN SIGI '!A106,LISTAS!$A$58:$B$59,2,0)","v":{"$error":"#N/A"}},{"$f":"VLOOKUP('FORMULACIÓN SIGI '!B106,LISTAS!$A$61:$B$65,2,0)","v":{"$error":"#N/A"}},{"$f":"VLOOKUP('FORMULACIÓN SIGI '!C106,LISTAS!$A$67:$B$74,2,0)","v":{"$error":"#N/A"}},{"$f":"VLOOKUP('FORMULACIÓN SIGI '!D106,LISTAS!$A$76:$B$82,2,0)","v":{"$error":"#N/A"}},{"$f":"VLOOKUP('FORMULACIÓN SIGI '!E106,LISTAS!$A$84:$B$91,2,0)","v":{"$error":"#N/A"}},{"$f":"VLOOKUP('FORMULACIÓN SIGI '!F106,LISTAS!$A$93:$B$145,2,0)","v":{"$error":"#N/A"}},{"$f":"VLOOKUP('FORMULACIÓN SIGI '!G106,LISTAS!$A$113:B210,2,0)","v":{"$error":"#N/A"}},{"$f":"VLOOKUP('FORMULACIÓN SIGI '!H106,LISTAS!$A$126:$B$145,2,0)","v":{"$error":"#N/A"}},{"$f":"VLOOKUP('FORMULACIÓN SIGI '!I106,LISTAS!$A$147:$B$171,2,0)","v":{"$error":"#N/A"}},{"$f":"+'FORMULACIÓN SIGI '!J106","v":0},{"$f":"+'FORMULACIÓN SIGI '!K106","v":0},{"$f":"+'FORMULACIÓN SIGI '!L106","v":0},{"$f":"VLOOKUP('FORMULACIÓN SIGI '!M106,LISTAS!$A$173:$B$174,2,0)","v":{"$error":"#N/A"}},{"$f":"+'FORMULACIÓN SIGI '!N106","v":0},{"$f":"+'FORMULACIÓN SIGI '!O106","v":0},{"$f":"+'FORMULACIÓN SIGI '!P106","v":"00:00:00"},{"$f":"+'FORMULACIÓN SIGI '!Q106","v":"00:00:00"},{"$f":"+'FORMULACIÓN SIGI '!R106","v":0}]
[{"$f":"VLOOKUP('FORMULACIÓN SIGI '!A107,LISTAS!$A$58:$B$59,2,0)","v":{"$error":"#N/A"}},{"$f":"VLOOKUP('FORMULACIÓN SIGI '!B107,LISTAS!$A$61:$B$65,2,0)","v":{"$error":"#N/A"}},{"$f":"VLOOKUP('FORMULACIÓN SIGI '!C107,LISTAS!$A$67:$B$74,2,0)","v":{"$error":"#N/A"}},{"$f":"VLOOKUP('FORMULACIÓN SIGI '!D107,LISTAS!$A$76:$B$82,2,0)","v":{"$error":"#N/A"}},{"$f":"VLOOKUP('FORMULACIÓN SIGI '!E107,LISTAS!$A$84:$B$91,2,0)","v":{"$error":"#N/A"}},{"$f":"VLOOKUP('FORMULACIÓN SIGI '!F107,LISTAS!$A$93:$B$145,2,0)","v":{"$error":"#N/A"}},{"$f":"VLOOKUP('FORMULACIÓN SIGI '!G107,LISTAS!$A$113:B211,2,0)","v":{"$error":"#N/A"}},{"$f":"VLOOKUP('FORMULACIÓN SIGI '!H107,LISTAS!$A$126:$B$145,2,0)","v":{"$error":"#N/A"}},{"$f":"VLOOKUP('FORMULACIÓN SIGI '!I107,LISTAS!$A$147:$B$171,2,0)","v":{"$error":"#N/A"}},{"$f":"+'FORMULACIÓN SIGI '!J107","v":0},{"$f":"+'FORMULACIÓN SIGI '!K107","v":0},{"$f":"+'FORMULACIÓN SIGI '!L107","v":0},{"$f":"VLOOKUP('FORMULACIÓN SIGI '!M107,LISTAS!$A$173:$B$174,2,0)","v":{"$error":"#N/A"}},{"$f":"+'FORMULACIÓN SIGI '!N107","v":0},{"$f":"+'FORMULACIÓN SIGI '!O107","v":0},{"$f":"+'FORMULACIÓN SIGI '!P107","v":"00:00:00"},{"$f":"+'FORMULACIÓN SIGI '!Q107","v":"00:00:00"},{"$f":"+'FORMULACIÓN SIGI '!R107","v":0}]
[{"$f":"VLOOKUP('FORMULACIÓN SIGI '!A108,LISTAS!$A$58:$B$59,2,0)","v":{"$error":"#N/A"}},{"$f":"VLOOKUP('FORMULACIÓN SIGI '!B108,LISTAS!$A$61:$B$65,2,0)","v":{"$error":"#N/A"}},{"$f":"VLOOKUP('FORMULACIÓN SIGI '!C108,LISTAS!$A$67:$B$74,2,0)","v":{"$error":"#N/A"}},{"$f":"VLOOKUP('FORMULACIÓN SIGI '!D108,LISTAS!$A$76:$B$82,2,0)","v":{"$error":"#N/A"}},{"$f":"VLOOKUP('FORMULACIÓN SIGI '!E108,LISTAS!$A$84:$B$91,2,0)","v":{"$error":"#N/A"}},{"$f":"VLOOKUP('FORMULACIÓN SIGI '!F108,LISTAS!$A$93:$B$145,2,0)","v":{"$error":"#N/A"}},{"$f":"VLOOKUP('FORMULACIÓN SIGI '!G108,LISTAS!$A$113:B212,2,0)","v":{"$error":"#N/A"}},{"$f":"VLOOKUP('FORMULACIÓN SIGI '!H108,LISTAS!$A$126:$B$145,2,0)","v":{"$error":"#N/A"}},{"$f":"VLOOKUP('FORMULACIÓN SIGI '!I108,LISTAS!$A$147:$B$171,2,0)","v":{"$error":"#N/A"}},{"$f":"+'FORMULACIÓN SIGI '!J108","v":0},{"$f":"+'FORMULACIÓN SIGI '!K108","v":0},{"$f":"+'FORMULACIÓN SIGI '!L108","v":0},{"$f":"VLOOKUP('FORMULACIÓN SIGI '!M108,LISTAS!$A$173:$B$174,2,0)","v":{"$error":"#N/A"}},{"$f":"+'FORMULACIÓN SIGI '!N108","v":0},{"$f":"+'FORMULACIÓN SIGI '!O108","v":0},{"$f":"+'FORMULACIÓN SIGI '!P108","v":"00:00:00"},{"$f":"+'FORMULACIÓN SIGI '!Q108","v":"00:00:00"},{"$f":"+'FORMULACIÓN SIGI '!R108","v":0}]
[{"$f":"VLOOKUP('FORMULACIÓN SIGI '!A109,LISTAS!$A$58:$B$59,2,0)","v":{"$error":"#N/A"}},{"$f":"VLOOKUP('FORMULACIÓN SIGI '!B109,LISTAS!$A$61:$B$65,2,0)","v":{"$error":"#N/A"}},{"$f":"VLOOKUP('FORMULACIÓN SIGI '!C109,LISTAS!$A$67:$B$74,2,0)","v":{"$error":"#N/A"}},{"$f":"VLOOKUP('FORMULACIÓN SIGI '!D109,LISTAS!$A$76:$B$82,2,0)","v":{"$error":"#N/A"}},{"$f":"VLOOKUP('FORMULACIÓN SIGI '!E109,LISTAS!$A$84:$B$91,2,0)","v":{"$error":"#N/A"}},{"$f":"VLOOKUP('FORMULACIÓN SIGI '!F109,LISTAS!$A$93:$B$145,2,0)","v":{"$error":"#N/A"}},{"$f":"VLOOKUP('FORMULACIÓN SIGI '!G109,LISTAS!$A$113:B213,2,0)","v":{"$error":"#N/A"}},{"$f":"VLOOKUP('FORMULACIÓN SIGI '!H109,LISTAS!$A$126:$B$145,2,0)","v":{"$error":"#N/A"}},{"$f":"VLOOKUP('FORMULACIÓN SIGI '!I109,LISTAS!$A$147:$B$171,2,0)","v":{"$error":"#N/A"}},{"$f":"+'FORMULACIÓN SIGI '!J109","v":0},{"$f":"+'FORMULACIÓN SIGI '!K109","v":0},{"$f":"+'FORMULACIÓN SIGI '!L109","v":0},{"$f":"VLOOKUP('FORMULACIÓN SIGI '!M109,LISTAS!$A$173:$B$174,2,0)","v":{"$error":"#N/A"}},{"$f":"+'FORMULACIÓN SIGI '!N109","v":0},{"$f":"+'FORMULACIÓN SIGI '!O109","v":0},{"$f":"+'FORMULACIÓN SIGI '!P109","v":"00:00:00"},{"$f":"+'FORMULACIÓN SIGI '!Q109","v":"00:00:00"},{"$f":"+'FORMULACIÓN SIGI '!R109","v":0}]
[{"$f":"VLOOKUP('FORMULACIÓN SIGI '!A110,LISTAS!$A$58:$B$59,2,0)","v":{"$error":"#N/A"}},{"$f":"VLOOKUP('FORMULACIÓN SIGI '!B110,LISTAS!$A$61:$B$65,2,0)","v":{"$error":"#N/A"}},{"$f":"VLOOKUP('FORMULACIÓN SIGI '!C110,LISTAS!$A$67:$B$74,2,0)","v":{"$error":"#N/A"}},{"$f":"VLOOKUP('FORMULACIÓN SIGI '!D110,LISTAS!$A$76:$B$82,2,0)","v":{"$error":"#N/A"}},{"$f":"VLOOKUP('FORMULACIÓN SIGI '!E110,LISTAS!$A$84:$B$91,2,0)","v":{"$error":"#N/A"}},{"$f":"VLOOKUP('FORMULACIÓN SIGI '!F110,LISTAS!$A$93:$B$145,2,0)","v":{"$error":"#N/A"}},{"$f":"VLOOKUP('FORMULACIÓN SIGI '!G110,LISTAS!$A$113:B214,2,0)","v":{"$error":"#N/A"}},{"$f":"VLOOKUP('FORMULACIÓN SIGI '!H110,LISTAS!$A$126:$B$145,2,0)","v":{"$error":"#N/A"}},{"$f":"VLOOKUP('FORMULACIÓN SIGI '!I110,LISTAS!$A$147:$B$171,2,0)","v":{"$error":"#N/A"}},{"$f":"+'FORMULACIÓN SIGI '!J110","v":0},{"$f":"+'FORMULACIÓN SIGI '!K110","v":0},{"$f":"+'FORMULACIÓN SIGI '!L110","v":0},{"$f":"VLOOKUP('FORMULACIÓN SIGI '!M110,LISTAS!$A$173:$B$174,2,0)","v":{"$error":"#N/A"}},{"$f":"+'FORMULACIÓN SIGI '!N110","v":0},{"$f":"+'FORMULACIÓN SIGI '!O110","v":0},{"$f":"+'FORMULACIÓN SIGI '!P110","v":"00:00:00"},{"$f":"+'FORMULACIÓN SIGI '!Q110","v":"00:00:00"},{"$f":"+'FORMULACIÓN SIGI '!R110","v":0}]
[{"$f":"VLOOKUP('FORMULACIÓN SIGI '!A111,LISTAS!$A$58:$B$59,2,0)","v":{"$error":"#N/A"}},{"$f":"VLOOKUP('FORMULACIÓN SIGI '!B111,LISTAS!$A$61:$B$65,2,0)","v":{"$error":"#N/A"}},{"$f":"VLOOKUP('FORMULACIÓN SIGI '!C111,LISTAS!$A$67:$B$74,2,0)","v":{"$error":"#N/A"}},{"$f":"VLOOKUP('FORMULACIÓN SIGI '!D111,LISTAS!$A$76:$B$82,2,0)","v":{"$error":"#N/A"}},{"$f":"VLOOKUP('FORMULACIÓN SIGI '!E111,LISTAS!$A$84:$B$91,2,0)","v":{"$error":"#N/A"}},{"$f":"VLOOKUP('FORMULACIÓN SIGI '!F111,LISTAS!$A$93:$B$145,2,0)","v":{"$error":"#N/A"}},{"$f":"VLOOKUP('FORMULACIÓN SIGI '!G111,LISTAS!$A$113:B215,2,0)","v":{"$error":"#N/A"}},{"$f":"VLOOKUP('FORMULACIÓN SIGI '!H111,LISTAS!$A$126:$B$145,2,0)","v":{"$error":"#N/A"}},{"$f":"VLOOKUP('FORMULACIÓN SIGI '!I111,LISTAS!$A$147:$B$171,2,0)","v":{"$error":"#N/A"}},{"$f":"+'FORMULACIÓN SIGI '!J111","v":0},{"$f":"+'FORMULACIÓN SIGI '!K111","v":0},{"$f":"+'FORMULACIÓN SIGI '!L111","v":0},{"$f":"VLOOKUP('FORMULACIÓN SIGI '!M111,LISTAS!$A$173:$B$174,2,0)","v":{"$error":"#N/A"}},{"$f":"+'FORMULACIÓN SIGI '!N111","v":0},{"$f":"+'FORMULACIÓN SIGI '!O111","v":0},{"$f":"+'FORMULACIÓN SIGI '!P111","v":"00:00:00"},{"$f":"+'FORMULACIÓN SIGI '!Q111","v":"00:00:00"},{"$f":"+'FORMULACIÓN SIGI '!R111","v":0}]
[{"$f":"VLOOKUP('FORMULACIÓN SIGI '!A112,LISTAS!$A$58:$B$59,2,0)","v":{"$error":"#N/A"}},{"$f":"VLOOKUP('FORMULACIÓN SIGI '!B112,LISTAS!$A$61:$B$65,2,0)","v":{"$error":"#N/A"}},{"$f":"VLOOKUP('FORMULACIÓN SIGI '!C112,LISTAS!$A$67:$B$74,2,0)","v":{"$error":"#N/A"}},{"$f":"VLOOKUP('FORMULACIÓN SIGI '!D112,LISTAS!$A$76:$B$82,2,0)","v":{"$error":"#N/A"}},{"$f":"VLOOKUP('FORMULACIÓN SIGI '!E112,LISTAS!$A$84:$B$91,2,0)","v":{"$error":"#N/A"}},{"$f":"VLOOKUP('FORMULACIÓN SIGI '!F112,LISTAS!$A$93:$B$145,2,0)","v":{"$error":"#N/A"}},{"$f":"VLOOKUP('FORMULACIÓN SIGI '!G112,LISTAS!$A$113:B216,2,0)","v":{"$error":"#N/A"}},{"$f":"VLOOKUP('FORMULACIÓN SIGI '!H112,LISTAS!$A$126:$B$145,2,0)","v":{"$error":"#N/A"}},{"$f":"VLOOKUP('FORMULACIÓN SIGI '!I112,LISTAS!$A$147:$B$171,2,0)","v":{"$error":"#N/A"}},{"$f":"+'FORMULACIÓN SIGI '!J112","v":0},{"$f":"+'FORMULACIÓN SIGI '!K112","v":0},{"$f":"+'FORMULACIÓN SIGI '!L112","v":0},{"$f":"VLOOKUP('FORMULACIÓN SIGI '!M112,LISTAS!$A$173:$B$174,2,0)","v":{"$error":"#N/A"}},{"$f":"+'FORMULACIÓN SIGI '!N112","v":0},{"$f":"+'FORMULACIÓN SIGI '!O112","v":0},{"$f":"+'FORMULACIÓN SIGI '!P112","v":"00:00:00"},{"$f":"+'FORMULACIÓN SIGI '!Q112","v":"00:00:00"},{"$f":"+'FORMULACIÓN SIGI '!R112","v":0}]
[{"$f":"VLOOKUP('FORMULACIÓN SIGI '!A113,LISTAS!$A$58:$B$59,2,0)","v":{"$error":"#N/A"}},{"$f":"VLOOKUP('FORMULACIÓN SIGI '!B113,LISTAS!$A$61:$B$65,2,0)","v":{"$error":"#N/A"}},{"$f":"VLOOKUP('FORMULACIÓN SIGI '!C113,LISTAS!$A$67:$B$74,2,0)","v":{"$error":"#N/A"}},{"$f":"VLOOKUP('FORMULACIÓN SIGI '!D113,LISTAS!$A$76:$B$82,2,0)","v":{"$error":"#N/A"}},{"$f":"VLOOKUP('FORMULACIÓN SIGI '!E113,LISTAS!$A$84:$B$91,2,0)","v":{"$error":"#N/A"}},{"$f":"VLOOKUP('FORMULACIÓN SIGI '!F113,LISTAS!$A$93:$B$145,2,0)","v":{"$error":"#N/A"}},{"$f":"VLOOKUP('FORMULACIÓN SIGI '!G113,LISTAS!$A$113:B217,2,0)","v":{"$error":"#N/A"}},{"$f":"VLOOKUP('FORMULACIÓN SIGI '!H113,LISTAS!$A$126:$B$145,2,0)","v":{"$error":"#N/A"}},{"$f":"VLOOKUP('FORMULACIÓN SIGI '!I113,LISTAS!$A$147:$B$171,2,0)","v":{"$error":"#N/A"}},{"$f":"+'FORMULACIÓN SIGI '!J113","v":0},{"$f":"+'FORMULACIÓN SIGI '!K113","v":0},{"$f":"+'FORMULACIÓN SIGI '!L113","v":0},{"$f":"VLOOKUP('FORMULACIÓN SIGI '!M113,LISTAS!$A$173:$B$174,2,0)","v":{"$error":"#N/A"}},{"$f":"+'FORMULACIÓN SIGI '!N113","v":0},{"$f":"+'FORMULACIÓN SIGI '!O113","v":0},{"$f":"+'FORMULACIÓN SIGI '!P113","v":"00:00:00"},{"$f":"+'FORMULACIÓN SIGI '!Q113","v":"00:00:00"},{"$f":"+'FORMULACIÓN SIGI '!R113","v":0}]
[{"$f":"VLOOKUP('FORMULACIÓN SIGI '!A114,LISTAS!$A$58:$B$59,2,0)","v":{"$error":"#N/A"}},{"$f":"VLOOKUP('FORMULACIÓN SIGI '!B114,LISTAS!$A$61:$B$65,2,0)","v":{"$error":"#N/A"}},{"$f":"VLOOKUP('FORMULACIÓN SIGI '!C114,LISTAS!$A$67:$B$74,2,0)","v":{"$error":"#N/A"}},{"$f":"VLOOKUP('FORMULACIÓN SIGI '!D114,LISTAS!$A$76:$B$82,2,0)","v":{"$error":"#N/A"}},{"$f":"VLOOKUP('FORMULACIÓN SIGI '!E114,LISTAS!$A$84:$B$91,2,0)","v":{"$error":"#N/A"}},{"$f":"VLOOKUP('FORMULACIÓN SIGI '!F114,LISTAS!$A$93:$B$145,2,0)","v":{"$error":"#N/A"}},{"$f":"VLOOKUP('FORMULACIÓN SIGI '!G114,LISTAS!$A$113:B218,2,0)","v":{"$error":"#N/A"}},{"$f":"VLOOKUP('FORMULACIÓN SIGI '!H114,LISTAS!$A$126:$B$145,2,0)","v":{"$error":"#N/A"}},{"$f":"VLOOKUP('FORMULACIÓN SIGI '!I114,LISTAS!$A$147:$B$171,2,0)","v":{"$error":"#N/A"}},{"$f":"+'FORMULACIÓN SIGI '!J114","v":0},{"$f":"+'FORMULACIÓN SIGI '!K114","v":0},{"$f":"+'FORMULACIÓN SIGI '!L114","v":0},{"$f":"VLOOKUP('FORMULACIÓN SIGI '!M114,LISTAS!$A$173:$B$174,2,0)","v":{"$error":"#N/A"}},{"$f":"+'FORMULACIÓN SIGI '!N114","v":0},{"$f":"+'FORMULACIÓN SIGI '!O114","v":0},{"$f":"+'FORMULACIÓN SIGI '!P114","v":"00:00:00"},{"$f":"+'FORMULACIÓN SIGI '!Q114","v":"00:00:00"},{"$f":"+'FORMULACIÓN SIGI '!R114","v":0}]
[{"$f":"VLOOKUP('FORMULACIÓN SIGI '!A115,LISTAS!$A$58:$B$59,2,0)","v":{"$error":"#N/A"}},{"$f":"VLOOKUP('FORMULACIÓN SIGI '!B115,LISTAS!$A$61:$B$65,2,0)","v":{"$error":"#N/A"}},{"$f":"VLOOKUP('FORMULACIÓN SIGI '!C115,LISTAS!$A$67:$B$74,2,0)","v":{"$error":"#N/A"}},{"$f":"VLOOKUP('FORMULACIÓN SIGI '!D115,LISTAS!$A$76:$B$82,2,0)","v":{"$error":"#N/A"}},{"$f":"VLOOKUP('FORMULACIÓN SIGI '!E115,LISTAS!$A$84:$B$91,2,0)","v":{"$error":"#N/A"}},{"$f":"VLOOKUP('FORMULACIÓN SIGI '!F115,LISTAS!$A$93:$B$145,2,0)","v":{"$error":"#N/A"}},{"$f":"VLOOKUP('FORMULACIÓN SIGI '!G115,LISTAS!$A$113:B219,2,0)","v":{"$error":"#N/A"}},{"$f":"VLOOKUP('FORMULACIÓN SIGI '!H115,LISTAS!$A$126:$B$145,2,0)","v":{"$error":"#N/A"}},{"$f":"VLOOKUP('FORMULACIÓN SIGI '!I115,LISTAS!$A$147:$B$171,2,0)","v":{"$error":"#N/A"}},{"$f":"+'FORMULACIÓN SIGI '!J115","v":0},{"$f":"+'FORMULACIÓN SIGI '!K115","v":0},{"$f":"+'FORMULACIÓN SIGI '!L115","v":0},{"$f":"VLOOKUP('FORMULACIÓN SIGI '!M115,LISTAS!$A$173:$B$174,2,0)","v":{"$error":"#N/A"}},{"$f":"+'FORMULACIÓN SIGI '!N115","v":0},{"$f":"+'FORMULACIÓN SIGI '!O115","v":0},{"$f":"+'FORMULACIÓN SIGI '!P115","v":"00:00:00"},{"$f":"+'FORMULACIÓN SIGI '!Q115","v":"00:00:00"},{"$f":"+'FORMULACIÓN SIGI '!R115","v":0}]
[{"$f":"VLOOKUP('FORMULACIÓN SIGI '!A116,LISTAS!$A$58:$B$59,2,0)","v":{"$error":"#N/A"}},{"$f":"VLOOKUP('FORMULACIÓN SIGI '!B116,LISTAS!$A$61:$B$65,2,0)","v":{"$error":"#N/A"}},{"$f":"VLOOKUP('FORMULACIÓN SIGI '!C116,LISTAS!$A$67:$B$74,2,0)","v":{"$error":"#N/A"}},{"$f":"VLOOKUP('FORMULACIÓN SIGI '!D116,LISTAS!$A$76:$B$82,2,0)","v":{"$error":"#N/A"}},{"$f":"VLOOKUP('FORMULACIÓN SIGI '!E116,LISTAS!$A$84:$B$91,2,0)","v":{"$error":"#N/A"}},{"$f":"VLOOKUP('FORMULACIÓN SIGI '!F116,LISTAS!$A$93:$B$145,2,0)","v":{"$error":"#N/A"}},{"$f":"VLOOKUP('FORMULACIÓN SIGI '!G116,LISTAS!$A$113:B220,2,0)","v":{"$error":"#N/A"}},{"$f":"VLOOKUP('FORMULACIÓN SIGI '!H116,LISTAS!$A$126:$B$145,2,0)","v":{"$error":"#N/A"}},{"$f":"VLOOKUP('FORMULACIÓN SIGI '!I116,LISTAS!$A$147:$B$171,2,0)","v":{"$error":"#N/A"}},{"$f":"+'FORMULACIÓN SIGI '!J116","v":0},{"$f":"+'FORMULACIÓN SIGI '!K116","v":0},{"$f":"+'FORMULACIÓN SIGI '!L116","v":0},{"$f":"VLOOKUP('FORMULACIÓN SIGI '!M116,LISTAS!$A$173:$B$174,2,0)","v":{"$error":"#N/A"}},{"$f":"+'FORMULACIÓN SIGI '!N116","v":0},{"$f":"+'FORMULACIÓN SIGI '!O116","v":0},{"$f":"+'FORMULACIÓN SIGI '!P116","v":"00:00:00"},{"$f":"+'FORMULACIÓN SIGI '!Q116","v":"00:00:00"},{"$f":"+'FORMULACIÓN SIGI '!R116","v":0}]
[{"$f":"VLOOKUP('FORMULACIÓN SIGI '!A117,LISTAS!$A$58:$B$59,2,0)","v":{"$error":"#N/A"}},{"$f":"VLOOKUP('FORMULACIÓN SIGI '!B117,LISTAS!$A$61:$B$65,2,0)","v":{"$error":"#N/A"}},{"$f":"VLOOKUP('FORMULACIÓN SIGI '!C117,LISTAS!$A$67:$B$74,2,0)","v":{"$error":"#N/A"}},{"$f":"VLOOKUP('FORMULACIÓN SIGI '!D117,LISTAS!$A$76:$B$82,2,0)","v":{"$error":"#N/A"}},{"$f":"VLOOKUP('FORMULACIÓN SIGI '!E117,LISTAS!$A$84:$B$91,2,0)","v":{"$error":"#N/A"}},{"$f":"VLOOKUP('FORMULACIÓN SIGI '!F117,LISTAS!$A$93:$B$145,2,0)","v":{"$error":"#N/A"}},{"$f":"VLOOKUP('FORMULACIÓN SIGI '!G117,LISTAS!$A$113:B221,2,0)","v":{"$error":"#N/A"}},{"$f":"VLOOKUP('FORMULACIÓN SIGI '!H117,LISTAS!$A$126:$B$145,2,0)","v":{"$error":"#N/A"}},{"$f":"VLOOKUP('FORMULACIÓN SIGI '!I117,LISTAS!$A$147:$B$171,2,0)","v":{"$error":"#N/A"}},{"$f":"+'FORMULACIÓN SIGI '!J117","v":0},{"$f":"+'FORMULACIÓN SIGI '!K117","v":0},{"$f":"+'FORMULACIÓN SIGI '!L117","v":0},{"$f":"VLOOKUP('FORMULACIÓN SIGI '!M117,LISTAS!$A$173:$B$174,2,0)","v":{"$error":"#N/A"}},{"$f":"+'FORMULACIÓN SIGI '!N117","v":0},{"$f":"+'FORMULACIÓN SIGI '!O117","v":0},{"$f":"+'FORMULACIÓN SIGI '!P117","v":"00:00:00"},{"$f":"+'FORMULACIÓN SIGI '!Q117","v":"00:00:00"},{"$f":"+'FORMULACIÓN SIGI '!R117","v":0}]
[{"$f":"VLOOKUP('FORMULACIÓN SIGI '!A118,LISTAS!$A$58:$B$59,2,0)","v":{"$error":"#N/A"}},{"$f":"VLOOKUP('FORMULACIÓN SIGI '!B118,LISTAS!$A$61:$B$65,2,0)","v":{"$error":"#N/A"}},{"$f":"VLOOKUP('FORMULACIÓN SIGI '!C118,LISTAS!$A$67:$B$74,2,0)","v":{"$error":"#N/A"}},{"$f":"VLOOKUP('FORMULACIÓN SIGI '!D118,LISTAS!$A$76:$B$82,2,0)","v":{"$error":"#N/A"}},{"$f":"VLOOKUP('FORMULACIÓN SIGI '!E118,LISTAS!$A$84:$B$91,2,0)","v":{"$error":"#N/A"}},{"$f":"VLOOKUP('FORMULACIÓN SIGI '!F118,LISTAS!$A$93:$B$145,2,0)","v":{"$error":"#N/A"}},{"$f":"VLOOKUP('FORMULACIÓN SIGI '!G118,LISTAS!$A$113:B222,2,0)","v":{"$error":"#N/A"}},{"$f":"VLOOKUP('FORMULACIÓN SIGI '!H118,LISTAS!$A$126:$B$145,2,0)","v":{"$error":"#N/A"}},{"$f":"VLOOKUP('FORMULACIÓN SIGI '!I118,LISTAS!$A$147:$B$171,2,0)","v":{"$error":"#N/A"}},{"$f":"+'FORMULACIÓN SIGI '!J118","v":0},{"$f":"+'FORMULACIÓN SIGI '!K118","v":0},{"$f":"+'FORMULACIÓN SIGI '!L118","v":0},{"$f":"VLOOKUP('FORMULACIÓN SIGI '!M118,LISTAS!$A$173:$B$174,2,0)","v":{"$error":"#N/A"}},{"$f":"+'FORMULACIÓN SIGI '!N118","v":0},{"$f":"+'FORMULACIÓN SIGI '!O118","v":0},{"$f":"+'FORMULACIÓN SIGI '!P118","v":"00:00:00"},{"$f":"+'FORMULACIÓN SIGI '!Q118","v":"00:00:00"},{"$f":"+'FORMULACIÓN SIGI '!R118","v":0}]
[{"$f":"VLOOKUP('FORMULACIÓN SIGI '!A119,LISTAS!$A$58:$B$59,2,0)","v":{"$error":"#N/A"}},{"$f":"VLOOKUP('FORMULACIÓN SIGI '!B119,LISTAS!$A$61:$B$65,2,0)","v":{"$error":"#N/A"}},{"$f":"VLOOKUP('FORMULACIÓN SIGI '!C119,LISTAS!$A$67:$B$74,2,0)","v":{"$error":"#N/A"}},{"$f":"VLOOKUP('FORMULACIÓN SIGI '!D119,LISTAS!$A$76:$B$82,2,0)","v":{"$error":"#N/A"}},{"$f":"VLOOKUP('FORMULACIÓN SIGI '!E119,LISTAS!$A$84:$B$91,2,0)","v":{"$error":"#N/A"}},{"$f":"VLOOKUP('FORMULACIÓN SIGI '!F119,LISTAS!$A$93:$B$145,2,0)","v":{"$error":"#N/A"}},{"$f":"VLOOKUP('FORMULACIÓN SIGI '!G119,LISTAS!$A$113:B223,2,0)","v":{"$error":"#N/A"}},{"$f":"VLOOKUP('FORMULACIÓN SIGI '!H119,LISTAS!$A$126:$B$145,2,0)","v":{"$error":"#N/A"}},{"$f":"VLOOKUP('FORMULACIÓN SIGI '!I119,LISTAS!$A$147:$B$171,2,0)","v":{"$error":"#N/A"}},{"$f":"+'FORMULACIÓN SIGI '!J119","v":0},{"$f":"+'FORMULACIÓN SIGI '!K119","v":0},{"$f":"+'FORMULACIÓN SIGI '!L119","v":0},{"$f":"VLOOKUP('FORMULACIÓN SIGI '!M119,LISTAS!$A$173:$B$174,2,0)","v":{"$error":"#N/A"}},{"$f":"+'FORMULACIÓN SIGI '!N119","v":0},{"$f":"+'FORMULACIÓN SIGI '!O119","v":0},{"$f":"+'FORMULACIÓN SIGI '!P119","v":"00:00:00"},{"$f":"+'FORMULACIÓN SIGI '!Q119","v":"00:00:00"},{"$f":"+'FORMULACIÓN SIGI '!R119","v":0}]
[{"$f":"VLOOKUP('FORMULACIÓN SIGI '!A120,LISTAS!$A$58:$B$59,2,0)","v":{"$error":"#N/A"}},{"$f":"VLOOKUP('FORMULACIÓN SIGI '!B120,LISTAS!$A$61:$B$65,2,0)","v":{"$error":"#N/A"}},{"$f":"VLOOKUP('FORMULACIÓN SIGI '!C120,LISTAS!$A$67:$B$74,2,0)","v":{"$error":"#N/A"}},{"$f":"VLOOKUP('FORMULACIÓN SIGI '!D120,LISTAS!$A$76:$B$82,2,0)","v":{"$error":"#N/A"}},{"$f":"VLOOKUP('FORMULACIÓN SIGI '!E120,LISTAS!$A$84:$B$91,2,0)","v":{"$error":"#N/A"}},{"$f":"VLOOKUP('FORMULACIÓN SIGI '!F120,LISTAS!$A$93:$B$145,2,0)","v":{"$error":"#N/A"}},{"$f":"VLOOKUP('FORMULACIÓN SIGI '!G120,LISTAS!$A$113:B224,2,0)","v":{"$error":"#N/A"}},{"$f":"VLOOKUP('FORMULACIÓN SIGI '!H120,LISTAS!$A$126:$B$145,2,0)","v":{"$error":"#N/A"}},{"$f":"VLOOKUP('FORMULACIÓN SIGI '!I120,LISTAS!$A$147:$B$171,2,0)","v":{"$error":"#N/A"}},{"$f":"+'FORMULACIÓN SIGI '!J120","v":0},{"$f":"+'FORMULACIÓN SIGI '!K120","v":0},{"$f":"+'FORMULACIÓN SIGI '!L120","v":0},{"$f":"VLOOKUP('FORMULACIÓN SIGI '!M120,LISTAS!$A$173:$B$174,2,0)","v":{"$error":"#N/A"}},{"$f":"+'FORMULACIÓN SIGI '!N120","v":0},{"$f":"+'FORMULACIÓN SIGI '!O120","v":0},{"$f":"+'FORMULACIÓN SIGI '!P120","v":"00:00:00"},{"$f":"+'FORMULACIÓN SIGI '!Q120","v":"00:00:00"},{"$f":"+'FORMULACIÓN SIGI '!R120","v":0}]
[{"$f":"VLOOKUP('FORMULACIÓN SIGI '!A121,LISTAS!$A$58:$B$59,2,0)","v":{"$error":"#N/A"}},{"$f":"VLOOKUP('FORMULACIÓN SIGI '!B121,LISTAS!$A$61:$B$65,2,0)","v":{"$error":"#N/A"}},{"$f":"VLOOKUP('FORMULACIÓN SIGI '!C121,LISTAS!$A$67:$B$74,2,0)","v":{"$error":"#N/A"}},{"$f":"VLOOKUP('FORMULACIÓN SIGI '!D121,LISTAS!$A$76:$B$82,2,0)","v":{"$error":"#N/A"}},{"$f":"VLOOKUP('FORMULACIÓN SIGI '!E121,LISTAS!$A$84:$B$91,2,0)","v":{"$error":"#N/A"}},{"$f":"VLOOKUP('FORMULACIÓN SIGI '!F121,LISTAS!$A$93:$B$145,2,0)","v":{"$error":"#N/A"}},{"$f":"VLOOKUP('FORMULACIÓN SIGI '!G121,LISTAS!$A$113:B225,2,0)","v":{"$error":"#N/A"}},{"$f":"VLOOKUP('FORMULACIÓN SIGI '!H121,LISTAS!$A$126:$B$145,2,0)","v":{"$error":"#N/A"}},{"$f":"VLOOKUP('FORMULACIÓN SIGI '!I121,LISTAS!$A$147:$B$171,2,0)","v":{"$error":"#N/A"}},{"$f":"+'FORMULACIÓN SIGI '!J121","v":0},{"$f":"+'FORMULACIÓN SIGI '!K121","v":0},{"$f":"+'FORMULACIÓN SIGI '!L121","v":0},{"$f":"VLOOKUP('FORMULACIÓN SIGI '!M121,LISTAS!$A$173:$B$174,2,0)","v":{"$error":"#N/A"}},{"$f":"+'FORMULACIÓN SIGI '!N121","v":0},{"$f":"+'FORMULACIÓN SIGI '!O121","v":0},{"$f":"+'FORMULACIÓN SIGI '!P121","v":"00:00:00"},{"$f":"+'FORMULACIÓN SIGI '!Q121","v":"00:00:00"},{"$f":"+'FORMULACIÓN SIGI '!R121","v":0}]
[{"$f":"VLOOKUP('FORMULACIÓN SIGI '!A122,LISTAS!$A$58:$B$59,2,0)","v":{"$error":"#N/A"}},{"$f":"VLOOKUP('FORMULACIÓN SIGI '!B122,LISTAS!$A$61:$B$65,2,0)","v":{"$error":"#N/A"}},{"$f":"VLOOKUP('FORMULACIÓN SIGI '!C122,LISTAS!$A$67:$B$74,2,0)","v":{"$error":"#N/A"}},{"$f":"VLOOKUP('FORMULACIÓN SIGI '!D122,LISTAS!$A$76:$B$82,2,0)","v":{"$error":"#N/A"}},{"$f":"VLOOKUP('FORMULACIÓN SIGI '!E122,LISTAS!$A$84:$B$91,2,0)","v":{"$error":"#N/A"}},{"$f":"VLOOKUP('FORMULACIÓN SIGI '!F122,LISTAS!$A$93:$B$145,2,0)","v":{"$error":"#N/A"}},{"$f":"VLOOKUP('FORMULACIÓN SIGI '!G122,LISTAS!$A$113:B226,2,0)","v":{"$error":"#N/A"}},{"$f":"VLOOKUP('FORMULACIÓN SIGI '!H122,LISTAS!$A$126:$B$145,2,0)","v":{"$error":"#N/A"}},{"$f":"VLOOKUP('FORMULACIÓN SIGI '!I122,LISTAS!$A$147:$B$171,2,0)","v":{"$error":"#N/A"}},{"$f":"+'FORMULACIÓN SIGI '!J122","v":0},{"$f":"+'FORMULACIÓN SIGI '!K122","v":0},{"$f":"+'FORMULACIÓN SIGI '!L122","v":0},{"$f":"VLOOKUP('FORMULACIÓN SIGI '!M122,LISTAS!$A$173:$B$174,2,0)","v":{"$error":"#N/A"}},{"$f":"+'FORMULACIÓN SIGI '!N122","v":0},{"$f":"+'FORMULACIÓN SIGI '!O122","v":0},{"$f":"+'FORMULACIÓN SIGI '!P122","v":"00:00:00"},{"$f":"+'FORMULACIÓN SIGI '!Q122","v":"00:00:00"},{"$f":"+'FORMULACIÓN SIGI '!R122","v":0}]
[{"$f":"VLOOKUP('FORMULACIÓN SIGI '!A123,LISTAS!$A$58:$B$59,2,0)","v":{"$error":"#N/A"}},{"$f":"VLOOKUP('FORMULACIÓN SIGI '!B123,LISTAS!$A$61:$B$65,2,0)","v":{"$error":"#N/A"}},{"$f":"VLOOKUP('FORMULACIÓN SIGI '!C123,LISTAS!$A$67:$B$74,2,0)","v":{"$error":"#N/A"}},{"$f":"VLOOKUP('FORMULACIÓN SIGI '!D123,LISTAS!$A$76:$B$82,2,0)","v":{"$error":"#N/A"}},{"$f":"VLOOKUP('FORMULACIÓN SIGI '!E123,LISTAS!$A$84:$B$91,2,0)","v":{"$error":"#N/A"}},{"$f":"VLOOKUP('FORMULACIÓN SIGI '!F123,LISTAS!$A$93:$B$145,2,0)","v":{"$error":"#N/A"}},{"$f":"VLOOKUP('FORMULACIÓN SIGI '!G123,LISTAS!$A$113:B227,2,0)","v":{"$error":"#N/A"}},{"$f":"VLOOKUP('FORMULACIÓN SIGI '!H123,LISTAS!$A$126:$B$145,2,0)","v":{"$error":"#N/A"}},{"$f":"VLOOKUP('FORMULACIÓN SIGI '!I123,LISTAS!$A$147:$B$171,2,0)","v":{"$error":"#N/A"}},{"$f":"+'FORMULACIÓN SIGI '!J123","v":0},{"$f":"+'FORMULACIÓN SIGI '!K123","v":0},{"$f":"+'FORMULACIÓN SIGI '!L123","v":0},{"$f":"VLOOKUP('FORMULACIÓN SIGI '!M123,LISTAS!$A$173:$B$174,2,0)","v":{"$error":"#N/A"}},{"$f":"+'FORMULACIÓN SIGI '!N123","v":0},{"$f":"+'FORMULACIÓN SIGI '!O123","v":0},{"$f":"+'FORMULACIÓN SIGI '!P123","v":"00:00:00"},{"$f":"+'FORMULACIÓN SIGI '!Q123","v":"00:00:00"},{"$f":"+'FORMULACIÓN SIGI '!R123","v":0}]
[{"$f":"VLOOKUP('FORMULACIÓN SIGI '!A124,LISTAS!$A$58:$B$59,2,0)","v":{"$error":"#N/A"}},{"$f":"VLOOKUP('FORMULACIÓN SIGI '!B124,LISTAS!$A$61:$B$65,2,0)","v":{"$error":"#N/A"}},{"$f":"VLOOKUP('FORMULACIÓN SIGI '!C124,LISTAS!$A$67:$B$74,2,0)","v":{"$error":"#N/A"}},{"$f":"VLOOKUP('FORMULACIÓN SIGI '!D124,LISTAS!$A$76:$B$82,2,0)","v":{"$error":"#N/A"}},{"$f":"VLOOKUP('FORMULACIÓN SIGI '!E124,LISTAS!$A$84:$B$91,2,0)","v":{"$error":"#N/A"}},{"$f":"VLOOKUP('FORMULACIÓN SIGI '!F124,LISTAS!$A$93:$B$145,2,0)","v":{"$error":"#N/A"}},{"$f":"VLOOKUP('FORMULACIÓN SIGI '!G124,LISTAS!$A$113:B228,2,0)","v":{"$error":"#N/A"}},{"$f":"VLOOKUP('FORMULACIÓN SIGI '!H124,LISTAS!$A$126:$B$145,2,0)","v":{"$error":"#N/A"}},{"$f":"VLOOKUP('FORMULACIÓN SIGI '!I124,LISTAS!$A$147:$B$171,2,0)","v":{"$error":"#N/A"}},{"$f":"+'FORMULACIÓN SIGI '!J124","v":0},{"$f":"+'FORMULACIÓN SIGI '!K124","v":0},{"$f":"+'FORMULACIÓN SIGI '!L124","v":0},{"$f":"VLOOKUP('FORMULACIÓN SIGI '!M124,LISTAS!$A$173:$B$174,2,0)","v":{"$error":"#N/A"}},{"$f":"+'FORMULACIÓN SIGI '!N124","v":0},{"$f":"+'FORMULACIÓN SIGI '!O124","v":0},{"$f":"+'FORMULACIÓN SIGI '!P124","v":"00:00:00"},{"$f":"+'FORMULACIÓN SIGI '!Q124","v":"00:00:00"},{"$f":"+'FORMULACIÓN SIGI '!R124","v":0}]
[{"$f":"VLOOKUP('FORMULACIÓN SIGI '!A125,LISTAS!$A$58:$B$59,2,0)","v":{"$error":"#N/A"}},{"$f":"VLOOKUP('FORMULACIÓN SIGI '!B125,LISTAS!$A$61:$B$65,2,0)","v":{"$error":"#N/A"}},{"$f":"VLOOKUP('FORMULACIÓN SIGI '!C125,LISTAS!$A$67:$B$74,2,0)","v":{"$error":"#N/A"}},{"$f":"VLOOKUP('FORMULACIÓN SIGI '!D125,LISTAS!$A$76:$B$82,2,0)","v":{"$error":"#N/A"}},{"$f":"VLOOKUP('FORMULACIÓN SIGI '!E125,LISTAS!$A$84:$B$91,2,0)","v":{"$error":"#N/A"}},{"$f":"VLOOKUP('FORMULACIÓN SIGI '!F125,LISTAS!$A$93:$B$145,2,0)","v":{"$error":"#N/A"}},{"$f":"VLOOKUP('FORMULACIÓN SIGI '!G125,LISTAS!$A$113:B229,2,0)","v":{"$error":"#N/A"}},{"$f":"VLOOKUP('FORMULACIÓN SIGI '!H125,LISTAS!$A$126:$B$145,2,0)","v":{"$error":"#N/A"}},{"$f":"VLOOKUP('FORMULACIÓN SIGI '!I125,LISTAS!$A$147:$B$171,2,0)","v":{"$error":"#N/A"}},{"$f":"+'FORMULACIÓN SIGI '!J125","v":0},{"$f":"+'FORMULACIÓN SIGI '!K125","v":0},{"$f":"+'FORMULACIÓN SIGI '!L125","v":0},{"$f":"VLOOKUP('FORMULACIÓN SIGI '!M125,LISTAS!$A$173:$B$174,2,0)","v":{"$error":"#N/A"}},{"$f":"+'FORMULACIÓN SIGI '!N125","v":0},{"$f":"+'FORMULACIÓN SIGI '!O125","v":0},{"$f":"+'FORMULACIÓN SIGI '!P125","v":"00:00:00"},{"$f":"+'FORMULACIÓN SIGI '!Q125","v":"00:00:00"},{"$f":"+'FORMULACIÓN SIGI '!R125","v":0}]
[{"$f":"VLOOKUP('FORMULACIÓN SIGI '!A126,LISTAS!$A$58:$B$59,2,0)","v":{"$error":"#N/A"}},{"$f":"VLOOKUP('FORMULACIÓN SIGI '!B126,LISTAS!$A$61:$B$65,2,0)","v":{"$error":"#N/A"}},{"$f":"VLOOKUP('FORMULACIÓN SIGI '!C126,LISTAS!$A$67:$B$74,2,0)","v":{"$error":"#N/A"}},{"$f":"VLOOKUP('FORMULACIÓN SIGI '!D126,LISTAS!$A$76:$B$82,2,0)","v":{"$error":"#N/A"}},{"$f":"VLOOKUP('FORMULACIÓN SIGI '!E126,LISTAS!$A$84:$B$91,2,0)","v":{"$error":"#N/A"}},{"$f":"VLOOKUP('FORMULACIÓN SIGI '!F126,LISTAS!$A$93:$B$145,2,0)","v":{"$error":"#N/A"}},{"$f":"VLOOKUP('FORMULACIÓN SIGI '!G126,LISTAS!$A$113:B230,2,0)","v":{"$error":"#N/A"}},{"$f":"VLOOKUP('FORMULACIÓN SIGI '!H126,LISTAS!$A$126:$B$145,2,0)","v":{"$error":"#N/A"}},{"$f":"VLOOKUP('FORMULACIÓN SIGI '!I126,LISTAS!$A$147:$B$171,2,0)","v":{"$error":"#N/A"}},{"$f":"+'FORMULACIÓN SIGI '!J126","v":0},{"$f":"+'FORMULACIÓN SIGI '!K126","v":0},{"$f":"+'FORMULACIÓN SIGI '!L126","v":0},{"$f":"VLOOKUP('FORMULACIÓN SIGI '!M126,LISTAS!$A$173:$B$174,2,0)","v":{"$error":"#N/A"}},{"$f":"+'FORMULACIÓN SIGI '!N126","v":0},{"$f":"+'FORMULACIÓN SIGI '!O126","v":0},{"$f":"+'FORMULACIÓN SIGI '!P126","v":"00:00:00"},{"$f":"+'FORMULACIÓN SIGI '!Q126","v":"00:00:00"},{"$f":"+'FORMULACIÓN SIGI '!R126","v":0}]
[{"$f":"VLOOKUP('FORMULACIÓN SIGI '!A127,LISTAS!$A$58:$B$59,2,0)","v":{"$error":"#N/A"}},{"$f":"VLOOKUP('FORMULACIÓN SIGI '!B127,LISTAS!$A$61:$B$65,2,0)","v":{"$error":"#N/A"}},{"$f":"VLOOKUP('FORMULACIÓN SIGI '!C127,LISTAS!$A$67:$B$74,2,0)","v":{"$error":"#N/A"}},{"$f":"VLOOKUP('FORMULACIÓN SIGI '!D127,LISTAS!$A$76:$B$82,2,0)","v":{"$error":"#N/A"}},{"$f":"VLOOKUP('FORMULACIÓN SIGI '!E127,LISTAS!$A$84:$B$91,2,0)","v":{"$error":"#N/A"}},{"$f":"VLOOKUP('FORMULACIÓN SIGI '!F127,LISTAS!$A$93:$B$145,2,0)","v":{"$error":"#N/A"}},{"$f":"VLOOKUP('FORMULACIÓN SIGI '!G127,LISTAS!$A$113:B231,2,0)","v":{"$error":"#N/A"}},{"$f":"VLOOKUP('FORMULACIÓN SIGI '!H127,LISTAS!$A$126:$B$145,2,0)","v":{"$error":"#N/A"}},{"$f":"VLOOKUP('FORMULACIÓN SIGI '!I127,LISTAS!$A$147:$B$171,2,0)","v":{"$error":"#N/A"}},{"$f":"+'FORMULACIÓN SIGI '!J127","v":0},{"$f":"+'FORMULACIÓN SIGI '!K127","v":0},{"$f":"+'FORMULACIÓN SIGI '!L127","v":0},{"$f":"VLOOKUP('FORMULACIÓN SIGI '!M127,LISTAS!$A$173:$B$174,2,0)","v":{"$error":"#N/A"}},{"$f":"+'FORMULACIÓN SIGI '!N127","v":0},{"$f":"+'FORMULACIÓN SIGI '!O127","v":0},{"$f":"+'FORMULACIÓN SIGI '!P127","v":"00:00:00"},{"$f":"+'FORMULACIÓN SIGI '!Q127","v":"00:00:00"},{"$f":"+'FORMULACIÓN SIGI '!R127","v":0}]
[{"$f":"VLOOKUP('FORMULACIÓN SIGI '!A128,LISTAS!$A$58:$B$59,2,0)","v":{"$error":"#N/A"}},{"$f":"VLOOKUP('FORMULACIÓN SIGI '!B128,LISTAS!$A$61:$B$65,2,0)","v":{"$error":"#N/A"}},{"$f":"VLOOKUP('FORMULACIÓN SIGI '!C128,LISTAS!$A$67:$B$74,2,0)","v":{"$error":"#N/A"}},{"$f":"VLOOKUP('FORMULACIÓN SIGI '!D128,LISTAS!$A$76:$B$82,2,0)","v":{"$error":"#N/A"}},{"$f":"VLOOKUP('FORMULACIÓN SIGI '!E128,LISTAS!$A$84:$B$91,2,0)","v":{"$error":"#N/A"}},{"$f":"VLOOKUP('FORMULACIÓN SIGI '!F128,LISTAS!$A$93:$B$145,2,0)","v":{"$error":"#N/A"}},{"$f":"VLOOKUP('FORMULACIÓN SIGI '!G128,LISTAS!$A$113:B232,2,0)","v":{"$error":"#N/A"}},{"$f":"VLOOKUP('FORMULACIÓN SIGI '!H128,LISTAS!$A$126:$B$145,2,0)","v":{"$error":"#N/A"}},{"$f":"VLOOKUP('FORMULACIÓN SIGI '!I128,LISTAS!$A$147:$B$171,2,0)","v":{"$error":"#N/A"}},{"$f":"+'FORMULACIÓN SIGI '!J128","v":0},{"$f":"+'FORMULACIÓN SIGI '!K128","v":0},{"$f":"+'FORMULACIÓN SIGI '!L128","v":0},{"$f":"VLOOKUP('FORMULACIÓN SIGI '!M128,LISTAS!$A$173:$B$174,2,0)","v":{"$error":"#N/A"}},{"$f":"+'FORMULACIÓN SIGI '!N128","v":0},{"$f":"+'FORMULACIÓN SIGI '!O128","v":0},{"$f":"+'FORMULACIÓN SIGI '!P128","v":"00:00:00"},{"$f":"+'FORMULACIÓN SIGI '!Q128","v":"00:00:00"},{"$f":"+'FORMULACIÓN SIGI '!R128","v":0}]
[{"$f":"VLOOKUP('FORMULACIÓN SIGI '!A129,LISTAS!$A$58:$B$59,2,0)","v":{"$error":"#N/A"}},{"$f":"VLOOKUP('FORMULACIÓN SIGI '!B129,LISTAS!$A$61:$B$65,2,0)","v":{"$error":"#N/A"}},{"$f":"VLOOKUP('FORMULACIÓN SIGI '!C129,LISTAS!$A$67:$B$74,2,0)","v":{"$error":"#N/A"}},{"$f":"VLOOKUP('FORMULACIÓN SIGI '!D129,LISTAS!$A$76:$B$82,2,0)","v":{"$error":"#N/A"}},{"$f":"VLOOKUP('FORMULACIÓN SIGI '!E129,LISTAS!$A$84:$B$91,2,0)","v":{"$error":"#N/A"}},{"$f":"VLOOKUP('FORMULACIÓN SIGI '!F129,LISTAS!$A$93:$B$145,2,0)","v":{"$error":"#N/A"}},{"$f":"VLOOKUP('FORMULACIÓN SIGI '!G129,LISTAS!$A$113:B233,2,0)","v":{"$error":"#N/A"}},{"$f":"VLOOKUP('FORMULACIÓN SIGI '!H129,LISTAS!$A$126:$B$145,2,0)","v":{"$error":"#N/A"}},{"$f":"VLOOKUP('FORMULACIÓN SIGI '!I129,LISTAS!$A$147:$B$171,2,0)","v":{"$error":"#N/A"}},{"$f":"+'FORMULACIÓN SIGI '!J129","v":0},{"$f":"+'FORMULACIÓN SIGI '!K129","v":0},{"$f":"+'FORMULACIÓN SIGI '!L129","v":0},{"$f":"VLOOKUP('FORMULACIÓN SIGI '!M129,LISTAS!$A$173:$B$174,2,0)","v":{"$error":"#N/A"}},{"$f":"+'FORMULACIÓN SIGI '!N129","v":0},{"$f":"+'FORMULACIÓN SIGI '!O129","v":0},{"$f":"+'FORMULACIÓN SIGI '!P129","v":"00:00:00"},{"$f":"+'FORMULACIÓN SIGI '!Q129","v":"00:00:00"},{"$f":"+'FORMULACIÓN SIGI '!R129","v":0}]
[{"$f":"VLOOKUP('FORMULACIÓN SIGI '!A130,LISTAS!$A$58:$B$59,2,0)","v":{"$error":"#N/A"}},{"$f":"VLOOKUP('FORMULACIÓN SIGI '!B130,LISTAS!$A$61:$B$65,2,0)","v":{"$error":"#N/A"}},{"$f":"VLOOKUP('FORMULACIÓN SIGI '!C130,LISTAS!$A$67:$B$74,2,0)","v":{"$error":"#N/A"}},{"$f":"VLOOKUP('FORMULACIÓN SIGI '!D130,LISTAS!$A$76:$B$82,2,0)","v":{"$error":"#N/A"}},{"$f":"VLOOKUP('FORMULACIÓN SIGI '!E130,LISTAS!$A$84:$B$91,2,0)","v":{"$error":"#N/A"}},{"$f":"VLOOKUP('FORMULACIÓN SIGI '!F130,LISTAS!$A$93:$B$145,2,0)","v":{"$error":"#N/A"}},{"$f":"VLOOKUP('FORMULACIÓN SIGI '!G130,LISTAS!$A$113:B234,2,0)","v":{"$error":"#N/A"}},{"$f":"VLOOKUP('FORMULACIÓN SIGI '!H130,LISTAS!$A$126:$B$145,2,0)","v":{"$error":"#N/A"}},{"$f":"VLOOKUP('FORMULACIÓN SIGI '!I130,LISTAS!$A$147:$B$171,2,0)","v":{"$error":"#N/A"}},{"$f":"+'FORMULACIÓN SIGI '!J130","v":0},{"$f":"+'FORMULACIÓN SIGI '!K130","v":0},{"$f":"+'FORMULACIÓN SIGI '!L130","v":0},{"$f":"VLOOKUP('FORMULACIÓN SIGI '!M130,LISTAS!$A$173:$B$174,2,0)","v":{"$error":"#N/A"}},{"$f":"+'FORMULACIÓN SIGI '!N130","v":0},{"$f":"+'FORMULACIÓN SIGI '!O130","v":0},{"$f":"+'FORMULACIÓN SIGI '!P130","v":"00:00:00"},{"$f":"+'FORMULACIÓN SIGI '!Q130","v":"00:00:00"},{"$f":"+'FORMULACIÓN SIGI '!R130","v":0}]
[{"$f":"VLOOKUP('FORMULACIÓN SIGI '!A131,LISTAS!$A$58:$B$59,2,0)","v":{"$error":"#N/A"}},{"$f":"VLOOKUP('FORMULACIÓN SIGI '!B131,LISTAS!$A$61:$B$65,2,0)","v":{"$error":"#N/A"}},{"$f":"VLOOKUP('FORMULACIÓN SIGI '!C131,LISTAS!$A$67:$B$74,2,0)","v":{"$error":"#N/A"}},{"$f":"VLOOKUP('FORMULACIÓN SIGI '!D131,LISTAS!$A$76:$B$82,2,0)","v":{"$error":"#N/A"}},{"$f":"VLOOKUP('FORMULACIÓN SIGI '!E131,LISTAS!$A$84:$B$91,2,0)","v":{"$error":"#N/A"}},{"$f":"VLOOKUP('FORMULACIÓN SIGI '!F131,LISTAS!$A$93:$B$145,2,0)","v":{"$error":"#N/A"}},{"$f":"VLOOKUP('FORMULACIÓN SIGI '!G131,LISTAS!$A$113:B235,2,0)","v":{"$error":"#N/A"}},{"$f":"VLOOKUP('FORMULACIÓN SIGI '!H131,LISTAS!$A$126:$B$145,2,0)","v":{"$error":"#N/A"}},{"$f":"VLOOKUP('FORMULACIÓN SIGI '!I131,LISTAS!$A$147:$B$171,2,0)","v":{"$error":"#N/A"}},{"$f":"+'FORMULACIÓN SIGI '!J131","v":0},{"$f":"+'FORMULACIÓN SIGI '!K131","v":0},{"$f":"+'FORMULACIÓN SIGI '!L131","v":0},{"$f":"VLOOKUP('FORMULACIÓN SIGI '!M131,LISTAS!$A$173:$B$174,2,0)","v":{"$error":"#N/A"}},{"$f":"+'FORMULACIÓN SIGI '!N131","v":0},{"$f":"+'FORMULACIÓN SIGI '!O131","v":0},{"$f":"+'FORMULACIÓN SIGI '!P131","v":"00:00:00"},{"$f":"+'FORMULACIÓN SIGI '!Q131","v":"00:00:00"},{"$f":"+'FORMULACIÓN SIGI '!R131","v":0}]
[{"$f":"VLOOKUP('FORMULACIÓN SIGI '!A132,LISTAS!$A$58:$B$59,2,0)","v":{"$error":"#N/A"}},{"$f":"VLOOKUP('FORMULACIÓN SIGI '!B132,LISTAS!$A$61:$B$65,2,0)","v":{"$error":"#N/A"}},{"$f":"VLOOKUP('FORMULACIÓN SIGI '!C132,LISTAS!$A$67:$B$74,2,0)","v":{"$error":"#N/A"}},{"$f":"VLOOKUP('FORMULACIÓN SIGI '!D132,LISTAS!$A$76:$B$82,2,0)","v":{"$error":"#N/A"}},{"$f":"VLOOKUP('FORMULACIÓN SIGI '!E132,LISTAS!$A$84:$B$91,2,0)","v":{"$error":"#N/A"}},{"$f":"VLOOKUP('FORMULACIÓN SIGI '!F132,LISTAS!$A$93:$B$145,2,0)","v":{"$error":"#N/A"}},{"$f":"VLOOKUP('FORMULACIÓN SIGI '!G132,LISTAS!$A$113:B236,2,0)","v":{"$error":"#N/A"}},{"$f":"VLOOKUP('FORMULACIÓN SIGI '!H132,LISTAS!$A$126:$B$145,2,0)","v":{"$error":"#N/A"}},{"$f":"VLOOKUP('FORMULACIÓN SIGI '!I132,LISTAS!$A$147:$B$171,2,0)","v":{"$error":"#N/A"}},{"$f":"+'FORMULACIÓN SIGI '!J132","v":0},{"$f":"+'FORMULACIÓN SIGI '!K132","v":0},{"$f":"+'FORMULACIÓN SIGI '!L132","v":0},{"$f":"VLOOKUP('FORMULACIÓN SIGI '!M132,LISTAS!$A$173:$B$174,2,0)","v":{"$error":"#N/A"}},{"$f":"+'FORMULACIÓN SIGI '!N132","v":0},{"$f":"+'FORMULACIÓN SIGI '!O132","v":0},{"$f":"+'FORMULACIÓN SIGI '!P132","v":"00:00:00"},{"$f":"+'FORMULACIÓN SIGI '!Q132","v":"00:00:00"},{"$f":"+'FORMULACIÓN SIGI '!R132","v":0}]
[{"$f":"VLOOKUP('FORMULACIÓN SIGI '!A133,LISTAS!$A$58:$B$59,2,0)","v":{"$error":"#N/A"}},{"$f":"VLOOKUP('FORMULACIÓN SIGI '!B133,LISTAS!$A$61:$B$65,2,0)","v":{"$error":"#N/A"}},{"$f":"VLOOKUP('FORMULACIÓN SIGI '!C133,LISTAS!$A$67:$B$74,2,0)","v":{"$error":"#N/A"}},{"$f":"VLOOKUP('FORMULACIÓN SIGI '!D133,LISTAS!$A$76:$B$82,2,0)","v":{"$error":"#N/A"}},{"$f":"VLOOKUP('FORMULACIÓN SIGI '!E133,LISTAS!$A$84:$B$91,2,0)","v":{"$error":"#N/A"}},{"$f":"VLOOKUP('FORMULACIÓN SIGI '!F133,LISTAS!$A$93:$B$145,2,0)","v":{"$error":"#N/A"}},{"$f":"VLOOKUP('FORMULACIÓN SIGI '!G133,LISTAS!$A$113:B237,2,0)","v":{"$error":"#N/A"}},{"$f":"VLOOKUP('FORMULACIÓN SIGI '!H133,LISTAS!$A$126:$B$145,2,0)","v":{"$error":"#N/A"}},{"$f":"VLOOKUP('FORMULACIÓN SIGI '!I133,LISTAS!$A$147:$B$171,2,0)","v":{"$error":"#N/A"}},{"$f":"+'FORMULACIÓN SIGI '!J133","v":0},{"$f":"+'FORMULACIÓN SIGI '!K133","v":0},{"$f":"+'FORMULACIÓN SIGI '!L133","v":0},{"$f":"VLOOKUP('FORMULACIÓN SIGI '!M133,LISTAS!$A$173:$B$174,2,0)","v":{"$error":"#N/A"}},{"$f":"+'FORMULACIÓN SIGI '!N133","v":0},{"$f":"+'FORMULACIÓN SIGI '!O133","v":0},{"$f":"+'FORMULACIÓN SIGI '!P133","v":"00:00:00"},{"$f":"+'FORMULACIÓN SIGI '!Q133","v":"00:00:00"},{"$f":"+'FORMULACIÓN SIGI '!R133","v":0}]
[{"$f":"VLOOKUP('FORMULACIÓN SIGI '!A134,LISTAS!$A$58:$B$59,2,0)","v":{"$error":"#N/A"}},{"$f":"VLOOKUP('FORMULACIÓN SIGI '!B134,LISTAS!$A$61:$B$65,2,0)","v":{"$error":"#N/A"}},{"$f":"VLOOKUP('FORMULACIÓN SIGI '!C134,LISTAS!$A$67:$B$74,2,0)","v":{"$error":"#N/A"}},{"$f":"VLOOKUP('FORMULACIÓN SIGI '!D134,LISTAS!$A$76:$B$82,2,0)","v":{"$error":"#N/A"}},{"$f":"VLOOKUP('FORMULACIÓN SIGI '!E134,LISTAS!$A$84:$B$91,2,0)","v":{"$error":"#N/A"}},{"$f":"VLOOKUP('FORMULACIÓN SIGI '!F134,LISTAS!$A$93:$B$145,2,0)","v":{"$error":"#N/A"}},{"$f":"VLOOKUP('FORMULACIÓN SIGI '!G134,LISTAS!$A$113:B238,2,0)","v":{"$error":"#N/A"}},{"$f":"VLOOKUP('FORMULACIÓN SIGI '!H134,LISTAS!$A$126:$B$145,2,0)","v":{"$error":"#N/A"}},{"$f":"VLOOKUP('FORMULACIÓN SIGI '!I134,LISTAS!$A$147:$B$171,2,0)","v":{"$error":"#N/A"}},{"$f":"+'FORMULACIÓN SIGI '!J134","v":0},{"$f":"+'FORMULACIÓN SIGI '!K134","v":0},{"$f":"+'FORMULACIÓN SIGI '!L134","v":0},{"$f":"VLOOKUP('FORMULACIÓN SIGI '!M134,LISTAS!$A$173:$B$174,2,0)","v":{"$error":"#N/A"}},{"$f":"+'FORMULACIÓN SIGI '!N134","v":0},{"$f":"+'FORMULACIÓN SIGI '!O134","v":0},{"$f":"+'FORMULACIÓN SIGI '!P134","v":"00:00:00"},{"$f":"+'FORMULACIÓN SIGI '!Q134","v":"00:00:00"},{"$f":"+'FORMULACIÓN SIGI '!R134","v":0}]
[{"$f":"VLOOKUP('FORMULACIÓN SIGI '!A135,LISTAS!$A$58:$B$59,2,0)","v":{"$error":"#N/A"}},{"$f":"VLOOKUP('FORMULACIÓN SIGI '!B135,LISTAS!$A$61:$B$65,2,0)","v":{"$error":"#N/A"}},{"$f":"VLOOKUP('FORMULACIÓN SIGI '!C135,LISTAS!$A$67:$B$74,2,0)","v":{"$error":"#N/A"}},{"$f":"VLOOKUP('FORMULACIÓN SIGI '!D135,LISTAS!$A$76:$B$82,2,0)","v":{"$error":"#N/A"}},{"$f":"VLOOKUP('FORMULACIÓN SIGI '!E135,LISTAS!$A$84:$B$91,2,0)","v":{"$error":"#N/A"}},{"$f":"VLOOKUP('FORMULACIÓN SIGI '!F135,LISTAS!$A$93:$B$145,2,0)","v":{"$error":"#N/A"}},{"$f":"VLOOKUP('FORMULACIÓN SIGI '!G135,LISTAS!$A$113:B239,2,0)","v":{"$error":"#N/A"}},{"$f":"VLOOKUP('FORMULACIÓN SIGI '!H135,LISTAS!$A$126:$B$145,2,0)","v":{"$error":"#N/A"}},{"$f":"VLOOKUP('FORMULACIÓN SIGI '!I135,LISTAS!$A$147:$B$171,2,0)","v":{"$error":"#N/A"}},{"$f":"+'FORMULACIÓN SIGI '!J135","v":0},{"$f":"+'FORMULACIÓN SIGI '!K135","v":0},{"$f":"+'FORMULACIÓN SIGI '!L135","v":0},{"$f":"VLOOKUP('FORMULACIÓN SIGI '!M135,LISTAS!$A$173:$B$174,2,0)","v":{"$error":"#N/A"}},{"$f":"+'FORMULACIÓN SIGI '!N135","v":0},{"$f":"+'FORMULACIÓN SIGI '!O135","v":0},{"$f":"+'FORMULACIÓN SIGI '!P135","v":"00:00:00"},{"$f":"+'FORMULACIÓN SIGI '!Q135","v":"00:00:00"},{"$f":"+'FORMULACIÓN SIGI '!R135","v":0}]
[{"$f":"VLOOKUP('FORMULACIÓN SIGI '!A136,LISTAS!$A$58:$B$59,2,0)","v":{"$error":"#N/A"}},{"$f":"VLOOKUP('FORMULACIÓN SIGI '!B136,LISTAS!$A$61:$B$65,2,0)","v":{"$error":"#N/A"}},{"$f":"VLOOKUP('FORMULACIÓN SIGI '!C136,LISTAS!$A$67:$B$74,2,0)","v":{"$error":"#N/A"}},{"$f":"VLOOKUP('FORMULACIÓN SIGI '!D136,LISTAS!$A$76:$B$82,2,0)","v":{"$error":"#N/A"}},{"$f":"VLOOKUP('FORMULACIÓN SIGI '!E136,LISTAS!$A$84:$B$91,2,0)","v":{"$error":"#N/A"}},{"$f":"VLOOKUP('FORMULACIÓN SIGI '!F136,LISTAS!$A$93:$B$145,2,0)","v":{"$error":"#N/A"}},{"$f":"VLOOKUP('FORMULACIÓN SIGI '!G136,LISTAS!$A$113:B240,2,0)","v":{"$error":"#N/A"}},{"$f":"VLOOKUP('FORMULACIÓN SIGI '!H136,LISTAS!$A$126:$B$145,2,0)","v":{"$error":"#N/A"}},{"$f":"VLOOKUP('FORMULACIÓN SIGI '!I136,LISTAS!$A$147:$B$171,2,0)","v":{"$error":"#N/A"}},{"$f":"+'FORMULACIÓN SIGI '!J136","v":0},{"$f":"+'FORMULACIÓN SIGI '!K136","v":0},{"$f":"+'FORMULACIÓN SIGI '!L136","v":0},{"$f":"VLOOKUP('FORMULACIÓN SIGI '!M136,LISTAS!$A$173:$B$174,2,0)","v":{"$error":"#N/A"}},{"$f":"+'FORMULACIÓN SIGI '!N136","v":0},{"$f":"+'FORMULACIÓN SIGI '!O136","v":0},{"$f":"+'FORMULACIÓN SIGI '!P136","v":"00:00:00"},{"$f":"+'FORMULACIÓN SIGI '!Q136","v":"00:00:00"},{"$f":"+'FORMULACIÓN SIGI '!R136","v":0}]
[{"$f":"VLOOKUP('FORMULACIÓN SIGI '!A137,LISTAS!$A$58:$B$59,2,0)","v":{"$error":"#N/A"}},{"$f":"VLOOKUP('FORMULACIÓN SIGI '!B137,LISTAS!$A$61:$B$65,2,0)","v":{"$error":"#N/A"}},{"$f":"VLOOKUP('FORMULACIÓN SIGI '!C137,LISTAS!$A$67:$B$74,2,0)","v":{"$error":"#N/A"}},{"$f":"VLOOKUP('FORMULACIÓN SIGI '!D137,LISTAS!$A$76:$B$82,2,0)","v":{"$error":"#N/A"}},{"$f":"VLOOKUP('FORMULACIÓN SIGI '!E137,LISTAS!$A$84:$B$91,2,0)","v":{"$error":"#N/A"}},{"$f":"VLOOKUP('FORMULACIÓN SIGI '!F137,LISTAS!$A$93:$B$145,2,0)","v":{"$error":"#N/A"}},{"$f":"VLOOKUP('FORMULACIÓN SIGI '!G137,LISTAS!$A$113:B241,2,0)","v":{"$error":"#N/A"}},{"$f":"VLOOKUP('FORMULACIÓN SIGI '!H137,LISTAS!$A$126:$B$145,2,0)","v":{"$error":"#N/A"}},{"$f":"VLOOKUP('FORMULACIÓN SIGI '!I137,LISTAS!$A$147:$B$171,2,0)","v":{"$error":"#N/A"}},{"$f":"+'FORMULACIÓN SIGI '!J137","v":0},{"$f":"+'FORMULACIÓN SIGI '!K137","v":0},{"$f":"+'FORMULACIÓN SIGI '!L137","v":0},{"$f":"VLOOKUP('FORMULACIÓN SIGI '!M137,LISTAS!$A$173:$B$174,2,0)","v":{"$error":"#N/A"}},{"$f":"+'FORMULACIÓN SIGI '!N137","v":0},{"$f":"+'FORMULACIÓN SIGI '!O137","v":0},{"$f":"+'FORMULACIÓN SIGI '!P137","v":"00:00:00"},{"$f":"+'FORMULACIÓN SIGI '!Q137","v":"00:00:00"},{"$f":"+'FORMULACIÓN SIGI '!R137","v":0}]
[{"$f":"VLOOKUP('FORMULACIÓN SIGI '!A138,LISTAS!$A$58:$B$59,2,0)","v":{"$error":"#N/A"}},{"$f":"VLOOKUP('FORMULACIÓN SIGI '!B138,LISTAS!$A$61:$B$65,2,0)","v":{"$error":"#N/A"}},{"$f":"VLOOKUP('FORMULACIÓN SIGI '!C138,LISTAS!$A$67:$B$74,2,0)","v":{"$error":"#N/A"}},{"$f":"VLOOKUP('FORMULACIÓN SIGI '!D138,LISTAS!$A$76:$B$82,2,0)","v":{"$error":"#N/A"}},{"$f":"VLOOKUP('FORMULACIÓN SIGI '!E138,LISTAS!$A$84:$B$91,2,0)","v":{"$error":"#N/A"}},{"$f":"VLOOKUP('FORMULACIÓN SIGI '!F138,LISTAS!$A$93:$B$145,2,0)","v":{"$error":"#N/A"}},{"$f":"VLOOKUP('FORMULACIÓN SIGI '!G138,LISTAS!$A$113:B242,2,0)","v":{"$error":"#N/A"}},{"$f":"VLOOKUP('FORMULACIÓN SIGI '!H138,LISTAS!$A$126:$B$145,2,0)","v":{"$error":"#N/A"}},{"$f":"VLOOKUP('FORMULACIÓN SIGI '!I138,LISTAS!$A$147:$B$171,2,0)","v":{"$error":"#N/A"}},{"$f":"+'FORMULACIÓN SIGI '!J138","v":0},{"$f":"+'FORMULACIÓN SIGI '!K138","v":0},{"$f":"+'FORMULACIÓN SIGI '!L138","v":0},{"$f":"VLOOKUP('FORMULACIÓN SIGI '!M138,LISTAS!$A$173:$B$174,2,0)","v":{"$error":"#N/A"}},{"$f":"+'FORMULACIÓN SIGI '!N138","v":0},{"$f":"+'FORMULACIÓN SIGI '!O138","v":0},{"$f":"+'FORMULACIÓN SIGI '!P138","v":"00:00:00"},{"$f":"+'FORMULACIÓN SIGI '!Q138","v":"00:00:00"},{"$f":"+'FORMULACIÓN SIGI '!R138","v":0}]
[{"$f":"VLOOKUP('FORMULACIÓN SIGI '!A139,LISTAS!$A$58:$B$59,2,0)","v":{"$error":"#N/A"}},{"$f":"VLOOKUP('FORMULACIÓN SIGI '!B139,LISTAS!$A$61:$B$65,2,0)","v":{"$error":"#N/A"}},{"$f":"VLOOKUP('FORMULACIÓN SIGI '!C139,LISTAS!$A$67:$B$74,2,0)","v":{"$error":"#N/A"}},{"$f":"VLOOKUP('FORMULACIÓN SIGI '!D139,LISTAS!$A$76:$B$82,2,0)","v":{"$error":"#N/A"}},{"$f":"VLOOKUP('FORMULACIÓN SIGI '!E139,LISTAS!$A$84:$B$91,2,0)","v":{"$error":"#N/A"}},{"$f":"VLOOKUP('FORMULACIÓN SIGI '!F139,LISTAS!$A$93:$B$145,2,0)","v":{"$error":"#N/A"}},{"$f":"VLOOKUP('FORMULACIÓN SIGI '!G139,LISTAS!$A$113:B243,2,0)","v":{"$error":"#N/A"}},{"$f":"VLOOKUP('FORMULACIÓN SIGI '!H139,LISTAS!$A$126:$B$145,2,0)","v":{"$error":"#N/A"}},{"$f":"VLOOKUP('FORMULACIÓN SIGI '!I139,LISTAS!$A$147:$B$171,2,0)","v":{"$error":"#N/A"}},{"$f":"+'FORMULACIÓN SIGI '!J139","v":0},{"$f":"+'FORMULACIÓN SIGI '!K139","v":0},{"$f":"+'FORMULACIÓN SIGI '!L139","v":0},{"$f":"VLOOKUP('FORMULACIÓN SIGI '!M139,LISTAS!$A$173:$B$174,2,0)","v":{"$error":"#N/A"}},{"$f":"+'FORMULACIÓN SIGI '!N139","v":0},{"$f":"+'FORMULACIÓN SIGI '!O139","v":0},{"$f":"+'FORMULACIÓN SIGI '!P139","v":"00:00:00"},{"$f":"+'FORMULACIÓN SIGI '!Q139","v":"00:00:00"},{"$f":"+'FORMULACIÓN SIGI '!R139","v":0}]
[{"$f":"VLOOKUP('FORMULACIÓN SIGI '!A140,LISTAS!$A$58:$B$59,2,0)","v":{"$error":"#N/A"}},{"$f":"VLOOKUP('FORMULACIÓN SIGI '!B140,LISTAS!$A$61:$B$65,2,0)","v":{"$error":"#N/A"}},{"$f":"VLOOKUP('FORMULACIÓN SIGI '!C140,LISTAS!$A$67:$B$74,2,0)","v":{"$error":"#N/A"}},{"$f":"VLOOKUP('FORMULACIÓN SIGI '!D140,LISTAS!$A$76:$B$82,2,0)","v":{"$error":"#N/A"}},{"$f":"VLOOKUP('FORMULACIÓN SIGI '!E140,LISTAS!$A$84:$B$91,2,0)","v":{"$error":"#N/A"}},{"$f":"VLOOKUP('FORMULACIÓN SIGI '!F140,LISTAS!$A$93:$B$145,2,0)","v":{"$error":"#N/A"}},{"$f":"VLOOKUP('FORMULACIÓN SIGI '!G140,LISTAS!$A$113:B244,2,0)","v":{"$error":"#N/A"}},{"$f":"VLOOKUP('FORMULACIÓN SIGI '!H140,LISTAS!$A$126:$B$145,2,0)","v":{"$error":"#N/A"}},{"$f":"VLOOKUP('FORMULACIÓN SIGI '!I140,LISTAS!$A$147:$B$171,2,0)","v":{"$error":"#N/A"}},{"$f":"+'FORMULACIÓN SIGI '!J140","v":0},{"$f":"+'FORMULACIÓN SIGI '!K140","v":0},{"$f":"+'FORMULACIÓN SIGI '!L140","v":0},{"$f":"VLOOKUP('FORMULACIÓN SIGI '!M140,LISTAS!$A$173:$B$174,2,0)","v":{"$error":"#N/A"}},{"$f":"+'FORMULACIÓN SIGI '!N140","v":0},{"$f":"+'FORMULACIÓN SIGI '!O140","v":0},{"$f":"+'FORMULACIÓN SIGI '!P140","v":"00:00:00"},{"$f":"+'FORMULACIÓN SIGI '!Q140","v":"00:00:00"},{"$f":"+'FORMULACIÓN SIGI '!R140","v":0}]
[{"$f":"VLOOKUP('FORMULACIÓN SIGI '!A141,LISTAS!$A$58:$B$59,2,0)","v":{"$error":"#N/A"}},{"$f":"VLOOKUP('FORMULACIÓN SIGI '!B141,LISTAS!$A$61:$B$65,2,0)","v":{"$error":"#N/A"}},{"$f":"VLOOKUP('FORMULACIÓN SIGI '!C141,LISTAS!$A$67:$B$74,2,0)","v":{"$error":"#N/A"}},{"$f":"VLOOKUP('FORMULACIÓN SIGI '!D141,LISTAS!$A$76:$B$82,2,0)","v":{"$error":"#N/A"}},{"$f":"VLOOKUP('FORMULACIÓN SIGI '!E141,LISTAS!$A$84:$B$91,2,0)","v":{"$error":"#N/A"}},{"$f":"VLOOKUP('FORMULACIÓN SIGI '!F141,LISTAS!$A$93:$B$145,2,0)","v":{"$error":"#N/A"}},{"$f":"VLOOKUP('FORMULACIÓN SIGI '!G141,LISTAS!$A$113:B245,2,0)","v":{"$error":"#N/A"}},{"$f":"VLOOKUP('FORMULACIÓN SIGI '!H141,LISTAS!$A$126:$B$145,2,0)","v":{"$error":"#N/A"}},{"$f":"VLOOKUP('FORMULACIÓN SIGI '!I141,LISTAS!$A$147:$B$171,2,0)","v":{"$error":"#N/A"}},{"$f":"+'FORMULACIÓN SIGI '!J141","v":0},{"$f":"+'FORMULACIÓN SIGI '!K141","v":0},{"$f":"+'FORMULACIÓN SIGI '!L141","v":0},{"$f":"VLOOKUP('FORMULACIÓN SIGI '!M141,LISTAS!$A$173:$B$174,2,0)","v":{"$error":"#N/A"}},{"$f":"+'FORMULACIÓN SIGI '!N141","v":0},{"$f":"+'FORMULACIÓN SIGI '!O141","v":0},{"$f":"+'FORMULACIÓN SIGI '!P141","v":"00:00:00"},{"$f":"+'FORMULACIÓN SIGI '!Q141","v":"00:00:00"},{"$f":"+'FORMULACIÓN SIGI '!R141","v":0}]
[{"$f":"VLOOKUP('FORMULACIÓN SIGI '!A142,LISTAS!$A$58:$B$59,2,0)","v":{"$error":"#N/A"}},{"$f":"VLOOKUP('FORMULACIÓN SIGI '!B142,LISTAS!$A$61:$B$65,2,0)","v":{"$error":"#N/A"}},{"$f":"VLOOKUP('FORMULACIÓN SIGI '!C142,LISTAS!$A$67:$B$74,2,0)","v":{"$error":"#N/A"}},{"$f":"VLOOKUP('FORMULACIÓN SIGI '!D142,LISTAS!$A$76:$B$82,2,0)","v":{"$error":"#N/A"}},{"$f":"VLOOKUP('FORMULACIÓN SIGI '!E142,LISTAS!$A$84:$B$91,2,0)","v":{"$error":"#N/A"}},{"$f":"VLOOKUP('FORMULACIÓN SIGI '!F142,LISTAS!$A$93:$B$145,2,0)","v":{"$error":"#N/A"}},{"$f":"VLOOKUP('FORMULACIÓN SIGI '!G142,LISTAS!$A$113:B246,2,0)","v":{"$error":"#N/A"}},{"$f":"VLOOKUP('FORMULACIÓN SIGI '!H142,LISTAS!$A$126:$B$145,2,0)","v":{"$error":"#N/A"}},{"$f":"VLOOKUP('FORMULACIÓN SIGI '!I142,LISTAS!$A$147:$B$171,2,0)","v":{"$error":"#N/A"}},{"$f":"+'FORMULACIÓN SIGI '!J142","v":0},{"$f":"+'FORMULACIÓN SIGI '!K142","v":0},{"$f":"+'FORMULACIÓN SIGI '!L142","v":0},{"$f":"VLOOKUP('FORMULACIÓN SIGI '!M142,LISTAS!$A$173:$B$174,2,0)","v":{"$error":"#N/A"}},{"$f":"+'FORMULACIÓN SIGI '!N142","v":0},{"$f":"+'FORMULACIÓN SIGI '!O142","v":0},{"$f":"+'FORMULACIÓN SIGI '!P142","v":"00:00:00"},{"$f":"+'FORMULACIÓN SIGI '!Q142","v":"00:00:00"},{"$f":"+'FORMULACIÓN SIGI '!R142","v":0}]
[{"$f":"VLOOKUP('FORMULACIÓN SIGI '!A143,LISTAS!$A$58:$B$59,2,0)","v":{"$error":"#N/A"}},{"$f":"VLOOKUP('FORMULACIÓN SIGI '!B143,LISTAS!$A$61:$B$65,2,0)","v":{"$error":"#N/A"}},{"$f":"VLOOKUP('FORMULACIÓN SIGI '!C143,LISTAS!$A$67:$B$74,2,0)","v":{"$error":"#N/A"}},{"$f":"VLOOKUP('FORMULACIÓN SIGI '!D143,LISTAS!$A$76:$B$82,2,0)","v":{"$error":"#N/A"}},{"$f":"VLOOKUP('FORMULACIÓN SIGI '!E143,LISTAS!$A$84:$B$91,2,0)","v":{"$error":"#N/A"}},{"$f":"VLOOKUP('FORMULACIÓN SIGI '!F143,LISTAS!$A$93:$B$145,2,0)","v":{"$error":"#N/A"}},{"$f":"VLOOKUP('FORMULACIÓN SIGI '!G143,LISTAS!$A$113:B247,2,0)","v":{"$error":"#N/A"}},{"$f":"VLOOKUP('FORMULACIÓN SIGI '!H143,LISTAS!$A$126:$B$145,2,0)","v":{"$error":"#N/A"}},{"$f":"VLOOKUP('FORMULACIÓN SIGI '!I143,LISTAS!$A$147:$B$171,2,0)","v":{"$error":"#N/A"}},{"$f":"+'FORMULACIÓN SIGI '!J143","v":0},{"$f":"+'FORMULACIÓN SIGI '!K143","v":0},{"$f":"+'FORMULACIÓN SIGI '!L143","v":0},{"$f":"VLOOKUP('FORMULACIÓN SIGI '!M143,LISTAS!$A$173:$B$174,2,0)","v":{"$error":"#N/A"}},{"$f":"+'FORMULACIÓN SIGI '!N143","v":0},{"$f":"+'FORMULACIÓN SIGI '!O143","v":0},{"$f":"+'FORMULACIÓN SIGI '!P143","v":"00:00:00"},{"$f":"+'FORMULACIÓN SIGI '!Q143","v":"00:00:00"},{"$f":"+'FORMULACIÓN SIGI '!R143","v":0}]
[{"$f":"VLOOKUP('FORMULACIÓN SIGI '!A144,LISTAS!$A$58:$B$59,2,0)","v":{"$error":"#N/A"}},{"$f":"VLOOKUP('FORMULACIÓN SIGI '!B144,LISTAS!$A$61:$B$65,2,0)","v":{"$error":"#N/A"}},{"$f":"VLOOKUP('FORMULACIÓN SIGI '!C144,LISTAS!$A$67:$B$74,2,0)","v":{"$error":"#N/A"}},{"$f":"VLOOKUP('FORMULACIÓN SIGI '!D144,LISTAS!$A$76:$B$82,2,0)","v":{"$error":"#N/A"}},{"$f":"VLOOKUP('FORMULACIÓN SIGI '!E144,LISTAS!$A$84:$B$91,2,0)","v":{"$error":"#N/A"}},{"$f":"VLOOKUP('FORMULACIÓN SIGI '!F144,LISTAS!$A$93:$B$145,2,0)","v":{"$error":"#N/A"}},{"$f":"VLOOKUP('FORMULACIÓN SIGI '!G144,LISTAS!$A$113:B248,2,0)","v":{"$error":"#N/A"}},{"$f":"VLOOKUP('FORMULACIÓN SIGI '!H144,LISTAS!$A$126:$B$145,2,0)","v":{"$error":"#N/A"}},{"$f":"VLOOKUP('FORMULACIÓN SIGI '!I144,LISTAS!$A$147:$B$171,2,0)","v":{"$error":"#N/A"}},{"$f":"+'FORMULACIÓN SIGI '!J144","v":0},{"$f":"+'FORMULACIÓN SIGI '!K144","v":0},{"$f":"+'FORMULACIÓN SIGI '!L144","v":0},{"$f":"VLOOKUP('FORMULACIÓN SIGI '!M144,LISTAS!$A$173:$B$174,2,0)","v":{"$error":"#N/A"}},{"$f":"+'FORMULACIÓN SIGI '!N144","v":0},{"$f":"+'FORMULACIÓN SIGI '!O144","v":0},{"$f":"+'FORMULACIÓN SIGI '!P144","v":"00:00:00"},{"$f":"+'FORMULACIÓN SIGI '!Q144","v":"00:00:00"},{"$f":"+'FORMULACIÓN SIGI '!R144","v":0}]
[{"$f":"VLOOKUP('FORMULACIÓN SIGI '!A145,LISTAS!$A$58:$B$59,2,0)","v":{"$error":"#N/A"}},{"$f":"VLOOKUP('FORMULACIÓN SIGI '!B145,LISTAS!$A$61:$B$65,2,0)","v":{"$error":"#N/A"}},{"$f":"VLOOKUP('FORMULACIÓN SIGI '!C145,LISTAS!$A$67:$B$74,2,0)","v":{"$error":"#N/A"}},{"$f":"VLOOKUP('FORMULACIÓN SIGI '!D145,LISTAS!$A$76:$B$82,2,0)","v":{"$error":"#N/A"}},{"$f":"VLOOKUP('FORMULACIÓN SIGI '!E145,LISTAS!$A$84:$B$91,2,0)","v":{"$error":"#N/A"}},{"$f":"VLOOKUP('FORMULACIÓN SIGI '!F145,LISTAS!$A$93:$B$145,2,0)","v":{"$error":"#N/A"}},{"$f":"VLOOKUP('FORMULACIÓN SIGI '!G145,LISTAS!$A$113:B249,2,0)","v":{"$error":"#N/A"}},{"$f":"VLOOKUP('FORMULACIÓN SIGI '!H145,LISTAS!$A$126:$B$145,2,0)","v":{"$error":"#N/A"}},{"$f":"VLOOKUP('FORMULACIÓN SIGI '!I145,LISTAS!$A$147:$B$171,2,0)","v":{"$error":"#N/A"}},{"$f":"+'FORMULACIÓN SIGI '!J145","v":0},{"$f":"+'FORMULACIÓN SIGI '!K145","v":0},{"$f":"+'FORMULACIÓN SIGI '!L145","v":0},{"$f":"VLOOKUP('FORMULACIÓN SIGI '!M145,LISTAS!$A$173:$B$174,2,0)","v":{"$error":"#N/A"}},{"$f":"+'FORMULACIÓN SIGI '!N145","v":0},{"$f":"+'FORMULACIÓN SIGI '!O145","v":0},{"$f":"+'FORMULACIÓN SIGI '!P145","v":"00:00:00"},{"$f":"+'FORMULACIÓN SIGI '!Q145","v":"00:00:00"},{"$f":"+'FORMULACIÓN SIGI '!R145","v":0}]
[{"$f":"VLOOKUP('FORMULACIÓN SIGI '!A146,LISTAS!$A$58:$B$59,2,0)","v":{"$error":"#N/A"}},{"$f":"VLOOKUP('FORMULACIÓN SIGI '!B146,LISTAS!$A$61:$B$65,2,0)","v":{"$error":"#N/A"}},{"$f":"VLOOKUP('FORMULACIÓN SIGI '!C146,LISTAS!$A$67:$B$74,2,0)","v":{"$error":"#N/A"}},{"$f":"VLOOKUP('FORMULACIÓN SIGI '!D146,LISTAS!$A$76:$B$82,2,0)","v":{"$error":"#N/A"}},{"$f":"VLOOKUP('FORMULACIÓN SIGI '!E146,LISTAS!$A$84:$B$91,2,0)","v":{"$error":"#N/A"}},{"$f":"VLOOKUP('FORMULACIÓN SIGI '!F146,LISTAS!$A$93:$B$145,2,0)","v":{"$error":"#N/A"}},{"$f":"VLOOKUP('FORMULACIÓN SIGI '!G146,LISTAS!$A$113:B250,2,0)","v":{"$error":"#N/A"}},{"$f":"VLOOKUP('FORMULACIÓN SIGI '!H146,LISTAS!$A$126:$B$145,2,0)","v":{"$error":"#N/A"}},{"$f":"VLOOKUP('FORMULACIÓN SIGI '!I146,LISTAS!$A$147:$B$171,2,0)","v":{"$error":"#N/A"}},{"$f":"+'FORMULACIÓN SIGI '!J146","v":0},{"$f":"+'FORMULACIÓN SIGI '!K146","v":0},{"$f":"+'FORMULACIÓN SIGI '!L146","v":0},{"$f":"VLOOKUP('FORMULACIÓN SIGI '!M146,LISTAS!$A$173:$B$174,2,0)","v":{"$error":"#N/A"}},{"$f":"+'FORMULACIÓN SIGI '!N146","v":0},{"$f":"+'FORMULACIÓN SIGI '!O146","v":0},{"$f":"+'FORMULACIÓN SIGI '!P146","v":"00:00:00"},{"$f":"+'FORMULACIÓN SIGI '!Q146","v":"00:00:00"},{"$f":"+'FORMULACIÓN SIGI '!R146","v":0}]
[{"$f":"VLOOKUP('FORMULACIÓN SIGI '!A147,LISTAS!$A$58:$B$59,2,0)","v":{"$error":"#N/A"}},{"$f":"VLOOKUP('FORMULACIÓN SIGI '!B147,LISTAS!$A$61:$B$65,2,0)","v":{"$error":"#N/A"}},{"$f":"VLOOKUP('FORMULACIÓN SIGI '!C147,LISTAS!$A$67:$B$74,2,0)","v":{"$error":"#N/A"}},{"$f":"VLOOKUP('FORMULACIÓN SIGI '!D147,LISTAS!$A$76:$B$82,2,0)","v":{"$error":"#N/A"}},{"$f":"VLOOKUP('FORMULACIÓN SIGI '!E147,LISTAS!$A$84:$B$91,2,0)","v":{"$error":"#N/A"}},{"$f":"VLOOKUP('FORMULACIÓN SIGI '!F147,LISTAS!$A$93:$B$145,2,0)","v":{"$error":"#N/A"}},{"$f":"VLOOKUP('FORMULACIÓN SIGI '!G147,LISTAS!$A$113:B251,2,0)","v":{"$error":"#N/A"}},{"$f":"VLOOKUP('FORMULACIÓN SIGI '!H147,LISTAS!$A$126:$B$145,2,0)","v":{"$error":"#N/A"}},{"$f":"VLOOKUP('FORMULACIÓN SIGI '!I147,LISTAS!$A$147:$B$171,2,0)","v":{"$error":"#N/A"}},{"$f":"+'FORMULACIÓN SIGI '!J147","v":0},{"$f":"+'FORMULACIÓN SIGI '!K147","v":0},{"$f":"+'FORMULACIÓN SIGI '!L147","v":0},{"$f":"VLOOKUP('FORMULACIÓN SIGI '!M147,LISTAS!$A$173:$B$174,2,0)","v":{"$error":"#N/A"}},{"$f":"+'FORMULACIÓN SIGI '!N147","v":0},{"$f":"+'FORMULACIÓN SIGI '!O147","v":0},{"$f":"+'FORMULACIÓN SIGI '!P147","v":"00:00:00"},{"$f":"+'FORMULACIÓN SIGI '!Q147","v":"00:00:00"},{"$f":"+'FORMULACIÓN SIGI '!R147","v":0}]
[{"$f":"VLOOKUP('FORMULACIÓN SIGI '!A148,LISTAS!$A$58:$B$59,2,0)","v":{"$error":"#N/A"}},{"$f":"VLOOKUP('FORMULACIÓN SIGI '!B148,LISTAS!$A$61:$B$65,2,0)","v":{"$error":"#N/A"}},{"$f":"VLOOKUP('FORMULACIÓN SIGI '!C148,LISTAS!$A$67:$B$74,2,0)","v":{"$error":"#N/A"}},{"$f":"VLOOKUP('FORMULACIÓN SIGI '!D148,LISTAS!$A$76:$B$82,2,0)","v":{"$error":"#N/A"}},{"$f":"VLOOKUP('FORMULACIÓN SIGI '!E148,LISTAS!$A$84:$B$91,2,0)","v":{"$error":"#N/A"}},{"$f":"VLOOKUP('FORMULACIÓN SIGI '!F148,LISTAS!$A$93:$B$145,2,0)","v":{"$error":"#N/A"}},{"$f":"VLOOKUP('FORMULACIÓN SIGI '!G148,LISTAS!$A$113:B252,2,0)","v":{"$error":"#N/A"}},{"$f":"VLOOKUP('FORMULACIÓN SIGI '!H148,LISTAS!$A$126:$B$145,2,0)","v":{"$error":"#N/A"}},{"$f":"VLOOKUP('FORMULACIÓN SIGI '!I148,LISTAS!$A$147:$B$171,2,0)","v":{"$error":"#N/A"}},{"$f":"+'FORMULACIÓN SIGI '!J148","v":0},{"$f":"+'FORMULACIÓN SIGI '!K148","v":0},{"$f":"+'FORMULACIÓN SIGI '!L148","v":0},{"$f":"VLOOKUP('FORMULACIÓN SIGI '!M148,LISTAS!$A$173:$B$174,2,0)","v":{"$error":"#N/A"}},{"$f":"+'FORMULACIÓN SIGI '!N148","v":0},{"$f":"+'FORMULACIÓN SIGI '!O148","v":0},{"$f":"+'FORMULACIÓN SIGI '!P148","v":"00:00:00"},{"$f":"+'FORMULACIÓN SIGI '!Q148","v":"00:00:00"},{"$f":"+'FORMULACIÓN SIGI '!R148","v":0}]
[{"$f":"VLOOKUP('FORMULACIÓN SIGI '!A149,LISTAS!$A$58:$B$59,2,0)","v":{"$error":"#N/A"}},{"$f":"VLOOKUP('FORMULACIÓN SIGI '!B149,LISTAS!$A$61:$B$65,2,0)","v":{"$error":"#N/A"}},{"$f":"VLOOKUP('FORMULACIÓN SIGI '!C149,LISTAS!$A$67:$B$74,2,0)","v":{"$error":"#N/A"}},{"$f":"VLOOKUP('FORMULACIÓN SIGI '!D149,LISTAS!$A$76:$B$82,2,0)","v":{"$error":"#N/A"}},{"$f":"VLOOKUP('FORMULACIÓN SIGI '!E149,LISTAS!$A$84:$B$91,2,0)","v":{"$error":"#N/A"}},{"$f":"VLOOKUP('FORMULACIÓN SIGI '!F149,LISTAS!$A$93:$B$145,2,0)","v":{"$error":"#N/A"}},{"$f":"VLOOKUP('FORMULACIÓN SIGI '!G149,LISTAS!$A$113:B253,2,0)","v":{"$error":"#N/A"}},{"$f":"VLOOKUP('FORMULACIÓN SIGI '!H149,LISTAS!$A$126:$B$145,2,0)","v":{"$error":"#N/A"}},{"$f":"VLOOKUP('FORMULACIÓN SIGI '!I149,LISTAS!$A$147:$B$171,2,0)","v":{"$error":"#N/A"}},{"$f":"+'FORMULACIÓN SIGI '!J149","v":0},{"$f":"+'FORMULACIÓN SIGI '!K149","v":0},{"$f":"+'FORMULACIÓN SIGI '!L149","v":0},{"$f":"VLOOKUP('FORMULACIÓN SIGI '!M149,LISTAS!$A$173:$B$174,2,0)","v":{"$error":"#N/A"}},{"$f":"+'FORMULACIÓN SIGI '!N149","v":0},{"$f":"+'FORMULACIÓN SIGI '!O149","v":0},{"$f":"+'FORMULACIÓN SIGI '!P149","v":"00:00:00"},{"$f":"+'FORMULACIÓN SIGI '!Q149","v":"00:00:00"},{"$f":"+'FORMULACIÓN SIGI '!R149","v":0}]
[{"$f":"VLOOKUP('FORMULACIÓN SIGI '!A150,LISTAS!$A$58:$B$59,2,0)","v":{"$error":"#N/A"}},{"$f":"VLOOKUP('FORMULACIÓN SIGI '!B150,LISTAS!$A$61:$B$65,2,0)","v":{"$error":"#N/A"}},{"$f":"VLOOKUP('FORMULACIÓN SIGI '!C150,LISTAS!$A$67:$B$74,2,0)","v":{"$error":"#N/A"}},{"$f":"VLOOKUP('FORMULACIÓN SIGI '!D150,LISTAS!$A$76:$B$82,2,0)","v":{"$error":"#N/A"}},{"$f":"VLOOKUP('FORMULACIÓN SIGI '!E150,LISTAS!$A$84:$B$91,2,0)","v":{"$error":"#N/A"}},{"$f":"VLOOKUP('FORMULACIÓN SIGI '!F150,LISTAS!$A$93:$B$145,2,0)","v":{"$error":"#N/A"}},{"$f":"VLOOKUP('FORMULACIÓN SIGI '!G150,LISTAS!$A$113:B254,2,0)","v":{"$error":"#N/A"}},{"$f":"VLOOKUP('FORMULACIÓN SIGI '!H150,LISTAS!$A$126:$B$145,2,0)","v":{"$error":"#N/A"}},{"$f":"VLOOKUP('FORMULACIÓN SIGI '!I150,LISTAS!$A$147:$B$171,2,0)","v":{"$error":"#N/A"}},{"$f":"+'FORMULACIÓN SIGI '!J150","v":0},{"$f":"+'FORMULACIÓN SIGI '!K150","v":0},{"$f":"+'FORMULACIÓN SIGI '!L150","v":0},{"$f":"VLOOKUP('FORMULACIÓN SIGI '!M150,LISTAS!$A$173:$B$174,2,0)","v":{"$error":"#N/A"}},{"$f":"+'FORMULACIÓN SIGI '!N150","v":0},{"$f":"+'FORMULACIÓN SIGI '!O150","v":0},{"$f":"+'FORMULACIÓN SIGI '!P150","v":"00:00:00"},{"$f":"+'FORMULACIÓN SIGI '!Q150","v":"00:00:00"},{"$f":"+'FORMULACIÓN SIGI '!R150","v":0}]
[{"$f":"VLOOKUP('FORMULACIÓN SIGI '!A151,LISTAS!$A$58:$B$59,2,0)","v":{"$error":"#N/A"}},{"$f":"VLOOKUP('FORMULACIÓN SIGI '!B151,LISTAS!$A$61:$B$65,2,0)","v":{"$error":"#N/A"}},{"$f":"VLOOKUP('FORMULACIÓN SIGI '!C151,LISTAS!$A$67:$B$74,2,0)","v":{"$error":"#N/A"}},{"$f":"VLOOKUP('FORMULACIÓN SIGI '!D151,LISTAS!$A$76:$B$82,2,0)","v":{"$error":"#N/A"}},{"$f":"VLOOKUP('FORMULACIÓN SIGI '!E151,LISTAS!$A$84:$B$91,2,0)","v":{"$error":"#N/A"}},{"$f":"VLOOKUP('FORMULACIÓN SIGI '!F151,LISTAS!$A$93:$B$145,2,0)","v":{"$error":"#N/A"}},{"$f":"VLOOKUP('FORMULACIÓN SIGI '!G151,LISTAS!$A$113:B255,2,0)","v":{"$error":"#N/A"}},{"$f":"VLOOKUP('FORMULACIÓN SIGI '!H151,LISTAS!$A$126:$B$145,2,0)","v":{"$error":"#N/A"}},{"$f":"VLOOKUP('FORMULACIÓN SIGI '!I151,LISTAS!$A$147:$B$171,2,0)","v":{"$error":"#N/A"}},{"$f":"+'FORMULACIÓN SIGI '!J151","v":0},{"$f":"+'FORMULACIÓN SIGI '!K151","v":0},{"$f":"+'FORMULACIÓN SIGI '!L151","v":0},{"$f":"VLOOKUP('FORMULACIÓN SIGI '!M151,LISTAS!$A$173:$B$174,2,0)","v":{"$error":"#N/A"}},{"$f":"+'FORMULACIÓN SIGI '!N151","v":0},{"$f":"+'FORMULACIÓN SIGI '!O151","v":0},{"$f":"+'FORMULACIÓN SIGI '!P151","v":"00:00:00"},{"$f":"+'FORMULACIÓN SIGI '!Q151","v":"00:00:00"},{"$f":"+'FORMULACIÓN SIGI '!R151","v":0}]
[{"$f":"VLOOKUP('FORMULACIÓN SIGI '!A152,LISTAS!$A$58:$B$59,2,0)","v":{"$error":"#N/A"}},{"$f":"VLOOKUP('FORMULACIÓN SIGI '!B152,LISTAS!$A$61:$B$65,2,0)","v":{"$error":"#N/A"}},{"$f":"VLOOKUP('FORMULACIÓN SIGI '!C152,LISTAS!$A$67:$B$74,2,0)","v":{"$error":"#N/A"}},{"$f":"VLOOKUP('FORMULACIÓN SIGI '!D152,LISTAS!$A$76:$B$82,2,0)","v":{"$error":"#N/A"}},{"$f":"VLOOKUP('FORMULACIÓN SIGI '!E152,LISTAS!$A$84:$B$91,2,0)","v":{"$error":"#N/A"}},{"$f":"VLOOKUP('FORMULACIÓN SIGI '!F152,LISTAS!$A$93:$B$145,2,0)","v":{"$error":"#N/A"}},{"$f":"VLOOKUP('FORMULACIÓN SIGI '!G152,LISTAS!$A$113:B256,2,0)","v":{"$error":"#N/A"}},{"$f":"VLOOKUP('FORMULACIÓN SIGI '!H152,LISTAS!$A$126:$B$145,2,0)","v":{"$error":"#N/A"}},{"$f":"VLOOKUP('FORMULACIÓN SIGI '!I152,LISTAS!$A$147:$B$171,2,0)","v":{"$error":"#N/A"}},{"$f":"+'FORMULACIÓN SIGI '!J152","v":0},{"$f":"+'FORMULACIÓN SIGI '!K152","v":0},{"$f":"+'FORMULACIÓN SIGI '!L152","v":0},{"$f":"VLOOKUP('FORMULACIÓN SIGI '!M152,LISTAS!$A$173:$B$174,2,0)","v":{"$error":"#N/A"}},{"$f":"+'FORMULACIÓN SIGI '!N152","v":0},{"$f":"+'FORMULACIÓN SIGI '!O152","v":0},{"$f":"+'FORMULACIÓN SIGI '!P152","v":"00:00:00"},{"$f":"+'FORMULACIÓN SIGI '!Q152","v":"00:00:00"},{"$f":"+'FORMULACIÓN SIGI '!R152","v":0}]
[{"$f":"VLOOKUP('FORMULACIÓN SIGI '!A153,LISTAS!$A$58:$B$59,2,0)","v":{"$error":"#N/A"}},{"$f":"VLOOKUP('FORMULACIÓN SIGI '!B153,LISTAS!$A$61:$B$65,2,0)","v":{"$error":"#N/A"}},{"$f":"VLOOKUP('FORMULACIÓN SIGI '!C153,LISTAS!$A$67:$B$74,2,0)","v":{"$error":"#N/A"}},{"$f":"VLOOKUP('FORMULACIÓN SIGI '!D153,LISTAS!$A$76:$B$82,2,0)","v":{"$error":"#N/A"}},{"$f":"VLOOKUP('FORMULACIÓN SIGI '!E153,LISTAS!$A$84:$B$91,2,0)","v":{"$error":"#N/A"}},{"$f":"VLOOKUP('FORMULACIÓN SIGI '!F153,LISTAS!$A$93:$B$145,2,0)","v":{"$error":"#N/A"}},{"$f":"VLOOKUP('FORMULACIÓN SIGI '!G153,LISTAS!$A$113:B257,2,0)","v":{"$error":"#N/A"}},{"$f":"VLOOKUP('FORMULACIÓN SIGI '!H153,LISTAS!$A$126:$B$145,2,0)","v":{"$error":"#N/A"}},{"$f":"VLOOKUP('FORMULACIÓN SIGI '!I153,LISTAS!$A$147:$B$171,2,0)","v":{"$error":"#N/A"}},{"$f":"+'FORMULACIÓN SIGI '!J153","v":0},{"$f":"+'FORMULACIÓN SIGI '!K153","v":0},{"$f":"+'FORMULACIÓN SIGI '!L153","v":0},{"$f":"VLOOKUP('FORMULACIÓN SIGI '!M153,LISTAS!$A$173:$B$174,2,0)","v":{"$error":"#N/A"}},{"$f":"+'FORMULACIÓN SIGI '!N153","v":0},{"$f":"+'FORMULACIÓN SIGI '!O153","v":0},{"$f":"+'FORMULACIÓN SIGI '!P153","v":"00:00:00"},{"$f":"+'FORMULACIÓN SIGI '!Q153","v":"00:00:00"},{"$f":"+'FORMULACIÓN SIGI '!R153","v":0}]
[{"$f":"VLOOKUP('FORMULACIÓN SIGI '!A154,LISTAS!$A$58:$B$59,2,0)","v":{"$error":"#N/A"}},{"$f":"VLOOKUP('FORMULACIÓN SIGI '!B154,LISTAS!$A$61:$B$65,2,0)","v":{"$error":"#N/A"}},{"$f":"VLOOKUP('FORMULACIÓN SIGI '!C154,LISTAS!$A$67:$B$74,2,0)","v":{"$error":"#N/A"}},{"$f":"VLOOKUP('FORMULACIÓN SIGI '!D154,LISTAS!$A$76:$B$82,2,0)","v":{"$error":"#N/A"}},{"$f":"VLOOKUP('FORMULACIÓN SIGI '!E154,LISTAS!$A$84:$B$91,2,0)","v":{"$error":"#N/A"}},{"$f":"VLOOKUP('FORMULACIÓN SIGI '!F154,LISTAS!$A$93:$B$145,2,0)","v":{"$error":"#N/A"}},{"$f":"VLOOKUP('FORMULACIÓN SIGI '!G154,LISTAS!$A$113:B258,2,0)","v":{"$error":"#N/A"}},{"$f":"VLOOKUP('FORMULACIÓN SIGI '!H154,LISTAS!$A$126:$B$145,2,0)","v":{"$error":"#N/A"}},{"$f":"VLOOKUP('FORMULACIÓN SIGI '!I154,LISTAS!$A$147:$B$171,2,0)","v":{"$error":"#N/A"}},{"$f":"+'FORMULACIÓN SIGI '!J154","v":0},{"$f":"+'FORMULACIÓN SIGI '!K154","v":0},{"$f":"+'FORMULACIÓN SIGI '!L154","v":0},{"$f":"VLOOKUP('FORMULACIÓN SIGI '!M154,LISTAS!$A$173:$B$174,2,0)","v":{"$error":"#N/A"}},{"$f":"+'FORMULACIÓN SIGI '!N154","v":0},{"$f":"+'FORMULACIÓN SIGI '!O154","v":0},{"$f":"+'FORMULACIÓN SIGI '!P154","v":"00:00:00"},{"$f":"+'FORMULACIÓN SIGI '!Q154","v":"00:00:00"},{"$f":"+'FORMULACIÓN SIGI '!R154","v":0}]
[{"$f":"VLOOKUP('FORMULACIÓN SIGI '!A155,LISTAS!$A$58:$B$59,2,0)","v":{"$error":"#N/A"}},{"$f":"VLOOKUP('FORMULACIÓN SIGI '!B155,LISTAS!$A$61:$B$65,2,0)","v":{"$error":"#N/A"}},{"$f":"VLOOKUP('FORMULACIÓN SIGI '!C155,LISTAS!$A$67:$B$74,2,0)","v":{"$error":"#N/A"}},{"$f":"VLOOKUP('FORMULACIÓN SIGI '!D155,LISTAS!$A$76:$B$82,2,0)","v":{"$error":"#N/A"}},{"$f":"VLOOKUP('FORMULACIÓN SIGI '!E155,LISTAS!$A$84:$B$91,2,0)","v":{"$error":"#N/A"}},{"$f":"VLOOKUP('FORMULACIÓN SIGI '!F155,LISTAS!$A$93:$B$145,2,0)","v":{"$error":"#N/A"}},{"$f":"VLOOKUP('FORMULACIÓN SIGI '!G155,LISTAS!$A$113:B259,2,0)","v":{"$error":"#N/A"}},{"$f":"VLOOKUP('FORMULACIÓN SIGI '!H155,LISTAS!$A$126:$B$145,2,0)","v":{"$error":"#N/A"}},{"$f":"VLOOKUP('FORMULACIÓN SIGI '!I155,LISTAS!$A$147:$B$171,2,0)","v":{"$error":"#N/A"}},{"$f":"+'FORMULACIÓN SIGI '!J155","v":0},{"$f":"+'FORMULACIÓN SIGI '!K155","v":0},{"$f":"+'FORMULACIÓN SIGI '!L155","v":0},{"$f":"VLOOKUP('FORMULACIÓN SIGI '!M155,LISTAS!$A$173:$B$174,2,0)","v":{"$error":"#N/A"}},{"$f":"+'FORMULACIÓN SIGI '!N155","v":0},{"$f":"+'FORMULACIÓN SIGI '!O155","v":0},{"$f":"+'FORMULACIÓN SIGI '!P155","v":"00:00:00"},{"$f":"+'FORMULACIÓN SIGI '!Q155","v":"00:00:00"},{"$f":"+'FORMULACIÓN SIGI '!R155","v":0}]
[{"$f":"VLOOKUP('FORMULACIÓN SIGI '!A156,LISTAS!$A$58:$B$59,2,0)","v":{"$error":"#N/A"}},{"$f":"VLOOKUP('FORMULACIÓN SIGI '!B156,LISTAS!$A$61:$B$65,2,0)","v":{"$error":"#N/A"}},{"$f":"VLOOKUP('FORMULACIÓN SIGI '!C156,LISTAS!$A$67:$B$74,2,0)","v":{"$error":"#N/A"}},{"$f":"VLOOKUP('FORMULACIÓN SIGI '!D156,LISTAS!$A$76:$B$82,2,0)","v":{"$error":"#N/A"}},{"$f":"VLOOKUP('FORMULACIÓN SIGI '!E156,LISTAS!$A$84:$B$91,2,0)","v":{"$error":"#N/A"}},{"$f":"VLOOKUP('FORMULACIÓN SIGI '!F156,LISTAS!$A$93:$B$145,2,0)","v":{"$error":"#N/A"}},{"$f":"VLOOKUP('FORMULACIÓN SIGI '!G156,LISTAS!$A$113:B260,2,0)","v":{"$error":"#N/A"}},{"$f":"VLOOKUP('FORMULACIÓN SIGI '!H156,LISTAS!$A$126:$B$145,2,0)","v":{"$error":"#N/A"}},{"$f":"VLOOKUP('FORMULACIÓN SIGI '!I156,LISTAS!$A$147:$B$171,2,0)","v":{"$error":"#N/A"}},{"$f":"+'FORMULACIÓN SIGI '!J156","v":0},{"$f":"+'FORMULACIÓN SIGI '!K156","v":0},{"$f":"+'FORMULACIÓN SIGI '!L156","v":0},{"$f":"VLOOKUP('FORMULACIÓN SIGI '!M156,LISTAS!$A$173:$B$174,2,0)","v":{"$error":"#N/A"}},{"$f":"+'FORMULACIÓN SIGI '!N156","v":0},{"$f":"+'FORMULACIÓN SIGI '!O156","v":0},{"$f":"+'FORMULACIÓN SIGI '!P156","v":"00:00:00"},{"$f":"+'FORMULACIÓN SIGI '!Q156","v":"00:00:00"},{"$f":"+'FORMULACIÓN SIGI '!R156","v":0}]
[{"$f":"VLOOKUP('FORMULACIÓN SIGI '!A157,LISTAS!$A$58:$B$59,2,0)","v":{"$error":"#N/A"}},{"$f":"VLOOKUP('FORMULACIÓN SIGI '!B157,LISTAS!$A$61:$B$65,2,0)","v":{"$error":"#N/A"}},{"$f":"VLOOKUP('FORMULACIÓN SIGI '!C157,LISTAS!$A$67:$B$74,2,0)","v":{"$error":"#N/A"}},{"$f":"VLOOKUP('FORMULACIÓN SIGI '!D157,LISTAS!$A$76:$B$82,2,0)","v":{"$error":"#N/A"}},{"$f":"VLOOKUP('FORMULACIÓN SIGI '!E157,LISTAS!$A$84:$B$91,2,0)","v":{"$error":"#N/A"}},{"$f":"VLOOKUP('FORMULACIÓN SIGI '!F157,LISTAS!$A$93:$B$145,2,0)","v":{"$error":"#N/A"}},{"$f":"VLOOKUP('FORMULACIÓN SIGI '!G157,LISTAS!$A$113:B261,2,0)","v":{"$error":"#N/A"}},{"$f":"VLOOKUP('FORMULACIÓN SIGI '!H157,LISTAS!$A$126:$B$145,2,0)","v":{"$error":"#N/A"}},{"$f":"VLOOKUP('FORMULACIÓN SIGI '!I157,LISTAS!$A$147:$B$171,2,0)","v":{"$error":"#N/A"}},{"$f":"+'FORMULACIÓN SIGI '!J157","v":0},{"$f":"+'FORMULACIÓN SIGI '!K157","v":0},{"$f":"+'FORMULACIÓN SIGI '!L157","v":0},{"$f":"VLOOKUP('FORMULACIÓN SIGI '!M157,LISTAS!$A$173:$B$174,2,0)","v":{"$error":"#N/A"}},{"$f":"+'FORMULACIÓN SIGI '!N157","v":0},{"$f":"+'FORMULACIÓN SIGI '!O157","v":0},{"$f":"+'FORMULACIÓN SIGI '!P157","v":"00:00:00"},{"$f":"+'FORMULACIÓN SIGI '!Q157","v":"00:00:00"},{"$f":"+'FORMULACIÓN SIGI '!R157","v":0}]
[{"$f":"VLOOKUP('FORMULACIÓN SIGI '!A158,LISTAS!$A$58:$B$59,2,0)","v":{"$error":"#N/A"}},{"$f":"VLOOKUP('FORMULACIÓN SIGI '!B158,LISTAS!$A$61:$B$65,2,0)","v":{"$error":"#N/A"}},{"$f":"VLOOKUP('FORMULACIÓN SIGI '!C158,LISTAS!$A$67:$B$74,2,0)","v":{"$error":"#N/A"}},{"$f":"VLOOKUP('FORMULACIÓN SIGI '!D158,LISTAS!$A$76:$B$82,2,0)","v":{"$error":"#N/A"}},{"$f":"VLOOKUP('FORMULACIÓN SIGI '!E158,LISTAS!$A$84:$B$91,2,0)","v":{"$error":"#N/A"}},{"$f":"VLOOKUP('FORMULACIÓN SIGI '!F158,LISTAS!$A$93:$B$145,2,0)","v":{"$error":"#N/A"}},{"$f":"VLOOKUP('FORMULACIÓN SIGI '!G158,LISTAS!$A$113:B262,2,0)","v":{"$error":"#N/A"}},{"$f":"VLOOKUP('FORMULACIÓN SIGI '!H158,LISTAS!$A$126:$B$145,2,0)","v":{"$error":"#N/A"}},{"$f":"VLOOKUP('FORMULACIÓN SIGI '!I158,LISTAS!$A$147:$B$171,2,0)","v":{"$error":"#N/A"}},{"$f":"+'FORMULACIÓN SIGI '!J158","v":0},{"$f":"+'FORMULACIÓN SIGI '!K158","v":0},{"$f":"+'FORMULACIÓN SIGI '!L158","v":0},{"$f":"VLOOKUP('FORMULACIÓN SIGI '!M158,LISTAS!$A$173:$B$174,2,0)","v":{"$error":"#N/A"}},{"$f":"+'FORMULACIÓN SIGI '!N158","v":0},{"$f":"+'FORMULACIÓN SIGI '!O158","v":0},{"$f":"+'FORMULACIÓN SIGI '!P158","v":"00:00:00"},{"$f":"+'FORMULACIÓN SIGI '!Q158","v":"00:00:00"},{"$f":"+'FORMULACIÓN SIGI '!R158","v":0}]
[{"$f":"VLOOKUP('FORMULACIÓN SIGI '!A159,LISTAS!$A$58:$B$59,2,0)","v":{"$error":"#N/A"}},{"$f":"VLOOKUP('FORMULACIÓN SIGI '!B159,LISTAS!$A$61:$B$65,2,0)","v":{"$error":"#N/A"}},{"$f":"VLOOKUP('FORMULACIÓN SIGI '!C159,LISTAS!$A$67:$B$74,2,0)","v":{"$error":"#N/A"}},{"$f":"VLOOKUP('FORMULACIÓN SIGI '!D159,LISTAS!$A$76:$B$82,2,0)","v":{"$error":"#N/A"}},{"$f":"VLOOKUP('FORMULACIÓN SIGI '!E159,LISTAS!$A$84:$B$91,2,0)","v":{"$error":"#N/A"}},{"$f":"VLOOKUP('FORMULACIÓN SIGI '!F159,LISTAS!$A$93:$B$145,2,0)","v":{"$error":"#N/A"}},{"$f":"VLOOKUP('FORMULACIÓN SIGI '!G159,LISTAS!$A$113:B263,2,0)","v":{"$error":"#N/A"}},{"$f":"VLOOKUP('FORMULACIÓN SIGI '!H159,LISTAS!$A$126:$B$145,2,0)","v":{"$error":"#N/A"}},{"$f":"VLOOKUP('FORMULACIÓN SIGI '!I159,LISTAS!$A$147:$B$171,2,0)","v":{"$error":"#N/A"}},{"$f":"+'FORMULACIÓN SIGI '!J159","v":0},{"$f":"+'FORMULACIÓN SIGI '!K159","v":0},{"$f":"+'FORMULACIÓN SIGI '!L159","v":0},{"$f":"VLOOKUP('FORMULACIÓN SIGI '!M159,LISTAS!$A$173:$B$174,2,0)","v":{"$error":"#N/A"}},{"$f":"+'FORMULACIÓN SIGI '!N159","v":0},{"$f":"+'FORMULACIÓN SIGI '!O159","v":0},{"$f":"+'FORMULACIÓN SIGI '!P159","v":"00:00:00"},{"$f":"+'FORMULACIÓN SIGI '!Q159","v":"00:00:00"},{"$f":"+'FORMULACIÓN SIGI '!R159","v":0}]
[{"$f":"VLOOKUP('FORMULACIÓN SIGI '!A160,LISTAS!$A$58:$B$59,2,0)","v":{"$error":"#N/A"}},{"$f":"VLOOKUP('FORMULACIÓN SIGI '!B160,LISTAS!$A$61:$B$65,2,0)","v":{"$error":"#N/A"}},{"$f":"VLOOKUP('FORMULACIÓN SIGI '!C160,LISTAS!$A$67:$B$74,2,0)","v":{"$error":"#N/A"}},{"$f":"VLOOKUP('FORMULACIÓN SIGI '!D160,LISTAS!$A$76:$B$82,2,0)","v":{"$error":"#N/A"}},{"$f":"VLOOKUP('FORMULACIÓN SIGI '!E160,LISTAS!$A$84:$B$91,2,0)","v":{"$error":"#N/A"}},{"$f":"VLOOKUP('FORMULACIÓN SIGI '!F160,LISTAS!$A$93:$B$145,2,0)","v":{"$error":"#N/A"}},{"$f":"VLOOKUP('FORMULACIÓN SIGI '!G160,LISTAS!$A$113:B264,2,0)","v":{"$error":"#N/A"}},{"$f":"VLOOKUP('FORMULACIÓN SIGI '!H160,LISTAS!$A$126:$B$145,2,0)","v":{"$error":"#N/A"}},{"$f":"VLOOKUP('FORMULACIÓN SIGI '!I160,LISTAS!$A$147:$B$171,2,0)","v":{"$error":"#N/A"}},{"$f":"+'FORMULACIÓN SIGI '!J160","v":0},{"$f":"+'FORMULACIÓN SIGI '!K160","v":0},{"$f":"+'FORMULACIÓN SIGI '!L160","v":0},{"$f":"VLOOKUP('FORMULACIÓN SIGI '!M160,LISTAS!$A$173:$B$174,2,0)","v":{"$error":"#N/A"}},{"$f":"+'FORMULACIÓN SIGI '!N160","v":0},{"$f":"+'FORMULACIÓN SIGI '!O160","v":0},{"$f":"+'FORMULACIÓN SIGI '!P160","v":"00:00:00"},{"$f":"+'FORMULACIÓN SIGI '!Q160","v":"00:00:00"},{"$f":"+'FORMULACIÓN SIGI '!R160","v":0}]
[{"$f":"VLOOKUP('FORMULACIÓN SIGI '!A161,LISTAS!$A$58:$B$59,2,0)","v":{"$error":"#N/A"}},{"$f":"VLOOKUP('FORMULACIÓN SIGI '!B161,LISTAS!$A$61:$B$65,2,0)","v":{"$error":"#N/A"}},{"$f":"VLOOKUP('FORMULACIÓN SIGI '!C161,LISTAS!$A$67:$B$74,2,0)","v":{"$error":"#N/A"}},{"$f":"VLOOKUP('FORMULACIÓN SIGI '!D161,LISTAS!$A$76:$B$82,2,0)","v":{"$error":"#N/A"}},{"$f":"VLOOKUP('FORMULACIÓN SIGI '!E161,LISTAS!$A$84:$B$91,2,0)","v":{"$error":"#N/A"}},{"$f":"VLOOKUP('FORMULACIÓN SIGI '!F161,LISTAS!$A$93:$B$145,2,0)","v":{"$error":"#N/A"}},{"$f":"VLOOKUP('FORMULACIÓN SIGI '!G161,LISTAS!$A$113:B265,2,0)","v":{"$error":"#N/A"}},{"$f":"VLOOKUP('FORMULACIÓN SIGI '!H161,LISTAS!$A$126:$B$145,2,0)","v":{"$error":"#N/A"}},{"$f":"VLOOKUP('FORMULACIÓN SIGI '!I161,LISTAS!$A$147:$B$171,2,0)","v":{"$error":"#N/A"}},{"$f":"+'FORMULACIÓN SIGI '!J161","v":0},{"$f":"+'FORMULACIÓN SIGI '!K161","v":0},{"$f":"+'FORMULACIÓN SIGI '!L161","v":0},{"$f":"VLOOKUP('FORMULACIÓN SIGI '!M161,LISTAS!$A$173:$B$174,2,0)","v":{"$error":"#N/A"}},{"$f":"+'FORMULACIÓN SIGI '!N161","v":0},{"$f":"+'FORMULACIÓN SIGI '!O161","v":0},{"$f":"+'FORMULACIÓN SIGI '!P161","v":"00:00:00"},{"$f":"+'FORMULACIÓN SIGI '!Q161","v":"00:00:00"},{"$f":"+'FORMULACIÓN SIGI '!R161","v":0}]
[{"$f":"VLOOKUP('FORMULACIÓN SIGI '!A162,LISTAS!$A$58:$B$59,2,0)","v":{"$error":"#N/A"}},{"$f":"VLOOKUP('FORMULACIÓN SIGI '!B162,LISTAS!$A$61:$B$65,2,0)","v":{"$error":"#N/A"}},{"$f":"VLOOKUP('FORMULACIÓN SIGI '!C162,LISTAS!$A$67:$B$74,2,0)","v":{"$error":"#N/A"}},{"$f":"VLOOKUP('FORMULACIÓN SIGI '!D162,LISTAS!$A$76:$B$82,2,0)","v":{"$error":"#N/A"}},{"$f":"VLOOKUP('FORMULACIÓN SIGI '!E162,LISTAS!$A$84:$B$91,2,0)","v":{"$error":"#N/A"}},{"$f":"VLOOKUP('FORMULACIÓN SIGI '!F162,LISTAS!$A$93:$B$145,2,0)","v":{"$error":"#N/A"}},{"$f":"VLOOKUP('FORMULACIÓN SIGI '!G162,LISTAS!$A$113:B266,2,0)","v":{"$error":"#N/A"}},{"$f":"VLOOKUP('FORMULACIÓN SIGI '!H162,LISTAS!$A$126:$B$145,2,0)","v":{"$error":"#N/A"}},{"$f":"VLOOKUP('FORMULACIÓN SIGI '!I162,LISTAS!$A$147:$B$171,2,0)","v":{"$error":"#N/A"}},{"$f":"+'FORMULACIÓN SIGI '!J162","v":0},{"$f":"+'FORMULACIÓN SIGI '!K162","v":0},{"$f":"+'FORMULACIÓN SIGI '!L162","v":0},{"$f":"VLOOKUP('FORMULACIÓN SIGI '!M162,LISTAS!$A$173:$B$174,2,0)","v":{"$error":"#N/A"}},{"$f":"+'FORMULACIÓN SIGI '!N162","v":0},{"$f":"+'FORMULACIÓN SIGI '!O162","v":0},{"$f":"+'FORMULACIÓN SIGI '!P162","v":"00:00:00"},{"$f":"+'FORMULACIÓN SIGI '!Q162","v":"00:00:00"},{"$f":"+'FORMULACIÓN SIGI '!R162","v":0}]
[{"$f":"VLOOKUP('FORMULACIÓN SIGI '!A163,LISTAS!$A$58:$B$59,2,0)","v":{"$error":"#N/A"}},{"$f":"VLOOKUP('FORMULACIÓN SIGI '!B163,LISTAS!$A$61:$B$65,2,0)","v":{"$error":"#N/A"}},{"$f":"VLOOKUP('FORMULACIÓN SIGI '!C163,LISTAS!$A$67:$B$74,2,0)","v":{"$error":"#N/A"}},{"$f":"VLOOKUP('FORMULACIÓN SIGI '!D163,LISTAS!$A$76:$B$82,2,0)","v":{"$error":"#N/A"}},{"$f":"VLOOKUP('FORMULACIÓN SIGI '!E163,LISTAS!$A$84:$B$91,2,0)","v":{"$error":"#N/A"}},{"$f":"VLOOKUP('FORMULACIÓN SIGI '!F163,LISTAS!$A$93:$B$145,2,0)","v":{"$error":"#N/A"}},{"$f":"VLOOKUP('FORMULACIÓN SIGI '!G163,LISTAS!$A$113:B267,2,0)","v":{"$error":"#N/A"}},{"$f":"VLOOKUP('FORMULACIÓN SIGI '!H163,LISTAS!$A$126:$B$145,2,0)","v":{"$error":"#N/A"}},{"$f":"VLOOKUP('FORMULACIÓN SIGI '!I163,LISTAS!$A$147:$B$171,2,0)","v":{"$error":"#N/A"}},{"$f":"+'FORMULACIÓN SIGI '!J163","v":0},{"$f":"+'FORMULACIÓN SIGI '!K163","v":0},{"$f":"+'FORMULACIÓN SIGI '!L163","v":0},{"$f":"VLOOKUP('FORMULACIÓN SIGI '!M163,LISTAS!$A$173:$B$174,2,0)","v":{"$error":"#N/A"}},{"$f":"+'FORMULACIÓN SIGI '!N163","v":0},{"$f":"+'FORMULACIÓN SIGI '!O163","v":0},{"$f":"+'FORMULACIÓN SIGI '!P163","v":"00:00:00"},{"$f":"+'FORMULACIÓN SIGI '!Q163","v":"00:00:00"},{"$f":"+'FORMULACIÓN SIGI '!R163","v":0}]
[{"$f":"VLOOKUP('FORMULACIÓN SIGI '!A164,LISTAS!$A$58:$B$59,2,0)","v":{"$error":"#N/A"}},{"$f":"VLOOKUP('FORMULACIÓN SIGI '!B164,LISTAS!$A$61:$B$65,2,0)","v":{"$error":"#N/A"}},{"$f":"VLOOKUP('FORMULACIÓN SIGI '!C164,LISTAS!$A$67:$B$74,2,0)","v":{"$error":"#N/A"}},{"$f":"VLOOKUP('FORMULACIÓN SIGI '!D164,LISTAS!$A$76:$B$82,2,0)","v":{"$error":"#N/A"}},{"$f":"VLOOKUP('FORMULACIÓN SIGI '!E164,LISTAS!$A$84:$B$91,2,0)","v":{"$error":"#N/A"}},{"$f":"VLOOKUP('FORMULACIÓN SIGI '!F164,LISTAS!$A$93:$B$145,2,0)","v":{"$error":"#N/A"}},{"$f":"VLOOKUP('FORMULACIÓN SIGI '!G164,LISTAS!$A$113:B268,2,0)","v":{"$error":"#N/A"}},{"$f":"VLOOKUP('FORMULACIÓN SIGI '!H164,LISTAS!$A$126:$B$145,2,0)","v":{"$error":"#N/A"}},{"$f":"VLOOKUP('FORMULACIÓN SIGI '!I164,LISTAS!$A$147:$B$171,2,0)","v":{"$error":"#N/A"}},{"$f":"+'FORMULACIÓN SIGI '!J164","v":0},{"$f":"+'FORMULACIÓN SIGI '!K164","v":0},{"$f":"+'FORMULACIÓN SIGI '!L164","v":0},{"$f":"VLOOKUP('FORMULACIÓN SIGI '!M164,LISTAS!$A$173:$B$174,2,0)","v":{"$error":"#N/A"}},{"$f":"+'FORMULACIÓN SIGI '!N164","v":0},{"$f":"+'FORMULACIÓN SIGI '!O164","v":0},{"$f":"+'FORMULACIÓN SIGI '!P164","v":"00:00:00"},{"$f":"+'FORMULACIÓN SIGI '!Q164","v":"00:00:00"},{"$f":"+'FORMULACIÓN SIGI '!R164","v":0}]
[{"$f":"VLOOKUP('FORMULACIÓN SIGI '!A165,LISTAS!$A$58:$B$59,2,0)","v":{"$error":"#N/A"}},{"$f":"VLOOKUP('FORMULACIÓN SIGI '!B165,LISTAS!$A$61:$B$65,2,0)","v":{"$error":"#N/A"}},{"$f":"VLOOKUP('FORMULACIÓN SIGI '!C165,LISTAS!$A$67:$B$74,2,0)","v":{"$error":"#N/A"}},{"$f":"VLOOKUP('FORMULACIÓN SIGI '!D165,LISTAS!$A$76:$B$82,2,0)","v":{"$error":"#N/A"}},{"$f":"VLOOKUP('FORMULACIÓN SIGI '!E165,LISTAS!$A$84:$B$91,2,0)","v":{"$error":"#N/A"}},{"$f":"VLOOKUP('FORMULACIÓN SIGI '!F165,LISTAS!$A$93:$B$145,2,0)","v":{"$error":"#N/A"}},{"$f":"VLOOKUP('FORMULACIÓN SIGI '!G165,LISTAS!$A$113:B269,2,0)","v":{"$error":"#N/A"}},{"$f":"VLOOKUP('FORMULACIÓN SIGI '!H165,LISTAS!$A$126:$B$145,2,0)","v":{"$error":"#N/A"}},{"$f":"VLOOKUP('FORMULACIÓN SIGI '!I165,LISTAS!$A$147:$B$171,2,0)","v":{"$error":"#N/A"}},{"$f":"+'FORMULACIÓN SIGI '!J165","v":0},{"$f":"+'FORMULACIÓN SIGI '!K165","v":0},{"$f":"+'FORMULACIÓN SIGI '!L165","v":0},{"$f":"VLOOKUP('FORMULACIÓN SIGI '!M165,LISTAS!$A$173:$B$174,2,0)","v":{"$error":"#N/A"}},{"$f":"+'FORMULACIÓN SIGI '!N165","v":0},{"$f":"+'FORMULACIÓN SIGI '!O165","v":0},{"$f":"+'FORMULACIÓN SIGI '!P165","v":"00:00:00"},{"$f":"+'FORMULACIÓN SIGI '!Q165","v":"00:00:00"},{"$f":"+'FORMULACIÓN SIGI '!R165","v":0}]
[{"$f":"VLOOKUP('FORMULACIÓN SIGI '!A166,LISTAS!$A$58:$B$59,2,0)","v":{"$error":"#N/A"}},{"$f":"VLOOKUP('FORMULACIÓN SIGI '!B166,LISTAS!$A$61:$B$65,2,0)","v":{"$error":"#N/A"}},{"$f":"VLOOKUP('FORMULACIÓN SIGI '!C166,LISTAS!$A$67:$B$74,2,0)","v":{"$error":"#N/A"}},{"$f":"VLOOKUP('FORMULACIÓN SIGI '!D166,LISTAS!$A$76:$B$82,2,0)","v":{"$error":"#N/A"}},{"$f":"VLOOKUP('FORMULACIÓN SIGI '!E166,LISTAS!$A$84:$B$91,2,0)","v":{"$error":"#N/A"}},{"$f":"VLOOKUP('FORMULACIÓN SIGI '!F166,LISTAS!$A$93:$B$145,2,0)","v":{"$error":"#N/A"}},{"$f":"VLOOKUP('FORMULACIÓN SIGI '!G166,LISTAS!$A$113:B270,2,0)","v":{"$error":"#N/A"}},{"$f":"VLOOKUP('FORMULACIÓN SIGI '!H166,LISTAS!$A$126:$B$145,2,0)","v":{"$error":"#N/A"}},{"$f":"VLOOKUP('FORMULACIÓN SIGI '!I166,LISTAS!$A$147:$B$171,2,0)","v":{"$error":"#N/A"}},{"$f":"+'FORMULACIÓN SIGI '!J166","v":0},{"$f":"+'FORMULACIÓN SIGI '!K166","v":0},{"$f":"+'FORMULACIÓN SIGI '!L166","v":0},{"$f":"VLOOKUP('FORMULACIÓN SIGI '!M166,LISTAS!$A$173:$B$174,2,0)","v":{"$error":"#N/A"}},{"$f":"+'FORMULACIÓN SIGI '!N166","v":0},{"$f":"+'FORMULACIÓN SIGI '!O166","v":0},{"$f":"+'FORMULACIÓN SIGI '!P166","v":"00:00:00"},{"$f":"+'FORMULACIÓN SIGI '!Q166","v":"00:00:00"},{"$f":"+'FORMULACIÓN SIGI '!R166","v":0}]
[{"$f":"VLOOKUP('FORMULACIÓN SIGI '!A167,LISTAS!$A$58:$B$59,2,0)","v":{"$error":"#N/A"}},{"$f":"VLOOKUP('FORMULACIÓN SIGI '!B167,LISTAS!$A$61:$B$65,2,0)","v":{"$error":"#N/A"}},{"$f":"VLOOKUP('FORMULACIÓN SIGI '!C167,LISTAS!$A$67:$B$74,2,0)","v":{"$error":"#N/A"}},{"$f":"VLOOKUP('FORMULACIÓN SIGI '!D167,LISTAS!$A$76:$B$82,2,0)","v":{"$error":"#N/A"}},{"$f":"VLOOKUP('FORMULACIÓN SIGI '!E167,LISTAS!$A$84:$B$91,2,0)","v":{"$error":"#N/A"}},{"$f":"VLOOKUP('FORMULACIÓN SIGI '!F167,LISTAS!$A$93:$B$145,2,0)","v":{"$error":"#N/A"}},{"$f":"VLOOKUP('FORMULACIÓN SIGI '!G167,LISTAS!$A$113:B271,2,0)","v":{"$error":"#N/A"}},{"$f":"VLOOKUP('FORMULACIÓN SIGI '!H167,LISTAS!$A$126:$B$145,2,0)","v":{"$error":"#N/A"}},{"$f":"VLOOKUP('FORMULACIÓN SIGI '!I167,LISTAS!$A$147:$B$171,2,0)","v":{"$error":"#N/A"}},{"$f":"+'FORMULACIÓN SIGI '!J167","v":0},{"$f":"+'FORMULACIÓN SIGI '!K167","v":0},{"$f":"+'FORMULACIÓN SIGI '!L167","v":0},{"$f":"VLOOKUP('FORMULACIÓN SIGI '!M167,LISTAS!$A$173:$B$174,2,0)","v":{"$error":"#N/A"}},{"$f":"+'FORMULACIÓN SIGI '!N167","v":0},{"$f":"+'FORMULACIÓN SIGI '!O167","v":0},{"$f":"+'FORMULACIÓN SIGI '!P167","v":"00:00:00"},{"$f":"+'FORMULACIÓN SIGI '!Q167","v":"00:00:00"},{"$f":"+'FORMULACIÓN SIGI '!R167","v":0}]
[{"$f":"VLOOKUP('FORMULACIÓN SIGI '!A168,LISTAS!$A$58:$B$59,2,0)","v":{"$error":"#N/A"}},{"$f":"VLOOKUP('FORMULACIÓN SIGI '!B168,LISTAS!$A$61:$B$65,2,0)","v":{"$error":"#N/A"}},{"$f":"VLOOKUP('FORMULACIÓN SIGI '!C168,LISTAS!$A$67:$B$74,2,0)","v":{"$error":"#N/A"}},{"$f":"VLOOKUP('FORMULACIÓN SIGI '!D168,LISTAS!$A$76:$B$82,2,0)","v":{"$error":"#N/A"}},{"$f":"VLOOKUP('FORMULACIÓN SIGI '!E168,LISTAS!$A$84:$B$91,2,0)","v":{"$error":"#N/A"}},{"$f":"VLOOKUP('FORMULACIÓN SIGI '!F168,LISTAS!$A$93:$B$145,2,0)","v":{"$error":"#N/A"}},{"$f":"VLOOKUP('FORMULACIÓN SIGI '!G168,LISTAS!$A$113:B272,2,0)","v":{"$error":"#N/A"}},{"$f":"VLOOKUP('FORMULACIÓN SIGI '!H168,LISTAS!$A$126:$B$145,2,0)","v":{"$error":"#N/A"}},{"$f":"VLOOKUP('FORMULACIÓN SIGI '!I168,LISTAS!$A$147:$B$171,2,0)","v":{"$error":"#N/A"}},{"$f":"+'FORMULACIÓN SIGI '!J168","v":0},{"$f":"+'FORMULACIÓN SIGI '!K168","v":0},{"$f":"+'FORMULACIÓN SIGI '!L168","v":0},{"$f":"VLOOKUP('FORMULACIÓN SIGI '!M168,LISTAS!$A$173:$B$174,2,0)","v":{"$error":"#N/A"}},{"$f":"+'FORMULACIÓN SIGI '!N168","v":0},{"$f":"+'FORMULACIÓN SIGI '!O168","v":0},{"$f":"+'FORMULACIÓN SIGI '!P168","v":"00:00:00"},{"$f":"+'FORMULACIÓN SIGI '!Q168","v":"00:00:00"},{"$f":"+'FORMULACIÓN SIGI '!R168","v":0}]
[{"$f":"VLOOKUP('FORMULACIÓN SIGI '!A169,LISTAS!$A$58:$B$59,2,0)","v":{"$error":"#N/A"}},{"$f":"VLOOKUP('FORMULACIÓN SIGI '!B169,LISTAS!$A$61:$B$65,2,0)","v":{"$error":"#N/A"}},{"$f":"VLOOKUP('FORMULACIÓN SIGI '!C169,LISTAS!$A$67:$B$74,2,0)","v":{"$error":"#N/A"}},{"$f":"VLOOKUP('FORMULACIÓN SIGI '!D169,LISTAS!$A$76:$B$82,2,0)","v":{"$error":"#N/A"}},{"$f":"VLOOKUP('FORMULACIÓN SIGI '!E169,LISTAS!$A$84:$B$91,2,0)","v":{"$error":"#N/A"}},{"$f":"VLOOKUP('FORMULACIÓN SIGI '!F169,LISTAS!$A$93:$B$145,2,0)","v":{"$error":"#N/A"}},{"$f":"VLOOKUP('FORMULACIÓN SIGI '!G169,LISTAS!$A$113:B273,2,0)","v":{"$error":"#N/A"}},{"$f":"VLOOKUP('FORMULACIÓN SIGI '!H169,LISTAS!$A$126:$B$145,2,0)","v":{"$error":"#N/A"}},{"$f":"VLOOKUP('FORMULACIÓN SIGI '!I169,LISTAS!$A$147:$B$171,2,0)","v":{"$error":"#N/A"}},{"$f":"+'FORMULACIÓN SIGI '!J169","v":0},{"$f":"+'FORMULACIÓN SIGI '!K169","v":0},{"$f":"+'FORMULACIÓN SIGI '!L169","v":0},{"$f":"VLOOKUP('FORMULACIÓN SIGI '!M169,LISTAS!$A$173:$B$174,2,0)","v":{"$error":"#N/A"}},{"$f":"+'FORMULACIÓN SIGI '!N169","v":0},{"$f":"+'FORMULACIÓN SIGI '!O169","v":0},{"$f":"+'FORMULACIÓN SIGI '!P169","v":"00:00:00"},{"$f":"+'FORMULACIÓN SIGI '!Q169","v":"00:00:00"},{"$f":"+'FORMULACIÓN SIGI '!R169","v":0}]
[{"$f":"VLOOKUP('FORMULACIÓN SIGI '!A170,LISTAS!$A$58:$B$59,2,0)","v":{"$error":"#N/A"}},{"$f":"VLOOKUP('FORMULACIÓN SIGI '!B170,LISTAS!$A$61:$B$65,2,0)","v":{"$error":"#N/A"}},{"$f":"VLOOKUP('FORMULACIÓN SIGI '!C170,LISTAS!$A$67:$B$74,2,0)","v":{"$error":"#N/A"}},{"$f":"VLOOKUP('FORMULACIÓN SIGI '!D170,LISTAS!$A$76:$B$82,2,0)","v":{"$error":"#N/A"}},{"$f":"VLOOKUP('FORMULACIÓN SIGI '!E170,LISTAS!$A$84:$B$91,2,0)","v":{"$error":"#N/A"}},{"$f":"VLOOKUP('FORMULACIÓN SIGI '!F170,LISTAS!$A$93:$B$145,2,0)","v":{"$error":"#N/A"}},{"$f":"VLOOKUP('FORMULACIÓN SIGI '!G170,LISTAS!$A$113:B274,2,0)","v":{"$error":"#N/A"}},{"$f":"VLOOKUP('FORMULACIÓN SIGI '!H170,LISTAS!$A$126:$B$145,2,0)","v":{"$error":"#N/A"}},{"$f":"VLOOKUP('FORMULACIÓN SIGI '!I170,LISTAS!$A$147:$B$171,2,0)","v":{"$error":"#N/A"}},{"$f":"+'FORMULACIÓN SIGI '!J170","v":0},{"$f":"+'FORMULACIÓN SIGI '!K170","v":0},{"$f":"+'FORMULACIÓN SIGI '!L170","v":0},{"$f":"VLOOKUP('FORMULACIÓN SIGI '!M170,LISTAS!$A$173:$B$174,2,0)","v":{"$error":"#N/A"}},{"$f":"+'FORMULACIÓN SIGI '!N170","v":0},{"$f":"+'FORMULACIÓN SIGI '!O170","v":0},{"$f":"+'FORMULACIÓN SIGI '!P170","v":"00:00:00"},{"$f":"+'FORMULACIÓN SIGI '!Q170","v":"00:00:00"},{"$f":"+'FORMULACIÓN SIGI '!R170","v":0}]
[{"$f":"VLOOKUP('FORMULACIÓN SIGI '!A171,LISTAS!$A$58:$B$59,2,0)","v":{"$error":"#N/A"}},{"$f":"VLOOKUP('FORMULACIÓN SIGI '!B171,LISTAS!$A$61:$B$65,2,0)","v":{"$error":"#N/A"}},{"$f":"VLOOKUP('FORMULACIÓN SIGI '!C171,LISTAS!$A$67:$B$74,2,0)","v":{"$error":"#N/A"}},{"$f":"VLOOKUP('FORMULACIÓN SIGI '!D171,LISTAS!$A$76:$B$82,2,0)","v":{"$error":"#N/A"}},{"$f":"VLOOKUP('FORMULACIÓN SIGI '!E171,LISTAS!$A$84:$B$91,2,0)","v":{"$error":"#N/A"}},{"$f":"VLOOKUP('FORMULACIÓN SIGI '!F171,LISTAS!$A$93:$B$145,2,0)","v":{"$error":"#N/A"}},{"$f":"VLOOKUP('FORMULACIÓN SIGI '!G171,LISTAS!$A$113:B275,2,0)","v":{"$error":"#N/A"}},{"$f":"VLOOKUP('FORMULACIÓN SIGI '!H171,LISTAS!$A$126:$B$145,2,0)","v":{"$error":"#N/A"}},{"$f":"VLOOKUP('FORMULACIÓN SIGI '!I171,LISTAS!$A$147:$B$171,2,0)","v":{"$error":"#N/A"}},{"$f":"+'FORMULACIÓN SIGI '!J171","v":0},{"$f":"+'FORMULACIÓN SIGI '!K171","v":0},{"$f":"+'FORMULACIÓN SIGI '!L171","v":0},{"$f":"VLOOKUP('FORMULACIÓN SIGI '!M171,LISTAS!$A$173:$B$174,2,0)","v":{"$error":"#N/A"}},{"$f":"+'FORMULACIÓN SIGI '!N171","v":0},{"$f":"+'FORMULACIÓN SIGI '!O171","v":0},{"$f":"+'FORMULACIÓN SIGI '!P171","v":"00:00:00"},{"$f":"+'FORMULACIÓN SIGI '!Q171","v":"00:00:00"},{"$f":"+'FORMULACIÓN SIGI '!R171","v":0}]
[{"$f":"VLOOKUP('FORMULACIÓN SIGI '!A172,LISTAS!$A$58:$B$59,2,0)","v":{"$error":"#N/A"}},{"$f":"VLOOKUP('FORMULACIÓN SIGI '!B172,LISTAS!$A$61:$B$65,2,0)","v":{"$error":"#N/A"}},{"$f":"VLOOKUP('FORMULACIÓN SIGI '!C172,LISTAS!$A$67:$B$74,2,0)","v":{"$error":"#N/A"}},{"$f":"VLOOKUP('FORMULACIÓN SIGI '!D172,LISTAS!$A$76:$B$82,2,0)","v":{"$error":"#N/A"}},{"$f":"VLOOKUP('FORMULACIÓN SIGI '!E172,LISTAS!$A$84:$B$91,2,0)","v":{"$error":"#N/A"}},{"$f":"VLOOKUP('FORMULACIÓN SIGI '!F172,LISTAS!$A$93:$B$145,2,0)","v":{"$error":"#N/A"}},{"$f":"VLOOKUP('FORMULACIÓN SIGI '!G172,LISTAS!$A$113:B276,2,0)","v":{"$error":"#N/A"}},{"$f":"VLOOKUP('FORMULACIÓN SIGI '!H172,LISTAS!$A$126:$B$145,2,0)","v":{"$error":"#N/A"}},{"$f":"VLOOKUP('FORMULACIÓN SIGI '!I172,LISTAS!$A$147:$B$171,2,0)","v":{"$error":"#N/A"}},{"$f":"+'FORMULACIÓN SIGI '!J172","v":0},{"$f":"+'FORMULACIÓN SIGI '!K172","v":0},{"$f":"+'FORMULACIÓN SIGI '!L172","v":0},{"$f":"VLOOKUP('FORMULACIÓN SIGI '!M172,LISTAS!$A$173:$B$174,2,0)","v":{"$error":"#N/A"}},{"$f":"+'FORMULACIÓN SIGI '!N172","v":0},{"$f":"+'FORMULACIÓN SIGI '!O172","v":0},{"$f":"+'FORMULACIÓN SIGI '!P172","v":"00:00:00"},{"$f":"+'FORMULACIÓN SIGI '!Q172","v":"00:00:00"},{"$f":"+'FORMULACIÓN SIGI '!R172","v":0}]
[{"$f":"VLOOKUP('FORMULACIÓN SIGI '!A173,LISTAS!$A$58:$B$59,2,0)","v":{"$error":"#N/A"}},{"$f":"VLOOKUP('FORMULACIÓN SIGI '!B173,LISTAS!$A$61:$B$65,2,0)","v":{"$error":"#N/A"}},{"$f":"VLOOKUP('FORMULACIÓN SIGI '!C173,LISTAS!$A$67:$B$74,2,0)","v":{"$error":"#N/A"}},{"$f":"VLOOKUP('FORMULACIÓN SIGI '!D173,LISTAS!$A$76:$B$82,2,0)","v":{"$error":"#N/A"}},{"$f":"VLOOKUP('FORMULACIÓN SIGI '!E173,LISTAS!$A$84:$B$91,2,0)","v":{"$error":"#N/A"}},{"$f":"VLOOKUP('FORMULACIÓN SIGI '!F173,LISTAS!$A$93:$B$145,2,0)","v":{"$error":"#N/A"}},{"$f":"VLOOKUP('FORMULACIÓN SIGI '!G173,LISTAS!$A$113:B277,2,0)","v":{"$error":"#N/A"}},{"$f":"VLOOKUP('FORMULACIÓN SIGI '!H173,LISTAS!$A$126:$B$145,2,0)","v":{"$error":"#N/A"}},{"$f":"VLOOKUP('FORMULACIÓN SIGI '!I173,LISTAS!$A$147:$B$171,2,0)","v":{"$error":"#N/A"}},{"$f":"+'FORMULACIÓN SIGI '!J173","v":0},{"$f":"+'FORMULACIÓN SIGI '!K173","v":0},{"$f":"+'FORMULACIÓN SIGI '!L173","v":0},{"$f":"VLOOKUP('FORMULACIÓN SIGI '!M173,LISTAS!$A$173:$B$174,2,0)","v":{"$error":"#N/A"}},{"$f":"+'FORMULACIÓN SIGI '!N173","v":0},{"$f":"+'FORMULACIÓN SIGI '!O173","v":0},{"$f":"+'FORMULACIÓN SIGI '!P173","v":"00:00:00"},{"$f":"+'FORMULACIÓN SIGI '!Q173","v":"00:00:00"},{"$f":"+'FORMULACIÓN SIGI '!R173","v":0}]
[{"$f":"VLOOKUP('FORMULACIÓN SIGI '!A174,LISTAS!$A$58:$B$59,2,0)","v":{"$error":"#N/A"}},{"$f":"VLOOKUP('FORMULACIÓN SIGI '!B174,LISTAS!$A$61:$B$65,2,0)","v":{"$error":"#N/A"}},{"$f":"VLOOKUP('FORMULACIÓN SIGI '!C174,LISTAS!$A$67:$B$74,2,0)","v":{"$error":"#N/A"}},{"$f":"VLOOKUP('FORMULACIÓN SIGI '!D174,LISTAS!$A$76:$B$82,2,0)","v":{"$error":"#N/A"}},{"$f":"VLOOKUP('FORMULACIÓN SIGI '!E174,LISTAS!$A$84:$B$91,2,0)","v":{"$error":"#N/A"}},{"$f":"VLOOKUP('FORMULACIÓN SIGI '!F174,LISTAS!$A$93:$B$145,2,0)","v":{"$error":"#N/A"}},{"$f":"VLOOKUP('FORMULACIÓN SIGI '!G174,LISTAS!$A$113:B278,2,0)","v":{"$error":"#N/A"}},{"$f":"VLOOKUP('FORMULACIÓN SIGI '!H174,LISTAS!$A$126:$B$145,2,0)","v":{"$error":"#N/A"}},{"$f":"VLOOKUP('FORMULACIÓN SIGI '!I174,LISTAS!$A$147:$B$171,2,0)","v":{"$error":"#N/A"}},{"$f":"+'FORMULACIÓN SIGI '!J174","v":0},{"$f":"+'FORMULACIÓN SIGI '!K174","v":0},{"$f":"+'FORMULACIÓN SIGI '!L174","v":0},{"$f":"VLOOKUP('FORMULACIÓN SIGI '!M174,LISTAS!$A$173:$B$174,2,0)","v":{"$error":"#N/A"}},{"$f":"+'FORMULACIÓN SIGI '!N174","v":0},{"$f":"+'FORMULACIÓN SIGI '!O174","v":0},{"$f":"+'FORMULACIÓN SIGI '!P174","v":"00:00:00"},{"$f":"+'FORMULACIÓN SIGI '!Q174","v":"00:00:00"},{"$f":"+'FORMULACIÓN SIGI '!R174","v":0}]
[{"$f":"VLOOKUP('FORMULACIÓN SIGI '!A175,LISTAS!$A$58:$B$59,2,0)","v":{"$error":"#N/A"}},{"$f":"VLOOKUP('FORMULACIÓN SIGI '!B175,LISTAS!$A$61:$B$65,2,0)","v":{"$error":"#N/A"}},{"$f":"VLOOKUP('FORMULACIÓN SIGI '!C175,LISTAS!$A$67:$B$74,2,0)","v":{"$error":"#N/A"}},{"$f":"VLOOKUP('FORMULACIÓN SIGI '!D175,LISTAS!$A$76:$B$82,2,0)","v":{"$error":"#N/A"}},{"$f":"VLOOKUP('FORMULACIÓN SIGI '!E175,LISTAS!$A$84:$B$91,2,0)","v":{"$error":"#N/A"}},{"$f":"VLOOKUP('FORMULACIÓN SIGI '!F175,LISTAS!$A$93:$B$145,2,0)","v":{"$error":"#N/A"}},{"$f":"VLOOKUP('FORMULACIÓN SIGI '!G175,LISTAS!$A$113:B279,2,0)","v":{"$error":"#N/A"}},{"$f":"VLOOKUP('FORMULACIÓN SIGI '!H175,LISTAS!$A$126:$B$145,2,0)","v":{"$error":"#N/A"}},{"$f":"VLOOKUP('FORMULACIÓN SIGI '!I175,LISTAS!$A$147:$B$171,2,0)","v":{"$error":"#N/A"}},{"$f":"+'FORMULACIÓN SIGI '!J175","v":0},{"$f":"+'FORMULACIÓN SIGI '!K175","v":0},{"$f":"+'FORMULACIÓN SIGI '!L175","v":0},{"$f":"VLOOKUP('FORMULACIÓN SIGI '!M175,LISTAS!$A$173:$B$174,2,0)","v":{"$error":"#N/A"}},{"$f":"+'FORMULACIÓN SIGI '!N175","v":0},{"$f":"+'FORMULACIÓN SIGI '!O175","v":0},{"$f":"+'FORMULACIÓN SIGI '!P175","v":"00:00:00"},{"$f":"+'FORMULACIÓN SIGI '!Q175","v":"00:00:00"},{"$f":"+'FORMULACIÓN SIGI '!R175","v":0}]
[{"$f":"VLOOKUP('FORMULACIÓN SIGI '!A176,LISTAS!$A$58:$B$59,2,0)","v":{"$error":"#N/A"}},{"$f":"VLOOKUP('FORMULACIÓN SIGI '!B176,LISTAS!$A$61:$B$65,2,0)","v":{"$error":"#N/A"}},{"$f":"VLOOKUP('FORMULACIÓN SIGI '!C176,LISTAS!$A$67:$B$74,2,0)","v":{"$error":"#N/A"}},{"$f":"VLOOKUP('FORMULACIÓN SIGI '!D176,LISTAS!$A$76:$B$82,2,0)","v":{"$error":"#N/A"}},{"$f":"VLOOKUP('FORMULACIÓN SIGI '!E176,LISTAS!$A$84:$B$91,2,0)","v":{"$error":"#N/A"}},{"$f":"VLOOKUP('FORMULACIÓN SIGI '!F176,LISTAS!$A$93:$B$145,2,0)","v":{"$error":"#N/A"}},{"$f":"VLOOKUP('FORMULACIÓN SIGI '!G176,LISTAS!$A$113:B280,2,0)","v":{"$error":"#N/A"}},{"$f":"VLOOKUP('FORMULACIÓN SIGI '!H176,LISTAS!$A$126:$B$145,2,0)","v":{"$error":"#N/A"}},{"$f":"VLOOKUP('FORMULACIÓN SIGI '!I176,LISTAS!$A$147:$B$171,2,0)","v":{"$error":"#N/A"}},{"$f":"+'FORMULACIÓN SIGI '!J176","v":0},{"$f":"+'FORMULACIÓN SIGI '!K176","v":0},{"$f":"+'FORMULACIÓN SIGI '!L176","v":0},{"$f":"VLOOKUP('FORMULACIÓN SIGI '!M176,LISTAS!$A$173:$B$174,2,0)","v":{"$error":"#N/A"}},{"$f":"+'FORMULACIÓN SIGI '!N176","v":0},{"$f":"+'FORMULACIÓN SIGI '!O176","v":0},{"$f":"+'FORMULACIÓN SIGI '!P176","v":"00:00:00"},{"$f":"+'FORMULACIÓN SIGI '!Q176","v":"00:00:00"},{"$f":"+'FORMULACIÓN SIGI '!R176","v":0}]
[{"$f":"VLOOKUP('FORMULACIÓN SIGI '!A177,LISTAS!$A$58:$B$59,2,0)","v":{"$error":"#N/A"}},{"$f":"VLOOKUP('FORMULACIÓN SIGI '!B177,LISTAS!$A$61:$B$65,2,0)","v":{"$error":"#N/A"}},{"$f":"VLOOKUP('FORMULACIÓN SIGI '!C177,LISTAS!$A$67:$B$74,2,0)","v":{"$error":"#N/A"}},{"$f":"VLOOKUP('FORMULACIÓN SIGI '!D177,LISTAS!$A$76:$B$82,2,0)","v":{"$error":"#N/A"}},{"$f":"VLOOKUP('FORMULACIÓN SIGI '!E177,LISTAS!$A$84:$B$91,2,0)","v":{"$error":"#N/A"}},{"$f":"VLOOKUP('FORMULACIÓN SIGI '!F177,LISTAS!$A$93:$B$145,2,0)","v":{"$error":"#N/A"}},{"$f":"VLOOKUP('FORMULACIÓN SIGI '!G177,LISTAS!$A$113:B281,2,0)","v":{"$error":"#N/A"}},{"$f":"VLOOKUP('FORMULACIÓN SIGI '!H177,LISTAS!$A$126:$B$145,2,0)","v":{"$error":"#N/A"}},{"$f":"VLOOKUP('FORMULACIÓN SIGI '!I177,LISTAS!$A$147:$B$171,2,0)","v":{"$error":"#N/A"}},{"$f":"+'FORMULACIÓN SIGI '!J177","v":0},{"$f":"+'FORMULACIÓN SIGI '!K177","v":0},{"$f":"+'FORMULACIÓN SIGI '!L177","v":0},{"$f":"VLOOKUP('FORMULACIÓN SIGI '!M177,LISTAS!$A$173:$B$174,2,0)","v":{"$error":"#N/A"}},{"$f":"+'FORMULACIÓN SIGI '!N177","v":0},{"$f":"+'FORMULACIÓN SIGI '!O177","v":0},{"$f":"+'FORMULACIÓN SIGI '!P177","v":"00:00:00"},{"$f":"+'FORMULACIÓN SIGI '!Q177","v":"00:00:00"},{"$f":"+'FORMULACIÓN SIGI '!R177","v":0}]
[{"$f":"VLOOKUP('FORMULACIÓN SIGI '!A178,LISTAS!$A$58:$B$59,2,0)","v":{"$error":"#N/A"}},{"$f":"VLOOKUP('FORMULACIÓN SIGI '!B178,LISTAS!$A$61:$B$65,2,0)","v":{"$error":"#N/A"}},{"$f":"VLOOKUP('FORMULACIÓN SIGI '!C178,LISTAS!$A$67:$B$74,2,0)","v":{"$error":"#N/A"}},{"$f":"VLOOKUP('FORMULACIÓN SIGI '!D178,LISTAS!$A$76:$B$82,2,0)","v":{"$error":"#N/A"}},{"$f":"VLOOKUP('FORMULACIÓN SIGI '!E178,LISTAS!$A$84:$B$91,2,0)","v":{"$error":"#N/A"}},{"$f":"VLOOKUP('FORMULACIÓN SIGI '!F178,LISTAS!$A$93:$B$145,2,0)","v":{"$error":"#N/A"}},{"$f":"VLOOKUP('FORMULACIÓN SIGI '!G178,LISTAS!$A$113:B282,2,0)","v":{"$error":"#N/A"}},{"$f":"VLOOKUP('FORMULACIÓN SIGI '!H178,LISTAS!$A$126:$B$145,2,0)","v":{"$error":"#N/A"}},{"$f":"VLOOKUP('FORMULACIÓN SIGI '!I178,LISTAS!$A$147:$B$171,2,0)","v":{"$error":"#N/A"}},{"$f":"+'FORMULACIÓN SIGI '!J178","v":0},{"$f":"+'FORMULACIÓN SIGI '!K178","v":0},{"$f":"+'FORMULACIÓN SIGI '!L178","v":0},{"$f":"VLOOKUP('FORMULACIÓN SIGI '!M178,LISTAS!$A$173:$B$174,2,0)","v":{"$error":"#N/A"}},{"$f":"+'FORMULACIÓN SIGI '!N178","v":0},{"$f":"+'FORMULACIÓN SIGI '!O178","v":0},{"$f":"+'FORMULACIÓN SIGI '!P178","v":"00:00:00"},{"$f":"+'FORMULACIÓN SIGI '!Q178","v":"00:00:00"},{"$f":"+'FORMULACIÓN SIGI '!R178","v":0}]
[{"$f":"VLOOKUP('FORMULACIÓN SIGI '!A179,LISTAS!$A$58:$B$59,2,0)","v":{"$error":"#N/A"}},{"$f":"VLOOKUP('FORMULACIÓN SIGI '!B179,LISTAS!$A$61:$B$65,2,0)","v":{"$error":"#N/A"}},{"$f":"VLOOKUP('FORMULACIÓN SIGI '!C179,LISTAS!$A$67:$B$74,2,0)","v":{"$error":"#N/A"}},{"$f":"VLOOKUP('FORMULACIÓN SIGI '!D179,LISTAS!$A$76:$B$82,2,0)","v":{"$error":"#N/A"}},{"$f":"VLOOKUP('FORMULACIÓN SIGI '!E179,LISTAS!$A$84:$B$91,2,0)","v":{"$error":"#N/A"}},{"$f":"VLOOKUP('FORMULACIÓN SIGI '!F179,LISTAS!$A$93:$B$145,2,0)","v":{"$error":"#N/A"}},{"$f":"VLOOKUP('FORMULACIÓN SIGI '!G179,LISTAS!$A$113:B283,2,0)","v":{"$error":"#N/A"}},{"$f":"VLOOKUP('FORMULACIÓN SIGI '!H179,LISTAS!$A$126:$B$145,2,0)","v":{"$error":"#N/A"}},{"$f":"VLOOKUP('FORMULACIÓN SIGI '!I179,LISTAS!$A$147:$B$171,2,0)","v":{"$error":"#N/A"}},{"$f":"+'FORMULACIÓN SIGI '!J179","v":0},{"$f":"+'FORMULACIÓN SIGI '!K179","v":0},{"$f":"+'FORMULACIÓN SIGI '!L179","v":0},{"$f":"VLOOKUP('FORMULACIÓN SIGI '!M179,LISTAS!$A$173:$B$174,2,0)","v":{"$error":"#N/A"}},{"$f":"+'FORMULACIÓN SIGI '!N179","v":0},{"$f":"+'FORMULACIÓN SIGI '!O179","v":0},{"$f":"+'FORMULACIÓN SIGI '!P179","v":"00:00:00"},{"$f":"+'FORMULACIÓN SIGI '!Q179","v":"00:00:00"},{"$f":"+'FORMULACIÓN SIGI '!R179","v":0}]
[{"$f":"VLOOKUP('FORMULACIÓN SIGI '!A180,LISTAS!$A$58:$B$59,2,0)","v":{"$error":"#N/A"}},{"$f":"VLOOKUP('FORMULACIÓN SIGI '!B180,LISTAS!$A$61:$B$65,2,0)","v":{"$error":"#N/A"}},{"$f":"VLOOKUP('FORMULACIÓN SIGI '!C180,LISTAS!$A$67:$B$74,2,0)","v":{"$error":"#N/A"}},{"$f":"VLOOKUP('FORMULACIÓN SIGI '!D180,LISTAS!$A$76:$B$82,2,0)","v":{"$error":"#N/A"}},{"$f":"VLOOKUP('FORMULACIÓN SIGI '!E180,LISTAS!$A$84:$B$91,2,0)","v":{"$error":"#N/A"}},{"$f":"VLOOKUP('FORMULACIÓN SIGI '!F180,LISTAS!$A$93:$B$145,2,0)","v":{"$error":"#N/A"}},{"$f":"VLOOKUP('FORMULACIÓN SIGI '!G180,LISTAS!$A$113:B284,2,0)","v":{"$error":"#N/A"}},{"$f":"VLOOKUP('FORMULACIÓN SIGI '!H180,LISTAS!$A$126:$B$145,2,0)","v":{"$error":"#N/A"}},{"$f":"VLOOKUP('FORMULACIÓN SIGI '!I180,LISTAS!$A$147:$B$171,2,0)","v":{"$error":"#N/A"}},{"$f":"+'FORMULACIÓN SIGI '!J180","v":0},{"$f":"+'FORMULACIÓN SIGI '!K180","v":0},{"$f":"+'FORMULACIÓN SIGI '!L180","v":0},{"$f":"VLOOKUP('FORMULACIÓN SIGI '!M180,LISTAS!$A$173:$B$174,2,0)","v":{"$error":"#N/A"}},{"$f":"+'FORMULACIÓN SIGI '!N180","v":0},{"$f":"+'FORMULACIÓN SIGI '!O180","v":0},{"$f":"+'FORMULACIÓN SIGI '!P180","v":"00:00:00"},{"$f":"+'FORMULACIÓN SIGI '!Q180","v":"00:00:00"},{"$f":"+'FORMULACIÓN SIGI '!R180","v":0}]
[{"$f":"VLOOKUP('FORMULACIÓN SIGI '!A181,LISTAS!$A$58:$B$59,2,0)","v":{"$error":"#N/A"}},{"$f":"VLOOKUP('FORMULACIÓN SIGI '!B181,LISTAS!$A$61:$B$65,2,0)","v":{"$error":"#N/A"}},{"$f":"VLOOKUP('FORMULACIÓN SIGI '!C181,LISTAS!$A$67:$B$74,2,0)","v":{"$error":"#N/A"}},{"$f":"VLOOKUP('FORMULACIÓN SIGI '!D181,LISTAS!$A$76:$B$82,2,0)","v":{"$error":"#N/A"}},{"$f":"VLOOKUP('FORMULACIÓN SIGI '!E181,LISTAS!$A$84:$B$91,2,0)","v":{"$error":"#N/A"}},{"$f":"VLOOKUP('FORMULACIÓN SIGI '!F181,LISTAS!$A$93:$B$145,2,0)","v":{"$error":"#N/A"}},{"$f":"VLOOKUP('FORMULACIÓN SIGI '!G181,LISTAS!$A$113:B285,2,0)","v":{"$error":"#N/A"}},{"$f":"VLOOKUP('FORMULACIÓN SIGI '!H181,LISTAS!$A$126:$B$145,2,0)","v":{"$error":"#N/A"}},{"$f":"VLOOKUP('FORMULACIÓN SIGI '!I181,LISTAS!$A$147:$B$171,2,0)","v":{"$error":"#N/A"}},{"$f":"+'FORMULACIÓN SIGI '!J181","v":0},{"$f":"+'FORMULACIÓN SIGI '!K181","v":0},{"$f":"+'FORMULACIÓN SIGI '!L181","v":0},{"$f":"VLOOKUP('FORMULACIÓN SIGI '!M181,LISTAS!$A$173:$B$174,2,0)","v":{"$error":"#N/A"}},{"$f":"+'FORMULACIÓN SIGI '!N181","v":0},{"$f":"+'FORMULACIÓN SIGI '!O181","v":0},{"$f":"+'FORMULACIÓN SIGI '!P181","v":"00:00:00"},{"$f":"+'FORMULACIÓN SIGI '!Q181","v":"00:00:00"},{"$f":"+'FORMULACIÓN SIGI '!R181","v":0}]
[{"$f":"VLOOKUP('FORMULACIÓN SIGI '!A182,LISTAS!$A$58:$B$59,2,0)","v":{"$error":"#N/A"}},{"$f":"VLOOKUP('FORMULACIÓN SIGI '!B182,LISTAS!$A$61:$B$65,2,0)","v":{"$error":"#N/A"}},{"$f":"VLOOKUP('FORMULACIÓN SIGI '!C182,LISTAS!$A$67:$B$74,2,0)","v":{"$error":"#N/A"}},{"$f":"VLOOKUP('FORMULACIÓN SIGI '!D182,LISTAS!$A$76:$B$82,2,0)","v":{"$error":"#N/A"}},{"$f":"VLOOKUP('FORMULACIÓN SIGI '!E182,LISTAS!$A$84:$B$91,2,0)","v":{"$error":"#N/A"}},{"$f":"VLOOKUP('FORMULACIÓN SIGI '!F182,LISTAS!$A$93:$B$145,2,0)","v":{"$error":"#N/A"}},{"$f":"VLOOKUP('FORMULACIÓN SIGI '!G182,LISTAS!$A$113:B286,2,0)","v":{"$error":"#N/A"}},{"$f":"VLOOKUP('FORMULACIÓN SIGI '!H182,LISTAS!$A$126:$B$145,2,0)","v":{"$error":"#N/A"}},{"$f":"VLOOKUP('FORMULACIÓN SIGI '!I182,LISTAS!$A$147:$B$171,2,0)","v":{"$error":"#N/A"}},{"$f":"+'FORMULACIÓN SIGI '!J182","v":0},{"$f":"+'FORMULACIÓN SIGI '!K182","v":0},{"$f":"+'FORMULACIÓN SIGI '!L182","v":0},{"$f":"VLOOKUP('FORMULACIÓN SIGI '!M182,LISTAS!$A$173:$B$174,2,0)","v":{"$error":"#N/A"}},{"$f":"+'FORMULACIÓN SIGI '!N182","v":0},{"$f":"+'FORMULACIÓN SIGI '!O182","v":0},{"$f":"+'FORMULACIÓN SIGI '!P182","v":"00:00:00"},{"$f":"+'FORMULACIÓN SIGI '!Q182","v":"00:00:00"},{"$f":"+'FORMULACIÓN SIGI '!R182","v":0}]
[{"$f":"VLOOKUP('FORMULACIÓN SIGI '!A183,LISTAS!$A$58:$B$59,2,0)","v":{"$error":"#N/A"}},{"$f":"VLOOKUP('FORMULACIÓN SIGI '!B183,LISTAS!$A$61:$B$65,2,0)","v":{"$error":"#N/A"}},{"$f":"VLOOKUP('FORMULACIÓN SIGI '!C183,LISTAS!$A$67:$B$74,2,0)","v":{"$error":"#N/A"}},{"$f":"VLOOKUP('FORMULACIÓN SIGI '!D183,LISTAS!$A$76:$B$82,2,0)","v":{"$error":"#N/A"}},{"$f":"VLOOKUP('FORMULACIÓN SIGI '!E183,LISTAS!$A$84:$B$91,2,0)","v":{"$error":"#N/A"}},{"$f":"VLOOKUP('FORMULACIÓN SIGI '!F183,LISTAS!$A$93:$B$145,2,0)","v":{"$error":"#N/A"}},{"$f":"VLOOKUP('FORMULACIÓN SIGI '!G183,LISTAS!$A$113:B287,2,0)","v":{"$error":"#N/A"}},{"$f":"VLOOKUP('FORMULACIÓN SIGI '!H183,LISTAS!$A$126:$B$145,2,0)","v":{"$error":"#N/A"}},{"$f":"VLOOKUP('FORMULACIÓN SIGI '!I183,LISTAS!$A$147:$B$171,2,0)","v":{"$error":"#N/A"}},{"$f":"+'FORMULACIÓN SIGI '!J183","v":0},{"$f":"+'FORMULACIÓN SIGI '!K183","v":0},{"$f":"+'FORMULACIÓN SIGI '!L183","v":0},{"$f":"VLOOKUP('FORMULACIÓN SIGI '!M183,LISTAS!$A$173:$B$174,2,0)","v":{"$error":"#N/A"}},{"$f":"+'FORMULACIÓN SIGI '!N183","v":0},{"$f":"+'FORMULACIÓN SIGI '!O183","v":0},{"$f":"+'FORMULACIÓN SIGI '!P183","v":"00:00:00"},{"$f":"+'FORMULACIÓN SIGI '!Q183","v":"00:00:00"},{"$f":"+'FORMULACIÓN SIGI '!R183","v":0}]
[{"$f":"VLOOKUP('FORMULACIÓN SIGI '!A184,LISTAS!$A$58:$B$59,2,0)","v":{"$error":"#N/A"}},{"$f":"VLOOKUP('FORMULACIÓN SIGI '!B184,LISTAS!$A$61:$B$65,2,0)","v":{"$error":"#N/A"}},{"$f":"VLOOKUP('FORMULACIÓN SIGI '!C184,LISTAS!$A$67:$B$74,2,0)","v":{"$error":"#N/A"}},{"$f":"VLOOKUP('FORMULACIÓN SIGI '!D184,LISTAS!$A$76:$B$82,2,0)","v":{"$error":"#N/A"}},{"$f":"VLOOKUP('FORMULACIÓN SIGI '!E184,LISTAS!$A$84:$B$91,2,0)","v":{"$error":"#N/A"}},{"$f":"VLOOKUP('FORMULACIÓN SIGI '!F184,LISTAS!$A$93:$B$145,2,0)","v":{"$error":"#N/A"}},{"$f":"VLOOKUP('FORMULACIÓN SIGI '!G184,LISTAS!$A$113:B288,2,0)","v":{"$error":"#N/A"}},{"$f":"VLOOKUP('FORMULACIÓN SIGI '!H184,LISTAS!$A$126:$B$145,2,0)","v":{"$error":"#N/A"}},{"$f":"VLOOKUP('FORMULACIÓN SIGI '!I184,LISTAS!$A$147:$B$171,2,0)","v":{"$error":"#N/A"}},{"$f":"+'FORMULACIÓN SIGI '!J184","v":0},{"$f":"+'FORMULACIÓN SIGI '!K184","v":0},{"$f":"+'FORMULACIÓN SIGI '!L184","v":0},{"$f":"VLOOKUP('FORMULACIÓN SIGI '!M184,LISTAS!$A$173:$B$174,2,0)","v":{"$error":"#N/A"}},{"$f":"+'FORMULACIÓN SIGI '!N184","v":0},{"$f":"+'FORMULACIÓN SIGI '!O184","v":0},{"$f":"+'FORMULACIÓN SIGI '!P184","v":"00:00:00"},{"$f":"+'FORMULACIÓN SIGI '!Q184","v":"00:00:00"},{"$f":"+'FORMULACIÓN SIGI '!R184","v":0}]
[{"$f":"VLOOKUP('FORMULACIÓN SIGI '!A185,LISTAS!$A$58:$B$59,2,0)","v":{"$error":"#N/A"}},{"$f":"VLOOKUP('FORMULACIÓN SIGI '!B185,LISTAS!$A$61:$B$65,2,0)","v":{"$error":"#N/A"}},{"$f":"VLOOKUP('FORMULACIÓN SIGI '!C185,LISTAS!$A$67:$B$74,2,0)","v":{"$error":"#N/A"}},{"$f":"VLOOKUP('FORMULACIÓN SIGI '!D185,LISTAS!$A$76:$B$82,2,0)","v":{"$error":"#N/A"}},{"$f":"VLOOKUP('FORMULACIÓN SIGI '!E185,LISTAS!$A$84:$B$91,2,0)","v":{"$error":"#N/A"}},{"$f":"VLOOKUP('FORMULACIÓN SIGI '!F185,LISTAS!$A$93:$B$145,2,0)","v":{"$error":"#N/A"}},{"$f":"VLOOKUP('FORMULACIÓN SIGI '!G185,LISTAS!$A$113:B289,2,0)","v":{"$error":"#N/A"}},{"$f":"VLOOKUP('FORMULACIÓN SIGI '!H185,LISTAS!$A$126:$B$145,2,0)","v":{"$error":"#N/A"}},{"$f":"VLOOKUP('FORMULACIÓN SIGI '!I185,LISTAS!$A$147:$B$171,2,0)","v":{"$error":"#N/A"}},{"$f":"+'FORMULACIÓN SIGI '!J185","v":0},{"$f":"+'FORMULACIÓN SIGI '!K185","v":0},{"$f":"+'FORMULACIÓN SIGI '!L185","v":0},{"$f":"VLOOKUP('FORMULACIÓN SIGI '!M185,LISTAS!$A$173:$B$174,2,0)","v":{"$error":"#N/A"}},{"$f":"+'FORMULACIÓN SIGI '!N185","v":0},{"$f":"+'FORMULACIÓN SIGI '!O185","v":0},{"$f":"+'FORMULACIÓN SIGI '!P185","v":"00:00:00"},{"$f":"+'FORMULACIÓN SIGI '!Q185","v":"00:00:00"},{"$f":"+'FORMULACIÓN SIGI '!R185","v":0}]
[{"$f":"VLOOKUP('FORMULACIÓN SIGI '!A186,LISTAS!$A$58:$B$59,2,0)","v":{"$error":"#N/A"}},{"$f":"VLOOKUP('FORMULACIÓN SIGI '!B186,LISTAS!$A$61:$B$65,2,0)","v":{"$error":"#N/A"}},{"$f":"VLOOKUP('FORMULACIÓN SIGI '!C186,LISTAS!$A$67:$B$74,2,0)","v":{"$error":"#N/A"}},{"$f":"VLOOKUP('FORMULACIÓN SIGI '!D186,LISTAS!$A$76:$B$82,2,0)","v":{"$error":"#N/A"}},{"$f":"VLOOKUP('FORMULACIÓN SIGI '!E186,LISTAS!$A$84:$B$91,2,0)","v":{"$error":"#N/A"}},{"$f":"VLOOKUP('FORMULACIÓN SIGI '!F186,LISTAS!$A$93:$B$145,2,0)","v":{"$error":"#N/A"}},{"$f":"VLOOKUP('FORMULACIÓN SIGI '!G186,LISTAS!$A$113:B290,2,0)","v":{"$error":"#N/A"}},{"$f":"VLOOKUP('FORMULACIÓN SIGI '!H186,LISTAS!$A$126:$B$145,2,0)","v":{"$error":"#N/A"}},{"$f":"VLOOKUP('FORMULACIÓN SIGI '!I186,LISTAS!$A$147:$B$171,2,0)","v":{"$error":"#N/A"}},{"$f":"+'FORMULACIÓN SIGI '!J186","v":0},{"$f":"+'FORMULACIÓN SIGI '!K186","v":0},{"$f":"+'FORMULACIÓN SIGI '!L186","v":0},{"$f":"VLOOKUP('FORMULACIÓN SIGI '!M186,LISTAS!$A$173:$B$174,2,0)","v":{"$error":"#N/A"}},{"$f":"+'FORMULACIÓN SIGI '!N186","v":0},{"$f":"+'FORMULACIÓN SIGI '!O186","v":0},{"$f":"+'FORMULACIÓN SIGI '!P186","v":"00:00:00"},{"$f":"+'FORMULACIÓN SIGI '!Q186","v":"00:00:00"},{"$f":"+'FORMULACIÓN SIGI '!R186","v":0}]
[{"$f":"VLOOKUP('FORMULACIÓN SIGI '!A187,LISTAS!$A$58:$B$59,2,0)","v":{"$error":"#N/A"}},{"$f":"VLOOKUP('FORMULACIÓN SIGI '!B187,LISTAS!$A$61:$B$65,2,0)","v":{"$error":"#N/A"}},{"$f":"VLOOKUP('FORMULACIÓN SIGI '!C187,LISTAS!$A$67:$B$74,2,0)","v":{"$error":"#N/A"}},{"$f":"VLOOKUP('FORMULACIÓN SIGI '!D187,LISTAS!$A$76:$B$82,2,0)","v":{"$error":"#N/A"}},{"$f":"VLOOKUP('FORMULACIÓN SIGI '!E187,LISTAS!$A$84:$B$91,2,0)","v":{"$error":"#N/A"}},{"$f":"VLOOKUP('FORMULACIÓN SIGI '!F187,LISTAS!$A$93:$B$145,2,0)","v":{"$error":"#N/A"}},{"$f":"VLOOKUP('FORMULACIÓN SIGI '!G187,LISTAS!$A$113:B291,2,0)","v":{"$error":"#N/A"}},{"$f":"VLOOKUP('FORMULACIÓN SIGI '!H187,LISTAS!$A$126:$B$145,2,0)","v":{"$error":"#N/A"}},{"$f":"VLOOKUP('FORMULACIÓN SIGI '!I187,LISTAS!$A$147:$B$171,2,0)","v":{"$error":"#N/A"}},{"$f":"+'FORMULACIÓN SIGI '!J187","v":0},{"$f":"+'FORMULACIÓN SIGI '!K187","v":0},{"$f":"+'FORMULACIÓN SIGI '!L187","v":0},{"$f":"VLOOKUP('FORMULACIÓN SIGI '!M187,LISTAS!$A$173:$B$174,2,0)","v":{"$error":"#N/A"}},{"$f":"+'FORMULACIÓN SIGI '!N187","v":0},{"$f":"+'FORMULACIÓN SIGI '!O187","v":0},{"$f":"+'FORMULACIÓN SIGI '!P187","v":"00:00:00"},{"$f":"+'FORMULACIÓN SIGI '!Q187","v":"00:00:00"},{"$f":"+'FORMULACIÓN SIGI '!R187","v":0}]
[{"$f":"VLOOKUP('FORMULACIÓN SIGI '!A188,LISTAS!$A$58:$B$59,2,0)","v":{"$error":"#N/A"}},{"$f":"VLOOKUP('FORMULACIÓN SIGI '!B188,LISTAS!$A$61:$B$65,2,0)","v":{"$error":"#N/A"}},{"$f":"VLOOKUP('FORMULACIÓN SIGI '!C188,LISTAS!$A$67:$B$74,2,0)","v":{"$error":"#N/A"}},{"$f":"VLOOKUP('FORMULACIÓN SIGI '!D188,LISTAS!$A$76:$B$82,2,0)","v":{"$error":"#N/A"}},{"$f":"VLOOKUP('FORMULACIÓN SIGI '!E188,LISTAS!$A$84:$B$91,2,0)","v":{"$error":"#N/A"}},{"$f":"VLOOKUP('FORMULACIÓN SIGI '!F188,LISTAS!$A$93:$B$145,2,0)","v":{"$error":"#N/A"}},{"$f":"VLOOKUP('FORMULACIÓN SIGI '!G188,LISTAS!$A$113:B292,2,0)","v":{"$error":"#N/A"}},{"$f":"VLOOKUP('FORMULACIÓN SIGI '!H188,LISTAS!$A$126:$B$145,2,0)","v":{"$error":"#N/A"}},{"$f":"VLOOKUP('FORMULACIÓN SIGI '!I188,LISTAS!$A$147:$B$171,2,0)","v":{"$error":"#N/A"}},{"$f":"+'FORMULACIÓN SIGI '!J188","v":0},{"$f":"+'FORMULACIÓN SIGI '!K188","v":0},{"$f":"+'FORMULACIÓN SIGI '!L188","v":0},{"$f":"VLOOKUP('FORMULACIÓN SIGI '!M188,LISTAS!$A$173:$B$174,2,0)","v":{"$error":"#N/A"}},{"$f":"+'FORMULACIÓN SIGI '!N188","v":0},{"$f":"+'FORMULACIÓN SIGI '!O188","v":0},{"$f":"+'FORMULACIÓN SIGI '!P188","v":"00:00:00"},{"$f":"+'FORMULACIÓN SIGI '!Q188","v":"00:00:00"},{"$f":"+'FORMULACIÓN SIGI '!R188","v":0}]
[{"$f":"VLOOKUP('FORMULACIÓN SIGI '!A189,LISTAS!$A$58:$B$59,2,0)","v":{"$error":"#N/A"}},{"$f":"VLOOKUP('FORMULACIÓN SIGI '!B189,LISTAS!$A$61:$B$65,2,0)","v":{"$error":"#N/A"}},{"$f":"VLOOKUP('FORMULACIÓN SIGI '!C189,LISTAS!$A$67:$B$74,2,0)","v":{"$error":"#N/A"}},{"$f":"VLOOKUP('FORMULACIÓN SIGI '!D189,LISTAS!$A$76:$B$82,2,0)","v":{"$error":"#N/A"}},{"$f":"VLOOKUP('FORMULACIÓN SIGI '!E189,LISTAS!$A$84:$B$91,2,0)","v":{"$error":"#N/A"}},{"$f":"VLOOKUP('FORMULACIÓN SIGI '!F189,LISTAS!$A$93:$B$145,2,0)","v":{"$error":"#N/A"}},{"$f":"VLOOKUP('FORMULACIÓN SIGI '!G189,LISTAS!$A$113:B293,2,0)","v":{"$error":"#N/A"}},{"$f":"VLOOKUP('FORMULACIÓN SIGI '!H189,LISTAS!$A$126:$B$145,2,0)","v":{"$error":"#N/A"}},{"$f":"VLOOKUP('FORMULACIÓN SIGI '!I189,LISTAS!$A$147:$B$171,2,0)","v":{"$error":"#N/A"}},{"$f":"+'FORMULACIÓN SIGI '!J189","v":0},{"$f":"+'FORMULACIÓN SIGI '!K189","v":0},{"$f":"+'FORMULACIÓN SIGI '!L189","v":0},{"$f":"VLOOKUP('FORMULACIÓN SIGI '!M189,LISTAS!$A$173:$B$174,2,0)","v":{"$error":"#N/A"}},{"$f":"+'FORMULACIÓN SIGI '!N189","v":0},{"$f":"+'FORMULACIÓN SIGI '!O189","v":0},{"$f":"+'FORMULACIÓN SIGI '!P189","v":"00:00:00"},{"$f":"+'FORMULACIÓN SIGI '!Q189","v":"00:00:00"},{"$f":"+'FORMULACIÓN SIGI '!R189","v":0}]
[{"$f":"VLOOKUP('FORMULACIÓN SIGI '!A190,LISTAS!$A$58:$B$59,2,0)","v":{"$error":"#N/A"}},{"$f":"VLOOKUP('FORMULACIÓN SIGI '!B190,LISTAS!$A$61:$B$65,2,0)","v":{"$error":"#N/A"}},{"$f":"VLOOKUP('FORMULACIÓN SIGI '!C190,LISTAS!$A$67:$B$74,2,0)","v":{"$error":"#N/A"}},{"$f":"VLOOKUP('FORMULACIÓN SIGI '!D190,LISTAS!$A$76:$B$82,2,0)","v":{"$error":"#N/A"}},{"$f":"VLOOKUP('FORMULACIÓN SIGI '!E190,LISTAS!$A$84:$B$91,2,0)","v":{"$error":"#N/A"}},{"$f":"VLOOKUP('FORMULACIÓN SIGI '!F190,LISTAS!$A$93:$B$145,2,0)","v":{"$error":"#N/A"}},{"$f":"VLOOKUP('FORMULACIÓN SIGI '!G190,LISTAS!$A$113:B294,2,0)","v":{"$error":"#N/A"}},{"$f":"VLOOKUP('FORMULACIÓN SIGI '!H190,LISTAS!$A$126:$B$145,2,0)","v":{"$error":"#N/A"}},{"$f":"VLOOKUP('FORMULACIÓN SIGI '!I190,LISTAS!$A$147:$B$171,2,0)","v":{"$error":"#N/A"}},{"$f":"+'FORMULACIÓN SIGI '!J190","v":0},{"$f":"+'FORMULACIÓN SIGI '!K190","v":0},{"$f":"+'FORMULACIÓN SIGI '!L190","v":0},{"$f":"VLOOKUP('FORMULACIÓN SIGI '!M190,LISTAS!$A$173:$B$174,2,0)","v":{"$error":"#N/A"}},{"$f":"+'FORMULACIÓN SIGI '!N190","v":0},{"$f":"+'FORMULACIÓN SIGI '!O190","v":0},{"$f":"+'FORMULACIÓN SIGI '!P190","v":"00:00:00"},{"$f":"+'FORMULACIÓN SIGI '!Q190","v":"00:00:00"},{"$f":"+'FORMULACIÓN SIGI '!R190","v":0}]
[{"$f":"VLOOKUP('FORMULACIÓN SIGI '!A191,LISTAS!$A$58:$B$59,2,0)","v":{"$error":"#N/A"}},{"$f":"VLOOKUP('FORMULACIÓN SIGI '!B191,LISTAS!$A$61:$B$65,2,0)","v":{"$error":"#N/A"}},{"$f":"VLOOKUP('FORMULACIÓN SIGI '!C191,LISTAS!$A$67:$B$74,2,0)","v":{"$error":"#N/A"}},{"$f":"VLOOKUP('FORMULACIÓN SIGI '!D191,LISTAS!$A$76:$B$82,2,0)","v":{"$error":"#N/A"}},{"$f":"VLOOKUP('FORMULACIÓN SIGI '!E191,LISTAS!$A$84:$B$91,2,0)","v":{"$error":"#N/A"}},{"$f":"VLOOKUP('FORMULACIÓN SIGI '!F191,LISTAS!$A$93:$B$145,2,0)","v":{"$error":"#N/A"}},{"$f":"VLOOKUP('FORMULACIÓN SIGI '!G191,LISTAS!$A$113:B295,2,0)","v":{"$error":"#N/A"}},{"$f":"VLOOKUP('FORMULACIÓN SIGI '!H191,LISTAS!$A$126:$B$145,2,0)","v":{"$error":"#N/A"}},{"$f":"VLOOKUP('FORMULACIÓN SIGI '!I191,LISTAS!$A$147:$B$171,2,0)","v":{"$error":"#N/A"}},{"$f":"+'FORMULACIÓN SIGI '!J191","v":0},{"$f":"+'FORMULACIÓN SIGI '!K191","v":0},{"$f":"+'FORMULACIÓN SIGI '!L191","v":0},{"$f":"VLOOKUP('FORMULACIÓN SIGI '!M191,LISTAS!$A$173:$B$174,2,0)","v":{"$error":"#N/A"}},{"$f":"+'FORMULACIÓN SIGI '!N191","v":0},{"$f":"+'FORMULACIÓN SIGI '!O191","v":0},{"$f":"+'FORMULACIÓN SIGI '!P191","v":"00:00:00"},{"$f":"+'FORMULACIÓN SIGI '!Q191","v":"00:00:00"},{"$f":"+'FORMULACIÓN SIGI '!R191","v":0}]
[{"$f":"VLOOKUP('FORMULACIÓN SIGI '!A192,LISTAS!$A$58:$B$59,2,0)","v":{"$error":"#N/A"}},{"$f":"VLOOKUP('FORMULACIÓN SIGI '!B192,LISTAS!$A$61:$B$65,2,0)","v":{"$error":"#N/A"}},{"$f":"VLOOKUP('FORMULACIÓN SIGI '!C192,LISTAS!$A$67:$B$74,2,0)","v":{"$error":"#N/A"}},{"$f":"VLOOKUP('FORMULACIÓN SIGI '!D192,LISTAS!$A$76:$B$82,2,0)","v":{"$error":"#N/A"}},{"$f":"VLOOKUP('FORMULACIÓN SIGI '!E192,LISTAS!$A$84:$B$91,2,0)","v":{"$error":"#N/A"}},{"$f":"VLOOKUP('FORMULACIÓN SIGI '!F192,LISTAS!$A$93:$B$145,2,0)","v":{"$error":"#N/A"}},{"$f":"VLOOKUP('FORMULACIÓN SIGI '!G192,LISTAS!$A$113:B296,2,0)","v":{"$error":"#N/A"}},{"$f":"VLOOKUP('FORMULACIÓN SIGI '!H192,LISTAS!$A$126:$B$145,2,0)","v":{"$error":"#N/A"}},{"$f":"VLOOKUP('FORMULACIÓN SIGI '!I192,LISTAS!$A$147:$B$171,2,0)","v":{"$error":"#N/A"}},{"$f":"+'FORMULACIÓN SIGI '!J192","v":0},{"$f":"+'FORMULACIÓN SIGI '!K192","v":0},{"$f":"+'FORMULACIÓN SIGI '!L192","v":0},{"$f":"VLOOKUP('FORMULACIÓN SIGI '!M192,LISTAS!$A$173:$B$174,2,0)","v":{"$error":"#N/A"}},{"$f":"+'FORMULACIÓN SIGI '!N192","v":0},{"$f":"+'FORMULACIÓN SIGI '!O192","v":0},{"$f":"+'FORMULACIÓN SIGI '!P192","v":"00:00:00"},{"$f":"+'FORMULACIÓN SIGI '!Q192","v":"00:00:00"},{"$f":"+'FORMULACIÓN SIGI '!R192","v":0}]
[{"$f":"VLOOKUP('FORMULACIÓN SIGI '!A193,LISTAS!$A$58:$B$59,2,0)","v":{"$error":"#N/A"}},{"$f":"VLOOKUP('FORMULACIÓN SIGI '!B193,LISTAS!$A$61:$B$65,2,0)","v":{"$error":"#N/A"}},{"$f":"VLOOKUP('FORMULACIÓN SIGI '!C193,LISTAS!$A$67:$B$74,2,0)","v":{"$error":"#N/A"}},{"$f":"VLOOKUP('FORMULACIÓN SIGI '!D193,LISTAS!$A$76:$B$82,2,0)","v":{"$error":"#N/A"}},{"$f":"VLOOKUP('FORMULACIÓN SIGI '!E193,LISTAS!$A$84:$B$91,2,0)","v":{"$error":"#N/A"}},{"$f":"VLOOKUP('FORMULACIÓN SIGI '!F193,LISTAS!$A$93:$B$145,2,0)","v":{"$error":"#N/A"}},{"$f":"VLOOKUP('FORMULACIÓN SIGI '!G193,LISTAS!$A$113:B297,2,0)","v":{"$error":"#N/A"}},{"$f":"VLOOKUP('FORMULACIÓN SIGI '!H193,LISTAS!$A$126:$B$145,2,0)","v":{"$error":"#N/A"}},{"$f":"VLOOKUP('FORMULACIÓN SIGI '!I193,LISTAS!$A$147:$B$171,2,0)","v":{"$error":"#N/A"}},{"$f":"+'FORMULACIÓN SIGI '!J193","v":0},{"$f":"+'FORMULACIÓN SIGI '!K193","v":0},{"$f":"+'FORMULACIÓN SIGI '!L193","v":0},{"$f":"VLOOKUP('FORMULACIÓN SIGI '!M193,LISTAS!$A$173:$B$174,2,0)","v":{"$error":"#N/A"}},{"$f":"+'FORMULACIÓN SIGI '!N193","v":0},{"$f":"+'FORMULACIÓN SIGI '!O193","v":0},{"$f":"+'FORMULACIÓN SIGI '!P193","v":"00:00:00"},{"$f":"+'FORMULACIÓN SIGI '!Q193","v":"00:00:00"},{"$f":"+'FORMULACIÓN SIGI '!R193","v":0}]
[{"$f":"VLOOKUP('FORMULACIÓN SIGI '!A194,LISTAS!$A$58:$B$59,2,0)","v":{"$error":"#N/A"}},{"$f":"VLOOKUP('FORMULACIÓN SIGI '!B194,LISTAS!$A$61:$B$65,2,0)","v":{"$error":"#N/A"}},{"$f":"VLOOKUP('FORMULACIÓN SIGI '!C194,LISTAS!$A$67:$B$74,2,0)","v":{"$error":"#N/A"}},{"$f":"VLOOKUP('FORMULACIÓN SIGI '!D194,LISTAS!$A$76:$B$82,2,0)","v":{"$error":"#N/A"}},{"$f":"VLOOKUP('FORMULACIÓN SIGI '!E194,LISTAS!$A$84:$B$91,2,0)","v":{"$error":"#N/A"}},{"$f":"VLOOKUP('FORMULACIÓN SIGI '!F194,LISTAS!$A$93:$B$145,2,0)","v":{"$error":"#N/A"}},{"$f":"VLOOKUP('FORMULACIÓN SIGI '!G194,LISTAS!$A$113:B298,2,0)","v":{"$error":"#N/A"}},{"$f":"VLOOKUP('FORMULACIÓN SIGI '!H194,LISTAS!$A$126:$B$145,2,0)","v":{"$error":"#N/A"}},{"$f":"VLOOKUP('FORMULACIÓN SIGI '!I194,LISTAS!$A$147:$B$171,2,0)","v":{"$error":"#N/A"}},{"$f":"+'FORMULACIÓN SIGI '!J194","v":0},{"$f":"+'FORMULACIÓN SIGI '!K194","v":0},{"$f":"+'FORMULACIÓN SIGI '!L194","v":0},{"$f":"VLOOKUP('FORMULACIÓN SIGI '!M194,LISTAS!$A$173:$B$174,2,0)","v":{"$error":"#N/A"}},{"$f":"+'FORMULACIÓN SIGI '!N194","v":0},{"$f":"+'FORMULACIÓN SIGI '!O194","v":0},{"$f":"+'FORMULACIÓN SIGI '!P194","v":"00:00:00"},{"$f":"+'FORMULACIÓN SIGI '!Q194","v":"00:00:00"},{"$f":"+'FORMULACIÓN SIGI '!R194","v":0}]
[{"$f":"VLOOKUP('FORMULACIÓN SIGI '!A195,LISTAS!$A$58:$B$59,2,0)","v":{"$error":"#N/A"}},{"$f":"VLOOKUP('FORMULACIÓN SIGI '!B195,LISTAS!$A$61:$B$65,2,0)","v":{"$error":"#N/A"}},{"$f":"VLOOKUP('FORMULACIÓN SIGI '!C195,LISTAS!$A$67:$B$74,2,0)","v":{"$error":"#N/A"}},{"$f":"VLOOKUP('FORMULACIÓN SIGI '!D195,LISTAS!$A$76:$B$82,2,0)","v":{"$error":"#N/A"}},{"$f":"VLOOKUP('FORMULACIÓN SIGI '!E195,LISTAS!$A$84:$B$91,2,0)","v":{"$error":"#N/A"}},{"$f":"VLOOKUP('FORMULACIÓN SIGI '!F195,LISTAS!$A$93:$B$145,2,0)","v":{"$error":"#N/A"}},{"$f":"VLOOKUP('FORMULACIÓN SIGI '!G195,LISTAS!$A$113:B299,2,0)","v":{"$error":"#N/A"}},{"$f":"VLOOKUP('FORMULACIÓN SIGI '!H195,LISTAS!$A$126:$B$145,2,0)","v":{"$error":"#N/A"}},{"$f":"VLOOKUP('FORMULACIÓN SIGI '!I195,LISTAS!$A$147:$B$171,2,0)","v":{"$error":"#N/A"}},{"$f":"+'FORMULACIÓN SIGI '!J195","v":0},{"$f":"+'FORMULACIÓN SIGI '!K195","v":0},{"$f":"+'FORMULACIÓN SIGI '!L195","v":0},{"$f":"VLOOKUP('FORMULACIÓN SIGI '!M195,LISTAS!$A$173:$B$174,2,0)","v":{"$error":"#N/A"}},{"$f":"+'FORMULACIÓN SIGI '!N195","v":0},{"$f":"+'FORMULACIÓN SIGI '!O195","v":0},{"$f":"+'FORMULACIÓN SIGI '!P195","v":"00:00:00"},{"$f":"+'FORMULACIÓN SIGI '!Q195","v":"00:00:00"},{"$f":"+'FORMULACIÓN SIGI '!R195","v":0}]
[{"$f":"VLOOKUP('FORMULACIÓN SIGI '!A196,LISTAS!$A$58:$B$59,2,0)","v":{"$error":"#N/A"}},{"$f":"VLOOKUP('FORMULACIÓN SIGI '!B196,LISTAS!$A$61:$B$65,2,0)","v":{"$error":"#N/A"}},{"$f":"VLOOKUP('FORMULACIÓN SIGI '!C196,LISTAS!$A$67:$B$74,2,0)","v":{"$error":"#N/A"}},{"$f":"VLOOKUP('FORMULACIÓN SIGI '!D196,LISTAS!$A$76:$B$82,2,0)","v":{"$error":"#N/A"}},{"$f":"VLOOKUP('FORMULACIÓN SIGI '!E196,LISTAS!$A$84:$B$91,2,0)","v":{"$error":"#N/A"}},{"$f":"VLOOKUP('FORMULACIÓN SIGI '!F196,LISTAS!$A$93:$B$145,2,0)","v":{"$error":"#N/A"}},{"$f":"VLOOKUP('FORMULACIÓN SIGI '!G196,LISTAS!$A$113:B300,2,0)","v":{"$error":"#N/A"}},{"$f":"VLOOKUP('FORMULACIÓN SIGI '!H196,LISTAS!$A$126:$B$145,2,0)","v":{"$error":"#N/A"}},{"$f":"VLOOKUP('FORMULACIÓN SIGI '!I196,LISTAS!$A$147:$B$171,2,0)","v":{"$error":"#N/A"}},{"$f":"+'FORMULACIÓN SIGI '!J196","v":0},{"$f":"+'FORMULACIÓN SIGI '!K196","v":0},{"$f":"+'FORMULACIÓN SIGI '!L196","v":0},{"$f":"VLOOKUP('FORMULACIÓN SIGI '!M196,LISTAS!$A$173:$B$174,2,0)","v":{"$error":"#N/A"}},{"$f":"+'FORMULACIÓN SIGI '!N196","v":0},{"$f":"+'FORMULACIÓN SIGI '!O196","v":0},{"$f":"+'FORMULACIÓN SIGI '!P196","v":"00:00:00"},{"$f":"+'FORMULACIÓN SIGI '!Q196","v":"00:00:00"},{"$f":"+'FORMULACIÓN SIGI '!R196","v":0}]
[{"$f":"VLOOKUP('FORMULACIÓN SIGI '!A197,LISTAS!$A$58:$B$59,2,0)","v":{"$error":"#N/A"}},{"$f":"VLOOKUP('FORMULACIÓN SIGI '!B197,LISTAS!$A$61:$B$65,2,0)","v":{"$error":"#N/A"}},{"$f":"VLOOKUP('FORMULACIÓN SIGI '!C197,LISTAS!$A$67:$B$74,2,0)","v":{"$error":"#N/A"}},{"$f":"VLOOKUP('FORMULACIÓN SIGI '!D197,LISTAS!$A$76:$B$82,2,0)","v":{"$error":"#N/A"}},{"$f":"VLOOKUP('FORMULACIÓN SIGI '!E197,LISTAS!$A$84:$B$91,2,0)","v":{"$error":"#N/A"}},{"$f":"VLOOKUP('FORMULACIÓN SIGI '!F197,LISTAS!$A$93:$B$145,2,0)","v":{"$error":"#N/A"}},{"$f":"VLOOKUP('FORMULACIÓN SIGI '!G197,LISTAS!$A$113:B301,2,0)","v":{"$error":"#N/A"}},{"$f":"VLOOKUP('FORMULACIÓN SIGI '!H197,LISTAS!$A$126:$B$145,2,0)","v":{"$error":"#N/A"}},{"$f":"VLOOKUP('FORMULACIÓN SIGI '!I197,LISTAS!$A$147:$B$171,2,0)","v":{"$error":"#N/A"}},{"$f":"+'FORMULACIÓN SIGI '!J197","v":0},{"$f":"+'FORMULACIÓN SIGI '!K197","v":0},{"$f":"+'FORMULACIÓN SIGI '!L197","v":0},{"$f":"VLOOKUP('FORMULACIÓN SIGI '!M197,LISTAS!$A$173:$B$174,2,0)","v":{"$error":"#N/A"}},{"$f":"+'FORMULACIÓN SIGI '!N197","v":0},{"$f":"+'FORMULACIÓN SIGI '!O197","v":0},{"$f":"+'FORMULACIÓN SIGI '!P197","v":"00:00:00"},{"$f":"+'FORMULACIÓN SIGI '!Q197","v":"00:00:00"},{"$f":"+'FORMULACIÓN SIGI '!R197","v":0}]
[{"$f":"VLOOKUP('FORMULACIÓN SIGI '!A198,LISTAS!$A$58:$B$59,2,0)","v":{"$error":"#N/A"}},{"$f":"VLOOKUP('FORMULACIÓN SIGI '!B198,LISTAS!$A$61:$B$65,2,0)","v":{"$error":"#N/A"}},{"$f":"VLOOKUP('FORMULACIÓN SIGI '!C198,LISTAS!$A$67:$B$74,2,0)","v":{"$error":"#N/A"}},{"$f":"VLOOKUP('FORMULACIÓN SIGI '!D198,LISTAS!$A$76:$B$82,2,0)","v":{"$error":"#N/A"}},{"$f":"VLOOKUP('FORMULACIÓN SIGI '!E198,LISTAS!$A$84:$B$91,2,0)","v":{"$error":"#N/A"}},{"$f":"VLOOKUP('FORMULACIÓN SIGI '!F198,LISTAS!$A$93:$B$145,2,0)","v":{"$error":"#N/A"}},{"$f":"VLOOKUP('FORMULACIÓN SIGI '!G198,LISTAS!$A$113:B302,2,0)","v":{"$error":"#N/A"}},{"$f":"VLOOKUP('FORMULACIÓN SIGI '!H198,LISTAS!$A$126:$B$145,2,0)","v":{"$error":"#N/A"}},{"$f":"VLOOKUP('FORMULACIÓN SIGI '!I198,LISTAS!$A$147:$B$171,2,0)","v":{"$error":"#N/A"}},{"$f":"+'FORMULACIÓN SIGI '!J198","v":0},{"$f":"+'FORMULACIÓN SIGI '!K198","v":0},{"$f":"+'FORMULACIÓN SIGI '!L198","v":0},{"$f":"VLOOKUP('FORMULACIÓN SIGI '!M198,LISTAS!$A$173:$B$174,2,0)","v":{"$error":"#N/A"}},{"$f":"+'FORMULACIÓN SIGI '!N198","v":0},{"$f":"+'FORMULACIÓN SIGI '!O198","v":0},{"$f":"+'FORMULACIÓN SIGI '!P198","v":"00:00:00"},{"$f":"+'FORMULACIÓN SIGI '!Q198","v":"00:00:00"},{"$f":"+'FORMULACIÓN SIGI '!R198","v":0}]
[{"$f":"VLOOKUP('FORMULACIÓN SIGI '!A199,LISTAS!$A$58:$B$59,2,0)","v":{"$error":"#N/A"}},{"$f":"VLOOKUP('FORMULACIÓN SIGI '!B199,LISTAS!$A$61:$B$65,2,0)","v":{"$error":"#N/A"}},{"$f":"VLOOKUP('FORMULACIÓN SIGI '!C199,LISTAS!$A$67:$B$74,2,0)","v":{"$error":"#N/A"}},{"$f":"VLOOKUP('FORMULACIÓN SIGI '!D199,LISTAS!$A$76:$B$82,2,0)","v":{"$error":"#N/A"}},{"$f":"VLOOKUP('FORMULACIÓN SIGI '!E199,LISTAS!$A$84:$B$91,2,0)","v":{"$error":"#N/A"}},{"$f":"VLOOKUP('FORMULACIÓN SIGI '!F199,LISTAS!$A$93:$B$145,2,0)","v":{"$error":"#N/A"}},{"$f":"VLOOKUP('FORMULACIÓN SIGI '!G199,LISTAS!$A$113:B303,2,0)","v":{"$error":"#N/A"}},{"$f":"VLOOKUP('FORMULACIÓN SIGI '!H199,LISTAS!$A$126:$B$145,2,0)","v":{"$error":"#N/A"}},{"$f":"VLOOKUP('FORMULACIÓN SIGI '!I199,LISTAS!$A$147:$B$171,2,0)","v":{"$error":"#N/A"}},{"$f":"+'FORMULACIÓN SIGI '!J199","v":0},{"$f":"+'FORMULACIÓN SIGI '!K199","v":0},{"$f":"+'FORMULACIÓN SIGI '!L199","v":0},{"$f":"VLOOKUP('FORMULACIÓN SIGI '!M199,LISTAS!$A$173:$B$174,2,0)","v":{"$error":"#N/A"}},{"$f":"+'FORMULACIÓN SIGI '!N199","v":0},{"$f":"+'FORMULACIÓN SIGI '!O199","v":0},{"$f":"+'FORMULACIÓN SIGI '!P199","v":"00:00:00"},{"$f":"+'FORMULACIÓN SIGI '!Q199","v":"00:00:00"},{"$f":"+'FORMULACIÓN SIGI '!R199","v":0}]
[{"$f":"VLOOKUP('FORMULACIÓN SIGI '!A200,LISTAS!$A$58:$B$59,2,0)","v":{"$error":"#N/A"}},{"$f":"VLOOKUP('FORMULACIÓN SIGI '!B200,LISTAS!$A$61:$B$65,2,0)","v":{"$error":"#N/A"}},{"$f":"VLOOKUP('FORMULACIÓN SIGI '!C200,LISTAS!$A$67:$B$74,2,0)","v":{"$error":"#N/A"}},{"$f":"VLOOKUP('FORMULACIÓN SIGI '!D200,LISTAS!$A$76:$B$82,2,0)","v":{"$error":"#N/A"}},{"$f":"VLOOKUP('FORMULACIÓN SIGI '!E200,LISTAS!$A$84:$B$91,2,0)","v":{"$error":"#N/A"}},{"$f":"VLOOKUP('FORMULACIÓN SIGI '!F200,LISTAS!$A$93:$B$145,2,0)","v":{"$error":"#N/A"}},{"$f":"VLOOKUP('FORMULACIÓN SIGI '!G200,LISTAS!$A$113:B304,2,0)","v":{"$error":"#N/A"}},{"$f":"VLOOKUP('FORMULACIÓN SIGI '!H200,LISTAS!$A$126:$B$145,2,0)","v":{"$error":"#N/A"}},{"$f":"VLOOKUP('FORMULACIÓN SIGI '!I200,LISTAS!$A$147:$B$171,2,0)","v":{"$error":"#N/A"}},{"$f":"+'FORMULACIÓN SIGI '!J200","v":0},{"$f":"+'FORMULACIÓN SIGI '!K200","v":0},{"$f":"+'FORMULACIÓN SIGI '!L200","v":0},{"$f":"VLOOKUP('FORMULACIÓN SIGI '!M200,LISTAS!$A$173:$B$174,2,0)","v":{"$error":"#N/A"}},{"$f":"+'FORMULACIÓN SIGI '!N200","v":0},{"$f":"+'FORMULACIÓN SIGI '!O200","v":0},{"$f":"+'FORMULACIÓN SIGI '!P200","v":"00:00:00"},{"$f":"+'FORMULACIÓN SIGI '!Q200","v":"00:00:00"},{"$f":"+'FORMULACIÓN SIGI '!R200","v":0}]
[{"$f":"VLOOKUP('FORMULACIÓN SIGI '!A201,LISTAS!$A$58:$B$59,2,0)","v":{"$error":"#N/A"}},{"$f":"VLOOKUP('FORMULACIÓN SIGI '!B201,LISTAS!$A$61:$B$65,2,0)","v":{"$error":"#N/A"}},{"$f":"VLOOKUP('FORMULACIÓN SIGI '!C201,LISTAS!$A$67:$B$74,2,0)","v":{"$error":"#N/A"}},{"$f":"VLOOKUP('FORMULACIÓN SIGI '!D201,LISTAS!$A$76:$B$82,2,0)","v":{"$error":"#N/A"}},{"$f":"VLOOKUP('FORMULACIÓN SIGI '!E201,LISTAS!$A$84:$B$91,2,0)","v":{"$error":"#N/A"}},{"$f":"VLOOKUP('FORMULACIÓN SIGI '!F201,LISTAS!$A$93:$B$145,2,0)","v":{"$error":"#N/A"}},{"$f":"VLOOKUP('FORMULACIÓN SIGI '!G201,LISTAS!$A$113:B305,2,0)","v":{"$error":"#N/A"}},{"$f":"VLOOKUP('FORMULACIÓN SIGI '!H201,LISTAS!$A$126:$B$145,2,0)","v":{"$error":"#N/A"}},{"$f":"VLOOKUP('FORMULACIÓN SIGI '!I201,LISTAS!$A$147:$B$171,2,0)","v":{"$error":"#N/A"}},{"$f":"+'FORMULACIÓN SIGI '!J201","v":0},{"$f":"+'FORMULACIÓN SIGI '!K201","v":0},{"$f":"+'FORMULACIÓN SIGI '!L201","v":0},{"$f":"VLOOKUP('FORMULACIÓN SIGI '!M201,LISTAS!$A$173:$B$174,2,0)","v":{"$error":"#N/A"}},{"$f":"+'FORMULACIÓN SIGI '!N201","v":0},{"$f":"+'FORMULACIÓN SIGI '!O201","v":0},{"$f":"+'FORMULACIÓN SIGI '!P201","v":"00:00:00"},{"$f":"+'FORMULACIÓN SIGI '!Q201","v":"00:00:00"},{"$f":"+'FORMULACIÓN SIGI '!R201","v":0}]
[{"$f":"VLOOKUP('FORMULACIÓN SIGI '!A202,LISTAS!$A$58:$B$59,2,0)","v":{"$error":"#N/A"}},{"$f":"VLOOKUP('FORMULACIÓN SIGI '!B202,LISTAS!$A$61:$B$65,2,0)","v":{"$error":"#N/A"}},{"$f":"VLOOKUP('FORMULACIÓN SIGI '!C202,LISTAS!$A$67:$B$74,2,0)","v":{"$error":"#N/A"}},{"$f":"VLOOKUP('FORMULACIÓN SIGI '!D202,LISTAS!$A$76:$B$82,2,0)","v":{"$error":"#N/A"}},{"$f":"VLOOKUP('FORMULACIÓN SIGI '!E202,LISTAS!$A$84:$B$91,2,0)","v":{"$error":"#N/A"}},{"$f":"VLOOKUP('FORMULACIÓN SIGI '!F202,LISTAS!$A$93:$B$145,2,0)","v":{"$error":"#N/A"}},{"$f":"VLOOKUP('FORMULACIÓN SIGI '!G202,LISTAS!$A$113:B306,2,0)","v":{"$error":"#N/A"}},{"$f":"VLOOKUP('FORMULACIÓN SIGI '!H202,LISTAS!$A$126:$B$145,2,0)","v":{"$error":"#N/A"}},{"$f":"VLOOKUP('FORMULACIÓN SIGI '!I202,LISTAS!$A$147:$B$171,2,0)","v":{"$error":"#N/A"}},{"$f":"+'FORMULACIÓN SIGI '!J202","v":0},{"$f":"+'FORMULACIÓN SIGI '!K202","v":0},{"$f":"+'FORMULACIÓN SIGI '!L202","v":0},{"$f":"VLOOKUP('FORMULACIÓN SIGI '!M202,LISTAS!$A$173:$B$174,2,0)","v":{"$error":"#N/A"}},{"$f":"+'FORMULACIÓN SIGI '!N202","v":0},{"$f":"+'FORMULACIÓN SIGI '!O202","v":0},{"$f":"+'FORMULACIÓN SIGI '!P202","v":"00:00:00"},{"$f":"+'FORMULACIÓN SIGI '!Q202","v":"00:00:00"},{"$f":"+'FORMULACIÓN SIGI '!R202","v":0}]
[{"$f":"VLOOKUP('FORMULACIÓN SIGI '!A203,LISTAS!$A$58:$B$59,2,0)","v":{"$error":"#N/A"}},{"$f":"VLOOKUP('FORMULACIÓN SIGI '!B203,LISTAS!$A$61:$B$65,2,0)","v":{"$error":"#N/A"}},{"$f":"VLOOKUP('FORMULACIÓN SIGI '!C203,LISTAS!$A$67:$B$74,2,0)","v":{"$error":"#N/A"}},{"$f":"VLOOKUP('FORMULACIÓN SIGI '!D203,LISTAS!$A$76:$B$82,2,0)","v":{"$error":"#N/A"}},{"$f":"VLOOKUP('FORMULACIÓN SIGI '!E203,LISTAS!$A$84:$B$91,2,0)","v":{"$error":"#N/A"}},{"$f":"VLOOKUP('FORMULACIÓN SIGI '!F203,LISTAS!$A$93:$B$145,2,0)","v":{"$error":"#N/A"}},{"$f":"VLOOKUP('FORMULACIÓN SIGI '!G203,LISTAS!$A$113:B307,2,0)","v":{"$error":"#N/A"}},{"$f":"VLOOKUP('FORMULACIÓN SIGI '!H203,LISTAS!$A$126:$B$145,2,0)","v":{"$error":"#N/A"}},{"$f":"VLOOKUP('FORMULACIÓN SIGI '!I203,LISTAS!$A$147:$B$171,2,0)","v":{"$error":"#N/A"}},{"$f":"+'FORMULACIÓN SIGI '!J203","v":0},{"$f":"+'FORMULACIÓN SIGI '!K203","v":0},{"$f":"+'FORMULACIÓN SIGI '!L203","v":0},{"$f":"VLOOKUP('FORMULACIÓN SIGI '!M203,LISTAS!$A$173:$B$174,2,0)","v":{"$error":"#N/A"}},{"$f":"+'FORMULACIÓN SIGI '!N203","v":0},{"$f":"+'FORMULACIÓN SIGI '!O203","v":0},{"$f":"+'FORMULACIÓN SIGI '!P203","v":"00:00:00"},{"$f":"+'FORMULACIÓN SIGI '!Q203","v":"00:00:00"},{"$f":"+'FORMULACIÓN SIGI '!R203","v":0}]
[{"$f":"VLOOKUP('FORMULACIÓN SIGI '!A204,LISTAS!$A$58:$B$59,2,0)","v":{"$error":"#N/A"}},{"$f":"VLOOKUP('FORMULACIÓN SIGI '!B204,LISTAS!$A$61:$B$65,2,0)","v":{"$error":"#N/A"}},{"$f":"VLOOKUP('FORMULACIÓN SIGI '!C204,LISTAS!$A$67:$B$74,2,0)","v":{"$error":"#N/A"}},{"$f":"VLOOKUP('FORMULACIÓN SIGI '!D204,LISTAS!$A$76:$B$82,2,0)","v":{"$error":"#N/A"}},{"$f":"VLOOKUP('FORMULACIÓN SIGI '!E204,LISTAS!$A$84:$B$91,2,0)","v":{"$error":"#N/A"}},{"$f":"VLOOKUP('FORMULACIÓN SIGI '!F204,LISTAS!$A$93:$B$145,2,0)","v":{"$error":"#N/A"}},{"$f":"VLOOKUP('FORMULACIÓN SIGI '!G204,LISTAS!$A$113:B308,2,0)","v":{"$error":"#N/A"}},{"$f":"VLOOKUP('FORMULACIÓN SIGI '!H204,LISTAS!$A$126:$B$145,2,0)","v":{"$error":"#N/A"}},{"$f":"VLOOKUP('FORMULACIÓN SIGI '!I204,LISTAS!$A$147:$B$171,2,0)","v":{"$error":"#N/A"}},{"$f":"+'FORMULACIÓN SIGI '!J204","v":0},{"$f":"+'FORMULACIÓN SIGI '!K204","v":0},{"$f":"+'FORMULACIÓN SIGI '!L204","v":0},{"$f":"VLOOKUP('FORMULACIÓN SIGI '!M204,LISTAS!$A$173:$B$174,2,0)","v":{"$error":"#N/A"}},{"$f":"+'FORMULACIÓN SIGI '!N204","v":0},{"$f":"+'FORMULACIÓN SIGI '!O204","v":0},{"$f":"+'FORMULACIÓN SIGI '!P204","v":"00:00:00"},{"$f":"+'FORMULACIÓN SIGI '!Q204","v":"00:00:00"},{"$f":"+'FORMULACIÓN SIGI '!R204","v":0}]
[{"$f":"VLOOKUP('FORMULACIÓN SIGI '!A205,LISTAS!$A$58:$B$59,2,0)","v":{"$error":"#N/A"}},{"$f":"VLOOKUP('FORMULACIÓN SIGI '!B205,LISTAS!$A$61:$B$65,2,0)","v":{"$error":"#N/A"}},{"$f":"VLOOKUP('FORMULACIÓN SIGI '!C205,LISTAS!$A$67:$B$74,2,0)","v":{"$error":"#N/A"}},{"$f":"VLOOKUP('FORMULACIÓN SIGI '!D205,LISTAS!$A$76:$B$82,2,0)","v":{"$error":"#N/A"}},{"$f":"VLOOKUP('FORMULACIÓN SIGI '!E205,LISTAS!$A$84:$B$91,2,0)","v":{"$error":"#N/A"}},{"$f":"VLOOKUP('FORMULACIÓN SIGI '!F205,LISTAS!$A$93:$B$145,2,0)","v":{"$error":"#N/A"}},{"$f":"VLOOKUP('FORMULACIÓN SIGI '!G205,LISTAS!$A$113:B309,2,0)","v":{"$error":"#N/A"}},{"$f":"VLOOKUP('FORMULACIÓN SIGI '!H205,LISTAS!$A$126:$B$145,2,0)","v":{"$error":"#N/A"}},{"$f":"VLOOKUP('FORMULACIÓN SIGI '!I205,LISTAS!$A$147:$B$171,2,0)","v":{"$error":"#N/A"}},{"$f":"+'FORMULACIÓN SIGI '!J205","v":0},{"$f":"+'FORMULACIÓN SIGI '!K205","v":0},{"$f":"+'FORMULACIÓN SIGI '!L205","v":0},{"$f":"VLOOKUP('FORMULACIÓN SIGI '!M205,LISTAS!$A$173:$B$174,2,0)","v":{"$error":"#N/A"}},{"$f":"+'FORMULACIÓN SIGI '!N205","v":0},{"$f":"+'FORMULACIÓN SIGI '!O205","v":0},{"$f":"+'FORMULACIÓN SIGI '!P205","v":"00:00:00"},{"$f":"+'FORMULACIÓN SIGI '!Q205","v":"00:00:00"},{"$f":"+'FORMULACIÓN SIGI '!R205","v":0}]
[{"$f":"VLOOKUP('FORMULACIÓN SIGI '!A206,LISTAS!$A$58:$B$59,2,0)","v":{"$error":"#N/A"}},{"$f":"VLOOKUP('FORMULACIÓN SIGI '!B206,LISTAS!$A$61:$B$65,2,0)","v":{"$error":"#N/A"}},{"$f":"VLOOKUP('FORMULACIÓN SIGI '!C206,LISTAS!$A$67:$B$74,2,0)","v":{"$error":"#N/A"}},{"$f":"VLOOKUP('FORMULACIÓN SIGI '!D206,LISTAS!$A$76:$B$82,2,0)","v":{"$error":"#N/A"}},{"$f":"VLOOKUP('FORMULACIÓN SIGI '!E206,LISTAS!$A$84:$B$91,2,0)","v":{"$error":"#N/A"}},{"$f":"VLOOKUP('FORMULACIÓN SIGI '!F206,LISTAS!$A$93:$B$145,2,0)","v":{"$error":"#N/A"}},{"$f":"VLOOKUP('FORMULACIÓN SIGI '!G206,LISTAS!$A$113:B310,2,0)","v":{"$error":"#N/A"}},{"$f":"VLOOKUP('FORMULACIÓN SIGI '!H206,LISTAS!$A$126:$B$145,2,0)","v":{"$error":"#N/A"}},{"$f":"VLOOKUP('FORMULACIÓN SIGI '!I206,LISTAS!$A$147:$B$171,2,0)","v":{"$error":"#N/A"}},{"$f":"+'FORMULACIÓN SIGI '!J206","v":0},{"$f":"+'FORMULACIÓN SIGI '!K206","v":0},{"$f":"+'FORMULACIÓN SIGI '!L206","v":0},{"$f":"VLOOKUP('FORMULACIÓN SIGI '!M206,LISTAS!$A$173:$B$174,2,0)","v":{"$error":"#N/A"}},{"$f":"+'FORMULACIÓN SIGI '!N206","v":0},{"$f":"+'FORMULACIÓN SIGI '!O206","v":0},{"$f":"+'FORMULACIÓN SIGI '!P206","v":"00:00:00"},{"$f":"+'FORMULACIÓN SIGI '!Q206","v":"00:00:00"},{"$f":"+'FORMULACIÓN SIGI '!R206","v":0}]
[{"$f":"VLOOKUP('FORMULACIÓN SIGI '!A207,LISTAS!$A$58:$B$59,2,0)","v":{"$error":"#N/A"}},{"$f":"VLOOKUP('FORMULACIÓN SIGI '!B207,LISTAS!$A$61:$B$65,2,0)","v":{"$error":"#N/A"}},{"$f":"VLOOKUP('FORMULACIÓN SIGI '!C207,LISTAS!$A$67:$B$74,2,0)","v":{"$error":"#N/A"}},{"$f":"VLOOKUP('FORMULACIÓN SIGI '!D207,LISTAS!$A$76:$B$82,2,0)","v":{"$error":"#N/A"}},{"$f":"VLOOKUP('FORMULACIÓN SIGI '!E207,LISTAS!$A$84:$B$91,2,0)","v":{"$error":"#N/A"}},{"$f":"VLOOKUP('FORMULACIÓN SIGI '!F207,LISTAS!$A$93:$B$145,2,0)","v":{"$error":"#N/A"}},{"$f":"VLOOKUP('FORMULACIÓN SIGI '!G207,LISTAS!$A$113:B311,2,0)","v":{"$error":"#N/A"}},{"$f":"VLOOKUP('FORMULACIÓN SIGI '!H207,LISTAS!$A$126:$B$145,2,0)","v":{"$error":"#N/A"}},{"$f":"VLOOKUP('FORMULACIÓN SIGI '!I207,LISTAS!$A$147:$B$171,2,0)","v":{"$error":"#N/A"}},{"$f":"+'FORMULACIÓN SIGI '!J207","v":0},{"$f":"+'FORMULACIÓN SIGI '!K207","v":0},{"$f":"+'FORMULACIÓN SIGI '!L207","v":0},{"$f":"VLOOKUP('FORMULACIÓN SIGI '!M207,LISTAS!$A$173:$B$174,2,0)","v":{"$error":"#N/A"}},{"$f":"+'FORMULACIÓN SIGI '!N207","v":0},{"$f":"+'FORMULACIÓN SIGI '!O207","v":0},{"$f":"+'FORMULACIÓN SIGI '!P207","v":"00:00:00"},{"$f":"+'FORMULACIÓN SIGI '!Q207","v":"00:00:00"},{"$f":"+'FORMULACIÓN SIGI '!R207","v":0}]
[{"$f":"VLOOKUP('FORMULACIÓN SIGI '!A208,LISTAS!$A$58:$B$59,2,0)","v":{"$error":"#N/A"}},{"$f":"VLOOKUP('FORMULACIÓN SIGI '!B208,LISTAS!$A$61:$B$65,2,0)","v":{"$error":"#N/A"}},{"$f":"VLOOKUP('FORMULACIÓN SIGI '!C208,LISTAS!$A$67:$B$74,2,0)","v":{"$error":"#N/A"}},{"$f":"VLOOKUP('FORMULACIÓN SIGI '!D208,LISTAS!$A$76:$B$82,2,0)","v":{"$error":"#N/A"}},{"$f":"VLOOKUP('FORMULACIÓN SIGI '!E208,LISTAS!$A$84:$B$91,2,0)","v":{"$error":"#N/A"}},{"$f":"VLOOKUP('FORMULACIÓN SIGI '!F208,LISTAS!$A$93:$B$145,2,0)","v":{"$error":"#N/A"}},{"$f":"VLOOKUP('FORMULACIÓN SIGI '!G208,LISTAS!$A$113:B312,2,0)","v":{"$error":"#N/A"}},{"$f":"VLOOKUP('FORMULACIÓN SIGI '!H208,LISTAS!$A$126:$B$145,2,0)","v":{"$error":"#N/A"}},{"$f":"VLOOKUP('FORMULACIÓN SIGI '!I208,LISTAS!$A$147:$B$171,2,0)","v":{"$error":"#N/A"}},{"$f":"+'FORMULACIÓN SIGI '!J208","v":0},{"$f":"+'FORMULACIÓN SIGI '!K208","v":0},{"$f":"+'FORMULACIÓN SIGI '!L208","v":0},{"$f":"VLOOKUP('FORMULACIÓN SIGI '!M208,LISTAS!$A$173:$B$174,2,0)","v":{"$error":"#N/A"}},{"$f":"+'FORMULACIÓN SIGI '!N208","v":0},{"$f":"+'FORMULACIÓN SIGI '!O208","v":0},{"$f":"+'FORMULACIÓN SIGI '!P208","v":"00:00:00"},{"$f":"+'FORMULACIÓN SIGI '!Q208","v":"00:00:00"},{"$f":"+'FORMULACIÓN SIGI '!R208","v":0}]
[{"$f":"VLOOKUP('FORMULACIÓN SIGI '!A209,LISTAS!$A$58:$B$59,2,0)","v":{"$error":"#N/A"}},{"$f":"VLOOKUP('FORMULACIÓN SIGI '!B209,LISTAS!$A$61:$B$65,2,0)","v":{"$error":"#N/A"}},{"$f":"VLOOKUP('FORMULACIÓN SIGI '!C209,LISTAS!$A$67:$B$74,2,0)","v":{"$error":"#N/A"}},{"$f":"VLOOKUP('FORMULACIÓN SIGI '!D209,LISTAS!$A$76:$B$82,2,0)","v":{"$error":"#N/A"}},{"$f":"VLOOKUP('FORMULACIÓN SIGI '!E209,LISTAS!$A$84:$B$91,2,0)","v":{"$error":"#N/A"}},{"$f":"VLOOKUP('FORMULACIÓN SIGI '!F209,LISTAS!$A$93:$B$145,2,0)","v":{"$error":"#N/A"}},{"$f":"VLOOKUP('FORMULACIÓN SIGI '!G209,LISTAS!$A$113:B313,2,0)","v":{"$error":"#N/A"}},{"$f":"VLOOKUP('FORMULACIÓN SIGI '!H209,LISTAS!$A$126:$B$145,2,0)","v":{"$error":"#N/A"}},{"$f":"VLOOKUP('FORMULACIÓN SIGI '!I209,LISTAS!$A$147:$B$171,2,0)","v":{"$error":"#N/A"}},{"$f":"+'FORMULACIÓN SIGI '!J209","v":0},{"$f":"+'FORMULACIÓN SIGI '!K209","v":0},{"$f":"+'FORMULACIÓN SIGI '!L209","v":0},{"$f":"VLOOKUP('FORMULACIÓN SIGI '!M209,LISTAS!$A$173:$B$174,2,0)","v":{"$error":"#N/A"}},{"$f":"+'FORMULACIÓN SIGI '!N209","v":0},{"$f":"+'FORMULACIÓN SIGI '!O209","v":0},{"$f":"+'FORMULACIÓN SIGI '!P209","v":"00:00:00"},{"$f":"+'FORMULACIÓN SIGI '!Q209","v":"00:00:00"},{"$f":"+'FORMULACIÓN SIGI '!R209","v":0}]
[{"$f":"VLOOKUP('FORMULACIÓN SIGI '!A210,LISTAS!$A$58:$B$59,2,0)","v":{"$error":"#N/A"}},{"$f":"VLOOKUP('FORMULACIÓN SIGI '!B210,LISTAS!$A$61:$B$65,2,0)","v":{"$error":"#N/A"}},{"$f":"VLOOKUP('FORMULACIÓN SIGI '!C210,LISTAS!$A$67:$B$74,2,0)","v":{"$error":"#N/A"}},{"$f":"VLOOKUP('FORMULACIÓN SIGI '!D210,LISTAS!$A$76:$B$82,2,0)","v":{"$error":"#N/A"}},{"$f":"VLOOKUP('FORMULACIÓN SIGI '!E210,LISTAS!$A$84:$B$91,2,0)","v":{"$error":"#N/A"}},{"$f":"VLOOKUP('FORMULACIÓN SIGI '!F210,LISTAS!$A$93:$B$145,2,0)","v":{"$error":"#N/A"}},{"$f":"VLOOKUP('FORMULACIÓN SIGI '!G210,LISTAS!$A$113:B314,2,0)","v":{"$error":"#N/A"}},{"$f":"VLOOKUP('FORMULACIÓN SIGI '!H210,LISTAS!$A$126:$B$145,2,0)","v":{"$error":"#N/A"}},{"$f":"VLOOKUP('FORMULACIÓN SIGI '!I210,LISTAS!$A$147:$B$171,2,0)","v":{"$error":"#N/A"}},{"$f":"+'FORMULACIÓN SIGI '!J210","v":0},{"$f":"+'FORMULACIÓN SIGI '!K210","v":0},{"$f":"+'FORMULACIÓN SIGI '!L210","v":0},{"$f":"VLOOKUP('FORMULACIÓN SIGI '!M210,LISTAS!$A$173:$B$174,2,0)","v":{"$error":"#N/A"}},{"$f":"+'FORMULACIÓN SIGI '!N210","v":0},{"$f":"+'FORMULACIÓN SIGI '!O210","v":0},{"$f":"+'FORMULACIÓN SIGI '!P210","v":"00:00:00"},{"$f":"+'FORMULACIÓN SIGI '!Q210","v":"00:00:00"},{"$f":"+'FORMULACIÓN SIGI '!R210","v":0}]
[{"$f":"VLOOKUP('FORMULACIÓN SIGI '!A211,LISTAS!$A$58:$B$59,2,0)","v":{"$error":"#N/A"}},{"$f":"VLOOKUP('FORMULACIÓN SIGI '!B211,LISTAS!$A$61:$B$65,2,0)","v":{"$error":"#N/A"}},{"$f":"VLOOKUP('FORMULACIÓN SIGI '!C211,LISTAS!$A$67:$B$74,2,0)","v":{"$error":"#N/A"}},{"$f":"VLOOKUP('FORMULACIÓN SIGI '!D211,LISTAS!$A$76:$B$82,2,0)","v":{"$error":"#N/A"}},{"$f":"VLOOKUP('FORMULACIÓN SIGI '!E211,LISTAS!$A$84:$B$91,2,0)","v":{"$error":"#N/A"}},{"$f":"VLOOKUP('FORMULACIÓN SIGI '!F211,LISTAS!$A$93:$B$145,2,0)","v":{"$error":"#N/A"}},{"$f":"VLOOKUP('FORMULACIÓN SIGI '!G211,LISTAS!$A$113:B315,2,0)","v":{"$error":"#N/A"}},{"$f":"VLOOKUP('FORMULACIÓN SIGI '!H211,LISTAS!$A$126:$B$145,2,0)","v":{"$error":"#N/A"}},{"$f":"VLOOKUP('FORMULACIÓN SIGI '!I211,LISTAS!$A$147:$B$171,2,0)","v":{"$error":"#N/A"}},{"$f":"+'FORMULACIÓN SIGI '!J211","v":0},{"$f":"+'FORMULACIÓN SIGI '!K211","v":0},{"$f":"+'FORMULACIÓN SIGI '!L211","v":0},{"$f":"VLOOKUP('FORMULACIÓN SIGI '!M211,LISTAS!$A$173:$B$174,2,0)","v":{"$error":"#N/A"}},{"$f":"+'FORMULACIÓN SIGI '!N211","v":0},{"$f":"+'FORMULACIÓN SIGI '!O211","v":0},{"$f":"+'FORMULACIÓN SIGI '!P211","v":"00:00:00"},{"$f":"+'FORMULACIÓN SIGI '!Q211","v":"00:00:00"},{"$f":"+'FORMULACIÓN SIGI '!R211","v":0}]
[{"$f":"VLOOKUP('FORMULACIÓN SIGI '!A212,LISTAS!$A$58:$B$59,2,0)","v":{"$error":"#N/A"}},{"$f":"VLOOKUP('FORMULACIÓN SIGI '!B212,LISTAS!$A$61:$B$65,2,0)","v":{"$error":"#N/A"}},{"$f":"VLOOKUP('FORMULACIÓN SIGI '!C212,LISTAS!$A$67:$B$74,2,0)","v":{"$error":"#N/A"}},{"$f":"VLOOKUP('FORMULACIÓN SIGI '!D212,LISTAS!$A$76:$B$82,2,0)","v":{"$error":"#N/A"}},{"$f":"VLOOKUP('FORMULACIÓN SIGI '!E212,LISTAS!$A$84:$B$91,2,0)","v":{"$error":"#N/A"}},{"$f":"VLOOKUP('FORMULACIÓN SIGI '!F212,LISTAS!$A$93:$B$145,2,0)","v":{"$error":"#N/A"}},{"$f":"VLOOKUP('FORMULACIÓN SIGI '!G212,LISTAS!$A$113:B316,2,0)","v":{"$error":"#N/A"}},{"$f":"VLOOKUP('FORMULACIÓN SIGI '!H212,LISTAS!$A$126:$B$145,2,0)","v":{"$error":"#N/A"}},{"$f":"VLOOKUP('FORMULACIÓN SIGI '!I212,LISTAS!$A$147:$B$171,2,0)","v":{"$error":"#N/A"}},{"$f":"+'FORMULACIÓN SIGI '!J212","v":0},{"$f":"+'FORMULACIÓN SIGI '!K212","v":0},{"$f":"+'FORMULACIÓN SIGI '!L212","v":0},{"$f":"VLOOKUP('FORMULACIÓN SIGI '!M212,LISTAS!$A$173:$B$174,2,0)","v":{"$error":"#N/A"}},{"$f":"+'FORMULACIÓN SIGI '!N212","v":0},{"$f":"+'FORMULACIÓN SIGI '!O212","v":0},{"$f":"+'FORMULACIÓN SIGI '!P212","v":"00:00:00"},{"$f":"+'FORMULACIÓN SIGI '!Q212","v":"00:00:00"},{"$f":"+'FORMULACIÓN SIGI '!R212","v":0}]
[{"$f":"VLOOKUP('FORMULACIÓN SIGI '!A213,LISTAS!$A$58:$B$59,2,0)","v":{"$error":"#N/A"}},{"$f":"VLOOKUP('FORMULACIÓN SIGI '!B213,LISTAS!$A$61:$B$65,2,0)","v":{"$error":"#N/A"}},{"$f":"VLOOKUP('FORMULACIÓN SIGI '!C213,LISTAS!$A$67:$B$74,2,0)","v":{"$error":"#N/A"}},{"$f":"VLOOKUP('FORMULACIÓN SIGI '!D213,LISTAS!$A$76:$B$82,2,0)","v":{"$error":"#N/A"}},{"$f":"VLOOKUP('FORMULACIÓN SIGI '!E213,LISTAS!$A$84:$B$91,2,0)","v":{"$error":"#N/A"}},{"$f":"VLOOKUP('FORMULACIÓN SIGI '!F213,LISTAS!$A$93:$B$145,2,0)","v":{"$error":"#N/A"}},{"$f":"VLOOKUP('FORMULACIÓN SIGI '!G213,LISTAS!$A$113:B317,2,0)","v":{"$error":"#N/A"}},{"$f":"VLOOKUP('FORMULACIÓN SIGI '!H213,LISTAS!$A$126:$B$145,2,0)","v":{"$error":"#N/A"}},{"$f":"VLOOKUP('FORMULACIÓN SIGI '!I213,LISTAS!$A$147:$B$171,2,0)","v":{"$error":"#N/A"}},{"$f":"+'FORMULACIÓN SIGI '!J213","v":0},{"$f":"+'FORMULACIÓN SIGI '!K213","v":0},{"$f":"+'FORMULACIÓN SIGI '!L213","v":0},{"$f":"VLOOKUP('FORMULACIÓN SIGI '!M213,LISTAS!$A$173:$B$174,2,0)","v":{"$error":"#N/A"}},{"$f":"+'FORMULACIÓN SIGI '!N213","v":0},{"$f":"+'FORMULACIÓN SIGI '!O213","v":0},{"$f":"+'FORMULACIÓN SIGI '!P213","v":"00:00:00"},{"$f":"+'FORMULACIÓN SIGI '!Q213","v":"00:00:00"},{"$f":"+'FORMULACIÓN SIGI '!R213","v":0}]
[{"$f":"VLOOKUP('FORMULACIÓN SIGI '!A214,LISTAS!$A$58:$B$59,2,0)","v":{"$error":"#N/A"}},{"$f":"VLOOKUP('FORMULACIÓN SIGI '!B214,LISTAS!$A$61:$B$65,2,0)","v":{"$error":"#N/A"}},{"$f":"VLOOKUP('FORMULACIÓN SIGI '!C214,LISTAS!$A$67:$B$74,2,0)","v":{"$error":"#N/A"}},{"$f":"VLOOKUP('FORMULACIÓN SIGI '!D214,LISTAS!$A$76:$B$82,2,0)","v":{"$error":"#N/A"}},{"$f":"VLOOKUP('FORMULACIÓN SIGI '!E214,LISTAS!$A$84:$B$91,2,0)","v":{"$error":"#N/A"}},{"$f":"VLOOKUP('FORMULACIÓN SIGI '!F214,LISTAS!$A$93:$B$145,2,0)","v":{"$error":"#N/A"}},{"$f":"VLOOKUP('FORMULACIÓN SIGI '!G214,LISTAS!$A$113:B318,2,0)","v":{"$error":"#N/A"}},{"$f":"VLOOKUP('FORMULACIÓN SIGI '!H214,LISTAS!$A$126:$B$145,2,0)","v":{"$error":"#N/A"}},{"$f":"VLOOKUP('FORMULACIÓN SIGI '!I214,LISTAS!$A$147:$B$171,2,0)","v":{"$error":"#N/A"}},{"$f":"+'FORMULACIÓN SIGI '!J214","v":0},{"$f":"+'FORMULACIÓN SIGI '!K214","v":0},{"$f":"+'FORMULACIÓN SIGI '!L214","v":0},{"$f":"VLOOKUP('FORMULACIÓN SIGI '!M214,LISTAS!$A$173:$B$174,2,0)","v":{"$error":"#N/A"}},{"$f":"+'FORMULACIÓN SIGI '!N214","v":0},{"$f":"+'FORMULACIÓN SIGI '!O214","v":0},{"$f":"+'FORMULACIÓN SIGI '!P214","v":"00:00:00"},{"$f":"+'FORMULACIÓN SIGI '!Q214","v":"00:00:00"},{"$f":"+'FORMULACIÓN SIGI '!R214","v":0}]
[{"$f":"VLOOKUP('FORMULACIÓN SIGI '!A215,LISTAS!$A$58:$B$59,2,0)","v":{"$error":"#N/A"}},{"$f":"VLOOKUP('FORMULACIÓN SIGI '!B215,LISTAS!$A$61:$B$65,2,0)","v":{"$error":"#N/A"}},{"$f":"VLOOKUP('FORMULACIÓN SIGI '!C215,LISTAS!$A$67:$B$74,2,0)","v":{"$error":"#N/A"}},{"$f":"VLOOKUP('FORMULACIÓN SIGI '!D215,LISTAS!$A$76:$B$82,2,0)","v":{"$error":"#N/A"}},{"$f":"VLOOKUP('FORMULACIÓN SIGI '!E215,LISTAS!$A$84:$B$91,2,0)","v":{"$error":"#N/A"}},{"$f":"VLOOKUP('FORMULACIÓN SIGI '!F215,LISTAS!$A$93:$B$145,2,0)","v":{"$error":"#N/A"}},{"$f":"VLOOKUP('FORMULACIÓN SIGI '!G215,LISTAS!$A$113:B319,2,0)","v":{"$error":"#N/A"}},{"$f":"VLOOKUP('FORMULACIÓN SIGI '!H215,LISTAS!$A$126:$B$145,2,0)","v":{"$error":"#N/A"}},{"$f":"VLOOKUP('FORMULACIÓN SIGI '!I215,LISTAS!$A$147:$B$171,2,0)","v":{"$error":"#N/A"}},{"$f":"+'FORMULACIÓN SIGI '!J215","v":0},{"$f":"+'FORMULACIÓN SIGI '!K215","v":0},{"$f":"+'FORMULACIÓN SIGI '!L215","v":0},{"$f":"VLOOKUP('FORMULACIÓN SIGI '!M215,LISTAS!$A$173:$B$174,2,0)","v":{"$error":"#N/A"}},{"$f":"+'FORMULACIÓN SIGI '!N215","v":0},{"$f":"+'FORMULACIÓN SIGI '!O215","v":0},{"$f":"+'FORMULACIÓN SIGI '!P215","v":"00:00:00"},{"$f":"+'FORMULACIÓN SIGI '!Q215","v":"00:00:00"},{"$f":"+'FORMULACIÓN SIGI '!R215","v":0}]
[{"$f":"VLOOKUP('FORMULACIÓN SIGI '!A216,LISTAS!$A$58:$B$59,2,0)","v":{"$error":"#N/A"}},{"$f":"VLOOKUP('FORMULACIÓN SIGI '!B216,LISTAS!$A$61:$B$65,2,0)","v":{"$error":"#N/A"}},{"$f":"VLOOKUP('FORMULACIÓN SIGI '!C216,LISTAS!$A$67:$B$74,2,0)","v":{"$error":"#N/A"}},{"$f":"VLOOKUP('FORMULACIÓN SIGI '!D216,LISTAS!$A$76:$B$82,2,0)","v":{"$error":"#N/A"}},{"$f":"VLOOKUP('FORMULACIÓN SIGI '!E216,LISTAS!$A$84:$B$91,2,0)","v":{"$error":"#N/A"}},{"$f":"VLOOKUP('FORMULACIÓN SIGI '!F216,LISTAS!$A$93:$B$145,2,0)","v":{"$error":"#N/A"}},{"$f":"VLOOKUP('FORMULACIÓN SIGI '!G216,LISTAS!$A$113:B320,2,0)","v":{"$error":"#N/A"}},{"$f":"VLOOKUP('FORMULACIÓN SIGI '!H216,LISTAS!$A$126:$B$145,2,0)","v":{"$error":"#N/A"}},{"$f":"VLOOKUP('FORMULACIÓN SIGI '!I216,LISTAS!$A$147:$B$171,2,0)","v":{"$error":"#N/A"}},{"$f":"+'FORMULACIÓN SIGI '!J216","v":0},{"$f":"+'FORMULACIÓN SIGI '!K216","v":0},{"$f":"+'FORMULACIÓN SIGI '!L216","v":0},{"$f":"VLOOKUP('FORMULACIÓN SIGI '!M216,LISTAS!$A$173:$B$174,2,0)","v":{"$error":"#N/A"}},{"$f":"+'FORMULACIÓN SIGI '!N216","v":0},{"$f":"+'FORMULACIÓN SIGI '!O216","v":0},{"$f":"+'FORMULACIÓN SIGI '!P216","v":"00:00:00"},{"$f":"+'FORMULACIÓN SIGI '!Q216","v":"00:00:00"},{"$f":"+'FORMULACIÓN SIGI '!R216","v":0}]
[{"$f":"VLOOKUP('FORMULACIÓN SIGI '!A217,LISTAS!$A$58:$B$59,2,0)","v":{"$error":"#N/A"}},{"$f":"VLOOKUP('FORMULACIÓN SIGI '!B217,LISTAS!$A$61:$B$65,2,0)","v":{"$error":"#N/A"}},{"$f":"VLOOKUP('FORMULACIÓN SIGI '!C217,LISTAS!$A$67:$B$74,2,0)","v":{"$error":"#N/A"}},{"$f":"VLOOKUP('FORMULACIÓN SIGI '!D217,LISTAS!$A$76:$B$82,2,0)","v":{"$error":"#N/A"}},{"$f":"VLOOKUP('FORMULACIÓN SIGI '!E217,LISTAS!$A$84:$B$91,2,0)","v":{"$error":"#N/A"}},{"$f":"VLOOKUP('FORMULACIÓN SIGI '!F217,LISTAS!$A$93:$B$145,2,0)","v":{"$error":"#N/A"}},{"$f":"VLOOKUP('FORMULACIÓN SIGI '!G217,LISTAS!$A$113:B321,2,0)","v":{"$error":"#N/A"}},{"$f":"VLOOKUP('FORMULACIÓN SIGI '!H217,LISTAS!$A$126:$B$145,2,0)","v":{"$error":"#N/A"}},{"$f":"VLOOKUP('FORMULACIÓN SIGI '!I217,LISTAS!$A$147:$B$171,2,0)","v":{"$error":"#N/A"}},{"$f":"+'FORMULACIÓN SIGI '!J217","v":0},{"$f":"+'FORMULACIÓN SIGI '!K217","v":0},{"$f":"+'FORMULACIÓN SIGI '!L217","v":0},{"$f":"VLOOKUP('FORMULACIÓN SIGI '!M217,LISTAS!$A$173:$B$174,2,0)","v":{"$error":"#N/A"}},{"$f":"+'FORMULACIÓN SIGI '!N217","v":0},{"$f":"+'FORMULACIÓN SIGI '!O217","v":0},{"$f":"+'FORMULACIÓN SIGI '!P217","v":"00:00:00"},{"$f":"+'FORMULACIÓN SIGI '!Q217","v":"00:00:00"},{"$f":"+'FORMULACIÓN SIGI '!R217","v":0}]
[{"$f":"VLOOKUP('FORMULACIÓN SIGI '!A218,LISTAS!$A$58:$B$59,2,0)","v":{"$error":"#N/A"}},{"$f":"VLOOKUP('FORMULACIÓN SIGI '!B218,LISTAS!$A$61:$B$65,2,0)","v":{"$error":"#N/A"}},{"$f":"VLOOKUP('FORMULACIÓN SIGI '!C218,LISTAS!$A$67:$B$74,2,0)","v":{"$error":"#N/A"}},{"$f":"VLOOKUP('FORMULACIÓN SIGI '!D218,LISTAS!$A$76:$B$82,2,0)","v":{"$error":"#N/A"}},{"$f":"VLOOKUP('FORMULACIÓN SIGI '!E218,LISTAS!$A$84:$B$91,2,0)","v":{"$error":"#N/A"}},{"$f":"VLOOKUP('FORMULACIÓN SIGI '!F218,LISTAS!$A$93:$B$145,2,0)","v":{"$error":"#N/A"}},{"$f":"VLOOKUP('FORMULACIÓN SIGI '!G218,LISTAS!$A$113:B322,2,0)","v":{"$error":"#N/A"}},{"$f":"VLOOKUP('FORMULACIÓN SIGI '!H218,LISTAS!$A$126:$B$145,2,0)","v":{"$error":"#N/A"}},{"$f":"VLOOKUP('FORMULACIÓN SIGI '!I218,LISTAS!$A$147:$B$171,2,0)","v":{"$error":"#N/A"}},{"$f":"+'FORMULACIÓN SIGI '!J218","v":0},{"$f":"+'FORMULACIÓN SIGI '!K218","v":0},{"$f":"+'FORMULACIÓN SIGI '!L218","v":0},{"$f":"VLOOKUP('FORMULACIÓN SIGI '!M218,LISTAS!$A$173:$B$174,2,0)","v":{"$error":"#N/A"}},{"$f":"+'FORMULACIÓN SIGI '!N218","v":0},{"$f":"+'FORMULACIÓN SIGI '!O218","v":0},{"$f":"+'FORMULACIÓN SIGI '!P218","v":"00:00:00"},{"$f":"+'FORMULACIÓN SIGI '!Q218","v":"00:00:00"},{"$f":"+'FORMULACIÓN SIGI '!R218","v":0}]
[{"$f":"VLOOKUP('FORMULACIÓN SIGI '!A219,LISTAS!$A$58:$B$59,2,0)","v":{"$error":"#N/A"}},{"$f":"VLOOKUP('FORMULACIÓN SIGI '!B219,LISTAS!$A$61:$B$65,2,0)","v":{"$error":"#N/A"}},{"$f":"VLOOKUP('FORMULACIÓN SIGI '!C219,LISTAS!$A$67:$B$74,2,0)","v":{"$error":"#N/A"}},{"$f":"VLOOKUP('FORMULACIÓN SIGI '!D219,LISTAS!$A$76:$B$82,2,0)","v":{"$error":"#N/A"}},{"$f":"VLOOKUP('FORMULACIÓN SIGI '!E219,LISTAS!$A$84:$B$91,2,0)","v":{"$error":"#N/A"}},{"$f":"VLOOKUP('FORMULACIÓN SIGI '!F219,LISTAS!$A$93:$B$145,2,0)","v":{"$error":"#N/A"}},{"$f":"VLOOKUP('FORMULACIÓN SIGI '!G219,LISTAS!$A$113:B323,2,0)","v":{"$error":"#N/A"}},{"$f":"VLOOKUP('FORMULACIÓN SIGI '!H219,LISTAS!$A$126:$B$145,2,0)","v":{"$error":"#N/A"}},{"$f":"VLOOKUP('FORMULACIÓN SIGI '!I219,LISTAS!$A$147:$B$171,2,0)","v":{"$error":"#N/A"}},{"$f":"+'FORMULACIÓN SIGI '!J219","v":0},{"$f":"+'FORMULACIÓN SIGI '!K219","v":0},{"$f":"+'FORMULACIÓN SIGI '!L219","v":0},{"$f":"VLOOKUP('FORMULACIÓN SIGI '!M219,LISTAS!$A$173:$B$174,2,0)","v":{"$error":"#N/A"}},{"$f":"+'FORMULACIÓN SIGI '!N219","v":0},{"$f":"+'FORMULACIÓN SIGI '!O219","v":0},{"$f":"+'FORMULACIÓN SIGI '!P219","v":"00:00:00"},{"$f":"+'FORMULACIÓN SIGI '!Q219","v":"00:00:00"},{"$f":"+'FORMULACIÓN SIGI '!R219","v":0}]

{"sheet":"LISTAS","index":2,"n_rows":208,"n_cols":15,"rows_kept":208,"cut":false,"hidden":true,"merged":[[11,0,11,2]]}
["Oficina Asesora Jurídica","Oficina de Control Interno","Oficina Asesora de Planeación","Oficina de Servicios al Consumidor y de Apoyo Empresarial","Oficina de Tecnología e Informática","Secretaría General","Delegatura para la protección del Consumidor","Delegatura para la Protección de Datos","Delegatura para el Control y Verificación de Reglamentos Técnicos y Metrología Legal  ","Delegatura para Asuntos  Jurisdiccionales","Delegatura para la Propiedad Industrial","Delegatura para la Protección de la Competencia"]
["Grupo de Trabajo Cobro Coactivo",null,"Grupo de Trabajo de Estudios Económicos","Grupo de Atención al Ciudadano",null,"Grupo de Trabajo de Administración de Personal","Grupo de trabajo de Apoyo a la Red Nacional de Protección al Consumidor","Dirección de Investigaciones ",null,null,"Grupo de Trabajo de Vía Gubernativa "]
["Grupo de Trabajo Gestión Judicial",null,"Grupo de Trabajo de Asuntos Internacionales","Grupo de Formación",null,"Grupo de Trabajo de Desarrollo del Talento Humano","Dirección de Investigaciones de Protección al Consumidor      ","Dirección Habeas Data",null,null,"Grupo de Trabajo de Centro de Información Tecnológica y Apoyo a la Gestión de Propiedad Industrial - CIGEPI"]
["Grupo de Trabajo de Regulación",null,null,"Grupo de Comunicación",null,"Grupo de Trabajo de Control Disciplinario Interno","Dirección de Investigaciones de Protección de Usuarios de Servicios de Comunicaciones ",null,null,null,"Dirección de Signos Distintivos"]
[null,null,null,null,null,"Grupo de Trabajo de Notificaciones y Certificaciones",null,null,null,null,"Dirección de  Nuevas Creaciones"]
[null,null,null,null,null,"Grupo de Trabajo de Gestión Documental y Archivo"]
[null,null,null,null,null,"Grupo de Trabajo de Servicios Administrativos y Recursos Físicos"]
[null,null,null,null,null,"Grupo de Trabajo  Contratación"]
[null,null,null,null,null,"Dirección  Financiera"]
["GRUP_O1","GRUPO2","GRUP_O3","GRUPO4","GRUPO5","GRUPO6","GRUPO7","GRUPO_8","GRUPO9","GRUPO10","GRUPO11","GRUPO12"]
[]
["Fórmula para generación de rangos:",null,null,{"$f":"+HLOOKUP('[2]FORMULACIÓN '!$N$6,[2]LISTAS!A1:L10,10,0)","v":"GRUPO8"}]
[null,null,null,null,null,null,null,null,null,null,null,null,null,null,"Delegatura para Asuntos  Jurisdiccionales"]
["DEPENDENCIAS","código",null,null,null,null,null,null,null,null,null,null,null,null,"Delegatura para la Propiedad Industrial"]
["Oficina Asesora Jurídica",10,null,{"$f":"+CONCATENATE(B15,\" \",A15)","v":"10 Oficina Asesora Jurídica"},null,null,null,null,null,null,null,null,null,null,"Delegatura para la Protección de la Competencia"]
["Grupo de Trabajo Cobro Coactivo",11,null,{"$f":"+CONCATENATE(B16,\" \",A16)","v":"11 Grupo de Trabajo Cobro Coactivo"}]
["Grupo de Trabajo Gestión Judicial",60,null,"60 Grupo de Trabajo Gestión Judicial"]
["Grupo de Trabajo de Regulación",12,null,"12 Grupo de Trabajo de Regulación"]
["Oficina de Control Interno",50,null,"50 Oficina de Control Interno"]
["Oficina Asesora de Planeación",30,null,"30 Oficina Asesora de Planeación"]
["Grupo de Trabajo de Estudios Económicos",37,null,"37 Grupo de Trabajo de Estudios Económicos"]
["Grupo de Trabajo de Asuntos Internacionales",38,null,"38 Grupo de Trabajo de Asuntos Internacionales"]
["Oficina de Servicios al Consumidor y de Apoyo Empresarial",70,null,"70 Oficina de Servicios al Consumidor y de Apoyo Empresarial"]
["Grupo de Atención al Ciudadano",72,null,"72 Grupo de Atención al Ciudadano"]
["Grupo de Formación",71,null,"71 Grupo de Formación"]
["Grupo de Comunicación",73,null,"73 Grupo de Comunicación"]
["Oficina de Tecnología e Informática",20,null,"20 Oficina de Tecnología e Informática"]
["Secretaría General",100,null,"100 Secretaría General"]
["Grupo de Trabajo de Administración de Personal",111,null,"111 Grupo de Trabajo de Administración de Personal"]
["Grupo de Trabajo de Desarrollo del Talento Humano",117,null,"117 Grupo de Trabajo de Desarrollo del Talento Humano"]
["Grupo de Trabajo de Control Disciplinario Interno",103,null,"103 Grupo de Trabajo de Control Disciplinario Interno"]
["Grupo de Trabajo de Notificaciones y Certificaciones",104,null,"104 Grupo de Trabajo de Notificaciones y Certificaciones"]
["Grupo de Trabajo de Gestión Documental y Archivo",141,null,"141 Grupo de Trabajo de Gestión Documental y Archivo"]
["Grupo de Trabajo de Servicios Administrativos y Recursos Físicos",142,null,"142 Grupo de Trabajo de Servicios Administrativos y Recursos Físicos"]
["Grupo de Trabajo  Contratación",105,null,"105 Grupo de Trabajo  Contratación"]
["Dirección  Financiera",130,null,"130 Dirección  Financiera"]
["Delegatura para la protección del Consumidor",3000,null,"3000 Delegatura para la protección del Consumidor"]
["Grupo de trabajo de Apoyo a la Red Nacional de Protección al Consumidor",3003,null,"3003 Grupo de trabajo de Apoyo a la Red Nacional de Protección al Consumidor"]
["Dirección de Investigaciones de Protección al Consumidor      ",3100,null,"3100 Dirección de Investigaciones de Protección al Consumidor      "]
["Dirección de Investigaciones de Protección de Usuarios de Servicios de Comunicaciones ",3200,null,"3200 Dirección de Investigaciones de Protección de Usuarios de Servicios de Comunicaciones "]
["Delegatura para la Protección de Datos",7000,null,"7000 Delegatura para la Protección de Datos"]
["Dirección de Investigaciones ",7100,null,"7100 Dirección de Investigaciones "]
["Dirección Habeas Data",7200,null,"7200 Dirección Habeas Data"]
["Delegatura para el Control y Verificación de Reglamentos Técnicos y Metrología Legal  ",6000,null,"6000 Delegatura para el Control y Verificación de Reglamentos Técnicos y Metrología Legal  "]
["Delegatura para Asuntos  Jurisdiccionales",4000,null,"4000 Delegatura para Asuntos  Jurisdiccionales"]
["Delegatura para la Propiedad Industrial",2000,null,"2000 Delegatura para la Propiedad Industrial"]
["Grupo de Trabajo de Vía Gubernativa ",2003,null,"2003 Grupo de Trabajo de Vía Gubernativa "]
["Grupo de Trabajo de Centro de Información Tecnológica y Apoyo a la Gestión de Propiedad Industrial - CIGEPI",2023,null,"2023 Grupo de Trabajo de Centro de Información Tecnológica y Apoyo a la Gestión de Propiedad Industrial - CIGEPI"]
["Dirección de Signos Distintivos",2010,null,"2010 Dirección de Signos Distintivos"]
["Dirección de  Nuevas Creaciones",2020,null,"2020 Dirección de  Nuevas Creaciones"]
["Delegatura para la Protección de la Competencia",1000,null,"1000 Delegatura para la Protección de la Competencia"]
["Dirección de Cámaras de Comercio",1020,null,"1020 Dirección de Cámaras de Comercio"]
["N/A"]
[]
["LISTAS FORMATO SIGI ","LISTAS MODULO GPS"]
[]
["Ident. Fila"]
["Producto","1 - Producto "]
["Actividad","2 - Actividad "]
["Categoría"]
["1-Innovador","1 - Innovador"]
["2-Operativo","2 - Operativo"]
["3-Operativo SI","3 - Operativo SI"]
["4-N/A","4 - N/A"]
[]
["Objetivos Estratégicos ",null,null,"PEI"]
["1-Promover el enfoque preventivo, diferencial y territorial en el que hacer misional de la entidad ","1 - Promover el enfoque preventivo, diferencial y territorial en el que hacer misional de la entidad ",null,null,"Objetivos Estratégicos ","1-Promover el enfoque preventivo, diferencial y territorial en el que hacer misional de la entidad ","2-Fortalecer la gestión de la información, el conocimiento y la innovación para optimizar la capacidad institucional ","3-Fortalecer la infraestructura, uso y aprovechamiento de las tecnologías de la información, para optimizar la capacidad institucional","4-Generar sinergias con agentes nacionales e internacionales que permitan potenciar las capacidades de la SIC.","5-Fortalecer el Sistema Integral de Gestión Institucional para mejorar la prestación del servicio. ","6-Mejorar la oportunidad en la atención de trámites y servicios.","7- N/A"]
["2-Fortalecer la gestión de la información, el conocimiento y la innovación para optimizar la capacidad institucional ","2 - Fortalecer la gestión de la información, el conocimiento y la innovación para optimizar la capacidad institucional ",null,null,"Indicador Estratégico ","1- Avance promedio de cumplimiento de productos asociados a la promoción del enfoque preventivo, diferencial y territorial en el que hacer misional de la entidad ","2-Avance promedio de cumplimiento de productos asociados a fortalecer la gestión de la información, el conocimiento y la innovación para optimizar la capacidad institucional ","3-Avance promedio de cumplimiento de productos asociados a fortalecer la infraestructura, uso y aprovechamiento de las tecnologías de la información, para optimizar la capacidad institucional","4-Avance promedio de cumplimiento de productos asociados a la generación de sinergias con agentes nacionales e internacionales que permitan potenciar las capacidades de la SIC.","5-Avance promedio de cumplimiento de productos asociados a fortalecer el Sistema Integral de Gestión Institucional para mejorar la prestación del servicio. ","6-Avance promedio de cumplimiento de productos asociados a mejorar la oportunidad en la atención de trámites y servicios.","7- N/A"]
["3-Fortalecer la infraestructura, uso y aprovechamiento de las tecnologías de la información, para optimizar la capacidad institucional","3 - Fortalecer la infraestructura, uso y aprovechamiento de las tecnologías de la información, para optimizar la capacidad institucional",null,null,null,"OBJE01","OBJE02","OBJE03","OBJE04","OBJE05","OBJE06","OBJE07"]
["4-Generar sinergias con agentes nacionales e internacionales que permitan potenciar las capacidades de la SIC.","4 - Generar sinergias con agentes nacionales e internacionales que permitan potenciar las capacidades de la SIC."]
["5-Fortalecer el Sistema Integral de Gestión Institucional para mejorar la prestación del servicio. ","5 - Fortalecer el Sistema Integral de Gestión Institucional para mejorar la prestación del servicio. "]
["6-Mejorar la oportunidad en la atención de trámites y servicios.","6 - Mejorar la oportunidad en la atención de trámites y servicios."]
["7- N/A","7- N/A"]
[]
["Indicador Estratégico ",null,null,"PEI"]
["1- Avance promedio de cumplimiento de productos asociados a la promoción del enfoque preventivo, diferencial y territorial en el que hacer misional de la entidad ","1- Avance promedio de cumplimiento de productos asociados a la promoción del enfoque preventivo, diferencial y territorial en el que hacer misional de la entidad "]
["2-Avance promedio de cumplimiento de productos asociados a fortalecer la gestión de la información, el conocimiento y la innovación para optimizar la capacidad institucional ","2-Avance promedio de cumplimiento de productos asociados a fortalecer la gestión de la información, el conocimiento y la innovación para optimizar la capacidad institucional "]
["3-Avance promedio de cumplimiento de productos asociados a fortalecer la infraestructura, uso y aprovechamiento de las tecnologías de la información, para optimizar la capacidad institucional","3-Avance promedio de cumplimiento de productos asociados a fortalecer la infraestructura, uso y aprovechamiento de las tecnologías de la información, para optimizar la capacidad institucional"]
["4-Avance promedio de cumplimiento de productos asociados a la generación de sinergias con agentes nacionales e internacionales que permitan potenciar las capacidades de la SIC.","4-Avance promedio de cumplimiento de productos asociados a la generación de sinergias con agentes nacionales e internacionales que permitan potenciar las capacidades de la SIC.",null,null,null,"1-Generación de oportunidades de cooperación y fortalecimiento de existentes con grupos interés y de valor.","1-Generación de oportunidades de cooperación y fortalecimiento de existentes con grupos de interés y de valor."]
["5-Avance promedio de cumplimiento de productos asociados a fortalecer el Sistema Integral de Gestión Institucional para mejorar la prestación del servicio. ","5-Avance promedio de cumplimiento de productos asociados a fortalecer el Sistema Integral de Gestión Institucional para mejorar la prestación del servicio. ",null,null,null,"2- Reconocimiento nacional e internacional de la SIC","2-Reconocimiento nacional e internacional de la SIC."]
["6-Avance promedio de cumplimiento de productos asociados a mejorar la oportunidad en la atención de trámites y servicios.","6-Avance promedio de cumplimiento de productos asociados a mejorar la oportunidad en la atención de trámites y servicios.",null,null,null,"3-Posicionamiento de la SIC, sirviéndose del aprovechamiento de casos de éxito como una herramienta para mejorar o implementar programas con enfoque preventivo, diferencial, de derechos humanos y territorial","3-Posicionamiento de la SIC, sirviéndose del aprovechamiento de casos de éxito, como una herramienta para mejorar o implementar programas con enfoque preventivo, diferencial y territorial."]
["7- N/A","7- N/A",null,null,null,"4- Optimización, ampliación y  fortalecimiento del talento humano y  las capacidades técnicas, incentivando la capacitación , la permanecía y la socialización del conocimiento.\n","4-Optimización de capacidades tecnológicas que promuevan la oferta de programas misionales con enfoque preventivo, diferencial y territorial."]
["Estratégia ",null,null,"PA",null,"5-Direccionamiento de la oferta institucional con productos y/o servicios con enfoque preventivo, diferencial, de derechos humanos y territorial. ","5-Direccionamiento de la oferta institucional con productos y/o servicios con enfoque preventivo, diferencial y territorial."]
["1-Generación de oportunidades de cooperación y fortalecimiento de existentes con grupos de interés y de valor.","1 - Generación de oportunidades de cooperación y fortalecimiento de existentes con grupos de interés y de valor.",null,null,null,"6-Optimización de capacidades tecnológicas que promuevan la oferta de programas misionales con enfoque   preventivo, diferencial, de derechos humanos y territorial","6-Optimización, ampliación y  fortalecimiento del talento humano y  las capacidades técnicas, incentivando la capacitación, la permanencía y la socialización del conocimiento."]
["2-Reconocimiento nacional e internacional de la SIC.","2 - Reconocimiento nacional e internacional de la SIC.",null,null,null,"7- Fortalecimiento e implementación de infraestructura,  herramientas e información estadística y tecnológica \n","7-Fortalecimiento e implementación de infraestructura,  herramientas e información estadística y tecnológica."]
["3-Posicionamiento de la SIC, sirviéndose del aprovechamiento de casos de éxito, como una herramienta para mejorar o implementar programas con enfoque preventivo, diferencial y territorial.","3 - Posicionamiento de la SIC, sirviéndose del aprovechamiento de casos de éxito, como una herramienta para mejorar o implementar programas con enfoque preventivo, diferencial y territorial.",null,null,null,"8- N/A","8-NA."]
["4-Optimización de capacidades tecnológicas que promuevan la oferta de programas misionales con enfoque preventivo, diferencial y territorial.","4 - Optimización de capacidades tecnológicas que promuevan la oferta de programas misionales con enfoque preventivo, diferencial y territorial."]
["5-Direccionamiento de la oferta institucional con productos y/o servicios con enfoque preventivo, diferencial y territorial.","5 - Direccionamiento de la oferta institucional con productos y/o servicios con enfoque preventivo, diferencial y territorial."]
["6-Optimización, ampliación y  fortalecimiento del talento humano y  las capacidades técnicas, incentivando la capacitación, la permanencía y la socialización del conocimiento.","6 - Optimización, ampliación y  fortalecimiento del talento humano y  las capacidades técnicas, incentivando la capacitación, la permanencía y la socialización del conocimiento."]
["7-Fortalecimiento e implementación de infraestructura,  herramientas e información estadística y tecnológica.","7 - Fortalecimiento e implementación de infraestructura,  herramientas e información estadística y tecnológica."]
["8-NA.","8 - NA."]
["INSUMOS",null,null,"PA"]
["1-Datos principales  del Programa de Gobierno","1 - Datos principales  del Programa de Gobierno"]
["2-Analítica Institucional - Estadísticas","2 - Analítica Institucional  -  Estadísticas"]
["3-Sistema Estadistico Nacional - Indicares Relevantes","3 - Sistema Estadistico Nacional  -  Indicares Relevantes"]
["4-Caracterización Grupos de Valor","4 - Caracterización Grupos de Valor"]
["5-CONPES","5 - CONPES"]
["6-Plan Estratégico de Tecnologías de la Información","6 - Plan Estratégico de Tecnologías de la Información"]
["7-Ejecución Presupuestal 2022","7 - Ejecución Presupuestal 2022"]
["8-Modelo Integrado de Planeación y Gestión ","8 - Modelo Integrado de Planeación y Gestión "]
["9-Gestión de riesgos","9 - Gestión de riesgos"]
["10-Indicadores","10 - Indicadores"]
["11-Producto no conforme","11 - Producto no conforme"]
["12-Planes de mejoramiento","12 - Planes de mejoramiento"]
["13-Experiencia SIC","13 - Experiencia SIC"]
["14-PQRS","14 - PQRS"]
["15-Resultados de la encuesta trámites 2022","15 - Resultados de la encuesta trámites 2022"]
["16-TrÁmites y OPAS","16 - TrÁmites y OPAS"]
["17-Rendición de cuentas e inrome del congreso","17 - Rendición de cuentas e inrome del congreso"]
["18-Documentación ","18 - Documentación "]
["19-N/A","19 - N/A"]
["Fuente de Financiación","Fuente de Financiación",null,"PI"]
["  1 -  Fortalecimiento de la atención y promoción de trámites y servicios en el marco del sistema de propiedad industrial a nivel  nacional","  1  -   Fortalecimiento de la atención y promoción de trámites y servicios en el marco del sistema de propiedad industrial a nivel  nacional",null,"CCP PEDIRLE A Natalia "]
["  2 -  Fortalecimiento de la función de inspección, control y vigilancia de la superintendencia de industria y comercio en el marco del subsistema nacional de calidad, el régimen de control de precios y el sector valuatorio a nivel  nacional","  2  -   Fortalecimiento de la función de inspección, control y vigilancia de la superintendencia de industria y comercio en el marco del subsistema nacional de calidad, el régimen de control de precios y el sector valuatorio a nivel  nacional",null,"c.jsanchez@"]
["  3 - Fortalecimiento de la función jurisdiccional de la superintendencia de industria y comercio a nivel  nacional","  3  -  Fortalecimiento de la función jurisdiccional de la superintendencia de industria y comercio a nivel  nacional"]
["  4 - Fortalecimiento de la protección de datos personales a nivel  nacional","  4  -  Fortalecimiento de la protección de datos personales a nivel  nacional"]
["  5 - Fortalecimiento del régimen de protección de la libre competencia económica en los mercados a nivel  nacional","  5  -  Fortalecimiento del régimen de protección de la libre competencia económica en los mercados a nivel  nacional"]
["  6 - Fortalecimiento del sistema de atención al ciudadano de la superintendencia de industria y comercio a nivel  nacional","  6  -  Fortalecimiento del sistema de atención al ciudadano de la superintendencia de industria y comercio a nivel  nacional"]
["  7 - Incremento de la cobertura de los servicios de la red nacional de protección al consumidor en el territorio  nacional","  7  -  Incremento de la cobertura de los servicios de la red nacional de protección al consumidor en el territorio  nacional"]
["  8 -  Mejoramiento de los sistemas de información y servicios tecnológicos de la superintendencia de industria y comercio en el territorio  nacional","  8  -   Mejoramiento de los sistemas de información y servicios tecnológicos de la superintendencia de industria y comercio en el territorio  nacional"]
[" 9 -  Mejoramiento en la calidad de la gestión estratégica de la superintendencia de industria y comercio a nivel  nacional"," 9  -   Mejoramiento en la calidad de la gestión estratégica de la superintendencia de industria y comercio a nivel  nacional"]
[" 10 -  Mejoramiento en la ejecución de las funciones asignadas en materia de protección al consumidor a nivel  nacional"," 10  -   Mejoramiento en la ejecución de las funciones asignadas en materia de protección al consumidor a nivel  nacional"]
["  11 -  Funcionamiento","  11  -   Funcionamiento"]
["12 - N/A","12  -  N/A"]
["MIPG","MIPG"]
[" 1. Planeación Institucional"," 1. Planeación Institucional"]
[" 2. Gestión presupuestal y eficiencia del gasto público"," 2. Gestión presupuestal y eficiencia del gasto público"]
[" 3. Compras y Contratación Pública "," 3. Compras y Contratación Pública "]
[" 4. Talento humano"," 4. Talento humano"]
[" 5. Integridad"," 5. Integridad"]
[" 6. Transparencia, acceso a la información pública y lucha contra la corrupción"," 6. Transparencia, acceso a la información pública y lucha contra la corrupción"]
[" 7. Fortalecimiento organizacional y simplificación de procesos"," 7. Fortalecimiento organizacional y simplificación de procesos"]
[" 8. Servicio al ciudadano"," 8. Servicio al ciudadano"]
[" 9. Participación ciudadana en la gestión pública"," 9. Participación ciudadana en la gestión pública"]
[" 10. Racionalización de trámites"," 10. Racionalización de trámites"]
[" 11.Gobierno digital"," 11.Gobierno digital"]
[" 12. Seguridad digital"," 12. Seguridad digital"]
[" 13.Defensa jurídica"," 13.Defensa jurídica"]
[" 14. Mejora normativa"," 14. Mejora normativa"]
[" 15.Gestión del conocimiento y la innovación"," 15.Gestión del conocimiento y la innovación"]
[" 16.Gestión documental"," 16.Gestión documental"]
[" 17.Gestión de la información estadística"," 17.Gestión de la información estadística"]
[" 18. Seguimiento y evaluación del desempeño institucional"," 18. Seguimiento y evaluación del desempeño institucional"]
[" 19. Control interno"," 19. Control interno"]
["20-N/A","20 - N/A"]
["Asociación a Planes","Asociación a Planes",null,"PA"]
["1- Plan Anual de Adquisiciones"," 1 -  Plan Anual de Adquisiciones"]
["2- Gasto público "," 2 -  Gasto público "]
["3- Plan Estratégico de TH (PETH)"," 3 -  Plan Estratégico de TH (PETH)"]
["4- Vacantes"," 4 -  Vacantes"]
["5- Previsión RH"," 5 -  Previsión RH"]
["6- Plan Institucional de Capacitación (PIC)"," 6 -  Plan Institucional de Capacitación (PIC)"]
["7- Incentivos"," 7 -  Incentivos"]
["8- Seguridad y Salud en el Trabajo (SYST)"," 8 -  Seguridad y Salud en el Trabajo (SYST)"]
["9-PAAC-Gestión Riesgo de Corrupción"," 9 - PTEP  -  Gestión Integral del riesgo de corrupción"]
["10-PAAC-Racionalización de trámites"," 10 - PTEP  -  Redes institucionales y canales de denuncia"]
["11-PAAC-Rendición de Cuentas "," 11 - PTEP  -  Legalidad e integridad"]
["12-PAAC-Atención al Ciudadano "," 12 - PTEP  -  Iniciativas adicionales"]
["13-PAAC-Transparencia"," 13 - PTEP  -  Participación ciudadana y rendición de cuentas"]
["14-PAAC-Iniciativas adicionales"," 14 - PTEP  -  Transparencia y acceso a la información "]
["15- Participación Ciudadana "," 15 - PTEP  -  Estado abierto"]
["16- Plan Estratégico de Tecnologías de la Información"," 16 -  Participación Ciudadana "]
["17- Mantenimiento Servicio Tecnológico"," 17 -  Plan Estratégico de Tecnologías de la Información"]
["18- Conservación  Documental "," 18 -  Mantenimiento Servicio Tecnológico"]
["19- Preservación Digital"," 18 -  Conservación  Documental "]
["20- Riesgos de Seguridad y privacidad de la Información"," 20 -  Preservación Digital"]
["21- Seguridad y Privacidad de la Información"," 21 -  Riesgos de Seguridad y privacidad de la Información"]
["22- Plan Institucional de Archivos (PINAR)"," 22 -  Seguridad y Privacidad de la Información"]
["23- Austeridad y G Ambiental "," 23 -  Plan Institucional de Archivos (PINAR)"]
["24-N/A"," 24 -  Austeridad y G Ambiental "]
[null,"25 - N/A"]
["Unidad de medida","Unidad de medida"]
["Numerica","Numerica",null,"FORMARTO"]
["Porcentual ","Porcentual "]
["Áreas Responsables","Áreas Responsables"]
["10-Oficina Asesora Jurídica","10 - Oficina Asesora Jurídica"]
["11-Grupo de Trabajo Cobro Coactivo","11 - Grupo de Trabajo Cobro Coactivo"]
["12-Grupo de Trabajo de Regulación","12 - Grupo de Trabajo de Regulación"]
["20-Oficina de Tecnología e Informática","20 - Oficina de Tecnología e Informática"]
["30-Oficina Asesora de Planeación","30 - Oficina Asesora de Planeación"]
["37-Grupo de Trabajo de Estudios Económicos","37 - Grupo de Trabajo de Estudios Económicos"]
["38-Grupo de Trabajo de Asuntos Internacionales","38 - Grupo de Trabajo de Asuntos Internacionales"]
["50-Oficina de Control Interno","50 - Oficina de Control Interno"]
["60-Grupo de Trabajo Gestión Judicial","60 - Grupo de Trabajo Gestión Judicial"]
["71-Grupo de Formación","71 - Grupo de Formación"]
["72-Grupo de Atención al Ciudadano","72 - Grupo de Atención al Ciudadano"]
["73-Grupo de Comunicación","73 - Grupo de Comunicación"]
["100-Secretaría General","100 - Secretaría General"]
["103-Grupo de Trabajo de Control Disciplinario Interno","103 - Grupo de Trabajo de Control Disciplinario Interno"]
["104-Grupo de Trabajo de Notificaciones y Certificaciones","104 - Grupo de Trabajo de Notificaciones y Certificaciones"]
["105-Grupo de Trabajo  Contratación","105 - Grupo de Trabajo  Contratación"]
["111-Grupo de Trabajo de Administración de Personal","111 - Grupo de Trabajo de Administración de Personal"]
["117-Grupo de Trabajo de Desarrollo del Talento Humano","117 - Grupo de Trabajo de Desarrollo del Talento Humano"]
["130-Dirección  Financiera","130 - Dirección  Financiera"]
["141-Grupo de Trabajo de Gestión Documental y Archivo","141 - Grupo de Trabajo de Gestión Documental y Archivo"]
["142-Grupo de Trabajo de Servicios Administrativos y Recursos Físicos","142 - Grupo de Trabajo de Servicios Administrativos y Recursos Físicos"]
["1000-Delegatura para la Protección de la Competencia","1000 - Delegatura para la Protección de la Competencia"]
["2000-Delegatura para la Propiedad Industrial","2000 - Delegatura para la Propiedad Industrial"]
["2010-Dirección de Signos Distintivos","2010 - Dirección de Signos Distintivos"]
["2020-Dirección de  Nuevas Creaciones","2020 - Dirección de  Nuevas Creaciones"]
["2023-Grupo de Trabajo de Centro de Información Tecnológica y Apoyo a la Gestión de Propiedad Industrial - CIGEPI","2023 - Grupo de Trabajo de Centro de Información Tecnológica y Apoyo a la Gestión de Propiedad Industrial  -  CIGEPI"]
["3000-Delegatura para la protección del Consumidor","3000 - Delegatura para la protección del Consumidor"]
["3003-Grupo de trabajo de Apoyo a la Red Nacional de Protección al Consumidor","3003 - Grupo de trabajo de Apoyo a la Red Nacional de Protección al Consumidor"]
["3100-Dirección de Investigaciones de Protección al Consumidor      ","3100 - Dirección de Investigaciones de Protección al Consumidor      "]
["3200-Dirección de Investigaciones de Protección de Usuarios de Servicios de Comunicaciones ","3200 - Dirección de Investigaciones de Protección de Usuarios de Servicios de Comunicaciones "]
["4000-Delegatura para Asuntos  Jurisdiccionales","4000 - Delegatura para Asuntos  Jurisdiccionales"]
["6000-Delegatura para el Control y Verificación de Reglamentos Técnicos y Metrología Legal  ","6000 - Delegatura para el Control y Verificación de Reglamentos Técnicos y Metrología Legal  "]
["7000-Delegatura para la Protección de Datos","7000 - Delegatura para la Protección de Datos"]